{"text_format":"1","workbook":"xlsx","n_sheets":7,"sheets":["Menu","Arrears Calculator","Hidden.Calcs","Setup","Genworth","S&P","Version"],"not_rendered":{"charts":0,"images":1,"macros":1,"external_links":0,"defined_names":140,"comments":0,"pivot_tables":0},"unopened":[],"bounds":{"document_bytes":16777216,"sheet_cells":100000,"rows_first":2000,"rows_last":500,"rows_between":2000,"halvings":0,"cell_chars":16384,"cell_head_chars":4096},"cells_cut":0,"cells_raw":0,"read":"whole","date_system":"1900"}

{"sheet":"Menu","index":0,"n_rows":14,"n_cols":3,"rows_kept":14,"cut":false,"hidden":false,"merged":[[4,0,4,3],[13,1,20,13]]}
[null,"Please save to your desktop via save as, close and open the file, then Enable Macros to Continue"]
[]
[null,null,{"$f":"Brand.name&\" Arrears Calculator\"","v":"MA Money Arrears Calculator"}]
[]
[{"$f":"\"Version \"&TEXT(Version.Num,\"0.0\")&\" (\"&TEXT(Version.Date,\"dd mmmm yyyy\")&\")\"","v":"Version 1.0 (20 September 2024)"}]
[]
[]
[]
[]
[]
[]
[]
[]
[null,"Important Information:\nThis calculator has been prepared by MA Money Financial Services Pty Limited ACN 639 174 315 Australian Credit Licence 522267 (MA Money) for use by mortgage brokers to estimate the loan servicing capacity of borrowers and is to be used for guidance purposes only. The results of the calculator are not an offer of credit by MA Money and should not be used by a mortgage broker as a substitute for any credit assessment or diligence required to be undertaken for a borrower. Lending criteria, terms and conditions, fees and charges will apply to all applications for credit to MA Money. The spreadsheet and the calculator must not be shared, reproduced or amended without MA Money’s written consent. MA Money will not be liable for any loss or damage caused by any party relying on the use of this calculator. "]

{"sheet":"Arrears Calculator","index":1,"n_rows":35,"n_cols":13,"rows_kept":35,"cut":false,"hidden":true,"merged":[[31,2,32,3]]}
[]
[null,{"$f":"Model.name","v":"MA Money - Arrears Calculator"}]
[null,null,{"$f":"MID(CELL(\"filename\",B2),FIND(\"]\",CELL(\"filename\",B2))+1,LEN(CELL(\"filename\",B2)))","v":"Arrears Calculator"}]
[]
[]
[]
[]
[]
[]
[]
[]
[]
[]
[]
[null,null,"Arrears Calculator"]
[]
[null,null,"Latest Month","[selector]","September",{"$f":"IF(CurrMnthNum>($B$27+1),\"  Please note that we require transactions within the last 30 days.\",\"\")","v":""}]
[]
[null,null,"Month","Amount Paid","Monthly Repayment Due","Monthly Arrears / (Advance)","Cumulative Arrears / (Advance)","Arrears / (Advance) Months","Description",null,"Arrears","Clean Arrears","Cumulative Clean Arrears"]
[null,null,"[date]","[$]","[$]","[$]","[$]","[months]"]
[]
[null,{"$f":"IF(B23=1,12,B23-1)","v":4},{"$f":"INDEX(List.Mnths,B22)","v":"April"},null,null,{"$f":"E22-D22","v":0},{"$f":"F22","v":0},{"$f":"IFERROR(G22/AVERAGE($E$22:E22),\"\")","v":""},{"$f":"IF(F22>0,\"Arrears\",\"No Arrears\")","v":"No Arrears"},null,{"$f":"IF(G22<Zero,1,0)","v":0},{"$f":"1-K22","v":1},{"$f":"IF(L22=1,L22+M21,0)","v":1}]
[null,5,{"$f":"INDEX(List.Mnths,B23)","v":"May"},null,null,{"$f":"E23-D23","v":0},{"$f":"G22+F23","v":0},{"$f":"IFERROR(G23/AVERAGE($E$22:E23),\"\")","v":""},"No Arrears",null,0,{"$f":"1-K23","v":1},{"$f":"IF(L23=1,L23+M22,0)","v":2}]
[null,6,{"$f":"INDEX(List.Mnths,B24)","v":"June"},null,null,0,{"$f":"G23+F24","v":0},{"$f":"IFERROR(G24/AVERAGE($E$22:E24),\"\")","v":""},"No Arrears",null,0,1,3]
[null,7,{"$f":"INDEX(List.Mnths,B25)","v":"July"},null,null,0,0,{"$f":"IFERROR(G25/AVERAGE($E$22:E25),\"\")","v":""},"No Arrears",null,0,1,4]
[null,{"$f":"IF(B27=1,12,B27-1)","v":8},{"$f":"INDEX(List.Mnths,B26)","v":"August"},null,null,0,0,{"$f":"IFERROR(G26/AVERAGE($E$22:E26),\"\")","v":""},"No Arrears",null,0,1,5]
[null,{"$f":"INDEX(List.MnthNum,MATCH($C$27,List.Mnths,0))","v":9},{"$f":"IF($E$17=\"\",CurrMnth,$E$17)","v":"September"},null,null,0,0,{"$f":"IFERROR(G27/AVERAGE($E$22:E27),\"\")","v":""},"No Arrears",null,0,1,6]
[]
[null,null,"Product Eligibility",null,null,null,null,null,null,null,"Product Eligibility"]
[]
[null,null,null,null,null,null,null,null,null,null,"Max Mortgage Arrears","Product"]
[null,null,{"$f":"IFERROR(IF(MAX($H$22:$H$27)>K34,$L$35,IF(MAX($H$22:$H$27)<=K32,$L$32,IF(MAX($H$22:$H$27)<=K33,$L$33,IF(MAX($H$22:$H$27)<=K34,$L$34)))),\"\")","v":"Prime"},null,null,null,null,null,null,null,0,"Prime"]
[null,null,null,null,null,null,null,null,null,null,{"$f":"K32+1","v":1},"Near Prime"]
[null,null,null,null,null,null,null,null,null,null,{"$f":"K33+1","v":2},"Near Prime Plus"]
[null,null,null,null,null,null,null,null,null,null,3,"Specialist"]

{"sheet":"Hidden.Calcs","index":2,"n_rows":55,"n_cols":7,"rows_kept":55,"cut":false,"hidden":true,"merged":[]}
[]
[null,{"$f":"Model.name","v":"MA Money - Arrears Calculator"}]
[null,null,{"$f":"MID(CELL(\"filename\",B2),FIND(\"]\",CELL(\"filename\",B2))+1,LEN(CELL(\"filename\",B2)))","v":"Hidden.Calcs"}]
[]
[]
[]
[]
[]
[]
[]
[]
[]
[]
[]
[{"$f":"CHAR(149)","v":"•"},"PAYG Tax"]
[]
[null,null,"Individiual Resident Tax Rates (2024-25)"]
[null,null,"Source:","https://www.ato.gov.au/tax-rates-and-codes/tax-rates-australian-residents#ato-Australianresidenttaxrates2020to2025"]
[]
[]
[null,null,"Lower","Upper","Fixed","Variable"]
[null,null,0,18200,0,0]
[null,null,{"$f":"D22","v":18200},45000,0,0.16]
[null,null,{"$f":"D23","v":45000},135000,4288,0.3]
[null,null,{"$f":"D24","v":135000},190000,31288,0.37]
[null,null,{"$f":"D25","v":190000},0,51638,0.45]
[]
[null,null,"Medicare Levy","Upper","Fixed","Variable","Partial"]
[null,null,0,23365,0,0,0]
[null,null,{"$f":"D29","v":23365},29207,0,0,0.1]
[null,null,{"$f":"D30","v":29207},0,0,0.02,0]
[]
[]
[{"$f":"CHAR(149)","v":"•"},"Low and Middle Income Tax Offset"]
[]
[null,null,"Lower","Upper","Fixed","Variable"]
[null,null,0,37500,0,0]
[null,null,{"$f":"D37","v":37500},48000,0,0]
[null,null,{"$f":"D38","v":48000},90000,0,0]
[null,null,{"$f":"D39","v":90000},126000,0,0]
[null,null,{"$f":"D40","v":126000},0,0,0]
[]
[]
[{"$f":"CHAR(149)","v":"•"},"Low Income Tax Offset"]
[]
[null,null,"Lower","Upper","Fixed","Variable"]
[null,null,0,37500,700,0]
[null,null,{"$f":"D47","v":37500},45000,700,-0.05]
[null,null,{"$f":"D48","v":45000},66667,325,-1.4999999999999999E-2]
[null,null,{"$f":"D49","v":66667},0,0,0]
[]
[]
[{"$f":"CHAR(149)","v":"•"},"Company and Trust Tax"]
[]
[null,null,"Corporate Tax",0.25]

{"sheet":"Setup","index":3,"n_rows":304,"n_cols":15,"rows_kept":304,"cut":false,"hidden":true,"merged":[[91,2,98,3]]}
[]
[null,{"$f":"Model.name","v":"MA Money - Arrears Calculator"},null,null,null,null,null,null,null,"Legend:","Calculations","Assumptions","Inconsistent","Linked","Ex-linked"]
[null,null,{"$f":"MID(CELL(\"filename\",B2),FIND(\"]\",CELL(\"filename\",B2))+1,LEN(CELL(\"filename\",B2)))","v":"Setup"}]
[]
[]
[]
[]
[]
[]
[]
[]
[]
[]
[]
[{"$f":"CHAR(149)","v":"•"},"Setup"]
[{"$f":"CHAR(149)","v":"•"},"General"]
[]
[null,null,"Brand Name",null,null,"[text]",null,null,"MA Money","Brand.name"]
[]
[null,null,"Model name",null,null,"[text]",null,null,"MA Money - Arrears Calculator","Model.name"]
[]
[null,null,"File Version",null,null,"[text]",null,null,{"$f":"INDEX(Ver.Array,COUNTA(Ver.Array))","v":1},"Version.Num"]
[null,null,"Version Date",null,null,"[date]",null,null,{"$f":"INDEX(VerDate.Array,COUNTA(Ver.Array))","v":"2024-09-20"},"Version.Date"]
[]
[null,null,"Error tolerance",null,null,"[#]",null,null,0.1,"Err.tol"]
[null,null,"Zero",null,null,"[#]",null,null,0,"Zero"]
[null,null,"Very small number",null,null,"[#]",null,null,9.9999999999999995E-21,"Very.Small"]
[]
[null,null,"Quarters",null,null,"[#]",null,null,4,"Qtrs"]
[null,null,"Months",null,null,"[#]",null,null,12,"Mnths"]
[null,null,"Weeks",null,null,"[#]",null,null,52,"Weeks"]
[null,null,"Thousands",null,null,"[#]",null,null,1000,"Thousands"]
[null,null,"Millions",null,null,"[#]",null,null,1000000,"Millions"]
[]
[null,null,"Tax (not used)",null,null,"[%]",null,null,0.3,"Tax.Rate"]
[]
[null,null,"Standard Buffer Rate",null,null,"[%]",null,null,2.01E-2]
[null,null,"Dollar for Dollar Refinance Buffer Rate",null,0,"[%]",null,null,1.01E-2]
[null,null,"Adopted Interest Buffer Rate",null,null,"[%]",null,null,{"$f":"IF($E$38=1,I38,I37)","v":2.01E-2},"Buffer.Rate"]
[]
[null,null,"Interest Floor Rate",null,null,"[%]",null,null,5.7500000000000002E-2,"Floor.Rate"]
[]
[null,null,"Credit Card Assessment Rate",null,null,"[%]",null,null,3.7999999999999999E-2,"CreditCard.Rate"]
[null,null,"Actual Repayments - Stressed",null,null,"[%]",null,null,0.25,"Mortgage.Stressed"]
[null,null,"OFI Repayment Buffer",null,null,"[%]",null,null,0.9,"OFI.Buffer"]
[]
[null,null,"GST Adjustment",null,null,"[x]",null,null,11,"GST.Adj"]
[]
[null,null,"Floor Shared Expenses",null,null,"[%]",null,null,0.6,"Floor.ExpA"]
[null,null,"Self-Employed Net Income Growth Gap",null,null,"[%]",null,null,0.2,"SE.Cap"]
[null,null,"Risk Fee Reducer - Rate Loading Percentage",null,null,"[%]",null,null,0.5,"RFR.Loading"]
[]
[null,null,"Include Buffer Rate in Negative Gearing",null,null,"[1,0]",null,null,0,"Buffer.Switch"]
[null,null,"Actual Repayments Methodology for Assessment",null,null,"[1,0]",null,null,1,"Repay.Switch"]
[]
[null,null,"BEN Hurdle Rate",null,null,"[%]",null,null,0.05,"BEN.Hurdle"]
[]
[null,null,"HEM Categories",null,null,"[#]",null,null,{"$f":"COUNTA(List.CoupleStructure)","v":1},"HEM.Categories"]
[null,null,"Max Dependents under HEM",null,null,"[#]",null,null,3,"Dependents.Max"]
[null,null,"Couples",null,null,"[#]",null,null,2,"Couples"]
[]
[]
[{"$f":"CHAR(149)","v":"•"},"Lists"]
[]
[null,null,"Yes No List"]
[null,null,1]
[null,null,0]
[null,null,"List.YesNo"]
[]
[null,null,"On Off List"]
[null,null,1]
[null,null,0]
[null,null,"List.OnOff"]
[]
[null,null,"State List"]
[null,null,"NSW"]
[null,null,"VIC"]
[null,null,"QLD"]
[null,null,"SA"]
[null,null,"WA"]
[null,null,"TAS"]
[null,null,"NT"]
[null,null,"ACT"]
[null,null,"List.State"]
[]
[null,null,"Status","Status"]
[null,null,"Single","Single"]
[null,null,"Married","Couple"]
[null,null,"De Facto","Couple"]
[null,null,"List.Status","List.StatusOutcome"]
[]
[null,null,"Couple Lists",null,null,"Applicants",null,null,null,"Couple w/","Couple w/","Couple w/","Couple w/","Couple w/","Couple w/"]
[null,null,null,null,null,"Applicant 1",null,null,"NonApp","Non-Applicant","Non-Applicant","Non-Applicant","Non-Applicant","Non-Applicant","Non-Applicant"]
[null,null,null,null,null,"Applicant 2",null,null,null,"Applicant 2","Applicant 1","Applicant 1","Applicant 1","Applicant 1","Applicant 1"]
[null,null,null,null,null,"Applicant 3",null,null,null,"Applicant 3","Applicant 3","Applicant 2","Applicant 2","Applicant 2","Applicant 2"]
[null,null,null,null,null,"Applicant 4",null,null,null,"Applicant 4","Applicant 4","Applicant 4","Applicant 3","Applicant 3","Applicant 3"]
[null,null,null,null,null,"Applicant 5",null,null,null,"Applicant 5","Applicant 5","Applicant 5","Applicant 5","Applicant 4","Applicant 4"]
[null,null,null,null,null,"Applicant 6",null,null,null,"Applicant 6","Applicant 6","Applicant 6","Applicant 6","Applicant 6","Applicant 5"]
[null,null,null,null,null,"List.ApplicantAlt"]
[null,null,null,null,null,null,null,null,null,"List.CoupleStructure2","List.CoupleStructure3","List.CoupleStructure4","List.CoupleStructure5","List.CoupleStructure6","List.CoupleStructure7"]
[]
[null,null,"Applicants"]
[null,null,1]
[null,null,2]
[null,null,3]
[null,null,4]
[null,null,5]
[null,null,6]
[null,null,"List.Applicants"]
[]
[null,null,"Products","VL Active","Jumbo Active"]
[null,null,"Prime"]
[null,null,"Near Prime"]
[null,null,"Near Prime Plus"]
[null,null,"Specialist"]
[null,null,"Prime - Large Loans (>$2m)"]
[null,null,"Near Prime - Large Loans (>$2m)"]
[null,null,"Vacant Land - Prime"]
[null,null,"Vacant Land - Near Prime"]
[null,null,"Vacant Land - Near Prime Plus"]
[null,null,"Vacant Land - Specialist"]
[null,null,"List.Products"]
[null,null,null,"Flag.VacantLand","Flag.Jumbo"]
[null,null,"Products"]
[null,null,"Full Doc"]
[null,null,"Alt Doc","AltDoc"]
[null,null,"List.Documentation"]
[]
[null,null,"Interest Rate Type"]
[null,null,"Variable"]
[null,null,"Fixed"]
[null,null,"List.InterestType"]
[]
[null,null,"Repayment Type"]
[null,null,"Principal & Interest","PI"]
[null,null,"Interest Only","IO"]
[null,null,"List.RepayType"]
[]
[null,null,"Payment Frequency","Payments"]
[null,null,"Weekly",52]
[null,null,"Fortnightly",26]
[null,null,"Monthly",12]
[null,null,"List.PayFreq","List.PayNum"]
[]
[null,null,"Payment Timing"]
[null,null,"Arrears"]
[null,null,"Advance"]
[null,null,"List.PayTime"]
[]
[null,null,"Security Type","#"]
[null,null,"First Mortgage",1]
[null,null,"Second Mortgage",2]
[null,null,"List.SecurityType"]
[]
[null,null,"Occpuancy Status"]
[null,null,"Owner Occupied"]
[null,null,"Investor","Inv"]
[null,null,"List.Occupancy"]
[]
[null,null,"Occpuancy Status"]
[null,null,"Owner Occupied"]
[null,null,"Company Borrower"]
[null,null,{"$f":"Inv","v":"Investor"}]
[null,null,"List.OFIPurpose"]
[]
[null,null,"Property Type 1"]
[null,null,"Residential"]
[null,null,"Commercial"]
[null,null,"List.PropType"]
[]
[null,null,"Property Type 2","Commercial"]
[null,null,"House"]
[null,null,"Unit <= 4 stories"]
[null,null,"Unit > 4 stories"]
[null,null,"Vacant Land"]
[null,null,"Townhouse"]
[null,null,"Duplex"]
[null,null,"Rural Residential"]
[null,null,"Commercial - Retail","Retail"]
[null,null,"Commercial - Offices","Offices"]
[null,null,"Commercial - Warehouse","Warehouse"]
[null,null,"Commercial - Industrial","Industrial"]
[null,null,"Commercial - Other","Other"]
[null,null,"List.PropType2"]
[]
[null,null,"Area"]
[null,null,"Inner City"]
[null,null,"Metro"]
[null,null,"Non-Metro"]
[null,null,"List.Area"]
[]
[null,null,"Loan Purpose"]
[null,null,"Property Purchase"]
[null,null,"Refinance"]
[null,null,"Cash out"]
[null,null,"Refinance and cash out"]
[null,null,"Refinance and debt consolidation"]
[null,null,"Refinance and cash out and debt consolidation"]
[null,null,"Equity release for new purchase"]
[null,null,"Business purchase"]
[null,null,"[Spare]"]
[null,null,"[Spare]"]
[null,null,"[Spare]"]
[null,null,"[Spare]"]
[null,null,"[Spare]"]
[null,null,"[Spare]"]
[null,null,"List.LoanPurpose"]
[]
[null,null,"Aggregator"]
[null,null,"AFG"]
[null,null,"Connective"]
[null,null,"Finsure"]
[null,null,"Loanmarket"]
[null,null,"[Spare]"]
[null,null,"[Spare]"]
[null,null,"[Spare]"]
[null,null,"List.Aggregators"]
[]
[null,null,"Martial Status"]
[null,null,"Single"]
[null,null,"Married"]
[null,null,"Divorced"]
[null,null,"De Facto"]
[null,null,"List.Martial"]
[]
[null,null,"Employment Type","Type"]
[null,null,"Full-Time","PAYG"]
[null,null,"Part-Time","PAYG"]
[null,null,"Casual","PAYG"]
[null,null,"Contract","PAYG"]
[null,null,"Seasonal","PAYG"]
[null,null,"Self-Employed","Self-Employed"]
[null,null,"Retired","n.a."]
[null,null,"List.Employment"]
[]
[null,null,"Cash Out","Amount"]
[null,null,"n.a.",0]
[null,null,"Cash Out <$100K",1]
[null,null,"Cash Out >$100K",100001]
[null,null,"List.CashOut"]
[]
[null,null,"Bankruptcy Status"]
[null,null,"n.a."]
[null,null,"Discharged from Bankruptcy"]
[null,null,"Current"]
[null,null,"List.Bankruptcy"]
[]
[null,null,"List of Personal Titles"]
[null,null,"Mr"]
[null,null,"Mrs"]
[null,null,"Ms"]
[null,null,"Dr"]
[null,null,"Prof"]
[null,null,"Rev"]
[null,null,"[Spare]"]
[null,null,"[Spare]"]
[null,null,"[Spare]"]
[null,null,"List.Titles"]
[]
[null,null,"Address"]
[null,null,"Current"]
[null,null,"Security #1"]
[null,null,"Security #2"]
[null,null,"Security #3"]
[null,null,"List.Address"]
[]
[null,null,"Borrower Type"]
[null,null,"Natural Person(s)"]
[null,null,"Company"]
[null,null,"Expat"]
[null,null,"Company & Expat"]
[null,null,"List.BorrowerType"]
[]
[null,null,"BAS Frequency","BAS Adj"]
[null,null,"Monthly",12,"Months"]
[null,null,"Quarterly",4,"Quarters"]
[null,null,"List.BASFreq","List.BASAdj","List.BASLabel"]
[]
[null,null,"Business Bank Statement Frequency","BBS Adj"]
[null,null,"Monthly",12,"Months"]
[null,null,"Two Months",6,"Two months"]
[null,null,"Quarterly",4,"Quarters"]
[null,null,"Six Months",2,"Half years"]
[null,null,"Yearly",1,"Years"]
[null,null,"List.BBSFreq","List.BBSAdj","List.BBSLabel"]
[]
[]
[null,null,"Months","Month Number"]
[null,null,"January",1]
[null,null,"February",{"$f":"D289+1","v":2}]
[null,null,"March",{"$f":"D290+1","v":3}]
[null,null,"April",4]
[null,null,"May",5]
[null,null,"June",6]
[null,null,"July",7]
[null,null,"August",8]
[null,null,"September",9]
[null,null,"October",10]
[null,null,"November",11]
[null,null,"December",12]
[null,null,"List.Mnths","List.MnthNum"]
[]
[null,null,"Current Month",{"$f":"INDEX(List.Mnths,MONTH(TODAY()))","v":"September"},"CurrMnth"]
[null,null,null,{"$f":"MONTH(TODAY())","v":9},"CurrMnthNum"]

{"sheet":"Genworth","index":4,"n_rows":1748,"n_cols":7,"rows_kept":1748,"cut":false,"hidden":true,"merged":[]}
[]
[null,{"$f":"Model.name","v":"MA Money - Arrears Calculator"}]
[null,null,{"$f":"MID(CELL(\"filename\",B2),FIND(\"]\",CELL(\"filename\",B2))+1,LEN(CELL(\"filename\",B2)))","v":"Genworth"}]
[]
[]
[]
[]
[]
[]
[]
[]
[]
[]
[]
[{"$f":"CHAR(149)","v":"•"},"Genworth Category Code"]
[]
[null,null,"Postcode","Category Code","Category Code Alt","Category Code","State"]
[null,null,800,"Category 1","Category 1",1,"NT"]
[null,null,804,"Category 1","Category 1",1,"NT"]
[null,null,810,"Category 1","Category 1",1,"NT"]
[null,null,811,"Category 1","Category 1",1,"NT"]
[null,null,812,"Category 1","Category 1",1,"NT"]
[null,null,813,"Category 1","Category 1",1,"NT"]
[null,null,814,"Category 1","Category 1",1,"NT"]
[null,null,815,"Category 1","Category 1",1,"NT"]
[null,null,816,"Category 1","Category 1",1,"NT"]
[null,null,817,"Category 1","Category 1",1,"NT"]
[null,null,818,"Category 1","Category 1",1,"NT"]
[null,null,819,"Category 1","Category 1",1,"NT"]
[null,null,820,"Category 1","Category 1",1,"NT"]
[null,null,828,"Category 1","Category 1",1,"NT"]
[null,null,829,"Category 1","Category 1",1,"NT"]
[null,null,830,"Category 1","Category 1",1,"NT"]
[null,null,831,"Category 1","Category 1",1,"NT"]
[null,null,832,"Category 1","Category 1",1,"NT"]
[null,null,835,"Category 2","Category 2",2,"NT"]
[null,null,836,"Category 2","Category 2",2,"NT"]
[null,null,850,"Category 3","Category 3",3,"NT"]
[null,null,870,"Category 2","Category 2",2,"NT"]
[null,null,2000,"Metro Plus","Category 1",1,"NSW"]
[null,null,2001,"Category 1","Category 1",1,"NSW"]
[null,null,2002,"Category 1","Category 1",1,"NSW"]
[null,null,2003,"Category 1","Category 1",1,"NSW"]
[null,null,2004,"Category 1","Category 1",1,"NSW"]
[null,null,2005,"Category 1","Category 1",1,"NSW"]
[null,null,2006,"Category 1","Category 1",1,"NSW"]
[null,null,2007,"Metro Plus","Category 1",1,"NSW"]
[null,null,2008,"Metro Plus","Category 1",1,"NSW"]
[null,null,2009,"Metro Plus","Category 1",1,"NSW"]
[null,null,2010,"Metro Plus","Category 1",1,"NSW"]
[null,null,2011,"Metro Plus","Category 1",1,"NSW"]
[null,null,2015,"Metro Plus","Category 1",1,"NSW"]
[null,null,2016,"Metro Plus","Category 1",1,"NSW"]
[null,null,2017,"Metro Plus","Category 1",1,"NSW"]
[null,null,2018,"Metro Plus","Category 1",1,"NSW"]
[null,null,2019,"Metro Plus","Category 1",1,"NSW"]
[null,null,2020,"Metro Plus","Category 1",1,"NSW"]
[null,null,2021,"Category 1","Category 1",1,"NSW"]
[null,null,2022,"Metro Plus","Category 1",1,"NSW"]
[null,null,2023,"Metro Plus","Category 1",1,"NSW"]
[null,null,2024,"Metro Plus","Category 1",1,"NSW"]
[null,null,2025,"Metro Plus","Category 1",1,"NSW"]
[null,null,2026,"Metro Plus","Category 1",1,"NSW"]
[null,null,2027,"Metro Plus","Category 1",1,"NSW"]
[null,null,2028,"Metro Plus","Category 1",1,"NSW"]
[null,null,2029,"Metro Plus","Category 1",1,"NSW"]
[null,null,2030,"Metro Plus","Category 1",1,"NSW"]
[null,null,2031,"Metro Plus","Category 1",1,"NSW"]
[null,null,2032,"Metro Plus","Category 1",1,"NSW"]
[null,null,2033,"Metro Plus","Category 1",1,"NSW"]
[null,null,2034,"Metro Plus","Category 1",1,"NSW"]
[null,null,2035,"Metro Plus","Category 1",1,"NSW"]
[null,null,2036,"Metro Plus","Category 1",1,"NSW"]
[null,null,2037,"Metro Plus","Category 1",1,"NSW"]
[null,null,2038,"Metro Plus","Category 1",1,"NSW"]
[null,null,2039,"Metro Plus","Category 1",1,"NSW"]
[null,null,2040,"Metro Plus","Category 1",1,"NSW"]
[null,null,2041,"Metro Plus","Category 1",1,"NSW"]
[null,null,2042,"Metro Plus","Category 1",1,"NSW"]
[null,null,2043,"Metro Plus","Category 1",1,"NSW"]
[null,null,2044,"Category 1","Category 1",1,"NSW"]
[null,null,2045,"Metro Plus","Category 1",1,"NSW"]
[null,null,2046,"Metro Plus","Category 1",1,"NSW"]
[null,null,2047,"Metro Plus","Category 1",1,"NSW"]
[null,null,2048,"Metro Plus","Category 1",1,"NSW"]
[null,null,2049,"Metro Plus","Category 1",1,"NSW"]
[null,null,2050,"Metro Plus","Category 1",1,"NSW"]
[null,null,2051,"Category 1","Category 1",1,"NSW"]
[null,null,2052,"Category 1","Category 1",1,"NSW"]
[null,null,2053,"Category 1","Category 1",1,"NSW"]
[null,null,2054,"Category 1","Category 1",1,"NSW"]
[null,null,2055,"Category 1","Category 1",1,"NSW"]
[null,null,2056,"Category 1","Category 1",1,"NSW"]
[null,null,2057,"Category 1","Category 1",1,"NSW"]
[null,null,2058,"Category 1","Category 1",1,"NSW"]
[null,null,2059,"Category 1","Category 1",1,"NSW"]
[null,null,2060,"Metro Plus","Category 1",1,"NSW"]
[null,null,2061,"Metro Plus","Category 1",1,"NSW"]
[null,null,2062,"Metro Plus","Category 1",1,"NSW"]
[null,null,2063,"Metro Plus","Category 1",1,"NSW"]
[null,null,2064,"Metro Plus","Category 1",1,"NSW"]
[null,null,2065,"Metro Plus","Category 1",1,"NSW"]
[null,null,2066,"Metro Plus","Category 1",1,"NSW"]
[null,null,2067,"Metro Plus","Category 1",1,"NSW"]
[null,null,2068,"Metro Plus","Category 1",1,"NSW"]
[null,null,2069,"Category 1","Category 1",1,"NSW"]
[null,null,2070,"Metro Plus","Category 1",1,"NSW"]
[null,null,2071,"Metro Plus","Category 1",1,"NSW"]
[null,null,2072,"Metro Plus","Category 1",1,"NSW"]
[null,null,2073,"Metro Plus","Category 1",1,"NSW"]
[null,null,2074,"Metro Plus","Category 1",1,"NSW"]
[null,null,2075,"Metro Plus","Category 1",1,"NSW"]
[null,null,2076,"Metro Plus","Category 1",1,"NSW"]
[null,null,2077,"Category 1","Category 1",1,"NSW"]
[null,null,2078,"Category 1","Category 1",1,"NSW"]
[null,null,2079,"Category 1","Category 1",1,"NSW"]
[null,null,2080,"Category 1","Category 1",1,"NSW"]
[null,null,2081,"Category 1","Category 1",1,"NSW"]
[null,null,2082,"Category 1","Category 1",1,"NSW"]
[null,null,2083,"Category 1","Category 1",1,"NSW"]
[null,null,2084,"Metro Plus","Category 1",1,"NSW"]
[null,null,2085,"Metro Plus","Category 1",1,"NSW"]
[null,null,2086,"Metro Plus","Category 1",1,"NSW"]
[null,null,2087,"Metro Plus","Category 1",1,"NSW"]
[null,null,2088,"Metro Plus","Category 1",1,"NSW"]
[null,null,2089,"Metro Plus","Category 1",1,"NSW"]
[null,null,2090,"Metro Plus","Category 1",1,"NSW"]
[null,null,2091,"Category 1","Category 1",1,"NSW"]
[null,null,2092,"Metro Plus","Category 1",1,"NSW"]
[null,null,2093,"Metro Plus","Category 1",1,"NSW"]
[null,null,2094,"Metro Plus","Category 1",1,"NSW"]
[null,null,2095,"Metro Plus","Category 1",1,"NSW"]
[null,null,2096,"Metro Plus","Category 1",1,"NSW"]
[null,null,2097,"Metro Plus","Category 1",1,"NSW"]
[null,null,2098,"Category 1","Category 1",1,"NSW"]
[null,null,2099,"Metro Plus","Category 1",1,"NSW"]
[null,null,2100,"Metro Plus","Category 1",1,"NSW"]
[null,null,2101,"Metro Plus","Category 1",1,"NSW"]
[null,null,2102,"Metro Plus","Category 1",1,"NSW"]
[null,null,2103,"Metro Plus","Category 1",1,"NSW"]
[null,null,2104,"Metro Plus","Category 1",1,"NSW"]
[null,null,2105,"Metro Plus","Category 1",1,"NSW"]
[null,null,2106,"Metro Plus","Category 1",1,"NSW"]
[null,null,2107,"Metro Plus","Category 1",1,"NSW"]
[null,null,2108,"Metro Plus","Category 1",1,"NSW"]
[null,null,2109,"Category 1","Category 1",1,"NSW"]
[null,null,2110,"Metro Plus","Category 1",1,"NSW"]
[null,null,2111,"Metro Plus","Category 1",1,"NSW"]
[null,null,2112,"Metro Plus","Category 1",1,"NSW"]
[null,null,2113,"Metro Plus","Category 1",1,"NSW"]
[null,null,2114,"Metro Plus","Category 1",1,"NSW"]
[null,null,2115,"Category 1","Category 1",1,"NSW"]
[null,null,2116,"Category 1","Category 1",1,"NSW"]
[null,null,2117,"Category 1","Category 1",1,"NSW"]
[null,null,2118,"Metro Plus","Category 1",1,"NSW"]
[null,null,2119,"Category 1","Category 1",1,"NSW"]
[null,null,2120,"Category 1","Category 1",1,"NSW"]
[null,null,2121,"Metro Plus","Category 1",1,"NSW"]
[null,null,2122,"Metro Plus","Category 1",1,"NSW"]
[null,null,2123,"Category 1","Category 1",1,"NSW"]
[null,null,2124,"Category 1","Category 1",1,"NSW"]
[null,null,2125,"Metro Plus","Category 1",1,"NSW"]
[null,null,2126,"Metro Plus","Category 1",1,"NSW"]
[null,null,2127,"Category 1","Category 1",1,"NSW"]
[null,null,2128,"Category 1","Category 1",1,"NSW"]
[null,null,2129,"Category 1","Category 1",1,"NSW"]
[null,null,2130,"Metro Plus","Category 1",1,"NSW"]
[null,null,2131,"Category 1","Category 1",1,"NSW"]
[null,null,2132,"Metro Plus","Category 1",1,"NSW"]
[null,null,2133,"Metro Plus","Category 1",1,"NSW"]
[null,null,2134,"Metro Plus","Category 1",1,"NSW"]
[null,null,2135,"Metro Plus","Category 1",1,"NSW"]
[null,null,2136,"Metro Plus","Category 1",1,"NSW"]
[null,null,2137,"Metro Plus","Category 1",1,"NSW"]
[null,null,2138,"Metro Plus","Category 1",1,"NSW"]
[null,null,2139,"Category 1","Category 1",1,"NSW"]
[null,null,2140,"Metro Plus","Category 1",1,"NSW"]
[null,null,2141,"High Density","Category 1",1,"NSW"]
[null,null,2142,"High Density","Category 1",1,"NSW"]
[null,null,2143,"Category 1","Category 1",1,"NSW"]
[null,null,2144,"High Density","Category 1",1,"NSW"]
[null,null,2145,"Category 1","Category 1",1,"NSW"]
[null,null,2146,"Category 1","Category 1",1,"NSW"]
[null,null,2147,"Category 1","Category 1",1,"NSW"]
[null,null,2148,"High Density","Category 1",1,"NSW"]
[null,null,2149,"Category 1","Category 1",1,"NSW"]
[null,null,2150,"High Density","Category 1",1,"NSW"]
[null,null,2151,"Category 1","Category 1",1,"NSW"]
[null,null,2152,"Category 1","Category 1",1,"NSW"]
[null,null,2153,"Category 1","Category 1",1,"NSW"]
[null,null,2154,"Metro Plus","Category 1",1,"NSW"]
[null,null,2155,"Category 1","Category 1",1,"NSW"]
[null,null,2156,"Metro Plus","Category 1",1,"NSW"]
[null,null,2157,"Category 1","Category 1",1,"NSW"]
[null,null,2158,"Metro Plus","Category 1",1,"NSW"]
[null,null,2159,"Category 1","Category 1",1,"NSW"]
[null,null,2160,"Category 1","Category 1",1,"NSW"]
[null,null,2161,"Category 1","Category 1",1,"NSW"]
[null,null,2162,"Category 1","Category 1",1,"NSW"]
[null,null,2163,"Category 1","Category 1",1,"NSW"]
[null,null,2164,"Category 1","Category 1",1,"NSW"]
[null,null,2165,"Category 1","Category 1",1,"NSW"]
[null,null,2166,"Category 1","Category 1",1,"NSW"]
[null,null,2167,"Category 1","Category 1",1,"NSW"]
[null,null,2168,"Category 1","Category 1",1,"NSW"]
[null,null,2169,"Category 1","Category 1",1,"NSW"]
[null,null,2170,"High Density","Category 1",1,"NSW"]
[null,null,2171,"Category 1","Category 1",1,"NSW"]
[null,null,2172,"Category 1","Category 1",1,"NSW"]
[null,null,2173,"Category 1","Category 1",1,"NSW"]
[null,null,2174,"Category 1","Category 1",1,"NSW"]
[null,null,2175,"Category 1","Category 1",1,"NSW"]
[null,null,2176,"Category 1","Category 1",1,"NSW"]
[null,null,2177,"Category 1","Category 1",1,"NSW"]
[null,null,2178,"Category 1","Category 1",1,"NSW"]
[null,null,2179,"Category 1","Category 1",1,"NSW"]
[null,null,2180,"Category 1","Category 1",1,"NSW"]
[null,null,2181,"Category 1","Category 1",1,"NSW"]
[null,null,2182,"Category 1","Category 1",1,"NSW"]
[null,null,2183,"Category 1","Category 1",1,"NSW"]
[null,null,2184,"Category 1","Category 1",1,"NSW"]
[null,null,2185,"Category 1","Category 1",1,"NSW"]
[null,null,2186,"Category 1","Category 1",1,"NSW"]
[null,null,2187,"Category 1","Category 1",1,"NSW"]
[null,null,2188,"Category 1","Category 1",1,"NSW"]
[null,null,2189,"Category 1","Category 1",1,"NSW"]
[null,null,2190,"Category 1","Category 1",1,"NSW"]
[null,null,2191,"Category 1","Category 1",1,"NSW"]
[null,null,2192,"Category 1","Category 1",1,"NSW"]
[null,null,2193,"Metro Plus","Category 1",1,"NSW"]
[null,null,2194,"Metro Plus","Category 1",1,"NSW"]
[null,null,2195,"Category 1","Category 1",1,"NSW"]
[null,null,2196,"Category 1","Category 1",1,"NSW"]
[null,null,2197,"Category 1","Category 1",1,"NSW"]
[null,null,2198,"Category 1","Category 1",1,"NSW"]
[null,null,2199,"Category 1","Category 1",1,"NSW"]
[null,null,2200,"High Density","Category 1",1,"NSW"]
[null,null,2201,"Category 1","Category 1",1,"NSW"]
[null,null,2202,"Category 1","Category 1",1,"NSW"]
[null,null,2203,"Metro Plus","Category 1",1,"NSW"]
[null,null,2204,"Metro Plus","Category 1",1,"NSW"]
[null,null,2205,"High Density","Category 1",1,"NSW"]
[null,null,2206,"Metro Plus","Category 1",1,"NSW"]
[null,null,2207,"Metro Plus","Category 1",1,"NSW"]
[null,null,2208,"Category 1","Category 1",1,"NSW"]
[null,null,2209,"Category 1","Category 1",1,"NSW"]
[null,null,2210,"Category 1","Category 1",1,"NSW"]
[null,null,2211,"Category 1","Category 1",1,"NSW"]
[null,null,2212,"Category 1","Category 1",1,"NSW"]
[null,null,2213,"Category 1","Category 1",1,"NSW"]
[null,null,2214,"Category 1","Category 1",1,"NSW"]
[null,null,2215,"Category 1","Category 1",1,"NSW"]
[null,null,2216,"Metro Plus","Category 1",1,"NSW"]
[null,null,2217,"Metro Plus","Category 1",1,"NSW"]
[null,null,2218,"Metro Plus","Category 1",1,"NSW"]
[null,null,2219,"Metro Plus","Category 1",1,"NSW"]
[null,null,2220,"Metro Plus","Category 1",1,"NSW"]
[null,null,2221,"Metro Plus","Category 1",1,"NSW"]
[null,null,2222,"Metro Plus","Category 1",1,"NSW"]
[null,null,2223,"Metro Plus","Category 1",1,"NSW"]
[null,null,2224,"Metro Plus","Category 1",1,"NSW"]
[null,null,2225,"Metro Plus","Category 1",1,"NSW"]
[null,null,2226,"Metro Plus","Category 1",1,"NSW"]
[null,null,2227,"Metro Plus","Category 1",1,"NSW"]
[null,null,2228,"Metro Plus","Category 1",1,"NSW"]
[null,null,2229,"Metro Plus","Category 1",1,"NSW"]
[null,null,2230,"Metro Plus","Category 1",1,"NSW"]
[null,null,2231,"Category 1","Category 1",1,"NSW"]
[null,null,2232,"Category 1","Category 1",1,"NSW"]
[null,null,2233,"Category 1","Category 1",1,"NSW"]
[null,null,2234,"Category 1","Category 1",1,"NSW"]
[null,null,2250,"Category 1","Category 1",1,"NSW"]
[null,null,2251,"Category 1","Category 1",1,"NSW"]
[null,null,2252,"Category 1","Category 1",1,"NSW"]
[null,null,2253,"Category 1","Category 1",1,"NSW"]
[null,null,2254,"Category 1","Category 1",1,"NSW"]
[null,null,2255,"Category 1","Category 1",1,"NSW"]
[null,null,2256,"Category 1","Category 1",1,"NSW"]
[null,null,2257,"Category 1","Category 1",1,"NSW"]
[null,null,2258,"Category 1","Category 1",1,"NSW"]
[null,null,2259,"Category 1","Category 1",1,"NSW"]
[null,null,2260,"Category 1","Category 1",1,"NSW"]
[null,null,2261,"Category 1","Category 1",1,"NSW"]
[null,null,2262,"Category 1","Category 1",1,"NSW"]
[null,null,2263,"Category 1","Category 1",1,"NSW"]
[null,null,2264,"Category 1","Category 1",1,"NSW"]
[null,null,2265,"Category 1","Category 1",1,"NSW"]
[null,null,2267,"Category 1","Category 1",1,"NSW"]
[null,null,2278,"Category 1","Category 1",1,"NSW"]
[null,null,2280,"Category 1","Category 1",1,"NSW"]
[null,null,2281,"Category 1","Category 1",1,"NSW"]
[null,null,2282,"Category 1","Category 1",1,"NSW"]
[null,null,2283,"Category 1","Category 1",1,"NSW"]
[null,null,2284,"Category 1","Category 1",1,"NSW"]
[null,null,2285,"Category 1","Category 1",1,"NSW"]
[null,null,2286,"Category 1","Category 1",1,"NSW"]
[null,null,2287,"Category 1","Category 1",1,"NSW"]
[null,null,2288,"Category 1","Category 1",1,"NSW"]
[null,null,2289,"Category 1","Category 1",1,"NSW"]
[null,null,2290,"Category 1","Category 1",1,"NSW"]
[null,null,2291,"Category 1","Category 1",1,"NSW"]
[null,null,2292,"Category 1","Category 1",1,"NSW"]
[null,null,2293,"Category 1","Category 1",1,"NSW"]
[null,null,2294,"Category 1","Category 1",1,"NSW"]
[null,null,2295,"Category 1","Category 1",1,"NSW"]
[null,null,2296,"Category 1","Category 1",1,"NSW"]
[null,null,2297,"Category 1","Category 1",1,"NSW"]
[null,null,2298,"Category 1","Category 1",1,"NSW"]
[null,null,2299,"Category 1","Category 1",1,"NSW"]
[null,null,2300,"Category 1","Category 1",1,"NSW"]
[null,null,2301,"Category 1","Category 1",1,"NSW"]
[null,null,2302,"Category 1","Category 1",1,"NSW"]
[null,null,2303,"Category 1","Category 1",1,"NSW"]
[null,null,2304,"Category 1","Category 1",1,"NSW"]
[null,null,2305,"Category 1","Category 1",1,"NSW"]
[null,null,2306,"Category 1","Category 1",1,"NSW"]
[null,null,2307,"Category 1","Category 1",1,"NSW"]
[null,null,2308,"Category 1","Category 1",1,"NSW"]
[null,null,2315,"Category 1","Category 1",1,"NSW"]
[null,null,2316,"Category 1","Category 1",1,"NSW"]
[null,null,2317,"Category 1","Category 1",1,"NSW"]
[null,null,2318,"Category 1","Category 1",1,"NSW"]
[null,null,2319,"Category 1","Category 1",1,"NSW"]
[null,null,2320,"Category 1","Category 1",1,"NSW"]
[null,null,2321,"Category 1","Category 1",1,"NSW"]
[null,null,2322,"Category 1","Category 1",1,"NSW"]
[null,null,2323,"Category 1","Category 1",1,"NSW"]
[null,null,2324,"Category 2","Category 2",2,"NSW"]
[null,null,2325,"Category 2","Category 2",2,"NSW"]
[null,null,2326,"Category 2","Category 2",2,"NSW"]
[null,null,2327,"Category 1","Category 1",1,"NSW"]
[null,null,2330,"Category 2","Category 2",2,"NSW"]
[null,null,2333,"Category 2","Category 2",2,"NSW"]
[null,null,2334,"Category 2","Category 2",2,"NSW"]
[null,null,2335,"Category 2","Category 2",2,"NSW"]
[null,null,2340,"Category 1","Category 1",1,"NSW"]
[null,null,2350,"Category 2","Category 2",2,"NSW"]
[null,null,2360,"Category 3","Category 3",3,"NSW"]
[null,null,2380,"Category 3","Category 3",3,"NSW"]
[null,null,2400,"Category 3","Category 3",3,"NSW"]
[null,null,2427,"Category 3","Category 3",3,"NSW"]
[null,null,2428,"Category 2","Category 2",2,"NSW"]
[null,null,2429,"Category 2","Category 2",2,"NSW"]
[null,null,2430,"Category 2","Category 2",2,"NSW"]
[null,null,2431,"Category 3","Category 3",3,"NSW"]
[null,null,2440,"Category 3","Category 3",3,"NSW"]
[null,null,2443,"Category 2","Category 2",2,"NSW"]
[null,null,2444,"Category 1","Category 1",1,"NSW"]
[null,null,2445,"Category 2","Category 2",2,"NSW"]
[null,null,2446,"Category 2","Category 2",2,"NSW"]
[null,null,2447,"Category 3","Category 3",3,"NSW"]
[null,null,2448,"Category 3","Category 3",3,"NSW"]
[null,null,2450,"Category 1","Category 1",1,"NSW"]
[null,null,2452,"Category 1","Category 1",1,"NSW"]
[null,null,2454,"Category 3","Category 3",3,"NSW"]
[null,null,2455,"Category 3","Category 3",3,"NSW"]
[null,null,2456,"Category 2","Category 2",2,"NSW"]
[null,null,2460,"Category 2","Category 2",2,"NSW"]
[null,null,2463,"Category 3","Category 3",3,"NSW"]
[null,null,2464,"Category 2","Category 2",2,"NSW"]
[null,null,2466,"Category 3","Category 3",3,"NSW"]
[null,null,2470,"Category 3","Category 3",3,"NSW"]
[null,null,2477,"Category 1","Category 1",1,"NSW"]
[null,null,2478,"Category 1","Category 1",1,"NSW"]
[null,null,2479,"Category 1","Category 1",1,"NSW"]
[null,null,2480,"Category 1","Category 1",1,"NSW"]
[null,null,2481,"Category 1","Category 1",1,"NSW"]
[null,null,2482,"Category 1","Category 1",1,"NSW"]
[null,null,2483,"Category 1","Category 1",1,"NSW"]
[null,null,2484,"Category 1","Category 1",1,"NSW"]
[null,null,2485,"Category 1","Category 1",1,"NSW"]
[null,null,2486,"Category 1","Category 1",1,"NSW"]
[null,null,2487,"Category 1","Category 1",1,"NSW"]
[null,null,2488,"Category 1","Category 1",1,"NSW"]
[null,null,2489,"Category 1","Category 1",1,"NSW"]
[null,null,2490,"Category 2","Category 2",2,"NSW"]
[null,null,2500,"Category 1","Category 1",1,"NSW"]
[null,null,2501,"Category 1","Category 1",1,"NSW"]
[null,null,2502,"Category 1","Category 1",1,"NSW"]
[null,null,2503,"Category 1","Category 1",1,"NSW"]
[null,null,2504,"Category 1","Category 1",1,"NSW"]
[null,null,2505,"Category 1","Category 1",1,"NSW"]
[null,null,2506,"Category 1","Category 1",1,"NSW"]
[null,null,2507,"Category 1","Category 1",1,"NSW"]
[null,null,2508,"Category 1","Category 1",1,"NSW"]
[null,null,2509,"Category 1","Category 1",1,"NSW"]
[null,null,2510,"Category 1","Category 1",1,"NSW"]
[null,null,2511,"Category 1","Category 1",1,"NSW"]
[null,null,2512,"Category 1","Category 1",1,"NSW"]
[null,null,2513,"Category 1","Category 1",1,"NSW"]
[null,null,2514,"Category 1","Category 1",1,"NSW"]
[null,null,2515,"Category 1","Category 1",1,"NSW"]
[null,null,2516,"Category 1","Category 1",1,"NSW"]
[null,null,2517,"Category 1","Category 1",1,"NSW"]
[null,null,2518,"Category 1","Category 1",1,"NSW"]
[null,null,2519,"Category 1","Category 1",1,"NSW"]
[null,null,2520,"Category 1","Category 1",1,"NSW"]
[null,null,2521,"Category 1","Category 1",1,"NSW"]
[null,null,2522,"Category 1","Category 1",1,"NSW"]
[null,null,2523,"Category 1","Category 1",1,"NSW"]
[null,null,2524,"Category 1","Category 1",1,"NSW"]
[null,null,2525,"Category 1","Category 1",1,"NSW"]
[null,null,2526,"Category 1","Category 1",1,"NSW"]
[null,null,2527,"Category 1","Category 1",1,"NSW"]
[null,null,2528,"Category 1","Category 1",1,"NSW"]
[null,null,2529,"Category 1","Category 1",1,"NSW"]
[null,null,2530,"Category 1","Category 1",1,"NSW"]
[null,null,2531,"Category 1","Category 1",1,"NSW"]
[null,null,2532,"Category 1","Category 1",1,"NSW"]
[null,null,2533,"Category 1","Category 1",1,"NSW"]
[null,null,2534,"Category 1","Category 1",1,"NSW"]
[null,null,2535,"Category 2","Category 2",2,"NSW"]
[null,null,2536,"Category 3","Category 3",3,"NSW"]
[null,null,2537,"Category 3","Category 3",3,"NSW"]
[null,null,2538,"Category 2","Category 2",2,"NSW"]
[null,null,2539,"Category 2","Category 2",2,"NSW"]
[null,null,2540,"Category 2","Category 2",2,"NSW"]
[null,null,2541,"Category 2","Category 2",2,"NSW"]
[null,null,2546,"Category 3","Category 3",3,"NSW"]
[null,null,2548,"Category 3","Category 3",3,"NSW"]
[null,null,2549,"Category 3","Category 3",3,"NSW"]
[null,null,2550,"Category 3","Category 3",3,"NSW"]
[null,null,2551,"Category 3","Category 3",3,"NSW"]
[null,null,2555,"Category 1","Category 1",1,"NSW"]
[null,null,2556,"Category 1","Category 1",1,"NSW"]
[null,null,2557,"Category 1","Category 1",1,"NSW"]
[null,null,2558,"Category 1","Category 1",1,"NSW"]
[null,null,2559,"Category 1","Category 1",1,"NSW"]
[null,null,2560,"Category 1","Category 1",1,"NSW"]
[null,null,2561,"Category 1","Category 1",1,"NSW"]
[null,null,2562,"Category 1","Category 1",1,"NSW"]
[null,null,2563,"Category 1","Category 1",1,"NSW"]
[null,null,2564,"Category 1","Category 1",1,"NSW"]
[null,null,2565,"Category 1","Category 1",1,"NSW"]
[null,null,2566,"Category 1","Category 1",1,"NSW"]
[null,null,2567,"Category 1","Category 1",1,"NSW"]
[null,null,2568,"Category 1","Category 1",1,"NSW"]
[null,null,2569,"Category 1","Category 1",1,"NSW"]
[null,null,2570,"Category 1","Category 1",1,"NSW"]
[null,null,2571,"Category 1","Category 1",1,"NSW"]
[null,null,2572,"Category 1","Category 1",1,"NSW"]
[null,null,2573,"Category 1","Category 1",1,"NSW"]
[null,null,2574,"Category 1","Category 1",1,"NSW"]
[null,null,2575,"Category 1","Category 1",1,"NSW"]
[null,null,2576,"Category 1","Category 1",1,"NSW"]
[null,null,2577,"Category 1","Category 1",1,"NSW"]
[null,null,2578,"Category 1","Category 1",1,"NSW"]
[null,null,2579,"Category 1","Category 1",1,"NSW"]
[null,null,2580,"Category 2","Category 2",2,"NSW"]
[null,null,2582,"Category 3","Category 3",3,"NSW"]
[null,null,2583,"Category 3","Category 3",3,"NSW"]
[null,null,2594,"Category 3","Category 3",3,"NSW"]
[null,null,2600,"Category 1","Category 1",1,"ACT"]
[null,null,2601,"Category 1","Category 1",1,"ACT"]
[null,null,2602,"Category 1","Category 1",1,"ACT"]
[null,null,2603,"Category 1","Category 1",1,"ACT"]
[null,null,2604,"Category 1","Category 1",1,"ACT"]
[null,null,2605,"Category 1","Category 1",1,"ACT"]
[null,null,2606,"Category 1","Category 1",1,"ACT"]
[null,null,2607,"Category 1","Category 1",1,"ACT"]
[null,null,2608,"Category 1","Category 1",1,"ACT"]
[null,null,2609,"Category 1","Category 1",1,"ACT"]
[null,null,2610,"Category 1","Category 1",1,"ACT"]
[null,null,2611,"Category 1","Category 1",1,"ACT"]
[null,null,2612,"Category 1","Category 1",1,"ACT"]
[null,null,2613,"Category 1","Category 1",1,"ACT"]
[null,null,2614,"Category 1","Category 1",1,"ACT"]
[null,null,2615,"Category 1","Category 1",1,"ACT"]
[null,null,2616,"Category 1","Category 1",1,"ACT"]
[null,null,2617,"Category 1","Category 1",1,"ACT"]
[null,null,2618,"Category 1","Category 1",1,"ACT"]
[null,null,2619,"Category 1","Category 1",1,"NSW"]
[null,null,2620,"Category 1","Category 1",1,"NSW"]
[null,null,2621,"Category 1","Category 1",1,"NSW"]
[null,null,2628,"Category 3","Category 3",3,"NSW"]
[null,null,2630,"Category 3","Category 3",3,"NSW"]
[null,null,2640,"Category 1","Category 1",1,"NSW"]
[null,null,2641,"Category 1","Category 1",1,"NSW"]
[null,null,2642,"Category 3","Category 3",3,"NSW"]
[null,null,2643,"Category 3","Category 3",3,"NSW"]
[null,null,2647,"Category 3","Category 3",3,"NSW"]
[null,null,2650,"Category 1","Category 1",1,"NSW"]
[null,null,2651,"Category 1","Category 1",1,"NSW"]
[null,null,2680,"Category 2","Category 2",2,"NSW"]
[null,null,2710,"Category 3","Category 3",3,"NSW"]
[null,null,2720,"Category 3","Category 3",3,"NSW"]
[null,null,2731,"Category 2","Category 2",2,"NSW"]
[null,null,2738,"Category 2","Category 2",2,"NSW"]
[null,null,2739,"Category 2","Category 2",2,"NSW"]
[null,null,2745,"Category 1","Category 1",1,"NSW"]
[null,null,2746,"Category 1","Category 1",1,"NSW"]
[null,null,2747,"Category 1","Category 1",1,"NSW"]
[null,null,2748,"Category 1","Category 1",1,"NSW"]
[null,null,2749,"Category 1","Category 1",1,"NSW"]
[null,null,2750,"Category 1","Category 1",1,"NSW"]
[null,null,2751,"Category 1","Category 1",1,"NSW"]
[null,null,2752,"Category 1","Category 1",1,"NSW"]
[null,null,2753,"Category 1","Category 1",1,"NSW"]
[null,null,2754,"Category 1","Category 1",1,"NSW"]
[null,null,2755,"Category 1","Category 1",1,"NSW"]
[null,null,2756,"Category 1","Category 1",1,"NSW"]
[null,null,2757,"Category 1","Category 1",1,"NSW"]
[null,null,2758,"Category 1","Category 1",1,"NSW"]
[null,null,2759,"Category 1","Category 1",1,"NSW"]
[null,null,2760,"Category 1","Category 1",1,"NSW"]
[null,null,2761,"Category 1","Category 1",1,"NSW"]
[null,null,2762,"Category 1","Category 1",1,"NSW"]
[null,null,2763,"Category 1","Category 1",1,"NSW"]
[null,null,2764,"Category 1","Category 1",1,"NSW"]
[null,null,2765,"Category 1","Category 1",1,"NSW"]
[null,null,2766,"Category 1","Category 1",1,"NSW"]
[null,null,2767,"Category 1","Category 1",1,"NSW"]
[null,null,2768,"Category 1","Category 1",1,"NSW"]
[null,null,2769,"Category 1","Category 1",1,"NSW"]
[null,null,2770,"Category 1","Category 1",1,"NSW"]
[null,null,2771,"Category 1","Category 1",1,"NSW"]
[null,null,2772,"Category 1","Category 1",1,"NSW"]
[null,null,2773,"Category 1","Category 1",1,"NSW"]
[null,null,2774,"Category 1","Category 1",1,"NSW"]
[null,null,2776,"Category 1","Category 1",1,"NSW"]
[null,null,2777,"Category 1","Category 1",1,"NSW"]
[null,null,2778,"Category 1","Category 1",1,"NSW"]
[null,null,2779,"Category 1","Category 1",1,"NSW"]
[null,null,2780,"Category 1","Category 1",1,"NSW"]
[null,null,2781,"Category 1","Category 1",1,"NSW"]
[null,null,2782,"Category 1","Category 1",1,"NSW"]
[null,null,2783,"Category 1","Category 1",1,"NSW"]
[null,null,2784,"Category 1","Category 1",1,"NSW"]
[null,null,2785,"Category 1","Category 1",1,"NSW"]
[null,null,2790,"Category 3","Category 3",3,"NSW"]
[null,null,2794,"Category 3","Category 3",3,"NSW"]
[null,null,2795,"Category 1","Category 1",1,"NSW"]
[null,null,2800,"Category 2","Category 2",2,"NSW"]
[null,null,2830,"Category 1","Category 1",1,"NSW"]
[null,null,2850,"Category 3","Category 3",3,"NSW"]
[null,null,2870,"Category 3","Category 3",3,"NSW"]
[null,null,2880,"Category 3","Category 3",3,"NSW"]
[null,null,2900,"Category 1","Category 1",1,"ACT"]
[null,null,2901,"Category 1","Category 1",1,"ACT"]
[null,null,2902,"Category 1","Category 1",1,"ACT"]
[null,null,2903,"Category 1","Category 1",1,"ACT"]
[null,null,2904,"Category 1","Category 1",1,"ACT"]
[null,null,2905,"Category 1","Category 1",1,"ACT"]
[null,null,2906,"Category 1","Category 1",1,"ACT"]
[null,null,2907,"Category 1","Category 1",1,"ACT"]
[null,null,2908,"Category 1","Category 1",1,"ACT"]
[null,null,2909,"Category 1","Category 1",1,"ACT"]
[null,null,2910,"Category 1","Category 1",1,"ACT"]
[null,null,2911,"Category 1","Category 1",1,"ACT"]
[null,null,2912,"Category 1","Category 1",1,"ACT"]
[null,null,2913,"Category 1","Category 1",1,"ACT"]
[null,null,2914,"Category 1","Category 1",1,"ACT"]
[null,null,3000,"Category 1","Category 1",1,"VIC"]
[null,null,3001,"Category 1","Category 1",1,"VIC"]
[null,null,3002,"Category 1","Category 1",1,"VIC"]
[null,null,3003,"Category 1","Category 1",1,"VIC"]
[null,null,3004,"Category 1","Category 1",1,"VIC"]
[null,null,3005,"Category 1","Category 1",1,"VIC"]
[null,null,3006,"Category 1","Category 1",1,"VIC"]
[null,null,3007,"Category 1","Category 1",1,"VIC"]
[null,null,3008,"Category 1","Category 1",1,"VIC"]
[null,null,3009,"Category 1","Category 1",1,"VIC"]
[null,null,3010,"Category 1","Category 1",1,"VIC"]
[null,null,3011,"Category 1","Category 1",1,"VIC"]
[null,null,3012,"Category 1","Category 1",1,"VIC"]
[null,null,3013,"Category 1","Category 1",1,"VIC"]
[null,null,3014,"Category 1","Category 1",1,"VIC"]
[null,null,3015,"Category 1","Category 1",1,"VIC"]
[null,null,3016,"Category 1","Category 1",1,"VIC"]
[null,null,3017,"Category 1","Category 1",1,"VIC"]
[null,null,3018,"Category 1","Category 1",1,"VIC"]
[null,null,3019,"Category 1","Category 1",1,"VIC"]
[null,null,3020,"Category 1","Category 1",1,"VIC"]
[null,null,3021,"Category 1","Category 1",1,"VIC"]
[null,null,3022,"Category 1","Category 1",1,"VIC"]
[null,null,3023,"Category 1","Category 1",1,"VIC"]
[null,null,3024,"Category 1","Category 1",1,"VIC"]
[null,null,3025,"Category 1","Category 1",1,"VIC"]
[null,null,3026,"Category 1","Category 1",1,"VIC"]
[null,null,3027,"Category 1","Category 1",1,"VIC"]
[null,null,3028,"Category 1","Category 1",1,"VIC"]
[null,null,3029,"Category 1","Category 1",1,"VIC"]
[null,null,3030,"Category 1","Category 1",1,"VIC"]
[null,null,3031,"Category 1","Category 1",1,"VIC"]
[null,null,3032,"Category 1","Category 1",1,"VIC"]
[null,null,3033,"Category 1","Category 1",1,"VIC"]
[null,null,3034,"Category 1","Category 1",1,"VIC"]
[null,null,3035,"Category 1","Category 1",1,"VIC"]
[null,null,3036,"Category 1","Category 1",1,"VIC"]
[null,null,3037,"Category 1","Category 1",1,"VIC"]
[null,null,3038,"Category 1","Category 1",1,"VIC"]
[null,null,3039,"Category 1","Category 1",1,"VIC"]
[null,null,3040,"Category 1","Category 1",1,"VIC"]
[null,null,3041,"Category 1","Category 1",1,"VIC"]
[null,null,3042,"Category 1","Category 1",1,"VIC"]
[null,null,3043,"Category 1","Category 1",1,"VIC"]
[null,null,3044,"Category 1","Category 1",1,"VIC"]
[null,null,3045,"Category 1","Category 1",1,"VIC"]
[null,null,3046,"Category 1","Category 1",1,"VIC"]
[null,null,3047,"Category 1","Category 1",1,"VIC"]
[null,null,3048,"Category 1","Category 1",1,"VIC"]
[null,null,3049,"Category 1","Category 1",1,"VIC"]
[null,null,3050,"Category 1","Category 1",1,"VIC"]
[null,null,3051,"Metro Plus","Category 1",1,"VIC"]
[null,null,3052,"Category 1","Category 1",1,"VIC"]
[null,null,3053,"Category 1","Category 1",1,"VIC"]
[null,null,3054,"Category 1","Category 1",1,"VIC"]
[null,null,3055,"Category 1","Category 1",1,"VIC"]
[null,null,3056,"Category 1","Category 1",1,"VIC"]
[null,null,3057,"Category 1","Category 1",1,"VIC"]
[null,null,3058,"Category 1","Category 1",1,"VIC"]
[null,null,3059,"Category 1","Category 1",1,"VIC"]
[null,null,3060,"Category 1","Category 1",1,"VIC"]
[null,null,3061,"Category 1","Category 1",1,"VIC"]
[null,null,3062,"Category 1","Category 1",1,"VIC"]
[null,null,3063,"Category 1","Category 1",1,"VIC"]
[null,null,3064,"Category 1","Category 1",1,"VIC"]
[null,null,3065,"Category 1","Category 1",1,"VIC"]
[null,null,3066,"Category 1","Category 1",1,"VIC"]
[null,null,3067,"Metro Plus","Category 1",1,"VIC"]
[null,null,3068,"Category 1","Category 1",1,"VIC"]
[null,null,3069,"Category 1","Category 1",1,"VIC"]
[null,null,3070,"Category 1","Category 1",1,"VIC"]
[null,null,3071,"Category 1","Category 1",1,"VIC"]
[null,null,3072,"Category 1","Category 1",1,"VIC"]
[null,null,3073,"Category 1","Category 1",1,"VIC"]
[null,null,3074,"Category 1","Category 1",1,"VIC"]
[null,null,3075,"Category 1","Category 1",1,"VIC"]
[null,null,3076,"Category 1","Category 1",1,"VIC"]
[null,null,3077,"Category 1","Category 1",1,"VIC"]
[null,null,3078,"Category 1","Category 1",1,"VIC"]
[null,null,3079,"Category 1","Category 1",1,"VIC"]
[null,null,3080,"Category 1","Category 1",1,"VIC"]
[null,null,3081,"Category 1","Category 1",1,"VIC"]
[null,null,3082,"Category 1","Category 1",1,"VIC"]
[null,null,3083,"Category 1","Category 1",1,"VIC"]
[null,null,3084,"Category 1","Category 1",1,"VIC"]
[null,null,3085,"Category 1","Category 1",1,"VIC"]
[null,null,3086,"Category 1","Category 1",1,"VIC"]
[null,null,3087,"Category 1","Category 1",1,"VIC"]
[null,null,3088,"Category 1","Category 1",1,"VIC"]
[null,null,3089,"Category 1","Category 1",1,"VIC"]
[null,null,3090,"Category 1","Category 1",1,"VIC"]
[null,null,3091,"Category 1","Category 1",1,"VIC"]
[null,null,3092,"Category 1","Category 1",1,"VIC"]
[null,null,3093,"Category 1","Category 1",1,"VIC"]
[null,null,3094,"Category 1","Category 1",1,"VIC"]
[null,null,3095,"Category 1","Category 1",1,"VIC"]
[null,null,3096,"Category 1","Category 1",1,"VIC"]
[null,null,3097,"Category 1","Category 1",1,"VIC"]
[null,null,3098,"Category 1","Category 1",1,"VIC"]
[null,null,3099,"Category 1","Category 1",1,"VIC"]
[null,null,3100,"Category 1","Category 1",1,"VIC"]
[null,null,3101,"Metro Plus","Category 1",1,"VIC"]
[null,null,3102,"Metro Plus","Category 1",1,"VIC"]
[null,null,3103,"Metro Plus","Category 1",1,"VIC"]
[null,null,3104,"Metro Plus","Category 1",1,"VIC"]
[null,null,3105,"Category 1","Category 1",1,"VIC"]
[null,null,3106,"Category 1","Category 1",1,"VIC"]
[null,null,3107,"Category 1","Category 1",1,"VIC"]
[null,null,3108,"Category 1","Category 1",1,"VIC"]
[null,null,3109,"Category 1","Category 1",1,"VIC"]
[null,null,3110,"Category 1","Category 1",1,"VIC"]
[null,null,3111,"Category 1","Category 1",1,"VIC"]
[null,null,3112,"Category 1","Category 1",1,"VIC"]
[null,null,3113,"Category 1","Category 1",1,"VIC"]
[null,null,3114,"Category 1","Category 1",1,"VIC"]
[null,null,3115,"Category 1","Category 1",1,"VIC"]
[null,null,3116,"Category 1","Category 1",1,"VIC"]
[null,null,3117,"Category 1","Category 1",1,"VIC"]
[null,null,3118,"Category 1","Category 1",1,"VIC"]
[null,null,3119,"Category 1","Category 1",1,"VIC"]
[null,null,3120,"Category 1","Category 1",1,"VIC"]
[null,null,3121,"Metro Plus","Category 1",1,"VIC"]
[null,null,3122,"Category 1","Category 1",1,"VIC"]
[null,null,3123,"Metro Plus","Category 1",1,"VIC"]
[null,null,3124,"Metro Plus","Category 1",1,"VIC"]
[null,null,3125,"Category 1","Category 1",1,"VIC"]
[null,null,3126,"Metro Plus","Category 1",1,"VIC"]
[null,null,3127,"Metro Plus","Category 1",1,"VIC"]
[null,null,3128,"Category 1","Category 1",1,"VIC"]
[null,null,3129,"Category 1","Category 1",1,"VIC"]
[null,null,3130,"Category 1","Category 1",1,"VIC"]
[null,null,3131,"Category 1","Category 1",1,"VIC"]
[null,null,3132,"Category 1","Category 1",1,"VIC"]
[null,null,3133,"Category 1","Category 1",1,"VIC"]
[null,null,3134,"Category 1","Category 1",1,"VIC"]
[null,null,3135,"Category 1","Category 1",1,"VIC"]
[null,null,3136,"Category 1","Category 1",1,"VIC"]
[null,null,3137,"Category 1","Category 1",1,"VIC"]
[null,null,3138,"Category 1","Category 1",1,"VIC"]
[null,null,3139,"Category 1","Category 1",1,"VIC"]
[null,null,3140,"Category 1","Category 1",1,"VIC"]
[null,null,3141,"Metro Plus","Category 1",1,"VIC"]
[null,null,3142,"Metro Plus","Category 1",1,"VIC"]
[null,null,3143,"Metro Plus","Category 1",1,"VIC"]
[null,null,3144,"Metro Plus","Category 1",1,"VIC"]
[null,null,3145,"Metro Plus","Category 1",1,"VIC"]
[null,null,3146,"Metro Plus","Category 1",1,"VIC"]
[null,null,3147,"Category 1","Category 1",1,"VIC"]
[null,null,3148,"Category 1","Category 1",1,"VIC"]
[null,null,3149,"Category 1","Category 1",1,"VIC"]
[null,null,3150,"Category 1","Category 1",1,"VIC"]
[null,null,3151,"Category 1","Category 1",1,"VIC"]
[null,null,3152,"Category 1","Category 1",1,"VIC"]
[null,null,3153,"Category 1","Category 1",1,"VIC"]
[null,null,3154,"Category 1","Category 1",1,"VIC"]
[null,null,3155,"Category 1","Category 1",1,"VIC"]
[null,null,3156,"Category 1","Category 1",1,"VIC"]
[null,null,3157,"Category 1","Category 1",1,"VIC"]
[null,null,3158,"Category 1","Category 1",1,"VIC"]
[null,null,3159,"Category 1","Category 1",1,"VIC"]
[null,null,3160,"Category 1","Category 1",1,"VIC"]
[null,null,3161,"Metro Plus","Category 1",1,"VIC"]
[null,null,3162,"Category 1","Category 1",1,"VIC"]
[null,null,3163,"Category 1","Category 1",1,"VIC"]
[null,null,3164,"Category 1","Category 1",1,"VIC"]
[null,null,3165,"Category 1","Category 1",1,"VIC"]
[null,null,3166,"Category 1","Category 1",1,"VIC"]
[null,null,3167,"Category 1","Category 1",1,"VIC"]
[null,null,3168,"Category 1","Category 1",1,"VIC"]
[null,null,3169,"Category 1","Category 1",1,"VIC"]
[null,null,3170,"Category 1","Category 1",1,"VIC"]
[null,null,3171,"Category 1","Category 1",1,"VIC"]
[null,null,3172,"Category 1","Category 1",1,"VIC"]
[null,null,3173,"Category 1","Category 1",1,"VIC"]
[null,null,3174,"Category 1","Category 1",1,"VIC"]
[null,null,3175,"Category 1","Category 1",1,"VIC"]
[null,null,3176,"Category 1","Category 1",1,"VIC"]
[null,null,3177,"Category 1","Category 1",1,"VIC"]
[null,null,3178,"Category 1","Category 1",1,"VIC"]
[null,null,3179,"Category 1","Category 1",1,"VIC"]
[null,null,3180,"Category 1","Category 1",1,"VIC"]
[null,null,3181,"Metro Plus","Category 1",1,"VIC"]
[null,null,3182,"Metro Plus","Category 1",1,"VIC"]
[null,null,3183,"Metro Plus","Category 1",1,"VIC"]
[null,null,3184,"Category 1","Category 1",1,"VIC"]
[null,null,3185,"Metro Plus","Category 1",1,"VIC"]
[null,null,3186,"Metro Plus","Category 1",1,"VIC"]
[null,null,3187,"Metro Plus","Category 1",1,"VIC"]
[null,null,3188,"Metro Plus","Category 1",1,"VIC"]
[null,null,3189,"Category 1","Category 1",1,"VIC"]
[null,null,3190,"Category 1","Category 1",1,"VIC"]
[null,null,3191,"Metro Plus","Category 1",1,"VIC"]
[null,null,3192,"Category 1","Category 1",1,"VIC"]
[null,null,3193,"Metro Plus","Category 1",1,"VIC"]
[null,null,3194,"Category 1","Category 1",1,"VIC"]
[null,null,3195,"Category 1","Category 1",1,"VIC"]
[null,null,3196,"Category 1","Category 1",1,"VIC"]
[null,null,3197,"Category 1","Category 1",1,"VIC"]
[null,null,3198,"Category 1","Category 1",1,"VIC"]
[null,null,3199,"Category 1","Category 1",1,"VIC"]
[null,null,3200,"Category 1","Category 1",1,"VIC"]
[null,null,3201,"Category 1","Category 1",1,"VIC"]
[null,null,3202,"Category 1","Category 1",1,"VIC"]
[null,null,3203,"Category 1","Category 1",1,"VIC"]
[null,null,3204,"Category 1","Category 1",1,"VIC"]
[null,null,3205,"Metro Plus","Category 1",1,"VIC"]
[null,null,3206,"Metro Plus","Category 1",1,"VIC"]
[null,null,3207,"Metro Plus","Category 1",1,"VIC"]
[null,null,3211,"Category 1","Category 1",1,"VIC"]
[null,null,3212,"Category 1","Category 1",1,"VIC"]
[null,null,3213,"Category 1","Category 1",1,"VIC"]
[null,null,3214,"Category 1","Category 1",1,"VIC"]
[null,null,3215,"Category 1","Category 1",1,"VIC"]
[null,null,3216,"Category 1","Category 1",1,"VIC"]
[null,null,3217,"Category 2","Category 2",2,"VIC"]
[null,null,3218,"Category 1","Category 1",1,"VIC"]
[null,null,3219,"Category 1","Category 1",1,"VIC"]
[null,null,3220,"Category 1","Category 1",1,"VIC"]
[null,null,3221,"Category 1","Category 1",1,"VIC"]
[null,null,3222,"Category 1","Category 1",1,"VIC"]
[null,null,3223,"Category 1","Category 1",1,"VIC"]
[null,null,3224,"Category 1","Category 1",1,"VIC"]
[null,null,3225,"Category 1","Category 1",1,"VIC"]
[null,null,3226,"Category 1","Category 1",1,"VIC"]
[null,null,3227,"Category 1","Category 1",1,"VIC"]
[null,null,3228,"Category 1","Category 1",1,"VIC"]
[null,null,3230,"Category 2","Category 2",2,"VIC"]
[null,null,3231,"Category 3","Category 3",3,"VIC"]
[null,null,3232,"Category 1","Category 1",1,"VIC"]
[null,null,3233,"Category 1","Category 1",1,"VIC"]
[null,null,3234,"Category 1","Category 1",1,"VIC"]
[null,null,3249,"Category 3","Category 3",3,"VIC"]
[null,null,3250,"Category 3","Category 3",3,"VIC"]
[null,null,3280,"Category 2","Category 2",2,"VIC"]
[null,null,3300,"Category 3","Category 3",3,"VIC"]
[null,null,3305,"Category 3","Category 3",3,"VIC"]
[null,null,3331,"Category 3","Category 3",3,"VIC"]
[null,null,3335,"Category 1","Category 1",1,"VIC"]
[null,null,3336,"Category 1","Category 1",1,"VIC"]
[null,null,3337,"Category 1","Category 1",1,"VIC"]
[null,null,3338,"Category 1","Category 1",1,"VIC"]
[null,null,3339,"Category 1","Category 1",1,"VIC"]
[null,null,3340,"Category 1","Category 1",1,"VIC"]
[null,null,3341,"Category 1","Category 1",1,"VIC"]
[null,null,3350,"Category 2","Category 2",2,"VIC"]
[null,null,3352,"Category 3","Category 3",3,"VIC"]
[null,null,3355,"Category 2","Category 2",2,"VIC"]
[null,null,3356,"Category 2","Category 2",2,"VIC"]
[null,null,3357,"Category 3","Category 3",3,"VIC"]
[null,null,3363,"Category 3","Category 3",3,"VIC"]
[null,null,3377,"Category 3","Category 3",3,"VIC"]
[null,null,3400,"Category 3","Category 3",3,"VIC"]
[null,null,3400,"Category 3","Category 3",3,"VIC"]
[null,null,3429,"Category 1","Category 1",1,"VIC"]
[null,null,3431,"Category 3","Category 3",3,"VIC"]
[null,null,3437,"Category 2","Category 2",2,"VIC"]
[null,null,3438,"Category 2","Category 2",2,"VIC"]
[null,null,3442,"Category 3","Category 3",3,"VIC"]
[null,null,3444,"Category 3","Category 3",3,"VIC"]
[null,null,3450,"Category 3","Category 3",3,"VIC"]
[null,null,3460,"Category 2","Category 2",2,"VIC"]
[null,null,3461,"Category 2","Category 2",2,"VIC"]
[null,null,3465,"Category 3","Category 3",3,"VIC"]
[null,null,3500,"Category 2","Category 2",2,"VIC"]
[null,null,3501,"Category 2","Category 2",2,"VIC"]
[null,null,3550,"Category 2","Category 2",2,"VIC"]
[null,null,3551,"Category 2","Category 2",2,"VIC"]
[null,null,3552,"Category 2","Category 2",2,"VIC"]
[null,null,3553,"Category 2","Category 2",2,"VIC"]
[null,null,3554,"Category 2","Category 2",2,"VIC"]
[null,null,3555,"Category 2","Category 2",2,"VIC"]
[null,null,3556,"Category 2","Category 2",2,"VIC"]
[null,null,3564,"Category 2","Category 2",2,"VIC"]
[null,null,3585,"Category 3","Category 3",3,"VIC"]
[null,null,3616,"Category 3","Category 3",3,"VIC"]
[null,null,3620,"Category 3","Category 3",3,"VIC"]
[null,null,3629,"Category 3","Category 3",3,"VIC"]
[null,null,3630,"Category 2","Category 2",2,"VIC"]
[null,null,3631,"Category 2","Category 2",2,"VIC"]
[null,null,3636,"Category 3","Category 3",3,"VIC"]
[null,null,3647,"Category 3","Category 3",3,"VIC"]
[null,null,3660,"Category 3","Category 3",3,"VIC"]
[null,null,3672,"Category 3","Category 3",3,"VIC"]
[null,null,3677,"Category 3","Category 3",3,"VIC"]
[null,null,3690,"Category 1","Category 1",1,"VIC"]
[null,null,3691,"Category 2","Category 2",2,"VIC"]
[null,null,3730,"Category 3","Category 3",3,"VIC"]
[null,null,3750,"Category 1","Category 1",1,"VIC"]
[null,null,3752,"Category 1","Category 1",1,"VIC"]
[null,null,3754,"Category 1","Category 1",1,"VIC"]
[null,null,3755,"Category 1","Category 1",1,"VIC"]
[null,null,3756,"Category 2","Category 2",2,"VIC"]
[null,null,3757,"Category 2","Category 2",2,"VIC"]
[null,null,3758,"Category 3","Category 3",3,"VIC"]
[null,null,3759,"Category 2","Category 2",2,"VIC"]
[null,null,3761,"Category 2","Category 2",2,"VIC"]
[null,null,3764,"Category 3","Category 3",3,"VIC"]
[null,null,3765,"Category 1","Category 1",1,"VIC"]
[null,null,3766,"Category 1","Category 1",1,"VIC"]
[null,null,3767,"Category 1","Category 1",1,"VIC"]
[null,null,3770,"Category 2","Category 2",2,"VIC"]
[null,null,3775,"Category 2","Category 2",2,"VIC"]
[null,null,3777,"Category 2","Category 2",2,"VIC"]
[null,null,3781,"Category 1","Category 1",1,"VIC"]
[null,null,3782,"Category 1","Category 1",1,"VIC"]
[null,null,3783,"Category 1","Category 1",1,"VIC"]
[null,null,3784,"Category 1","Category 1",1,"VIC"]
[null,null,3785,"Category 1","Category 1",1,"VIC"]
[null,null,3786,"Category 1","Category 1",1,"VIC"]
[null,null,3787,"Category 1","Category 1",1,"VIC"]
[null,null,3788,"Category 1","Category 1",1,"VIC"]
[null,null,3789,"Category 1","Category 1",1,"VIC"]
[null,null,3790,"Category 1","Category 1",1,"VIC"]
[null,null,3791,"Category 1","Category 1",1,"VIC"]
[null,null,3792,"Category 1","Category 1",1,"VIC"]
[null,null,3793,"Category 1","Category 1",1,"VIC"]
[null,null,3794,"Category 1","Category 1",1,"VIC"]
[null,null,3795,"Category 1","Category 1",1,"VIC"]
[null,null,3796,"Category 1","Category 1",1,"VIC"]
[null,null,3802,"Category 1","Category 1",1,"VIC"]
[null,null,3803,"Category 1","Category 1",1,"VIC"]
[null,null,3804,"Category 1","Category 1",1,"VIC"]
[null,null,3805,"Category 1","Category 1",1,"VIC"]
[null,null,3806,"Category 1","Category 1",1,"VIC"]
[null,null,3807,"Category 1","Category 1",1,"VIC"]
[null,null,3808,"Category 1","Category 1",1,"VIC"]
[null,null,3809,"Category 1","Category 1",1,"VIC"]
[null,null,3810,"Category 1","Category 1",1,"VIC"]
[null,null,3812,"Category 1","Category 1",1,"VIC"]
[null,null,3814,"Category 3","Category 3",3,"VIC"]
[null,null,3815,"Category 3","Category 3",3,"VIC"]
[null,null,3816,"Category 3","Category 3",3,"VIC"]
[null,null,3818,"Category 3","Category 3",3,"VIC"]
[null,null,3820,"Category 3","Category 3",3,"VIC"]
[null,null,3823,"Category 3","Category 3",3,"VIC"]
[null,null,3824,"Category 3","Category 3",3,"VIC"]
[null,null,3825,"Category 3","Category 3",3,"VIC"]
[null,null,3840,"Category 2","Category 2",2,"VIC"]
[null,null,3842,"Category 2","Category 2",2,"VIC"]
[null,null,3844,"Category 2","Category 2",2,"VIC"]
[null,null,3850,"Category 3","Category 3",3,"VIC"]
[null,null,3875,"Category 3","Category 3",3,"VIC"]
[null,null,3880,"Category 3","Category 3",3,"VIC"]
[null,null,3909,"Category 3","Category 3",3,"VIC"]
[null,null,3910,"Category 1","Category 1",1,"VIC"]
[null,null,3911,"Category 1","Category 1",1,"VIC"]
[null,null,3912,"Category 1","Category 1",1,"VIC"]
[null,null,3913,"Category 1","Category 1",1,"VIC"]
[null,null,3914,"Category 1","Category 1",1,"VIC"]
[null,null,3915,"Category 1","Category 1",1,"VIC"]
[null,null,3916,"Category 1","Category 1",1,"VIC"]
[null,null,3917,"Category 1","Category 1",1,"VIC"]
[null,null,3918,"Category 1","Category 1",1,"VIC"]
[null,null,3919,"Category 1","Category 1",1,"VIC"]
[null,null,3922,"Category 3","Category 3",3,"VIC"]
[null,null,3926,"Category 1","Category 1",1,"VIC"]
[null,null,3927,"Category 1","Category 1",1,"VIC"]
[null,null,3928,"Category 1","Category 1",1,"VIC"]
[null,null,3929,"Category 1","Category 1",1,"VIC"]
[null,null,3930,"Category 1","Category 1",1,"VIC"]
[null,null,3931,"Category 1","Category 1",1,"VIC"]
[null,null,3932,"Category 1","Category 1",1,"VIC"]
[null,null,3933,"Category 1","Category 1",1,"VIC"]
[null,null,3934,"Category 1","Category 1",1,"VIC"]
[null,null,3935,"Category 1","Category 1",1,"VIC"]
[null,null,3936,"Category 1","Category 1",1,"VIC"]
[null,null,3937,"Category 1","Category 1",1,"VIC"]
[null,null,3938,"Category 1","Category 1",1,"VIC"]
[null,null,3939,"Category 1","Category 1",1,"VIC"]
[null,null,3940,"Category 1","Category 1",1,"VIC"]
[null,null,3941,"Category 1","Category 1",1,"VIC"]
[null,null,3942,"Category 1","Category 1",1,"VIC"]
[null,null,3943,"Category 1","Category 1",1,"VIC"]
[null,null,3944,"Category 1","Category 1",1,"VIC"]
[null,null,3975,"Category 1","Category 1",1,"VIC"]
[null,null,3976,"Category 1","Category 1",1,"VIC"]
[null,null,3977,"Category 1","Category 1",1,"VIC"]
[null,null,3978,"Category 1","Category 1",1,"VIC"]
[null,null,3980,"Category 3","Category 3",3,"VIC"]
[null,null,3981,"Category 3","Category 3",3,"VIC"]
[null,null,3995,"Category 3","Category 3",3,"VIC"]
[null,null,3996,"Category 3","Category 3",3,"VIC"]
[null,null,4000,"Metro Plus","Category 1",1,"QLD"]
[null,null,4001,"Category 1","Category 1",1,"QLD"]
[null,null,4002,"Category 1","Category 1",1,"QLD"]
[null,null,4003,"Category 1","Category 1",1,"QLD"]
[null,null,4004,"Category 1","Category 1",1,"QLD"]
[null,null,4005,"Metro Plus","Category 1",1,"QLD"]
[null,null,4006,"Metro Plus","Category 1",1,"QLD"]
[null,null,4007,"Metro Plus","Category 1",1,"QLD"]
[null,null,4008,"Category 1","Category 1",1,"QLD"]
[null,null,4009,"Category 1","Category 1",1,"QLD"]
[null,null,4010,"Metro Plus","Category 1",1,"QLD"]
[null,null,4011,"Category 1","Category 1",1,"QLD"]
[null,null,4012,"Category 1","Category 1",1,"QLD"]
[null,null,4013,"Category 1","Category 1",1,"QLD"]
[null,null,4014,"Category 1","Category 1",1,"QLD"]
[null,null,4015,"Category 1","Category 1",1,"QLD"]
[null,null,4016,"Category 1","Category 1",1,"QLD"]
[null,null,4017,"Category 1","Category 1",1,"QLD"]
[null,null,4018,"Category 1","Category 1",1,"QLD"]
[null,null,4019,"Category 1","Category 1",1,"QLD"]
[null,null,4020,"Category 1","Category 1",1,"QLD"]
[null,null,4021,"Category 1","Category 1",1,"QLD"]
[null,null,4022,"Category 1","Category 1",1,"QLD"]
[null,null,4030,"Category 1","Category 1",1,"QLD"]
[null,null,4031,"Category 1","Category 1",1,"QLD"]
[null,null,4032,"Category 1","Category 1",1,"QLD"]
[null,null,4033,"Category 1","Category 1",1,"QLD"]
[null,null,4034,"Category 1","Category 1",1,"QLD"]
[null,null,4035,"Category 1","Category 1",1,"QLD"]
[null,null,4036,"Category 1","Category 1",1,"QLD"]
[null,null,4037,"Category 1","Category 1",1,"QLD"]
[null,null,4038,"Category 1","Category 1",1,"QLD"]
[null,null,4039,"Category 1","Category 1",1,"QLD"]
[null,null,4040,"Category 1","Category 1",1,"QLD"]
[null,null,4041,"Category 1","Category 1",1,"QLD"]
[null,null,4042,"Category 1","Category 1",1,"QLD"]
[null,null,4043,"Category 1","Category 1",1,"QLD"]
[null,null,4044,"Category 1","Category 1",1,"QLD"]
[null,null,4045,"Category 1","Category 1",1,"QLD"]
[null,null,4046,"Category 1","Category 1",1,"QLD"]
[null,null,4047,"Category 1","Category 1",1,"QLD"]
[null,null,4048,"Category 1","Category 1",1,"QLD"]
[null,null,4049,"Category 1","Category 1",1,"QLD"]
[null,null,4050,"Category 1","Category 1",1,"QLD"]
[null,null,4051,"Category 1","Category 1",1,"QLD"]
[null,null,4052,"Category 1","Category 1",1,"QLD"]
[null,null,4053,"Category 1","Category 1",1,"QLD"]
[null,null,4054,"Category 1","Category 1",1,"QLD"]
[null,null,4055,"Category 1","Category 1",1,"QLD"]
[null,null,4056,"Category 1","Category 1",1,"QLD"]
[null,null,4057,"Category 1","Category 1",1,"QLD"]
[null,null,4058,"Category 1","Category 1",1,"QLD"]
[null,null,4059,"Category 1","Category 1",1,"QLD"]
[null,null,4060,"Category 1","Category 1",1,"QLD"]
[null,null,4061,"Category 1","Category 1",1,"QLD"]
[null,null,4062,"Category 1","Category 1",1,"QLD"]
[null,null,4063,"Category 1","Category 1",1,"QLD"]
[null,null,4064,"Category 1","Category 1",1,"QLD"]
[null,null,4065,"Category 1","Category 1",1,"QLD"]
[null,null,4066,"Category 1","Category 1",1,"QLD"]
[null,null,4067,"Category 1","Category 1",1,"QLD"]
[null,null,4068,"Category 1","Category 1",1,"QLD"]
[null,null,4069,"Category 1","Category 1",1,"QLD"]
[null,null,4070,"Category 1","Category 1",1,"QLD"]
[null,null,4071,"Category 1","Category 1",1,"QLD"]
[null,null,4072,"Category 1","Category 1",1,"QLD"]
[null,null,4073,"Category 1","Category 1",1,"QLD"]
[null,null,4074,"Category 1","Category 1",1,"QLD"]
[null,null,4075,"Category 1","Category 1",1,"QLD"]
[null,null,4076,"Category 1","Category 1",1,"QLD"]
[null,null,4077,"Category 1","Category 1",1,"QLD"]
[null,null,4078,"Category 1","Category 1",1,"QLD"]
[null,null,4079,"Category 1","Category 1",1,"QLD"]
[null,null,4080,"Category 1","Category 1",1,"QLD"]
[null,null,4081,"Category 1","Category 1",1,"QLD"]
[null,null,4082,"Category 1","Category 1",1,"QLD"]
[null,null,4083,"Category 1","Category 1",1,"QLD"]
[null,null,4084,"Category 1","Category 1",1,"QLD"]
[null,null,4085,"Category 1","Category 1",1,"QLD"]
[null,null,4086,"Category 1","Category 1",1,"QLD"]
[null,null,4087,"Category 1","Category 1",1,"QLD"]
[null,null,4088,"Category 1","Category 1",1,"QLD"]
[null,null,4089,"Category 1","Category 1",1,"QLD"]
[null,null,4090,"Category 1","Category 1",1,"QLD"]
[null,null,4091,"Category 1","Category 1",1,"QLD"]
[null,null,4092,"Category 1","Category 1",1,"QLD"]
[null,null,4093,"Category 1","Category 1",1,"QLD"]
[null,null,4094,"Category 1","Category 1",1,"QLD"]
[null,null,4095,"Category 1","Category 1",1,"QLD"]
[null,null,4096,"Category 1","Category 1",1,"QLD"]
[null,null,4097,"Category 1","Category 1",1,"QLD"]
[null,null,4098,"Category 1","Category 1",1,"QLD"]
[null,null,4099,"Category 1","Category 1",1,"QLD"]
[null,null,4100,"Category 1","Category 1",1,"QLD"]
[null,null,4101,"High Density","Category 1",1,"QLD"]
[null,null,4102,"Category 1","Category 1",1,"QLD"]
[null,null,4103,"Category 1","Category 1",1,"QLD"]
[null,null,4104,"Category 1","Category 1",1,"QLD"]
[null,null,4105,"Category 1","Category 1",1,"QLD"]
[null,null,4106,"Category 1","Category 1",1,"QLD"]
[null,null,4107,"Category 1","Category 1",1,"QLD"]
[null,null,4108,"Category 1","Category 1",1,"QLD"]
[null,null,4109,"Category 1","Category 1",1,"QLD"]
[null,null,4110,"Category 1","Category 1",1,"QLD"]
[null,null,4111,"Category 1","Category 1",1,"QLD"]
[null,null,4112,"Category 1","Category 1",1,"QLD"]
[null,null,4113,"Category 1","Category 1",1,"QLD"]
[null,null,4114,"Category 1","Category 1",1,"QLD"]
[null,null,4115,"Category 1","Category 1",1,"QLD"]
[null,null,4116,"Category 1","Category 1",1,"QLD"]
[null,null,4117,"Category 1","Category 1",1,"QLD"]
[null,null,4118,"Category 1","Category 1",1,"QLD"]
[null,null,4119,"Category 1","Category 1",1,"QLD"]
[null,null,4120,"Category 1","Category 1",1,"QLD"]
[null,null,4121,"Category 1","Category 1",1,"QLD"]
[null,null,4122,"Category 1","Category 1",1,"QLD"]
[null,null,4123,"Category 1","Category 1",1,"QLD"]
[null,null,4124,"Category 1","Category 1",1,"QLD"]
[null,null,4125,"Category 1","Category 1",1,"QLD"]
[null,null,4126,"Category 1","Category 1",1,"QLD"]
[null,null,4127,"Category 1","Category 1",1,"QLD"]
[null,null,4128,"Category 1","Category 1",1,"QLD"]
[null,null,4129,"Category 1","Category 1",1,"QLD"]
[null,null,4130,"Category 1","Category 1",1,"QLD"]
[null,null,4131,"Category 1","Category 1",1,"QLD"]
[null,null,4132,"Category 1","Category 1",1,"QLD"]
[null,null,4133,"Category 1","Category 1",1,"QLD"]
[null,null,4134,"Category 1","Category 1",1,"QLD"]
[null,null,4135,"Category 1","Category 1",1,"QLD"]
[null,null,4136,"Category 1","Category 1",1,"QLD"]
[null,null,4137,"Category 1","Category 1",1,"QLD"]
[null,null,4138,"Category 1","Category 1",1,"QLD"]
[null,null,4139,"Category 1","Category 1",1,"QLD"]
[null,null,4140,"Category 1","Category 1",1,"QLD"]
[null,null,4141,"Category 1","Category 1",1,"QLD"]
[null,null,4142,"Category 1","Category 1",1,"QLD"]
[null,null,4143,"Category 1","Category 1",1,"QLD"]
[null,null,4144,"Category 1","Category 1",1,"QLD"]
[null,null,4145,"Category 1","Category 1",1,"QLD"]
[null,null,4146,"Category 1","Category 1",1,"QLD"]
[null,null,4147,"Category 1","Category 1",1,"QLD"]
[null,null,4148,"Category 1","Category 1",1,"QLD"]
[null,null,4149,"Category 1","Category 1",1,"QLD"]
[null,null,4150,"Category 1","Category 1",1,"QLD"]
[null,null,4151,"Category 1","Category 1",1,"QLD"]
[null,null,4152,"Category 1","Category 1",1,"QLD"]
[null,null,4153,"Category 1","Category 1",1,"QLD"]
[null,null,4154,"Category 1","Category 1",1,"QLD"]
[null,null,4155,"Category 1","Category 1",1,"QLD"]
[null,null,4156,"Category 1","Category 1",1,"QLD"]
[null,null,4157,"Category 1","Category 1",1,"QLD"]
[null,null,4158,"Category 1","Category 1",1,"QLD"]
[null,null,4159,"Category 1","Category 1",1,"QLD"]
[null,null,4160,"Category 1","Category 1",1,"QLD"]
[null,null,4161,"Category 1","Category 1",1,"QLD"]
[null,null,4162,"Category 1","Category 1",1,"QLD"]
[null,null,4163,"Category 1","Category 1",1,"QLD"]
[null,null,4164,"Category 1","Category 1",1,"QLD"]
[null,null,4165,"Category 1","Category 1",1,"QLD"]
[null,null,4166,"Category 1","Category 1",1,"QLD"]
[null,null,4167,"Category 1","Category 1",1,"QLD"]
[null,null,4168,"Category 1","Category 1",1,"QLD"]
[null,null,4169,"High Density","Category 1",1,"QLD"]
[null,null,4170,"Category 1","Category 1",1,"QLD"]
[null,null,4171,"Category 1","Category 1",1,"QLD"]
[null,null,4172,"Category 1","Category 1",1,"QLD"]
[null,null,4173,"Category 1","Category 1",1,"QLD"]
[null,null,4174,"Category 1","Category 1",1,"QLD"]
[null,null,4175,"Category 1","Category 1",1,"QLD"]
[null,null,4176,"Category 1","Category 1",1,"QLD"]
[null,null,4177,"Category 1","Category 1",1,"QLD"]
[null,null,4178,"Category 1","Category 1",1,"QLD"]
[null,null,4179,"Category 1","Category 1",1,"QLD"]
[null,null,4205,"Category 1","Category 1",1,"QLD"]
[null,null,4206,"Category 1","Category 1",1,"QLD"]
[null,null,4207,"Category 1","Category 1",1,"QLD"]
[null,null,4208,"Category 1","Category 1",1,"QLD"]
[null,null,4209,"Category 1","Category 1",1,"QLD"]
[null,null,4210,"Category 1","Category 1",1,"QLD"]
[null,null,4211,"Category 1","Category 1",1,"QLD"]
[null,null,4212,"Category 1","Category 1",1,"QLD"]
[null,null,4213,"Category 1","Category 1",1,"QLD"]
[null,null,4214,"Category 1","Category 1",1,"QLD"]
[null,null,4215,"Category 1","Category 1",1,"QLD"]
[null,null,4216,"Category 1","Category 1",1,"QLD"]
[null,null,4217,"Category 1","Category 1",1,"QLD"]
[null,null,4218,"Category 1","Category 1",1,"QLD"]
[null,null,4219,"Category 1","Category 1",1,"QLD"]
[null,null,4220,"Category 1","Category 1",1,"QLD"]
[null,null,4221,"Category 1","Category 1",1,"QLD"]
[null,null,4223,"Category 1","Category 1",1,"QLD"]
[null,null,4224,"Category 1","Category 1",1,"QLD"]
[null,null,4225,"Category 1","Category 1",1,"QLD"]
[null,null,4226,"Category 1","Category 1",1,"QLD"]
[null,null,4227,"Category 1","Category 1",1,"QLD"]
[null,null,4228,"Category 1","Category 1",1,"QLD"]
[null,null,4229,"Category 1","Category 1",1,"QLD"]
[null,null,4270,"Category 2","Category 2",2,"QLD"]
[null,null,4271,"Category 2","Category 2",2,"QLD"]
[null,null,4272,"Category 2","Category 2",2,"QLD"]
[null,null,4280,"Category 1","Category 1",1,"QLD"]
[null,null,4285,"Category 3","Category 3",3,"QLD"]
[null,null,4300,"Category 1","Category 1",1,"QLD"]
[null,null,4301,"Category 1","Category 1",1,"QLD"]
[null,null,4302,"Category 1","Category 1",1,"QLD"]
[null,null,4303,"Category 1","Category 1",1,"QLD"]
[null,null,4304,"Category 1","Category 1",1,"QLD"]
[null,null,4305,"Category 1","Category 1",1,"QLD"]
[null,null,4306,"Category 1","Category 1",1,"QLD"]
[null,null,4343,"Category 3","Category 3",3,"QLD"]
[null,null,4350,"Category 1","Category 1",1,"QLD"]
[null,null,4352,"Category 2","Category 2",2,"QLD"]
[null,null,4370,"Category 2","Category 2",2,"QLD"]
[null,null,4405,"Category 3","Category 3",3,"QLD"]
[null,null,4500,"Category 1","Category 1",1,"QLD"]
[null,null,4501,"Category 1","Category 1",1,"QLD"]
[null,null,4502,"Category 1","Category 1",1,"QLD"]
[null,null,4503,"Category 1","Category 1",1,"QLD"]
[null,null,4504,"Category 1","Category 1",1,"QLD"]
[null,null,4505,"Category 1","Category 1",1,"QLD"]
[null,null,4506,"Category 1","Category 1",1,"QLD"]
[null,null,4507,"Category 1","Category 1",1,"QLD"]
[null,null,4508,"Category 1","Category 1",1,"QLD"]
[null,null,4509,"Category 1","Category 1",1,"QLD"]
[null,null,4510,"Category 1","Category 1",1,"QLD"]
[null,null,4511,"Category 1","Category 1",1,"QLD"]
[null,null,4512,"Category 1","Category 1",1,"QLD"]
[null,null,4514,"Category 2","Category 2",2,"QLD"]
[null,null,4516,"Category 1","Category 1",1,"QLD"]
[null,null,4517,"Category 1","Category 1",1,"QLD"]
[null,null,4518,"Category 1","Category 1",1,"QLD"]
[null,null,4519,"Category 1","Category 1",1,"QLD"]
[null,null,4520,"Category 1","Category 1",1,"QLD"]
[null,null,4521,"Category 2","Category 2",2,"QLD"]
[null,null,4550,"Category 1","Category 1",1,"QLD"]
[null,null,4551,"Category 1","Category 1",1,"QLD"]
[null,null,4552,"Category 1","Category 1",1,"QLD"]
[null,null,4553,"Category 1","Category 1",1,"QLD"]
[null,null,4554,"Category 1","Category 1",1,"QLD"]
[null,null,4555,"Category 1","Category 1",1,"QLD"]
[null,null,4556,"Category 1","Category 1",1,"QLD"]
[null,null,4557,"Category 1","Category 1",1,"QLD"]
[null,null,4558,"Category 1","Category 1",1,"QLD"]
[null,null,4559,"Category 1","Category 1",1,"QLD"]
[null,null,4560,"Category 1","Category 1",1,"QLD"]
[null,null,4561,"Category 1","Category 1",1,"QLD"]
[null,null,4562,"Category 1","Category 1",1,"QLD"]
[null,null,4563,"Category 1","Category 1",1,"QLD"]
[null,null,4564,"Category 1","Category 1",1,"QLD"]
[null,null,4565,"Category 1","Category 1",1,"QLD"]
[null,null,4566,"Category 1","Category 1",1,"QLD"]
[null,null,4567,"Category 1","Category 1",1,"QLD"]
[null,null,4568,"Category 2","Category 2",2,"QLD"]
[null,null,4570,"Category 2","Category 2",2,"QLD"]
[null,null,4572,"Category 1","Category 1",1,"QLD"]
[null,null,4573,"Category 1","Category 1",1,"QLD"]
[null,null,4575,"Category 1","Category 1",1,"QLD"]
[null,null,4610,"Category 3","Category 3",3,"QLD"]
[null,null,4650,"Category 3","Category 3",3,"QLD"]
[null,null,4655,"Category 2","Category 2",2,"QLD"]
[null,null,4670,"Category 2","Category 2",2,"QLD"]
[null,null,4680,"Category 2","Category 2",2,"QLD"]
[null,null,4700,"Category 1","Category 1",1,"QLD"]
[null,null,4701,"Category 1","Category 1",1,"QLD"]
[null,null,4703,"Category 2","Category 2",2,"QLD"]
[null,null,4710,"Category 2","Category 2",2,"QLD"]
[null,null,4711,"Category 1","Category 1",1,"QLD"]
[null,null,4720,"Category 2","Category 2",2,"QLD"]
[null,null,4737,"Category 3","Category 3",3,"QLD"]
[null,null,4740,"Category 1","Category 1",1,"QLD"]
[null,null,4750,"Category 1","Category 1",1,"QLD"]
[null,null,4751,"Category 1","Category 1",1,"QLD"]
[null,null,4753,"Category 2","Category 2",2,"QLD"]
[null,null,4800,"Category 3","Category 3",3,"QLD"]
[null,null,4802,"Category 2","Category 2",2,"QLD"]
[null,null,4805,"Category 3","Category 3",3,"QLD"]
[null,null,4807,"Category 3","Category 3",3,"QLD"]
[null,null,4808,"Category 3","Category 3",3,"QLD"]
[null,null,4810,"Category 1","Category 1",1,"QLD"]
[null,null,4811,"Category 1","Category 1",1,"QLD"]
[null,null,4812,"Category 1","Category 1",1,"QLD"]
[null,null,4813,"Category 1","Category 1",1,"QLD"]
[null,null,4814,"Category 1","Category 1",1,"QLD"]
[null,null,4815,"Category 1","Category 1",1,"QLD"]
[null,null,4816,"Category 3","Category 3",3,"QLD"]
[null,null,4817,"Category 1","Category 1",1,"QLD"]
[null,null,4818,"Category 1","Category 1",1,"QLD"]
[null,null,4819,"Category 2","Category 2",2,"QLD"]
[null,null,4820,"Category 3","Category 3",3,"QLD"]
[null,null,4821,"Category 3","Category 3",3,"QLD"]
[null,null,4823,"Category 3","Category 3",3,"QLD"]
[null,null,4825,"Category 3","Category 3",3,"QLD"]
[null,null,4850,"Category 3","Category 3",3,"QLD"]
[null,null,4860,"Category 3","Category 3",3,"QLD"]
[null,null,4868,"Category 1","Category 1",1,"QLD"]
[null,null,4869,"Category 1","Category 1",1,"QLD"]
[null,null,4870,"Category 1","Category 1",1,"QLD"]
[null,null,4877,"Category 2","Category 2",2,"QLD"]
[null,null,4878,"Category 1","Category 1",1,"QLD"]
[null,null,4879,"Category 1","Category 1",1,"QLD"]
[null,null,4880,"Category 3","Category 3",3,"QLD"]
[null,null,4881,"Category 2","Category 2",2,"QLD"]
[null,null,4883,"Category 2","Category 2",2,"QLD"]
[null,null,5000,"Category 1","Category 1",1,"SA"]
[null,null,5001,"Category 1","Category 1",1,"SA"]
[null,null,5002,"Category 1","Category 1",1,"SA"]
[null,null,5003,"Category 1","Category 1",1,"SA"]
[null,null,5004,"Category 1","Category 1",1,"SA"]
[null,null,5005,"Category 1","Category 1",1,"SA"]
[null,null,5006,"Category 1","Category 1",1,"SA"]
[null,null,5007,"Category 1","Category 1",1,"SA"]
[null,null,5008,"Category 1","Category 1",1,"SA"]
[null,null,5009,"Category 1","Category 1",1,"SA"]
[null,null,5010,"Category 1","Category 1",1,"SA"]
[null,null,5011,"Category 1","Category 1",1,"SA"]
[null,null,5012,"Category 1","Category 1",1,"SA"]
[null,null,5013,"Category 1","Category 1",1,"SA"]
[null,null,5014,"Category 1","Category 1",1,"SA"]
[null,null,5015,"Category 1","Category 1",1,"SA"]
[null,null,5016,"Category 1","Category 1",1,"SA"]
[null,null,5017,"Category 1","Category 1",1,"SA"]
[null,null,5018,"Category 1","Category 1",1,"SA"]
[null,null,5019,"Category 1","Category 1",1,"SA"]
[null,null,5020,"Category 1","Category 1",1,"SA"]
[null,null,5021,"Category 1","Category 1",1,"SA"]
[null,null,5022,"Category 1","Category 1",1,"SA"]
[null,null,5023,"Category 1","Category 1",1,"SA"]
[null,null,5024,"Category 1","Category 1",1,"SA"]
[null,null,5025,"Category 1","Category 1",1,"SA"]
[null,null,5026,"Category 1","Category 1",1,"SA"]
[null,null,5027,"Category 1","Category 1",1,"SA"]
[null,null,5028,"Category 1","Category 1",1,"SA"]
[null,null,5029,"Category 1","Category 1",1,"SA"]
[null,null,5030,"Category 1","Category 1",1,"SA"]
[null,null,5031,"Category 1","Category 1",1,"SA"]
[null,null,5032,"Category 1","Category 1",1,"SA"]
[null,null,5033,"Category 1","Category 1",1,"SA"]
[null,null,5034,"Category 1","Category 1",1,"SA"]
[null,null,5035,"Category 1","Category 1",1,"SA"]
[null,null,5036,"Category 1","Category 1",1,"SA"]
[null,null,5037,"Category 1","Category 1",1,"SA"]
[null,null,5038,"Category 1","Category 1",1,"SA"]
[null,null,5039,"Category 1","Category 1",1,"SA"]
[null,null,5040,"Category 1","Category 1",1,"SA"]
[null,null,5041,"Category 1","Category 1",1,"SA"]
[null,null,5042,"Category 1","Category 1",1,"SA"]
[null,null,5043,"Category 1","Category 1",1,"SA"]
[null,null,5044,"Category 1","Category 1",1,"SA"]
[null,null,5045,"Category 1","Category 1",1,"SA"]
[null,null,5046,"Category 1","Category 1",1,"SA"]
[null,null,5047,"Category 1","Category 1",1,"SA"]
[null,null,5048,"Category 1","Category 1",1,"SA"]
[null,null,5049,"Category 1","Category 1",1,"SA"]
[null,null,5050,"Category 1","Category 1",1,"SA"]
[null,null,5051,"Category 1","Category 1",1,"SA"]
[null,null,5052,"Category 1","Category 1",1,"SA"]
[null,null,5053,"Category 1","Category 1",1,"SA"]
[null,null,5054,"Category 1","Category 1",1,"SA"]
[null,null,5055,"Category 1","Category 1",1,"SA"]
[null,null,5056,"Category 1","Category 1",1,"SA"]
[null,null,5057,"Category 1","Category 1",1,"SA"]
[null,null,5058,"Category 1","Category 1",1,"SA"]
[null,null,5059,"Category 1","Category 1",1,"SA"]
[null,null,5060,"Category 1","Category 1",1,"SA"]
[null,null,5061,"Category 1","Category 1",1,"SA"]
[null,null,5062,"Category 1","Category 1",1,"SA"]
[null,null,5063,"Category 1","Category 1",1,"SA"]
[null,null,5064,"Category 1","Category 1",1,"SA"]
[null,null,5065,"Category 1","Category 1",1,"SA"]
[null,null,5066,"Category 1","Category 1",1,"SA"]
[null,null,5067,"Category 1","Category 1",1,"SA"]
[null,null,5068,"Category 1","Category 1",1,"SA"]
[null,null,5069,"Category 1","Category 1",1,"SA"]
[null,null,5070,"Category 1","Category 1",1,"SA"]
[null,null,5071,"Category 1","Category 1",1,"SA"]
[null,null,5072,"Category 1","Category 1",1,"SA"]
[null,null,5073,"Category 1","Category 1",1,"SA"]
[null,null,5074,"Category 1","Category 1",1,"SA"]
[null,null,5075,"Category 1","Category 1",1,"SA"]
[null,null,5076,"Category 1","Category 1",1,"SA"]
[null,null,5077,"Category 1","Category 1",1,"SA"]
[null,null,5078,"Category 1","Category 1",1,"SA"]
[null,null,5079,"Category 1","Category 1",1,"SA"]
[null,null,5080,"Category 1","Category 1",1,"SA"]
[null,null,5081,"Category 1","Category 1",1,"SA"]
[null,null,5082,"Category 1","Category 1",1,"SA"]
[null,null,5083,"Category 1","Category 1",1,"SA"]
[null,null,5084,"Category 1","Category 1",1,"SA"]
[null,null,5085,"Category 1","Category 1",1,"SA"]
[null,null,5086,"Category 1","Category 1",1,"SA"]
[null,null,5087,"Category 1","Category 1",1,"SA"]
[null,null,5088,"Category 1","Category 1",1,"SA"]
[null,null,5089,"Category 1","Category 1",1,"SA"]
[null,null,5090,"Category 1","Category 1",1,"SA"]
[null,null,5091,"Category 1","Category 1",1,"SA"]
[null,null,5092,"Category 1","Category 1",1,"SA"]
[null,null,5093,"Category 1","Category 1",1,"SA"]
[null,null,5094,"Category 1","Category 1",1,"SA"]
[null,null,5095,"Category 1","Category 1",1,"SA"]
[null,null,5096,"Category 1","Category 1",1,"SA"]
[null,null,5097,"Category 1","Category 1",1,"SA"]
[null,null,5098,"Category 1","Category 1",1,"SA"]
[null,null,5099,"Category 1","Category 1",1,"SA"]
[null,null,5100,"Category 1","Category 1",1,"SA"]
[null,null,5101,"Category 1","Category 1",1,"SA"]
[null,null,5102,"Category 1","Category 1",1,"SA"]
[null,null,5103,"Category 1","Category 1",1,"SA"]
[null,null,5104,"Category 1","Category 1",1,"SA"]
[null,null,5105,"Category 1","Category 1",1,"SA"]
[null,null,5106,"Category 1","Category 1",1,"SA"]
[null,null,5107,"Category 1","Category 1",1,"SA"]
[null,null,5108,"Category 1","Category 1",1,"SA"]
[null,null,5109,"Category 1","Category 1",1,"SA"]
[null,null,5110,"Category 1","Category 1",1,"SA"]
[null,null,5111,"Category 1","Category 1",1,"SA"]
[null,null,5112,"Category 1","Category 1",1,"SA"]
[null,null,5113,"Category 1","Category 1",1,"SA"]
[null,null,5114,"Category 1","Category 1",1,"SA"]
[null,null,5115,"Category 1","Category 1",1,"SA"]
[null,null,5116,"Category 1","Category 1",1,"SA"]
[null,null,5117,"Category 1","Category 1",1,"SA"]
[null,null,5118,"Category 1","Category 1",1,"SA"]
[null,null,5119,"Category 1","Category 1",1,"SA"]
[null,null,5120,"Category 1","Category 1",1,"SA"]
[null,null,5121,"Category 1","Category 1",1,"SA"]
[null,null,5122,"Category 1","Category 1",1,"SA"]
[null,null,5123,"Category 1","Category 1",1,"SA"]
[null,null,5124,"Category 1","Category 1",1,"SA"]
[null,null,5125,"Category 1","Category 1",1,"SA"]
[null,null,5126,"Category 1","Category 1",1,"SA"]
[null,null,5127,"Category 1","Category 1",1,"SA"]
[null,null,5128,"Category 1","Category 1",1,"SA"]
[null,null,5129,"Category 1","Category 1",1,"SA"]
[null,null,5130,"Category 1","Category 1",1,"SA"]
[null,null,5131,"Category 1","Category 1",1,"SA"]
[null,null,5132,"Category 1","Category 1",1,"SA"]
[null,null,5133,"Category 1","Category 1",1,"SA"]
[null,null,5134,"Category 1","Category 1",1,"SA"]
[null,null,5135,"Category 1","Category 1",1,"SA"]
[null,null,5136,"Category 1","Category 1",1,"SA"]
[null,null,5137,"Category 1","Category 1",1,"SA"]
[null,null,5138,"Category 1","Category 1",1,"SA"]
[null,null,5139,"Category 1","Category 1",1,"SA"]
[null,null,5140,"Category 1","Category 1",1,"SA"]
[null,null,5141,"Category 1","Category 1",1,"SA"]
[null,null,5142,"Category 1","Category 1",1,"SA"]
[null,null,5143,"Category 1","Category 1",1,"SA"]
[null,null,5144,"Category 1","Category 1",1,"SA"]
[null,null,5145,"Category 1","Category 1",1,"SA"]
[null,null,5146,"Category 1","Category 1",1,"SA"]
[null,null,5147,"Category 1","Category 1",1,"SA"]
[null,null,5148,"Category 1","Category 1",1,"SA"]
[null,null,5149,"Category 1","Category 1",1,"SA"]
[null,null,5150,"Category 1","Category 1",1,"SA"]
[null,null,5151,"Category 1","Category 1",1,"SA"]
[null,null,5152,"Category 1","Category 1",1,"SA"]
[null,null,5153,"Category 1","Category 1",1,"SA"]
[null,null,5154,"Category 1","Category 1",1,"SA"]
[null,null,5155,"Category 1","Category 1",1,"SA"]
[null,null,5156,"Category 1","Category 1",1,"SA"]
[null,null,5157,"Category 1","Category 1",1,"SA"]
[null,null,5158,"Category 1","Category 1",1,"SA"]
[null,null,5159,"Category 1","Category 1",1,"SA"]
[null,null,5160,"Category 1","Category 1",1,"SA"]
[null,null,5161,"Category 1","Category 1",1,"SA"]
[null,null,5162,"Category 1","Category 1",1,"SA"]
[null,null,5163,"Category 1","Category 1",1,"SA"]
[null,null,5164,"Category 1","Category 1",1,"SA"]
[null,null,5165,"Category 1","Category 1",1,"SA"]
[null,null,5166,"Category 1","Category 1",1,"SA"]
[null,null,5167,"Category 1","Category 1",1,"SA"]
[null,null,5168,"Category 1","Category 1",1,"SA"]
[null,null,5169,"Category 1","Category 1",1,"SA"]
[null,null,5170,"Category 1","Category 1",1,"SA"]
[null,null,5171,"Category 1","Category 1",1,"SA"]
[null,null,5172,"Category 1","Category 1",1,"SA"]
[null,null,5173,"Category 1","Category 1",1,"SA"]
[null,null,5174,"Category 1","Category 1",1,"SA"]
[null,null,5201,"Category 3","Category 3",3,"SA"]
[null,null,5202,"Category 3","Category 3",3,"SA"]
[null,null,5203,"Category 3","Category 3",3,"SA"]
[null,null,5204,"Category 3","Category 3",3,"SA"]
[null,null,5211,"Category 2","Category 2",2,"SA"]
[null,null,5212,"Category 2","Category 2",2,"SA"]
[null,null,5213,"Category 2","Category 2",2,"SA"]
[null,null,5214,"Category 2","Category 2",2,"SA"]
[null,null,5231,"Category 1","Category 1",1,"SA"]
[null,null,5232,"Category 1","Category 1",1,"SA"]
[null,null,5233,"Category 1","Category 1",1,"SA"]
[null,null,5234,"Category 1","Category 1",1,"SA"]
[null,null,5240,"Category 1","Category 1",1,"SA"]
[null,null,5241,"Category 1","Category 1",1,"SA"]
[null,null,5242,"Category 1","Category 1",1,"SA"]
[null,null,5243,"Category 1","Category 1",1,"SA"]
[null,null,5244,"Category 1","Category 1",1,"SA"]
[null,null,5245,"Category 1","Category 1",1,"SA"]
[null,null,5246,"Category 1","Category 1",1,"SA"]
[null,null,5247,"Category 1","Category 1",1,"SA"]
[null,null,5248,"Category 1","Category 1",1,"SA"]
[null,null,5249,"Category 1","Category 1",1,"SA"]
[null,null,5250,"Category 1","Category 1",1,"SA"]
[null,null,5251,"Category 1","Category 1",1,"SA"]
[null,null,5252,"Category 3","Category 3",3,"SA"]
[null,null,5253,"Category 3","Category 3",3,"SA"]
[null,null,5255,"Category 3","Category 3",3,"SA"]
[null,null,5280,"Category 3","Category 3",3,"SA"]
[null,null,5290,"Category 2","Category 2",2,"SA"]
[null,null,5291,"Category 3","Category 3",3,"SA"]
[null,null,5341,"Category 3","Category 3",3,"SA"]
[null,null,5343,"Category 3","Category 3",3,"SA"]
[null,null,5345,"Category 3","Category 3",3,"SA"]
[null,null,5351,"Category 3","Category 3",3,"SA"]
[null,null,5352,"Category 3","Category 3",3,"SA"]
[null,null,5353,"Category 3","Category 3",3,"SA"]
[null,null,5354,"Category 3","Category 3",3,"SA"]
[null,null,5355,"Category 2","Category 2",2,"SA"]
[null,null,5453,"Category 3","Category 3",3,"SA"]
[null,null,5501,"Category 3","Category 3",3,"SA"]
[null,null,5540,"Category 3","Category 3",3,"SA"]
[null,null,5554,"Category 3","Category 3",3,"SA"]
[null,null,5556,"Category 3","Category 3",3,"SA"]
[null,null,5558,"Category 3","Category 3",3,"SA"]
[null,null,5600,"Category 2","Category 2",2,"SA"]
[null,null,5606,"Category 3","Category 3",3,"SA"]
[null,null,5607,"Category 3","Category 3",3,"SA"]
[null,null,5608,"Category 2","Category 2",2,"SA"]
[null,null,5609,"Category 2","Category 2",2,"SA"]
[null,null,5700,"Category 3","Category 3",3,"SA"]
[null,null,5719,"Category 2","Category 2",2,"SA"]
[null,null,6000,"Category 1","Category 1",1,"WA"]
[null,null,6001,"Category 1","Category 1",1,"WA"]
[null,null,6002,"Category 1","Category 1",1,"WA"]
[null,null,6003,"Metro Plus","Category 1",1,"WA"]
[null,null,6004,"Metro Plus","Category 1",1,"WA"]
[null,null,6005,"Metro Plus","Category 1",1,"WA"]
[null,null,6006,"Metro Plus","Category 1",1,"WA"]
[null,null,6007,"Metro Plus","Category 1",1,"WA"]
[null,null,6008,"Metro Plus","Category 1",1,"WA"]
[null,null,6009,"Metro Plus","Category 1",1,"WA"]
[null,null,6010,"Metro Plus","Category 1",1,"WA"]
[null,null,6011,"Metro Plus","Category 1",1,"WA"]
[null,null,6012,"Metro Plus","Category 1",1,"WA"]
[null,null,6013,"Category 1","Category 1",1,"WA"]
[null,null,6014,"Metro Plus","Category 1",1,"WA"]
[null,null,6015,"Metro Plus","Category 1",1,"WA"]
[null,null,6016,"Category 1","Category 1",1,"WA"]
[null,null,6017,"Category 1","Category 1",1,"WA"]
[null,null,6018,"Category 1","Category 1",1,"WA"]
[null,null,6019,"Category 1","Category 1",1,"WA"]
[null,null,6020,"Category 1","Category 1",1,"WA"]
[null,null,6021,"Category 1","Category 1",1,"WA"]
[null,null,6022,"Category 1","Category 1",1,"WA"]
[null,null,6023,"Category 1","Category 1",1,"WA"]
[null,null,6024,"Category 1","Category 1",1,"WA"]
[null,null,6025,"Category 1","Category 1",1,"WA"]
[null,null,6026,"Category 1","Category 1",1,"WA"]
[null,null,6027,"Category 1","Category 1",1,"WA"]
[null,null,6028,"Category 1","Category 1",1,"WA"]
[null,null,6029,"Category 1","Category 1",1,"WA"]
[null,null,6030,"Category 1","Category 1",1,"WA"]
[null,null,6031,"Category 1","Category 1",1,"WA"]
[null,null,6032,"Category 1","Category 1",1,"WA"]
[null,null,6033,"Category 1","Category 1",1,"WA"]
[null,null,6034,"Category 1","Category 1",1,"WA"]
[null,null,6035,"Category 1","Category 1",1,"WA"]
[null,null,6036,"Category 1","Category 1",1,"WA"]
[null,null,6037,"Category 1","Category 1",1,"WA"]
[null,null,6038,"Category 1","Category 1",1,"WA"]
[null,null,6039,"Category 1","Category 1",1,"WA"]
[null,null,6040,"Category 1","Category 1",1,"WA"]
[null,null,6041,"Category 1","Category 1",1,"WA"]
[null,null,6042,"Category 1","Category 1",1,"WA"]
[null,null,6043,"Category 1","Category 1",1,"WA"]
[null,null,6044,"Category 1","Category 1",1,"WA"]
[null,null,6045,"Category 1","Category 1",1,"WA"]
[null,null,6046,"Category 1","Category 1",1,"WA"]
[null,null,6047,"Category 1","Category 1",1,"WA"]
[null,null,6048,"Category 1","Category 1",1,"WA"]
[null,null,6049,"Category 1","Category 1",1,"WA"]
[null,null,6050,"Metro Plus","Category 1",1,"WA"]
[null,null,6051,"Category 1","Category 1",1,"WA"]
[null,null,6052,"Category 1","Category 1",1,"WA"]
[null,null,6053,"Category 1","Category 1",1,"WA"]
[null,null,6054,"Category 1","Category 1",1,"WA"]
[null,null,6055,"Category 1","Category 1",1,"WA"]
[null,null,6056,"Category 1","Category 1",1,"WA"]
[null,null,6057,"Category 1","Category 1",1,"WA"]
[null,null,6058,"Category 1","Category 1",1,"WA"]
[null,null,6059,"Category 1","Category 1",1,"WA"]
[null,null,6060,"Category 1","Category 1",1,"WA"]
[null,null,6061,"Category 1","Category 1",1,"WA"]
[null,null,6062,"Category 1","Category 1",1,"WA"]
[null,null,6063,"Category 1","Category 1",1,"WA"]
[null,null,6064,"Category 1","Category 1",1,"WA"]
[null,null,6065,"Category 1","Category 1",1,"WA"]
[null,null,6066,"Category 1","Category 1",1,"WA"]
[null,null,6067,"Category 1","Category 1",1,"WA"]
[null,null,6068,"Category 1","Category 1",1,"WA"]
[null,null,6069,"Category 1","Category 1",1,"WA"]
[null,null,6070,"Category 1","Category 1",1,"WA"]
[null,null,6071,"Category 1","Category 1",1,"WA"]
[null,null,6072,"Category 1","Category 1",1,"WA"]
[null,null,6073,"Category 1","Category 1",1,"WA"]
[null,null,6074,"Category 1","Category 1",1,"WA"]
[null,null,6075,"Category 1","Category 1",1,"WA"]
[null,null,6076,"Category 1","Category 1",1,"WA"]
[null,null,6077,"Category 1","Category 1",1,"WA"]
[null,null,6078,"Category 1","Category 1",1,"WA"]
[null,null,6079,"Category 1","Category 1",1,"WA"]
[null,null,6080,"Category 1","Category 1",1,"WA"]
[null,null,6081,"Category 1","Category 1",1,"WA"]
[null,null,6082,"Category 1","Category 1",1,"WA"]
[null,null,6083,"Category 1","Category 1",1,"WA"]
[null,null,6084,"Category 1","Category 1",1,"WA"]
[null,null,6085,"Category 1","Category 1",1,"WA"]
[null,null,6086,"Category 1","Category 1",1,"WA"]
[null,null,6087,"Category 1","Category 1",1,"WA"]
[null,null,6088,"Category 1","Category 1",1,"WA"]
[null,null,6089,"Category 1","Category 1",1,"WA"]
[null,null,6090,"Category 1","Category 1",1,"WA"]
[null,null,6091,"Category 1","Category 1",1,"WA"]
[null,null,6092,"Category 1","Category 1",1,"WA"]
[null,null,6093,"Category 1","Category 1",1,"WA"]
[null,null,6094,"Category 1","Category 1",1,"WA"]
[null,null,6095,"Category 1","Category 1",1,"WA"]
[null,null,6096,"Category 1","Category 1",1,"WA"]
[null,null,6097,"Category 1","Category 1",1,"WA"]
[null,null,6098,"Category 1","Category 1",1,"WA"]
[null,null,6099,"Category 1","Category 1",1,"WA"]
[null,null,6100,"Category 1","Category 1",1,"WA"]
[null,null,6101,"Category 1","Category 1",1,"WA"]
[null,null,6102,"Category 1","Category 1",1,"WA"]
[null,null,6103,"Category 1","Category 1",1,"WA"]
[null,null,6104,"Category 1","Category 1",1,"WA"]
[null,null,6105,"Category 1","Category 1",1,"WA"]
[null,null,6106,"Category 1","Category 1",1,"WA"]
[null,null,6107,"High Density","Category 1",1,"WA"]
[null,null,6108,"Category 1","Category 1",1,"WA"]
[null,null,6109,"Category 1","Category 1",1,"WA"]
[null,null,6110,"Category 1","Category 1",1,"WA"]
[null,null,6111,"Category 1","Category 1",1,"WA"]
[null,null,6112,"Category 1","Category 1",1,"WA"]
[null,null,6113,"Category 1","Category 1",1,"WA"]
[null,null,6114,"Category 1","Category 1",1,"WA"]
[null,null,6115,"Category 1","Category 1",1,"WA"]
[null,null,6116,"Category 1","Category 1",1,"WA"]
[null,null,6117,"Category 1","Category 1",1,"WA"]
[null,null,6118,"Category 1","Category 1",1,"WA"]
[null,null,6119,"Category 1","Category 1",1,"WA"]
[null,null,6120,"Category 1","Category 1",1,"WA"]
[null,null,6121,"Category 1","Category 1",1,"WA"]
[null,null,6122,"Category 1","Category 1",1,"WA"]
[null,null,6123,"Category 1","Category 1",1,"WA"]
[null,null,6124,"Category 1","Category 1",1,"WA"]
[null,null,6125,"Category 1","Category 1",1,"WA"]
[null,null,6126,"Category 1","Category 1",1,"WA"]
[null,null,6127,"Category 1","Category 1",1,"WA"]
[null,null,6128,"Category 1","Category 1",1,"WA"]
[null,null,6129,"Category 1","Category 1",1,"WA"]
[null,null,6130,"Category 1","Category 1",1,"WA"]
[null,null,6131,"Category 1","Category 1",1,"WA"]
[null,null,6132,"Category 1","Category 1",1,"WA"]
[null,null,6133,"Category 1","Category 1",1,"WA"]
[null,null,6134,"Category 1","Category 1",1,"WA"]
[null,null,6135,"Category 1","Category 1",1,"WA"]
[null,null,6136,"Category 1","Category 1",1,"WA"]
[null,null,6137,"Category 1","Category 1",1,"WA"]
[null,null,6138,"Category 1","Category 1",1,"WA"]
[null,null,6139,"Category 1","Category 1",1,"WA"]
[null,null,6140,"Category 1","Category 1",1,"WA"]
[null,null,6141,"Category 1","Category 1",1,"WA"]
[null,null,6142,"Category 1","Category 1",1,"WA"]
[null,null,6143,"Category 1","Category 1",1,"WA"]
[null,null,6144,"Category 1","Category 1",1,"WA"]
[null,null,6145,"Category 1","Category 1",1,"WA"]
[null,null,6146,"Category 1","Category 1",1,"WA"]
[null,null,6147,"Category 1","Category 1",1,"WA"]
[null,null,6148,"Category 1","Category 1",1,"WA"]
[null,null,6149,"Category 1","Category 1",1,"WA"]
[null,null,6150,"Category 1","Category 1",1,"WA"]
[null,null,6151,"Category 1","Category 1",1,"WA"]
[null,null,6152,"Category 1","Category 1",1,"WA"]
[null,null,6153,"Metro Plus","Category 1",1,"WA"]
[null,null,6154,"Metro Plus","Category 1",1,"WA"]
[null,null,6155,"Category 1","Category 1",1,"WA"]
[null,null,6156,"Metro Plus","Category 1",1,"WA"]
[null,null,6157,"Metro Plus","Category 1",1,"WA"]
[null,null,6158,"Metro Plus","Category 1",1,"WA"]
[null,null,6159,"Category 1","Category 1",1,"WA"]
[null,null,6160,"Category 1","Category 1",1,"WA"]
[null,null,6161,"Category 1","Category 1",1,"WA"]
[null,null,6162,"Category 1","Category 1",1,"WA"]
[null,null,6163,"Category 1","Category 1",1,"WA"]
[null,null,6164,"Category 1","Category 1",1,"WA"]
[null,null,6165,"Category 1","Category 1",1,"WA"]
[null,null,6166,"Category 1","Category 1",1,"WA"]
[null,null,6167,"Category 1","Category 1",1,"WA"]
[null,null,6168,"Category 1","Category 1",1,"WA"]
[null,null,6169,"Category 1","Category 1",1,"WA"]
[null,null,6170,"Category 1","Category 1",1,"WA"]
[null,null,6171,"Category 1","Category 1",1,"WA"]
[null,null,6172,"Category 1","Category 1",1,"WA"]
[null,null,6173,"Category 1","Category 1",1,"WA"]
[null,null,6174,"Category 1","Category 1",1,"WA"]
[null,null,6175,"Category 1","Category 1",1,"WA"]
[null,null,6176,"Category 1","Category 1",1,"WA"]
[null,null,6177,"Category 1","Category 1",1,"WA"]
[null,null,6178,"Category 1","Category 1",1,"WA"]
[null,null,6179,"Category 1","Category 1",1,"WA"]
[null,null,6180,"Category 1","Category 1",1,"WA"]
[null,null,6181,"Category 1","Category 1",1,"WA"]
[null,null,6182,"Category 1","Category 1",1,"WA"]
[null,null,6183,"Category 1","Category 1",1,"WA"]
[null,null,6184,"Category 1","Category 1",1,"WA"]
[null,null,6185,"Category 1","Category 1",1,"WA"]
[null,null,6186,"Category 1","Category 1",1,"WA"]
[null,null,6187,"Category 1","Category 1",1,"WA"]
[null,null,6188,"Category 1","Category 1",1,"WA"]
[null,null,6189,"Category 1","Category 1",1,"WA"]
[null,null,6190,"Category 1","Category 1",1,"WA"]
[null,null,6191,"Category 1","Category 1",1,"WA"]
[null,null,6192,"Category 1","Category 1",1,"WA"]
[null,null,6193,"Category 1","Category 1",1,"WA"]
[null,null,6194,"Category 1","Category 1",1,"WA"]
[null,null,6195,"Category 1","Category 1",1,"WA"]
[null,null,6196,"Category 1","Category 1",1,"WA"]
[null,null,6197,"Category 1","Category 1",1,"WA"]
[null,null,6198,"Category 1","Category 1",1,"WA"]
[null,null,6199,"Category 1","Category 1",1,"WA"]
[null,null,6200,"Category 1","Category 1",1,"WA"]
[null,null,6201,"Category 1","Category 1",1,"WA"]
[null,null,6202,"Category 1","Category 1",1,"WA"]
[null,null,6203,"Category 1","Category 1",1,"WA"]
[null,null,6204,"Category 1","Category 1",1,"WA"]
[null,null,6205,"Category 1","Category 1",1,"WA"]
[null,null,6206,"Category 1","Category 1",1,"WA"]
[null,null,6207,"Category 1","Category 1",1,"WA"]
[null,null,6208,"Category 1","Category 1",1,"WA"]
[null,null,6209,"Category 1","Category 1",1,"WA"]
[null,null,6210,"High Density","Category 1",1,"WA"]
[null,null,6211,"Category 1","Category 1",1,"WA"]
[null,null,6212,"Category 1","Category 1",1,"WA"]
[null,null,6213,"Category 1","Category 1",1,"WA"]
[null,null,6214,"Category 1","Category 1",1,"WA"]
[null,null,6225,"Category 3","Category 3",3,"WA"]
[null,null,6229,"Category 1","Category 1",1,"WA"]
[null,null,6230,"Category 1","Category 1",1,"WA"]
[null,null,6232,"Category 1","Category 1",1,"WA"]
[null,null,6233,"Category 1","Category 1",1,"WA"]
[null,null,6280,"Category 1","Category 1",1,"WA"]
[null,null,6281,"Category 1","Category 1",1,"WA"]
[null,null,6282,"Category 1","Category 1",1,"WA"]
[null,null,6284,"Category 1","Category 1",1,"WA"]
[null,null,6285,"Category 1","Category 1",1,"WA"]
[null,null,6290,"Category 2","Category 2",2,"WA"]
[null,null,6330,"Category 1","Category 1",1,"WA"]
[null,null,6333,"Category 3","Category 3",3,"WA"]
[null,null,6401,"Category 3","Category 3",3,"WA"]
[null,null,6430,"Category 3","Category 3",3,"WA"]
[null,null,6432,"Category 3","Category 3",3,"WA"]
[null,null,6450,"Category 2","Category 2",2,"WA"]
[null,null,6530,"Category 1","Category 1",1,"WA"]
[null,null,6713,"Category 3","Category 3",3,"WA"]
[null,null,6714,"Category 3","Category 3",3,"WA"]
[null,null,6721,"High Density","Category 3",3,"WA"]
[null,null,6722,"High Density","Category 3",3,"WA"]
[null,null,6725,"Category 2","Category 2",2,"WA"]
[null,null,6726,"Category 2","Category 2",2,"WA"]
[null,null,7000,"Category 1","Category 1",1,"TAS"]
[null,null,7001,"Category 1","Category 1",1,"TAS"]
[null,null,7002,"Category 1","Category 1",1,"TAS"]
[null,null,7003,"Category 1","Category 1",1,"TAS"]
[null,null,7004,"Category 1","Category 1",1,"TAS"]
[null,null,7005,"Category 1","Category 1",1,"TAS"]
[null,null,7006,"Category 1","Category 1",1,"TAS"]
[null,null,7007,"Category 1","Category 1",1,"TAS"]
[null,null,7008,"Category 1","Category 1",1,"TAS"]
[null,null,7009,"Category 1","Category 1",1,"TAS"]
[null,null,7010,"Category 1","Category 1",1,"TAS"]
[null,null,7011,"Category 1","Category 1",1,"TAS"]
[null,null,7012,"Category 1","Category 1",1,"TAS"]
[null,null,7013,"Category 1","Category 1",1,"TAS"]
[null,null,7014,"Category 1","Category 1",1,"TAS"]
[null,null,7015,"Category 1","Category 1",1,"TAS"]
[null,null,7016,"Category 1","Category 1",1,"TAS"]
[null,null,7017,"Category 1","Category 1",1,"TAS"]
[null,null,7018,"Category 1","Category 1",1,"TAS"]
[null,null,7019,"Category 1","Category 1",1,"TAS"]
[null,null,7021,"Category 1","Category 1",1,"TAS"]
[null,null,7025,"Category 2","Category 2",2,"TAS"]
[null,null,7030,"Category 3","Category 3",3,"TAS"]
[null,null,7050,"Category 1","Category 1",1,"TAS"]
[null,null,7051,"Category 1","Category 1",1,"TAS"]
[null,null,7052,"Category 1","Category 1",1,"TAS"]
[null,null,7053,"Category 1","Category 1",1,"TAS"]
[null,null,7054,"Category 1","Category 1",1,"TAS"]
[null,null,7055,"Category 1","Category 1",1,"TAS"]
[null,null,7170,"Category 1","Category 1",1,"TAS"]
[null,null,7171,"Category 1","Category 1",1,"TAS"]
[null,null,7172,"Category 1","Category 1",1,"TAS"]
[null,null,7173,"Category 2","Category 2",2,"TAS"]
[null,null,7248,"Category 1","Category 1",1,"TAS"]
[null,null,7249,"Category 1","Category 1",1,"TAS"]
[null,null,7250,"Category 1","Category 1",1,"TAS"]
[null,null,7258,"Category 1","Category 1",1,"TAS"]
[null,null,7277,"Category 1","Category 1",1,"TAS"]
[null,null,7290,"Category 1","Category 1",1,"TAS"]
[null,null,7300,"Category 1","Category 1",1,"TAS"]
[null,null,7307,"Category 2","Category 2",2,"TAS"]
[null,null,7310,"Category 2","Category 2",2,"TAS"]
[null,null,7315,"Category 2","Category 2",2,"TAS"]
[null,null,7316,"Category 3","Category 3",3,"TAS"]
[null,null,7320,"Category 3","Category 3",3,"TAS"]
[null,null,7325,"Category 3","Category 3",3,"TAS"]

{"sheet":"S&P","index":5,"n_rows":9452,"n_cols":4,"rows_kept":9452,"cut":false,"hidden":true,"merged":[]}
[]
[null,{"$f":"Model.name","v":"MA Money - Arrears Calculator"}]
[null,"S&P"]
[]
[]
[]
[]
[]
[]
[]
[]
[]
[]
[]
[{"$f":"CHAR(149)","v":"•"},"Genworth Category Code"]
[]
[null,null,"Postcode","Status"]
[null,null,200,"Non metro"]
[null,null,201,"Non metro"]
[null,null,201,"Non metro"]
[null,null,202,"Non metro"]
[null,null,202,"Non metro"]
[null,null,203,"Non metro"]
[null,null,203,"Non metro"]
[null,null,204,"Non metro"]
[null,null,204,"Non metro"]
[null,null,205,"Non metro"]
[null,null,205,"Non metro"]
[null,null,206,"Non metro"]
[null,null,206,"Non metro"]
[null,null,207,"Non metro"]
[null,null,207,"Non metro"]
[null,null,208,"Non metro"]
[null,null,208,"Non metro"]
[null,null,209,"Non metro"]
[null,null,209,"Non metro"]
[null,null,210,"Non metro"]
[null,null,210,"Non metro"]
[null,null,211,"Non metro"]
[null,null,211,"Non metro"]
[null,null,212,"Non metro"]
[null,null,212,"Non metro"]
[null,null,213,"Non metro"]
[null,null,213,"Non metro"]
[null,null,214,"Non metro"]
[null,null,214,"Non metro"]
[null,null,215,"Non metro"]
[null,null,215,"Non metro"]
[null,null,216,"Non metro"]
[null,null,216,"Non metro"]
[null,null,217,"Non metro"]
[null,null,217,"Non metro"]
[null,null,218,"Non metro"]
[null,null,218,"Non metro"]
[null,null,219,"Non metro"]
[null,null,219,"Non metro"]
[null,null,220,"Non metro"]
[null,null,220,"Non metro"]
[null,null,221,"Non metro"]
[null,null,221,"Non metro"]
[null,null,222,"Non metro"]
[null,null,222,"Non metro"]
[null,null,223,"Non metro"]
[null,null,223,"Non metro"]
[null,null,224,"Non metro"]
[null,null,224,"Non metro"]
[null,null,225,"Non metro"]
[null,null,225,"Non metro"]
[null,null,226,"Non metro"]
[null,null,226,"Non metro"]
[null,null,227,"Non metro"]
[null,null,227,"Non metro"]
[null,null,228,"Non metro"]
[null,null,228,"Non metro"]
[null,null,229,"Non metro"]
[null,null,229,"Non metro"]
[null,null,230,"Non metro"]
[null,null,230,"Non metro"]
[null,null,231,"Non metro"]
[null,null,231,"Non metro"]
[null,null,232,"Non metro"]
[null,null,232,"Non metro"]
[null,null,233,"Non metro"]
[null,null,233,"Non metro"]
[null,null,234,"Non metro"]
[null,null,234,"Non metro"]
[null,null,235,"Non metro"]
[null,null,235,"Non metro"]
[null,null,236,"Non metro"]
[null,null,236,"Non metro"]
[null,null,237,"Non metro"]
[null,null,237,"Non metro"]
[null,null,238,"Non metro"]
[null,null,239,"Non metro"]
[null,null,240,"Non metro"]
[null,null,241,"Non metro"]
[null,null,242,"Non metro"]
[null,null,243,"Non metro"]
[null,null,244,"Non metro"]
[null,null,245,"Non metro"]
[null,null,246,"Non metro"]
[null,null,247,"Non metro"]
[null,null,248,"Non metro"]
[null,null,249,"Non metro"]
[null,null,250,"Non metro"]
[null,null,251,"Non metro"]
[null,null,252,"Non metro"]
[null,null,253,"Non metro"]
[null,null,254,"Non metro"]
[null,null,255,"Non metro"]
[null,null,256,"Non metro"]
[null,null,257,"Non metro"]
[null,null,258,"Non metro"]
[null,null,259,"Non metro"]
[null,null,260,"Non metro"]
[null,null,261,"Non metro"]
[null,null,262,"Non metro"]
[null,null,263,"Non metro"]
[null,null,264,"Non metro"]
[null,null,265,"Non metro"]
[null,null,266,"Non metro"]
[null,null,267,"Non metro"]
[null,null,268,"Non metro"]
[null,null,269,"Non metro"]
[null,null,270,"Non metro"]
[null,null,271,"Non metro"]
[null,null,272,"Non metro"]
[null,null,273,"Non metro"]
[null,null,274,"Non metro"]
[null,null,275,"Non metro"]
[null,null,276,"Non metro"]
[null,null,277,"Non metro"]
[null,null,278,"Non metro"]
[null,null,279,"Non metro"]
[null,null,280,"Non metro"]
[null,null,281,"Non metro"]
[null,null,282,"Non metro"]
[null,null,283,"Non metro"]
[null,null,284,"Non metro"]
[null,null,285,"Non metro"]
[null,null,286,"Non metro"]
[null,null,287,"Non metro"]
[null,null,288,"Non metro"]
[null,null,289,"Non metro"]
[null,null,290,"Non metro"]
[null,null,291,"Non metro"]
[null,null,292,"Non metro"]
[null,null,293,"Non metro"]
[null,null,294,"Non metro"]
[null,null,295,"Non metro"]
[null,null,296,"Non metro"]
[null,null,297,"Non metro"]
[null,null,298,"Non metro"]
[null,null,299,"Non metro"]
[null,null,300,"Non metro"]
[null,null,301,"Non metro"]
[null,null,302,"Non metro"]
[null,null,303,"Non metro"]
[null,null,304,"Non metro"]
[null,null,305,"Non metro"]
[null,null,306,"Non metro"]
[null,null,307,"Non metro"]
[null,null,308,"Non metro"]
[null,null,309,"Non metro"]
[null,null,310,"Non metro"]
[null,null,311,"Non metro"]
[null,null,312,"Non metro"]
[null,null,313,"Non metro"]
[null,null,314,"Non metro"]
[null,null,315,"Non metro"]
[null,null,316,"Non metro"]
[null,null,317,"Non metro"]
[null,null,318,"Non metro"]
[null,null,319,"Non metro"]
[null,null,320,"Non metro"]
[null,null,321,"Non metro"]
[null,null,322,"Non metro"]
[null,null,323,"Non metro"]
[null,null,324,"Non metro"]
[null,null,325,"Non metro"]
[null,null,326,"Non metro"]
[null,null,327,"Non metro"]
[null,null,328,"Non metro"]
[null,null,329,"Non metro"]
[null,null,330,"Non metro"]
[null,null,331,"Non metro"]
[null,null,332,"Non metro"]
[null,null,333,"Non metro"]
[null,null,334,"Non metro"]
[null,null,335,"Non metro"]
[null,null,336,"Non metro"]
[null,null,337,"Non metro"]
[null,null,338,"Non metro"]
[null,null,339,"Non metro"]
[null,null,340,"Non metro"]
[null,null,341,"Non metro"]
[null,null,342,"Non metro"]
[null,null,343,"Non metro"]
[null,null,344,"Non metro"]
[null,null,345,"Non metro"]
[null,null,346,"Non metro"]
[null,null,347,"Non metro"]
[null,null,348,"Non metro"]
[null,null,349,"Non metro"]
[null,null,350,"Non metro"]
[null,null,351,"Non metro"]
[null,null,352,"Non metro"]
[null,null,353,"Non metro"]
[null,null,354,"Non metro"]
[null,null,355,"Non metro"]
[null,null,356,"Non metro"]
[null,null,357,"Non metro"]
[null,null,358,"Non metro"]
[null,null,359,"Non metro"]
[null,null,360,"Non metro"]
[null,null,361,"Non metro"]
[null,null,362,"Non metro"]
[null,null,363,"Non metro"]
[null,null,364,"Non metro"]
[null,null,365,"Non metro"]
[null,null,366,"Non metro"]
[null,null,367,"Non metro"]
[null,null,368,"Non metro"]
[null,null,369,"Non metro"]
[null,null,370,"Non metro"]
[null,null,371,"Non metro"]
[null,null,372,"Non metro"]
[null,null,373,"Non metro"]
[null,null,374,"Non metro"]
[null,null,375,"Non metro"]
[null,null,376,"Non metro"]
[null,null,377,"Non metro"]
[null,null,378,"Non metro"]
[null,null,379,"Non metro"]
[null,null,380,"Non metro"]
[null,null,381,"Non metro"]
[null,null,382,"Non metro"]
[null,null,383,"Non metro"]
[null,null,384,"Non metro"]
[null,null,385,"Non metro"]
[null,null,386,"Non metro"]
[null,null,387,"Non metro"]
[null,null,388,"Non metro"]
[null,null,389,"Non metro"]
[null,null,390,"Non metro"]
[null,null,391,"Non metro"]
[null,null,392,"Non metro"]
[null,null,393,"Non metro"]
[null,null,394,"Non metro"]
[null,null,395,"Non metro"]
[null,null,396,"Non metro"]
[null,null,397,"Non metro"]
[null,null,398,"Non metro"]
[null,null,399,"Non metro"]
[null,null,400,"Non metro"]
[null,null,401,"Non metro"]
[null,null,402,"Non metro"]
[null,null,403,"Non metro"]
[null,null,404,"Non metro"]
[null,null,405,"Non metro"]
[null,null,406,"Non metro"]
[null,null,407,"Non metro"]
[null,null,408,"Non metro"]
[null,null,409,"Non metro"]
[null,null,410,"Non metro"]
[null,null,411,"Non metro"]
[null,null,412,"Non metro"]
[null,null,413,"Non metro"]
[null,null,414,"Non metro"]
[null,null,415,"Non metro"]
[null,null,416,"Non metro"]
[null,null,417,"Non metro"]
[null,null,418,"Non metro"]
[null,null,419,"Non metro"]
[null,null,420,"Non metro"]
[null,null,421,"Non metro"]
[null,null,422,"Non metro"]
[null,null,423,"Non metro"]
[null,null,424,"Non metro"]
[null,null,425,"Non metro"]
[null,null,426,"Non metro"]
[null,null,427,"Non metro"]
[null,null,428,"Non metro"]
[null,null,429,"Non metro"]
[null,null,430,"Non metro"]
[null,null,431,"Non metro"]
[null,null,432,"Non metro"]
[null,null,433,"Non metro"]
[null,null,434,"Non metro"]
[null,null,435,"Non metro"]
[null,null,436,"Non metro"]
[null,null,437,"Non metro"]
[null,null,438,"Non metro"]
[null,null,439,"Non metro"]
[null,null,440,"Non metro"]
[null,null,441,"Non metro"]
[null,null,442,"Non metro"]
[null,null,443,"Non metro"]
[null,null,444,"Non metro"]
[null,null,445,"Non metro"]
[null,null,446,"Non metro"]
[null,null,447,"Non metro"]
[null,null,448,"Non metro"]
[null,null,449,"Non metro"]
[null,null,450,"Non metro"]
[null,null,451,"Non metro"]
[null,null,452,"Non metro"]
[null,null,453,"Non metro"]
[null,null,454,"Non metro"]
[null,null,455,"Non metro"]
[null,null,456,"Non metro"]
[null,null,457,"Non metro"]
[null,null,458,"Non metro"]
[null,null,459,"Non metro"]
[null,null,460,"Non metro"]
[null,null,461,"Non metro"]
[null,null,462,"Non metro"]
[null,null,463,"Non metro"]
[null,null,464,"Non metro"]
[null,null,465,"Non metro"]
[null,null,466,"Non metro"]
[null,null,467,"Non metro"]
[null,null,468,"Non metro"]
[null,null,469,"Non metro"]
[null,null,470,"Non metro"]
[null,null,471,"Non metro"]
[null,null,472,"Non metro"]
[null,null,473,"Non metro"]
[null,null,474,"Non metro"]
[null,null,475,"Non metro"]
[null,null,476,"Non metro"]
[null,null,477,"Non metro"]
[null,null,478,"Non metro"]
[null,null,479,"Non metro"]
[null,null,480,"Non metro"]
[null,null,481,"Non metro"]
[null,null,482,"Non metro"]
[null,null,483,"Non metro"]
[null,null,484,"Non metro"]
[null,null,485,"Non metro"]
[null,null,486,"Non metro"]
[null,null,487,"Non metro"]
[null,null,488,"Non metro"]
[null,null,489,"Non metro"]
[null,null,490,"Non metro"]
[null,null,491,"Non metro"]
[null,null,492,"Non metro"]
[null,null,493,"Non metro"]
[null,null,494,"Non metro"]
[null,null,495,"Non metro"]
[null,null,496,"Non metro"]
[null,null,497,"Non metro"]
[null,null,498,"Non metro"]
[null,null,499,"Non metro"]
[null,null,500,"Non metro"]
[null,null,501,"Non metro"]
[null,null,502,"Non metro"]
[null,null,503,"Non metro"]
[null,null,504,"Non metro"]
[null,null,505,"Non metro"]
[null,null,506,"Non metro"]
[null,null,507,"Non metro"]
[null,null,508,"Non metro"]
[null,null,509,"Non metro"]
[null,null,510,"Non metro"]
[null,null,511,"Non metro"]
[null,null,512,"Non metro"]
[null,null,513,"Non metro"]
[null,null,514,"Non metro"]
[null,null,515,"Non metro"]
[null,null,516,"Non metro"]
[null,null,517,"Non metro"]
[null,null,518,"Non metro"]
[null,null,519,"Non metro"]
[null,null,520,"Non metro"]
[null,null,521,"Non metro"]
[null,null,522,"Non metro"]
[null,null,523,"Non metro"]
[null,null,524,"Non metro"]
[null,null,525,"Non metro"]
[null,null,526,"Non metro"]
[null,null,527,"Non metro"]
[null,null,528,"Non metro"]
[null,null,529,"Non metro"]
[null,null,530,"Non metro"]
[null,null,531,"Non metro"]
[null,null,532,"Non metro"]
[null,null,533,"Non metro"]
[null,null,534,"Non metro"]
[null,null,535,"Non metro"]
[null,null,536,"Non metro"]
[null,null,537,"Non metro"]
[null,null,538,"Non metro"]
[null,null,539,"Non metro"]
[null,null,540,"Non metro"]
[null,null,541,"Non metro"]
[null,null,542,"Non metro"]
[null,null,543,"Non metro"]
[null,null,544,"Non metro"]
[null,null,545,"Non metro"]
[null,null,546,"Non metro"]
[null,null,547,"Non metro"]
[null,null,548,"Non metro"]
[null,null,549,"Non metro"]
[null,null,550,"Non metro"]
[null,null,551,"Non metro"]
[null,null,552,"Non metro"]
[null,null,553,"Non metro"]
[null,null,554,"Non metro"]
[null,null,555,"Non metro"]
[null,null,556,"Non metro"]
[null,null,557,"Non metro"]
[null,null,558,"Non metro"]
[null,null,559,"Non metro"]
[null,null,560,"Non metro"]
[null,null,561,"Non metro"]
[null,null,562,"Non metro"]
[null,null,563,"Non metro"]
[null,null,564,"Non metro"]
[null,null,565,"Non metro"]
[null,null,566,"Non metro"]
[null,null,567,"Non metro"]
[null,null,568,"Non metro"]
[null,null,569,"Non metro"]
[null,null,570,"Non metro"]
[null,null,571,"Non metro"]
[null,null,572,"Non metro"]
[null,null,573,"Non metro"]
[null,null,574,"Non metro"]
[null,null,575,"Non metro"]
[null,null,576,"Non metro"]
[null,null,577,"Non metro"]
[null,null,578,"Non metro"]
[null,null,579,"Non metro"]
[null,null,580,"Non metro"]
[null,null,581,"Non metro"]
[null,null,582,"Non metro"]
[null,null,583,"Non metro"]
[null,null,584,"Non metro"]
[null,null,585,"Non metro"]
[null,null,586,"Non metro"]
[null,null,587,"Non metro"]
[null,null,588,"Non metro"]
[null,null,589,"Non metro"]
[null,null,590,"Non metro"]
[null,null,591,"Non metro"]
[null,null,592,"Non metro"]
[null,null,593,"Non metro"]
[null,null,594,"Non metro"]
[null,null,595,"Non metro"]
[null,null,596,"Non metro"]
[null,null,597,"Non metro"]
[null,null,598,"Non metro"]
[null,null,599,"Non metro"]
[null,null,600,"Non metro"]
[null,null,601,"Non metro"]
[null,null,602,"Non metro"]
[null,null,603,"Non metro"]
[null,null,604,"Non metro"]
[null,null,605,"Non metro"]
[null,null,606,"Non metro"]
[null,null,607,"Non metro"]
[null,null,608,"Non metro"]
[null,null,609,"Non metro"]
[null,null,610,"Non metro"]
[null,null,611,"Non metro"]
[null,null,612,"Non metro"]
[null,null,613,"Non metro"]
[null,null,614,"Non metro"]
[null,null,615,"Non metro"]
[null,null,616,"Non metro"]
[null,null,617,"Non metro"]
[null,null,618,"Non metro"]
[null,null,619,"Non metro"]
[null,null,620,"Non metro"]
[null,null,621,"Non metro"]
[null,null,622,"Non metro"]
[null,null,623,"Non metro"]
[null,null,624,"Non metro"]
[null,null,625,"Non metro"]
[null,null,626,"Non metro"]
[null,null,627,"Non metro"]
[null,null,628,"Non metro"]
[null,null,629,"Non metro"]
[null,null,630,"Non metro"]
[null,null,631,"Non metro"]
[null,null,632,"Non metro"]
[null,null,633,"Non metro"]
[null,null,634,"Non metro"]
[null,null,635,"Non metro"]
[null,null,636,"Non metro"]
[null,null,637,"Non metro"]
[null,null,638,"Non metro"]
[null,null,639,"Non metro"]
[null,null,640,"Non metro"]
[null,null,641,"Non metro"]
[null,null,642,"Non metro"]
[null,null,643,"Non metro"]
[null,null,644,"Non metro"]
[null,null,645,"Non metro"]
[null,null,646,"Non metro"]
[null,null,647,"Non metro"]
[null,null,648,"Non metro"]
[null,null,649,"Non metro"]
[null,null,650,"Non metro"]
[null,null,651,"Non metro"]
[null,null,652,"Non metro"]
[null,null,653,"Non metro"]
[null,null,654,"Non metro"]
[null,null,655,"Non metro"]
[null,null,656,"Non metro"]
[null,null,657,"Non metro"]
[null,null,658,"Non metro"]
[null,null,659,"Non metro"]
[null,null,660,"Non metro"]
[null,null,661,"Non metro"]
[null,null,662,"Non metro"]
[null,null,663,"Non metro"]
[null,null,664,"Non metro"]
[null,null,665,"Non metro"]
[null,null,666,"Non metro"]
[null,null,667,"Non metro"]
[null,null,668,"Non metro"]
[null,null,669,"Non metro"]
[null,null,670,"Non metro"]
[null,null,671,"Non metro"]
[null,null,672,"Non metro"]
[null,null,673,"Non metro"]
[null,null,674,"Non metro"]
[null,null,675,"Non metro"]
[null,null,676,"Non metro"]
[null,null,677,"Non metro"]
[null,null,678,"Non metro"]
[null,null,679,"Non metro"]
[null,null,680,"Non metro"]
[null,null,681,"Non metro"]
[null,null,682,"Non metro"]
[null,null,683,"Non metro"]
[null,null,684,"Non metro"]
[null,null,685,"Non metro"]
[null,null,686,"Non metro"]
[null,null,687,"Non metro"]
[null,null,688,"Non metro"]
[null,null,689,"Non metro"]
[null,null,690,"Non metro"]
[null,null,691,"Non metro"]
[null,null,692,"Non metro"]
[null,null,693,"Non metro"]
[null,null,694,"Non metro"]
[null,null,695,"Non metro"]
[null,null,696,"Non metro"]
[null,null,697,"Non metro"]
[null,null,698,"Non metro"]
[null,null,699,"Non metro"]
[null,null,700,"Non metro"]
[null,null,701,"Non metro"]
[null,null,702,"Non metro"]
[null,null,703,"Non metro"]
[null,null,704,"Non metro"]
[null,null,705,"Non metro"]
[null,null,706,"Non metro"]
[null,null,707,"Non metro"]
[null,null,708,"Non metro"]
[null,null,709,"Non metro"]
[null,null,710,"Non metro"]
[null,null,711,"Non metro"]
[null,null,712,"Non metro"]
[null,null,713,"Non metro"]
[null,null,714,"Non metro"]
[null,null,715,"Non metro"]
[null,null,716,"Non metro"]
[null,null,717,"Non metro"]
[null,null,718,"Non metro"]
[null,null,719,"Non metro"]
[null,null,720,"Non metro"]
[null,null,721,"Non metro"]
[null,null,722,"Non metro"]
[null,null,723,"Non metro"]
[null,null,724,"Non metro"]
[null,null,725,"Non metro"]
[null,null,726,"Non metro"]
[null,null,727,"Non metro"]
[null,null,728,"Non metro"]
[null,null,729,"Non metro"]
[null,null,730,"Non metro"]
[null,null,731,"Non metro"]
[null,null,732,"Non metro"]
[null,null,733,"Non metro"]
[null,null,734,"Non metro"]
[null,null,735,"Non metro"]
[null,null,736,"Non metro"]
[null,null,737,"Non metro"]
[null,null,738,"Non metro"]
[null,null,739,"Non metro"]
[null,null,740,"Non metro"]
[null,null,741,"Non metro"]
[null,null,742,"Non metro"]
[null,null,743,"Non metro"]
[null,null,744,"Non metro"]
[null,null,745,"Non metro"]
[null,null,746,"Non metro"]
[null,null,747,"Non metro"]
[null,null,748,"Non metro"]
[null,null,749,"Non metro"]
[null,null,750,"Non metro"]
[null,null,751,"Non metro"]
[null,null,752,"Non metro"]
[null,null,753,"Non metro"]
[null,null,754,"Non metro"]
[null,null,755,"Non metro"]
[null,null,756,"Non metro"]
[null,null,757,"Non metro"]
[null,null,758,"Non metro"]
[null,null,759,"Non metro"]
[null,null,760,"Non metro"]
[null,null,761,"Non metro"]
[null,null,762,"Non metro"]
[null,null,763,"Non metro"]
[null,null,764,"Non metro"]
[null,null,765,"Non metro"]
[null,null,766,"Non metro"]
[null,null,767,"Non metro"]
[null,null,768,"Non metro"]
[null,null,769,"Non metro"]
[null,null,770,"Non metro"]
[null,null,771,"Non metro"]
[null,null,772,"Non metro"]
[null,null,773,"Non metro"]
[null,null,774,"Non metro"]
[null,null,775,"Non metro"]
[null,null,776,"Non metro"]
[null,null,777,"Non metro"]
[null,null,778,"Non metro"]
[null,null,779,"Non metro"]
[null,null,780,"Non metro"]
[null,null,781,"Non metro"]
[null,null,782,"Non metro"]
[null,null,783,"Non metro"]
[null,null,784,"Non metro"]
[null,null,785,"Non metro"]
[null,null,786,"Non metro"]
[null,null,787,"Non metro"]
[null,null,788,"Non metro"]
[null,null,789,"Non metro"]
[null,null,790,"Non metro"]
[null,null,791,"Non metro"]
[null,null,792,"Non metro"]
[null,null,793,"Non metro"]
[null,null,794,"Non metro"]
[null,null,795,"Non metro"]
[null,null,796,"Non metro"]
[null,null,797,"Non metro"]
[null,null,798,"Non metro"]
[null,null,799,"Non metro"]
[null,null,800,"Metro"]
[null,null,801,"Metro"]
[null,null,802,"Metro"]
[null,null,803,"Metro"]
[null,null,804,"Metro"]
[null,null,805,"Metro"]
[null,null,806,"Metro"]
[null,null,807,"Metro"]
[null,null,808,"Metro"]
[null,null,809,"Metro"]
[null,null,810,"Metro"]
[null,null,811,"Metro"]
[null,null,812,"Metro"]
[null,null,813,"Metro"]
[null,null,814,"Metro"]
[null,null,815,"Metro"]
[null,null,816,"Metro"]
[null,null,817,"Metro"]
[null,null,818,"Metro"]
[null,null,819,"Metro"]
[null,null,820,"Metro"]
[null,null,821,"Non metro"]
[null,null,822,"Non metro"]
[null,null,823,"Non metro"]
[null,null,824,"Non metro"]
[null,null,825,"Non metro"]
[null,null,826,"Non metro"]
[null,null,827,"Non metro"]
[null,null,828,"Metro"]
[null,null,829,"Metro"]
[null,null,830,"Metro"]
[null,null,831,"Metro"]
[null,null,832,"Metro"]
[null,null,833,"Non metro"]
[null,null,834,"Non metro"]
[null,null,835,"Non metro"]
[null,null,836,"Non metro"]
[null,null,837,"Non metro"]
[null,null,838,"Non metro"]
[null,null,839,"Non metro"]
[null,null,840,"Non metro"]
[null,null,841,"Non metro"]
[null,null,842,"Non metro"]
[null,null,843,"Non metro"]
[null,null,844,"Non metro"]
[null,null,845,"Non metro"]
[null,null,846,"Non metro"]
[null,null,847,"Non metro"]
[null,null,848,"Non metro"]
[null,null,849,"Non metro"]
[null,null,850,"Non metro"]
[null,null,851,"Non metro"]
[null,null,852,"Non metro"]
[null,null,853,"Non metro"]
[null,null,854,"Non metro"]
[null,null,855,"Non metro"]
[null,null,856,"Non metro"]
[null,null,857,"Non metro"]
[null,null,858,"Non metro"]
[null,null,859,"Non metro"]
[null,null,860,"Non metro"]
[null,null,861,"Non metro"]
[null,null,862,"Non metro"]
[null,null,863,"Non metro"]
[null,null,864,"Non metro"]
[null,null,865,"Non metro"]
[null,null,866,"Non metro"]
[null,null,867,"Non metro"]
[null,null,868,"Non metro"]
[null,null,869,"Non metro"]
[null,null,870,"Non metro"]
[null,null,871,"Non metro"]
[null,null,872,"Non metro"]
[null,null,873,"Non metro"]
[null,null,874,"Non metro"]
[null,null,875,"Non metro"]
[null,null,876,"Non metro"]
[null,null,877,"Non metro"]
[null,null,878,"Non metro"]
[null,null,879,"Non metro"]
[null,null,880,"Non metro"]
[null,null,881,"Non metro"]
[null,null,882,"Non metro"]
[null,null,883,"Non metro"]
[null,null,884,"Non metro"]
[null,null,885,"Non metro"]
[null,null,886,"Non metro"]
[null,null,887,"Non metro"]
[null,null,888,"Non metro"]
[null,null,889,"Non metro"]
[null,null,890,"Non metro"]
[null,null,891,"Non metro"]
[null,null,892,"Non metro"]
[null,null,893,"Non metro"]
[null,null,894,"Non metro"]
[null,null,895,"Non metro"]
[null,null,896,"Non metro"]
[null,null,897,"Non metro"]
[null,null,898,"Non metro"]
[null,null,899,"Non metro"]
[null,null,900,"Non metro"]
[null,null,901,"Non metro"]
[null,null,902,"Non metro"]
[null,null,903,"Non metro"]
[null,null,904,"Non metro"]
[null,null,905,"Non metro"]
[null,null,906,"Non metro"]
[null,null,907,"Non metro"]
[null,null,908,"Non metro"]
[null,null,909,"Non metro"]
[null,null,910,"Non metro"]
[null,null,911,"Non metro"]
[null,null,912,"Non metro"]
[null,null,913,"Non metro"]
[null,null,914,"Non metro"]
[null,null,915,"Non metro"]
[null,null,916,"Non metro"]
[null,null,917,"Non metro"]
[null,null,918,"Non metro"]
[null,null,919,"Non metro"]
[null,null,920,"Non metro"]
[null,null,921,"Non metro"]
[null,null,922,"Non metro"]
[null,null,923,"Non metro"]
[null,null,924,"Non metro"]
[null,null,925,"Non metro"]
[null,null,926,"Non metro"]
[null,null,927,"Non metro"]
[null,null,928,"Non metro"]
[null,null,929,"Non metro"]
[null,null,930,"Non metro"]
[null,null,931,"Non metro"]
[null,null,932,"Non metro"]
[null,null,933,"Non metro"]
[null,null,934,"Non metro"]
[null,null,935,"Non metro"]
[null,null,936,"Non metro"]
[null,null,937,"Non metro"]
[null,null,938,"Non metro"]
[null,null,939,"Non metro"]
[null,null,940,"Non metro"]
[null,null,941,"Non metro"]
[null,null,942,"Non metro"]
[null,null,943,"Non metro"]
[null,null,944,"Non metro"]
[null,null,945,"Non metro"]
[null,null,946,"Non metro"]
[null,null,947,"Non metro"]
[null,null,948,"Non metro"]
[null,null,949,"Non metro"]
[null,null,950,"Non metro"]
[null,null,951,"Non metro"]
[null,null,952,"Non metro"]
[null,null,953,"Non metro"]
[null,null,954,"Non metro"]
[null,null,955,"Non metro"]
[null,null,956,"Non metro"]
[null,null,957,"Non metro"]
[null,null,958,"Non metro"]
[null,null,959,"Non metro"]
[null,null,960,"Non metro"]
[null,null,961,"Non metro"]
[null,null,962,"Non metro"]
[null,null,963,"Non metro"]
[null,null,964,"Non metro"]
[null,null,965,"Non metro"]
[null,null,966,"Non metro"]
[null,null,967,"Non metro"]
[null,null,968,"Non metro"]
[null,null,969,"Non metro"]
[null,null,970,"Non metro"]
[null,null,971,"Non metro"]
[null,null,972,"Non metro"]
[null,null,973,"Non metro"]
[null,null,974,"Non metro"]
[null,null,975,"Non metro"]
[null,null,976,"Non metro"]
[null,null,977,"Non metro"]
[null,null,978,"Non metro"]
[null,null,979,"Non metro"]
[null,null,980,"Non metro"]
[null,null,981,"Non metro"]
[null,null,982,"Non metro"]
[null,null,983,"Non metro"]
[null,null,984,"Non metro"]
[null,null,985,"Non metro"]
[null,null,986,"Non metro"]
[null,null,987,"Non metro"]
[null,null,988,"Non metro"]
[null,null,989,"Non metro"]
[null,null,990,"Non metro"]
[null,null,991,"Non metro"]
[null,null,992,"Non metro"]
[null,null,993,"Non metro"]
[null,null,994,"Non metro"]
[null,null,995,"Non metro"]
[null,null,996,"Non metro"]
[null,null,997,"Non metro"]
[null,null,998,"Non metro"]
[null,null,999,"Non metro"]
[null,null,1000,"Metro"]
[null,null,1001,"Metro"]
[null,null,1002,"Metro"]
[null,null,1003,"Metro"]
[null,null,1004,"Metro"]
[null,null,1005,"Metro"]
[null,null,1006,"Metro"]
[null,null,1007,"Metro"]
[null,null,1008,"Metro"]
[null,null,1009,"Metro"]
[null,null,1010,"Metro"]
[null,null,1011,"Metro"]
[null,null,1012,"Metro"]
[null,null,1013,"Metro"]
[null,null,1014,"Metro"]
[null,null,1015,"Metro"]
[null,null,1016,"Metro"]
[null,null,1017,"Metro"]
[null,null,1018,"Metro"]
[null,null,1019,"Metro"]
[null,null,1020,"Metro"]
[null,null,1021,"Metro"]
[null,null,1022,"Metro"]
[null,null,1023,"Metro"]
[null,null,1024,"Metro"]
[null,null,1025,"Metro"]
[null,null,1026,"Metro"]
[null,null,1027,"Metro"]
[null,null,1028,"Metro"]
[null,null,1029,"Metro"]
[null,null,1030,"Metro"]
[null,null,1031,"Metro"]
[null,null,1032,"Metro"]
[null,null,1033,"Metro"]
[null,null,1034,"Metro"]
[null,null,1035,"Metro"]
[null,null,1036,"Metro"]
[null,null,1037,"Metro"]
[null,null,1038,"Metro"]
[null,null,1039,"Metro"]
[null,null,1040,"Metro"]
[null,null,1041,"Metro"]
[null,null,1042,"Metro"]
[null,null,1043,"Metro"]
[null,null,1044,"Metro"]
[null,null,1045,"Metro"]
[null,null,1046,"Metro"]
[null,null,1047,"Metro"]
[null,null,1048,"Metro"]
[null,null,1049,"Metro"]
[null,null,1050,"Metro"]
[null,null,1051,"Metro"]
[null,null,1052,"Metro"]
[null,null,1053,"Metro"]
[null,null,1054,"Metro"]
[null,null,1055,"Metro"]
[null,null,1056,"Metro"]
[null,null,1057,"Metro"]
[null,null,1058,"Metro"]
[null,null,1059,"Metro"]
[null,null,1060,"Metro"]
[null,null,1061,"Metro"]
[null,null,1062,"Metro"]
[null,null,1063,"Metro"]
[null,null,1064,"Metro"]
[null,null,1065,"Metro"]
[null,null,1066,"Metro"]
[null,null,1067,"Metro"]
[null,null,1068,"Metro"]
[null,null,1069,"Metro"]
[null,null,1070,"Metro"]
[null,null,1071,"Metro"]
[null,null,1072,"Metro"]
[null,null,1073,"Metro"]
[null,null,1074,"Metro"]
[null,null,1075,"Metro"]
[null,null,1076,"Metro"]
[null,null,1077,"Metro"]
[null,null,1078,"Metro"]
[null,null,1079,"Metro"]
[null,null,1080,"Metro"]
[null,null,1081,"Metro"]
[null,null,1082,"Metro"]
[null,null,1083,"Metro"]
[null,null,1084,"Metro"]
[null,null,1085,"Metro"]
[null,null,1086,"Metro"]
[null,null,1087,"Metro"]
[null,null,1088,"Metro"]
[null,null,1089,"Metro"]
[null,null,1090,"Metro"]
[null,null,1091,"Metro"]
[null,null,1092,"Metro"]
[null,null,1093,"Metro"]
[null,null,1094,"Metro"]
[null,null,1095,"Metro"]
[null,null,1096,"Metro"]
[null,null,1097,"Metro"]
[null,null,1098,"Metro"]
[null,null,1099,"Metro"]
[null,null,1100,"Metro"]
[null,null,1101,"Metro"]
[null,null,1102,"Metro"]
[null,null,1103,"Metro"]
[null,null,1104,"Metro"]
[null,null,1105,"Metro"]
[null,null,1106,"Metro"]
[null,null,1107,"Metro"]
[null,null,1108,"Metro"]
[null,null,1109,"Metro"]
[null,null,1110,"Metro"]
[null,null,1111,"Metro"]
[null,null,1112,"Metro"]
[null,null,1113,"Metro"]
[null,null,1114,"Metro"]
[null,null,1115,"Metro"]
[null,null,1116,"Metro"]
[null,null,1117,"Metro"]
[null,null,1118,"Metro"]
[null,null,1119,"Metro"]
[null,null,1120,"Metro"]
[null,null,1121,"Metro"]
[null,null,1122,"Metro"]
[null,null,1123,"Metro"]
[null,null,1124,"Metro"]
[null,null,1125,"Metro"]
[null,null,1126,"Metro"]
[null,null,1127,"Metro"]
[null,null,1128,"Metro"]
[null,null,1129,"Metro"]
[null,null,1130,"Metro"]
[null,null,1131,"Metro"]
[null,null,1132,"Metro"]
[null,null,1133,"Metro"]
[null,null,1134,"Metro"]
[null,null,1135,"Metro"]
[null,null,1136,"Metro"]
[null,null,1137,"Metro"]
[null,null,1138,"Metro"]
[null,null,1139,"Metro"]
[null,null,1140,"Metro"]
[null,null,1141,"Metro"]
[null,null,1142,"Metro"]
[null,null,1143,"Metro"]
[null,null,1144,"Metro"]
[null,null,1145,"Metro"]
[null,null,1146,"Metro"]
[null,null,1147,"Metro"]
[null,null,1148,"Metro"]
[null,null,1149,"Metro"]
[null,null,1150,"Metro"]
[null,null,1151,"Metro"]
[null,null,1152,"Metro"]
[null,null,1153,"Metro"]
[null,null,1154,"Metro"]
[null,null,1155,"Metro"]
[null,null,1156,"Metro"]
[null,null,1157,"Metro"]
[null,null,1158,"Metro"]
[null,null,1159,"Metro"]
[null,null,1160,"Metro"]
[null,null,1161,"Metro"]
[null,null,1162,"Metro"]
[null,null,1163,"Metro"]
[null,null,1164,"Metro"]
[null,null,1165,"Metro"]
[null,null,1166,"Metro"]
[null,null,1167,"Metro"]
[null,null,1168,"Metro"]
[null,null,1169,"Metro"]
[null,null,1170,"Metro"]
[null,null,1171,"Metro"]
[null,null,1172,"Metro"]
[null,null,1173,"Metro"]
[null,null,1174,"Metro"]
[null,null,1175,"Metro"]
[null,null,1176,"Metro"]
[null,null,1177,"Metro"]
[null,null,1178,"Metro"]
[null,null,1179,"Metro"]
[null,null,1180,"Metro"]
[null,null,1181,"Metro"]
[null,null,1182,"Metro"]
[null,null,1183,"Metro"]
[null,null,1184,"Metro"]
[null,null,1185,"Metro"]
[null,null,1186,"Metro"]
[null,null,1187,"Metro"]
[null,null,1188,"Metro"]
[null,null,1189,"Metro"]
[null,null,1190,"Metro"]
[null,null,1191,"Metro"]
[null,null,1192,"Metro"]
[null,null,1193,"Metro"]
[null,null,1194,"Metro"]
[null,null,1195,"Metro"]
[null,null,1196,"Metro"]
[null,null,1197,"Metro"]
[null,null,1198,"Metro"]
[null,null,1199,"Metro"]
[null,null,1200,"Metro"]
[null,null,1201,"Metro"]
[null,null,1202,"Metro"]
[null,null,1203,"Metro"]
[null,null,1204,"Metro"]
[null,null,1205,"Metro"]
[null,null,1206,"Metro"]
[null,null,1207,"Metro"]
[null,null,1208,"Metro"]
[null,null,1209,"Metro"]
[null,null,1210,"Metro"]
[null,null,1211,"Metro"]
[null,null,1212,"Metro"]
[null,null,1213,"Metro"]
[null,null,1214,"Metro"]
[null,null,1215,"Metro"]
[null,null,1216,"Metro"]
[null,null,1217,"Metro"]
[null,null,1218,"Metro"]
[null,null,1219,"Metro"]
[null,null,1220,"Metro"]
[null,null,1221,"Metro"]
[null,null,1222,"Metro"]
[null,null,1223,"Metro"]
[null,null,1224,"Metro"]
[null,null,1225,"Metro"]
[null,null,1226,"Metro"]
[null,null,1227,"Metro"]
[null,null,1228,"Metro"]
[null,null,1229,"Metro"]
[null,null,1230,"Metro"]
[null,null,1231,"Metro"]
[null,null,1232,"Metro"]
[null,null,1233,"Metro"]
[null,null,1234,"Metro"]
[null,null,1235,"Metro"]
[null,null,1236,"Metro"]
[null,null,1237,"Metro"]
[null,null,1238,"Metro"]
[null,null,1239,"Metro"]
[null,null,1240,"Metro"]
[null,null,1241,"Metro"]
[null,null,1242,"Metro"]
[null,null,1243,"Metro"]
[null,null,1244,"Metro"]
[null,null,1245,"Metro"]
[null,null,1246,"Metro"]
[null,null,1247,"Metro"]
[null,null,1248,"Metro"]
[null,null,1249,"Metro"]
[null,null,1250,"Metro"]
[null,null,1251,"Metro"]
[null,null,1252,"Metro"]
[null,null,1253,"Metro"]
[null,null,1254,"Metro"]
[null,null,1255,"Metro"]
[null,null,1256,"Metro"]
[null,null,1257,"Metro"]
[null,null,1258,"Metro"]
[null,null,1259,"Metro"]
[null,null,1260,"Metro"]
[null,null,1261,"Metro"]
[null,null,1262,"Metro"]
[null,null,1263,"Metro"]
[null,null,1264,"Metro"]
[null,null,1265,"Metro"]
[null,null,1266,"Metro"]
[null,null,1267,"Metro"]
[null,null,1268,"Metro"]
[null,null,1269,"Metro"]
[null,null,1270,"Metro"]
[null,null,1271,"Metro"]
[null,null,1272,"Metro"]
[null,null,1273,"Metro"]
[null,null,1274,"Metro"]
[null,null,1275,"Metro"]
[null,null,1276,"Metro"]
[null,null,1277,"Metro"]
[null,null,1278,"Metro"]
[null,null,1279,"Metro"]
[null,null,1280,"Metro"]
[null,null,1281,"Metro"]
[null,null,1282,"Metro"]
[null,null,1283,"Metro"]
[null,null,1284,"Metro"]
[null,null,1285,"Metro"]
[null,null,1286,"Metro"]
[null,null,1287,"Metro"]
[null,null,1288,"Metro"]
[null,null,1289,"Metro"]
[null,null,1290,"Metro"]
[null,null,1291,"Metro"]
[null,null,1292,"Metro"]
[null,null,1293,"Metro"]
[null,null,1294,"Metro"]
[null,null,1295,"Metro"]
[null,null,1296,"Metro"]
[null,null,1297,"Metro"]
[null,null,1298,"Metro"]
[null,null,1299,"Metro"]
[null,null,1300,"Metro"]
[null,null,1301,"Metro"]
[null,null,1302,"Metro"]
[null,null,1303,"Metro"]
[null,null,1304,"Metro"]
[null,null,1305,"Metro"]
[null,null,1306,"Metro"]
[null,null,1307,"Metro"]
[null,null,1308,"Metro"]
[null,null,1309,"Metro"]
[null,null,1310,"Metro"]
[null,null,1311,"Metro"]
[null,null,1312,"Metro"]
[null,null,1313,"Metro"]
[null,null,1314,"Metro"]
[null,null,1315,"Metro"]
[null,null,1316,"Metro"]
[null,null,1317,"Metro"]
[null,null,1318,"Metro"]
[null,null,1319,"Metro"]
[null,null,1320,"Metro"]
[null,null,1321,"Metro"]
[null,null,1322,"Metro"]
[null,null,1323,"Metro"]
[null,null,1324,"Metro"]
[null,null,1325,"Metro"]
[null,null,1326,"Metro"]
[null,null,1327,"Metro"]
[null,null,1328,"Metro"]
[null,null,1329,"Metro"]
[null,null,1330,"Metro"]
[null,null,1331,"Metro"]
[null,null,1332,"Metro"]
[null,null,1333,"Metro"]
[null,null,1334,"Metro"]
[null,null,1335,"Metro"]
[null,null,1336,"Metro"]
[null,null,1337,"Metro"]
[null,null,1338,"Metro"]
[null,null,1339,"Metro"]
[null,null,1340,"Metro"]
[null,null,1341,"Metro"]
[null,null,1342,"Metro"]
[null,null,1343,"Metro"]
[null,null,1344,"Metro"]
[null,null,1345,"Metro"]
[null,null,1346,"Metro"]
[null,null,1347,"Metro"]
[null,null,1348,"Metro"]
[null,null,1349,"Metro"]
[null,null,1350,"Metro"]
[null,null,1351,"Metro"]
[null,null,1352,"Metro"]
[null,null,1353,"Metro"]
[null,null,1354,"Metro"]
[null,null,1355,"Metro"]
[null,null,1356,"Metro"]
[null,null,1357,"Metro"]
[null,null,1358,"Metro"]
[null,null,1359,"Metro"]
[null,null,1360,"Metro"]
[null,null,1361,"Metro"]
[null,null,1362,"Metro"]
[null,null,1363,"Metro"]
[null,null,1364,"Metro"]
[null,null,1365,"Metro"]
[null,null,1366,"Metro"]
[null,null,1367,"Metro"]
[null,null,1368,"Metro"]
[null,null,1369,"Metro"]
[null,null,1370,"Metro"]
[null,null,1371,"Metro"]
[null,null,1372,"Metro"]
[null,null,1373,"Metro"]
[null,null,1374,"Metro"]
[null,null,1375,"Metro"]
[null,null,1376,"Metro"]
[null,null,1377,"Metro"]
[null,null,1378,"Metro"]
[null,null,1379,"Metro"]
[null,null,1380,"Metro"]
[null,null,1381,"Metro"]
[null,null,1382,"Metro"]
[null,null,1383,"Metro"]
[null,null,1384,"Metro"]
[null,null,1385,"Metro"]
[null,null,1386,"Metro"]
[null,null,1387,"Metro"]
[null,null,1388,"Metro"]
[null,null,1389,"Metro"]
[null,null,1390,"Metro"]
[null,null,1391,"Metro"]
[null,null,1392,"Metro"]
[null,null,1393,"Metro"]
[null,null,1394,"Metro"]
[null,null,1395,"Metro"]
[null,null,1396,"Metro"]
[null,null,1397,"Metro"]
[null,null,1398,"Metro"]
[null,null,1399,"Metro"]
[null,null,1400,"Metro"]
[null,null,1401,"Metro"]
[null,null,1402,"Metro"]
[null,null,1403,"Metro"]
[null,null,1404,"Metro"]
[null,null,1405,"Metro"]
[null,null,1406,"Metro"]
[null,null,1407,"Metro"]
[null,null,1408,"Metro"]
[null,null,1409,"Metro"]
[null,null,1410,"Metro"]
[null,null,1411,"Metro"]
[null,null,1412,"Metro"]
[null,null,1413,"Metro"]
[null,null,1414,"Metro"]
[null,null,1415,"Metro"]
[null,null,1416,"Metro"]
[null,null,1417,"Metro"]
[null,null,1418,"Metro"]
[null,null,1419,"Metro"]
[null,null,1420,"Metro"]
[null,null,1421,"Metro"]
[null,null,1422,"Metro"]
[null,null,1423,"Metro"]
[null,null,1424,"Metro"]
[null,null,1425,"Metro"]
[null,null,1426,"Metro"]
[null,null,1427,"Metro"]
[null,null,1428,"Metro"]
[null,null,1429,"Metro"]
[null,null,1430,"Metro"]
[null,null,1431,"Metro"]
[null,null,1432,"Metro"]
[null,null,1433,"Metro"]
[null,null,1434,"Metro"]
[null,null,1435,"Metro"]
[null,null,1436,"Metro"]
[null,null,1437,"Metro"]
[null,null,1438,"Metro"]
[null,null,1439,"Metro"]
[null,null,1440,"Metro"]
[null,null,1441,"Metro"]
[null,null,1442,"Metro"]
[null,null,1443,"Metro"]
[null,null,1444,"Metro"]
[null,null,1445,"Metro"]
[null,null,1446,"Metro"]
[null,null,1447,"Metro"]
[null,null,1448,"Metro"]
[null,null,1449,"Metro"]
[null,null,1450,"Metro"]
[null,null,1451,"Metro"]
[null,null,1452,"Metro"]
[null,null,1453,"Metro"]
[null,null,1454,"Metro"]
[null,null,1455,"Metro"]
[null,null,1456,"Metro"]
[null,null,1457,"Metro"]
[null,null,1458,"Metro"]
[null,null,1459,"Metro"]
[null,null,1460,"Metro"]
[null,null,1461,"Metro"]
[null,null,1462,"Metro"]
[null,null,1463,"Metro"]
[null,null,1464,"Metro"]
[null,null,1465,"Metro"]
[null,null,1466,"Metro"]
[null,null,1467,"Metro"]
[null,null,1468,"Metro"]
[null,null,1469,"Metro"]
[null,null,1470,"Metro"]
[null,null,1471,"Metro"]
[null,null,1472,"Metro"]
[null,null,1473,"Metro"]
[null,null,1474,"Metro"]
[null,null,1475,"Metro"]
[null,null,1476,"Metro"]
[null,null,1477,"Metro"]
[null,null,1478,"Metro"]
[null,null,1479,"Metro"]
[null,null,1480,"Metro"]
[null,null,1481,"Metro"]
[null,null,1482,"Metro"]
[null,null,1483,"Metro"]
[null,null,1484,"Metro"]
[null,null,1485,"Metro"]
[null,null,1486,"Metro"]
[null,null,1487,"Metro"]
[null,null,1488,"Metro"]
[null,null,1489,"Metro"]
[null,null,1490,"Metro"]
[null,null,1491,"Metro"]
[null,null,1492,"Metro"]
[null,null,1493,"Metro"]
[null,null,1494,"Metro"]
[null,null,1495,"Metro"]
[null,null,1496,"Metro"]
[null,null,1497,"Metro"]
[null,null,1498,"Metro"]
[null,null,1499,"Metro"]
[null,null,1500,"Metro"]
[null,null,1501,"Metro"]
[null,null,1502,"Metro"]
[null,null,1503,"Metro"]
[null,null,1504,"Metro"]
[null,null,1505,"Metro"]
[null,null,1506,"Metro"]
[null,null,1507,"Metro"]
[null,null,1508,"Metro"]
[null,null,1509,"Metro"]
[null,null,1510,"Metro"]
[null,null,1511,"Metro"]
[null,null,1512,"Metro"]
[null,null,1513,"Metro"]
[null,null,1514,"Metro"]
[null,null,1515,"Metro"]
[null,null,1516,"Metro"]
[null,null,1517,"Metro"]
[null,null,1518,"Metro"]
[null,null,1519,"Metro"]
[null,null,1520,"Metro"]
[null,null,1521,"Metro"]
[null,null,1522,"Metro"]
[null,null,1523,"Metro"]
[null,null,1524,"Metro"]
[null,null,1525,"Metro"]
[null,null,1526,"Metro"]
[null,null,1527,"Metro"]
[null,null,1528,"Metro"]
[null,null,1529,"Metro"]
[null,null,1530,"Metro"]
[null,null,1531,"Metro"]
[null,null,1532,"Metro"]
[null,null,1533,"Metro"]
[null,null,1534,"Metro"]
[null,null,1535,"Metro"]
[null,null,1536,"Metro"]
[null,null,1537,"Metro"]
[null,null,1538,"Metro"]
[null,null,1539,"Metro"]
[null,null,1540,"Metro"]
[null,null,1541,"Metro"]
[null,null,1542,"Metro"]
[null,null,1543,"Metro"]
[null,null,1544,"Metro"]
[null,null,1545,"Metro"]
[null,null,1546,"Metro"]
[null,null,1547,"Metro"]
[null,null,1548,"Metro"]
[null,null,1549,"Metro"]
[null,null,1550,"Metro"]
[null,null,1551,"Metro"]
[null,null,1552,"Metro"]
[null,null,1553,"Metro"]
[null,null,1554,"Metro"]
[null,null,1555,"Metro"]
[null,null,1556,"Metro"]
[null,null,1557,"Metro"]
[null,null,1558,"Metro"]
[null,null,1559,"Metro"]
[null,null,1560,"Metro"]
[null,null,1561,"Metro"]
[null,null,1562,"Metro"]
[null,null,1563,"Metro"]
[null,null,1564,"Metro"]
[null,null,1565,"Metro"]
[null,null,1566,"Metro"]
[null,null,1567,"Metro"]
[null,null,1568,"Metro"]
[null,null,1569,"Metro"]
[null,null,1570,"Metro"]
[null,null,1571,"Metro"]
[null,null,1572,"Metro"]
[null,null,1573,"Metro"]
[null,null,1574,"Metro"]
[null,null,1575,"Metro"]
[null,null,1576,"Metro"]
[null,null,1577,"Metro"]
[null,null,1578,"Metro"]
[null,null,1579,"Metro"]
[null,null,1580,"Metro"]
[null,null,1581,"Metro"]
[null,null,1582,"Metro"]
[null,null,1583,"Metro"]
[null,null,1584,"Metro"]
[null,null,1585,"Metro"]
[null,null,1586,"Metro"]
[null,null,1587,"Metro"]
[null,null,1588,"Metro"]
[null,null,1589,"Metro"]
[null,null,1590,"Metro"]
[null,null,1591,"Metro"]
[null,null,1592,"Metro"]
[null,null,1593,"Metro"]
[null,null,1594,"Metro"]
[null,null,1595,"Metro"]
[null,null,1596,"Metro"]
[null,null,1597,"Metro"]
[null,null,1598,"Metro"]
[null,null,1599,"Metro"]
[null,null,1600,"Metro"]
[null,null,1601,"Metro"]
[null,null,1602,"Metro"]
[null,null,1603,"Metro"]
[null,null,1604,"Metro"]
[null,null,1605,"Metro"]
[null,null,1606,"Metro"]
[null,null,1607,"Metro"]
[null,null,1608,"Metro"]
[null,null,1609,"Metro"]
[null,null,1610,"Metro"]
[null,null,1611,"Metro"]
[null,null,1612,"Metro"]
[null,null,1613,"Metro"]
[null,null,1614,"Metro"]
[null,null,1615,"Metro"]
[null,null,1616,"Metro"]
[null,null,1617,"Metro"]
[null,null,1618,"Metro"]
[null,null,1619,"Metro"]
[null,null,1620,"Metro"]
[null,null,1621,"Metro"]
[null,null,1622,"Metro"]
[null,null,1623,"Metro"]
[null,null,1624,"Metro"]
[null,null,1625,"Metro"]
[null,null,1626,"Metro"]
[null,null,1627,"Metro"]
[null,null,1628,"Metro"]
[null,null,1629,"Metro"]
[null,null,1630,"Metro"]
[null,null,1631,"Metro"]
[null,null,1632,"Metro"]
[null,null,1633,"Metro"]
[null,null,1634,"Metro"]
[null,null,1635,"Metro"]
[null,null,1636,"Metro"]
[null,null,1637,"Metro"]
[null,null,1638,"Metro"]
[null,null,1639,"Metro"]
[null,null,1640,"Metro"]
[null,null,1641,"Metro"]
[null,null,1642,"Metro"]
[null,null,1643,"Metro"]
[null,null,1644,"Metro"]
[null,null,1645,"Metro"]
[null,null,1646,"Metro"]
[null,null,1647,"Metro"]
[null,null,1648,"Metro"]
[null,null,1649,"Metro"]
[null,null,1650,"Metro"]
[null,null,1651,"Metro"]
[null,null,1652,"Metro"]
[null,null,1653,"Metro"]
[null,null,1654,"Metro"]
[null,null,1655,"Metro"]
[null,null,1656,"Metro"]
[null,null,1657,"Metro"]
[null,null,1658,"Metro"]
[null,null,1659,"Metro"]
[null,null,1660,"Metro"]
[null,null,1661,"Metro"]
[null,null,1662,"Metro"]
[null,null,1663,"Metro"]
[null,null,1664,"Metro"]
[null,null,1665,"Metro"]
[null,null,1666,"Metro"]
[null,null,1667,"Metro"]
[null,null,1668,"Metro"]
[null,null,1669,"Metro"]
[null,null,1670,"Metro"]
[null,null,1671,"Metro"]
[null,null,1672,"Metro"]
[null,null,1673,"Metro"]
[null,null,1674,"Metro"]
[null,null,1675,"Metro"]
[null,null,1676,"Metro"]
[null,null,1677,"Metro"]
[null,null,1678,"Metro"]
[null,null,1679,"Metro"]
[null,null,1680,"Metro"]
[null,null,1681,"Metro"]
[null,null,1682,"Metro"]
[null,null,1683,"Metro"]
[null,null,1684,"Metro"]
[null,null,1685,"Metro"]
[null,null,1686,"Metro"]
[null,null,1687,"Metro"]
[null,null,1688,"Metro"]
[null,null,1689,"Metro"]
[null,null,1690,"Metro"]
[null,null,1691,"Metro"]
[null,null,1692,"Metro"]
[null,null,1693,"Metro"]
[null,null,1694,"Metro"]
[null,null,1695,"Metro"]
[null,null,1696,"Metro"]
[null,null,1697,"Metro"]
[null,null,1698,"Metro"]
[null,null,1699,"Metro"]
[null,null,1700,"Metro"]
[null,null,1701,"Metro"]
[null,null,1702,"Metro"]
[null,null,1703,"Metro"]
[null,null,1704,"Metro"]
[null,null,1705,"Metro"]
[null,null,1706,"Metro"]
[null,null,1707,"Metro"]
[null,null,1708,"Metro"]
[null,null,1709,"Metro"]
[null,null,1710,"Metro"]
[null,null,1711,"Metro"]
[null,null,1712,"Metro"]
[null,null,1713,"Metro"]
[null,null,1714,"Metro"]
[null,null,1715,"Metro"]
[null,null,1716,"Metro"]
[null,null,1717,"Metro"]
[null,null,1718,"Metro"]
[null,null,1719,"Metro"]
[null,null,1720,"Metro"]
[null,null,1721,"Metro"]
[null,null,1722,"Metro"]
[null,null,1723,"Metro"]
[null,null,1724,"Metro"]
[null,null,1725,"Metro"]
[null,null,1726,"Metro"]
[null,null,1727,"Metro"]
[null,null,1728,"Metro"]
[null,null,1729,"Metro"]
[null,null,1730,"Metro"]
[null,null,1731,"Metro"]
[null,null,1732,"Metro"]
[null,null,1733,"Metro"]
[null,null,1734,"Metro"]
[null,null,1735,"Metro"]
[null,null,1736,"Metro"]
[null,null,1737,"Metro"]
[null,null,1738,"Metro"]
[null,null,1739,"Metro"]
[null,null,1740,"Metro"]
[null,null,1741,"Metro"]
[null,null,1742,"Metro"]
[null,null,1743,"Metro"]
[null,null,1744,"Metro"]
[null,null,1745,"Metro"]
[null,null,1746,"Metro"]
[null,null,1747,"Metro"]
[null,null,1748,"Metro"]
[null,null,1749,"Metro"]
[null,null,1750,"Metro"]
[null,null,1751,"Metro"]
[null,null,1752,"Metro"]
[null,null,1753,"Metro"]
[null,null,1754,"Metro"]
[null,null,1755,"Metro"]
[null,null,1756,"Metro"]
[null,null,1757,"Metro"]
[null,null,1758,"Metro"]
[null,null,1759,"Metro"]
[null,null,1760,"Metro"]
[null,null,1761,"Metro"]
[null,null,1762,"Metro"]
[null,null,1763,"Metro"]
[null,null,1764,"Metro"]
[null,null,1765,"Metro"]
[null,null,1766,"Metro"]
[null,null,1767,"Metro"]
[null,null,1768,"Metro"]
[null,null,1769,"Metro"]
[null,null,1770,"Metro"]
[null,null,1771,"Metro"]
[null,null,1772,"Metro"]
[null,null,1773,"Metro"]
[null,null,1774,"Metro"]
[null,null,1775,"Metro"]
[null,null,1776,"Metro"]
[null,null,1777,"Metro"]
[null,null,1778,"Metro"]
[null,null,1779,"Metro"]
[null,null,1780,"Metro"]
[null,null,1781,"Metro"]
[null,null,1782,"Metro"]
[null,null,1783,"Metro"]
[null,null,1784,"Metro"]
[null,null,1785,"Metro"]
[null,null,1786,"Metro"]
[null,null,1787,"Metro"]
[null,null,1788,"Metro"]
[null,null,1789,"Metro"]
[null,null,1790,"Metro"]
[null,null,1791,"Metro"]
[null,null,1792,"Metro"]
[null,null,1793,"Metro"]
[null,null,1794,"Metro"]
[null,null,1795,"Metro"]
[null,null,1796,"Metro"]
[null,null,1797,"Metro"]
[null,null,1798,"Metro"]
[null,null,1799,"Metro"]
[null,null,1800,"Metro"]
[null,null,1801,"Metro"]
[null,null,1802,"Metro"]
[null,null,1803,"Metro"]
[null,null,1804,"Metro"]
[null,null,1805,"Metro"]
[null,null,1806,"Metro"]
[null,null,1807,"Metro"]
[null,null,1808,"Metro"]
[null,null,1809,"Metro"]
[null,null,1810,"Metro"]
[null,null,1811,"Metro"]
[null,null,1812,"Metro"]
[null,null,1813,"Metro"]
[null,null,1814,"Metro"]
[null,null,1815,"Metro"]
[null,null,1816,"Metro"]
[null,null,1817,"Metro"]
[null,null,1818,"Metro"]
[null,null,1819,"Metro"]
[null,null,1820,"Metro"]
[null,null,1821,"Metro"]
[null,null,1822,"Metro"]
[null,null,1823,"Metro"]
[null,null,1824,"Metro"]
[null,null,1825,"Metro"]
[null,null,1826,"Metro"]
[null,null,1827,"Metro"]
[null,null,1828,"Metro"]
[null,null,1829,"Metro"]
[null,null,1830,"Metro"]
[null,null,1831,"Metro"]
[null,null,1832,"Metro"]
[null,null,1833,"Metro"]
[null,null,1834,"Metro"]
[null,null,1835,"Metro"]
[null,null,1836,"Metro"]
[null,null,1837,"Metro"]
[null,null,1838,"Metro"]
[null,null,1839,"Metro"]
[null,null,1840,"Metro"]
[null,null,1841,"Metro"]
[null,null,1842,"Metro"]
[null,null,1843,"Metro"]
[null,null,1844,"Metro"]
[null,null,1845,"Metro"]
[null,null,1846,"Metro"]
[null,null,1847,"Metro"]
[null,null,1848,"Metro"]
[null,null,1849,"Metro"]
[null,null,1850,"Metro"]
[null,null,1851,"Metro"]
[null,null,1852,"Metro"]
[null,null,1853,"Metro"]
[null,null,1854,"Metro"]
[null,null,1855,"Metro"]
[null,null,1856,"Metro"]
[null,null,1857,"Metro"]
[null,null,1858,"Metro"]
[null,null,1859,"Metro"]
[null,null,1860,"Metro"]
[null,null,1861,"Metro"]
[null,null,1862,"Metro"]
[null,null,1863,"Metro"]
[null,null,1864,"Metro"]
[null,null,1865,"Metro"]
[null,null,1866,"Metro"]
[null,null,1867,"Metro"]
[null,null,1868,"Metro"]
[null,null,1869,"Metro"]
[null,null,1870,"Metro"]
[null,null,1871,"Metro"]
[null,null,1872,"Metro"]
[null,null,1873,"Metro"]
[null,null,1874,"Metro"]
[null,null,1875,"Metro"]
[null,null,1876,"Metro"]
[null,null,1877,"Metro"]
[null,null,1878,"Metro"]
[null,null,1879,"Metro"]
[null,null,1880,"Metro"]
[null,null,1881,"Metro"]
[null,null,1882,"Metro"]
[null,null,1883,"Metro"]
[null,null,1884,"Metro"]
[null,null,1885,"Metro"]
[null,null,1886,"Metro"]
[null,null,1887,"Metro"]
[null,null,1888,"Metro"]
[null,null,1889,"Metro"]
[null,null,1890,"Metro"]
[null,null,1891,"Metro"]
[null,null,1892,"Metro"]
[null,null,1893,"Metro"]
[null,null,1894,"Metro"]
[null,null,1895,"Metro"]
[null,null,1896,"Metro"]
[null,null,1897,"Metro"]
[null,null,1898,"Metro"]
[null,null,1899,"Metro"]
[null,null,1900,"Metro"]
[null,null,1901,"Metro"]
[null,null,1902,"Metro"]
[null,null,1903,"Metro"]
[null,null,1904,"Metro"]
[null,null,1905,"Metro"]
[null,null,1906,"Metro"]
[null,null,1907,"Metro"]
[null,null,1908,"Metro"]
[null,null,1909,"Metro"]
[null,null,1910,"Metro"]
[null,null,1911,"Metro"]
[null,null,1912,"Metro"]
[null,null,1913,"Metro"]
[null,null,1914,"Metro"]
[null,null,1915,"Metro"]
[null,null,1916,"Metro"]
[null,null,1917,"Metro"]
[null,null,1918,"Metro"]
[null,null,1919,"Metro"]
[null,null,1920,"Metro"]
[null,null,1921,"Non metro"]
[null,null,1922,"Non metro"]
[null,null,1923,"Non metro"]
[null,null,1924,"Non metro"]
[null,null,1925,"Non metro"]
[null,null,1926,"Non metro"]
[null,null,1927,"Non metro"]
[null,null,1928,"Non metro"]
[null,null,1929,"Non metro"]
[null,null,1930,"Non metro"]
[null,null,1931,"Non metro"]
[null,null,1932,"Non metro"]
[null,null,1933,"Non metro"]
[null,null,1934,"Non metro"]
[null,null,1935,"Non metro"]
[null,null,1936,"Non metro"]
[null,null,1937,"Non metro"]
[null,null,1938,"Non metro"]
[null,null,1939,"Non metro"]
[null,null,1940,"Non metro"]
[null,null,1941,"Non metro"]
[null,null,1942,"Non metro"]
[null,null,1943,"Non metro"]
[null,null,1944,"Non metro"]
[null,null,1945,"Non metro"]
[null,null,1946,"Non metro"]
[null,null,1947,"Non metro"]
[null,null,1948,"Non metro"]
[null,null,1949,"Non metro"]
[null,null,1950,"Non metro"]
[null,null,1951,"Non metro"]
[null,null,1952,"Non metro"]
[null,null,1953,"Non metro"]
[null,null,1954,"Non metro"]
[null,null,1955,"Non metro"]
[null,null,1956,"Non metro"]
[null,null,1957,"Non metro"]
[null,null,1958,"Non metro"]
[null,null,1959,"Non metro"]
[null,null,1960,"Non metro"]
[null,null,1961,"Non metro"]
[null,null,1962,"Non metro"]
[null,null,1963,"Non metro"]
[null,null,1964,"Non metro"]
[null,null,1965,"Non metro"]
[null,null,1966,"Non metro"]
[null,null,1967,"Non metro"]
[null,null,1968,"Non metro"]
[null,null,1969,"Non metro"]
[null,null,1970,"Non metro"]
[null,null,1971,"Non metro"]
[null,null,1972,"Non metro"]
[null,null,1973,"Non metro"]
[null,null,1974,"Non metro"]
[null,null,1975,"Non metro"]
[null,null,1976,"Non metro"]
[null,null,1977,"Non metro"]
[null,null,1978,"Non metro"]
[null,null,1979,"Non metro"]
[null,null,1980,"Non metro"]
[null,null,1981,"Non metro"]
[null,null,1982,"Non metro"]
[null,null,1983,"Non metro"]
[null,null,1984,"Non metro"]
[null,null,1985,"Non metro"]
[null,null,1986,"Non metro"]
[null,null,1987,"Non metro"]
[null,null,1988,"Non metro"]
[null,null,1989,"Non metro"]
[null,null,1990,"Non metro"]
[null,null,1991,"Non metro"]
[null,null,1992,"Non metro"]
[null,null,1993,"Non metro"]
[null,null,1994,"Non metro"]
[null,null,1995,"Non metro"]
[null,null,1996,"Non metro"]
[null,null,1997,"Non metro"]
[null,null,1998,"Non metro"]
[null,null,1999,"Non metro"]
[null,null,2000,"Inner city"]
[null,null,2001,"Inner city"]
[null,null,2002,"Inner city"]
[null,null,2003,"Inner city"]
[null,null,2004,"Inner city"]
[null,null,2005,"Inner city"]
[null,null,2006,"Metro"]
[null,null,2007,"Metro"]
[null,null,2008,"Metro"]
[null,null,2009,"Metro"]
[null,null,2010,"Metro"]
[null,null,2011,"Metro"]
[null,null,2012,"Metro"]
[null,null,2013,"Metro"]
[null,null,2014,"Metro"]
[null,null,2015,"Metro"]
[null,null,2016,"Metro"]
[null,null,2017,"Metro"]
[null,null,2018,"Metro"]
[null,null,2019,"Metro"]
[null,null,2020,"Metro"]
[null,null,2021,"Metro"]
[null,null,2022,"Metro"]
[null,null,2023,"Metro"]
[null,null,2024,"Metro"]
[null,null,2025,"Metro"]
[null,null,2026,"Metro"]
[null,null,2027,"Metro"]
[null,null,2028,"Metro"]
[null,null,2029,"Metro"]
[null,null,2030,"Metro"]
[null,null,2031,"Metro"]
[null,null,2032,"Metro"]
[null,null,2033,"Metro"]
[null,null,2034,"Metro"]
[null,null,2035,"Metro"]
[null,null,2036,"Metro"]
[null,null,2037,"Metro"]
[null,null,2038,"Metro"]
[null,null,2039,"Metro"]
[null,null,2040,"Metro"]
[null,null,2041,"Metro"]
[null,null,2042,"Metro"]
[null,null,2043,"Metro"]
[null,null,2044,"Metro"]
[null,null,2045,"Metro"]
[null,null,2046,"Metro"]
[null,null,2047,"Metro"]
[null,null,2048,"Metro"]
[null,null,2049,"Metro"]
[null,null,2050,"Metro"]
[null,null,2051,"Metro"]
[null,null,2052,"Metro"]
[null,null,2053,"Metro"]
[null,null,2054,"Metro"]
[null,null,2055,"Metro"]
[null,null,2056,"Metro"]
[null,null,2057,"Metro"]
[null,null,2058,"Metro"]
[null,null,2059,"Metro"]
[null,null,2060,"Metro"]
[null,null,2061,"Metro"]
[null,null,2062,"Metro"]
[null,null,2063,"Metro"]
[null,null,2064,"Metro"]
[null,null,2065,"Metro"]
[null,null,2066,"Metro"]
[null,null,2067,"Metro"]
[null,null,2068,"Metro"]
[null,null,2069,"Metro"]
[null,null,2070,"Metro"]
[null,null,2071,"Metro"]
[null,null,2072,"Metro"]
[null,null,2073,"Metro"]
[null,null,2074,"Metro"]
[null,null,2075,"Metro"]
[null,null,2076,"Metro"]
[null,null,2077,"Metro"]
[null,null,2078,"Metro"]
[null,null,2079,"Metro"]
[null,null,2080,"Metro"]
[null,null,2081,"Metro"]
[null,null,2082,"Metro"]
[null,null,2083,"Metro"]
[null,null,2084,"Metro"]
[null,null,2085,"Metro"]
[null,null,2086,"Metro"]
[null,null,2087,"Metro"]
[null,null,2088,"Metro"]
[null,null,2089,"Metro"]
[null,null,2090,"Metro"]
[null,null,2091,"Metro"]
[null,null,2092,"Metro"]
[null,null,2093,"Metro"]
[null,null,2094,"Metro"]
[null,null,2095,"Metro"]
[null,null,2096,"Metro"]
[null,null,2097,"Metro"]
[null,null,2098,"Metro"]
[null,null,2099,"Metro"]
[null,null,2100,"Metro"]
[null,null,2101,"Metro"]
[null,null,2102,"Metro"]
[null,null,2103,"Metro"]
[null,null,2104,"Metro"]
[null,null,2105,"Metro"]
[null,null,2106,"Metro"]
[null,null,2107,"Metro"]
[null,null,2108,"Metro"]
[null,null,2109,"Metro"]
[null,null,2110,"Metro"]
[null,null,2111,"Metro"]
[null,null,2112,"Metro"]
[null,null,2113,"Metro"]
[null,null,2114,"Metro"]
[null,null,2115,"Metro"]
[null,null,2116,"Metro"]
[null,null,2117,"Metro"]
[null,null,2118,"Metro"]
[null,null,2119,"Metro"]
[null,null,2120,"Metro"]
[null,null,2121,"Metro"]
[null,null,2122,"Metro"]
[null,null,2123,"Metro"]
[null,null,2124,"Metro"]
[null,null,2125,"Metro"]
[null,null,2126,"Metro"]
[null,null,2127,"Metro"]
[null,null,2128,"Metro"]
[null,null,2129,"Metro"]
[null,null,2130,"Metro"]
[null,null,2131,"Metro"]
[null,null,2132,"Metro"]
[null,null,2133,"Metro"]
[null,null,2134,"Metro"]
[null,null,2135,"Metro"]
[null,null,2136,"Metro"]
[null,null,2137,"Metro"]
[null,null,2138,"Metro"]
[null,null,2139,"Metro"]
[null,null,2140,"Metro"]
[null,null,2141,"Metro"]
[null,null,2142,"Metro"]
[null,null,2143,"Metro"]
[null,null,2144,"Metro"]
[null,null,2145,"Metro"]
[null,null,2146,"Metro"]
[null,null,2147,"Metro"]
[null,null,2148,"Metro"]
[null,null,2149,"Metro"]
[null,null,2150,"Metro"]
[null,null,2151,"Metro"]
[null,null,2152,"Metro"]
[null,null,2153,"Metro"]
[null,null,2154,"Metro"]
[null,null,2155,"Metro"]
[null,null,2156,"Metro"]
[null,null,2157,"Metro"]
[null,null,2158,"Metro"]
[null,null,2159,"Metro"]
[null,null,2160,"Metro"]
[null,null,2161,"Metro"]
[null,null,2162,"Metro"]
[null,null,2163,"Metro"]
[null,null,2164,"Metro"]
[null,null,2165,"Metro"]
[null,null,2166,"Metro"]
[null,null,2167,"Metro"]
[null,null,2168,"Metro"]
[null,null,2169,"Metro"]
[null,null,2170,"Metro"]
[null,null,2171,"Metro"]
[null,null,2172,"Metro"]
[null,null,2173,"Metro"]
[null,null,2174,"Metro"]
[null,null,2175,"Metro"]
[null,null,2176,"Metro"]
[null,null,2177,"Metro"]
[null,null,2178,"Metro"]
[null,null,2179,"Metro"]
[null,null,2180,"Metro"]
[null,null,2181,"Metro"]
[null,null,2182,"Metro"]
[null,null,2183,"Metro"]
[null,null,2184,"Metro"]
[null,null,2185,"Metro"]
[null,null,2186,"Metro"]
[null,null,2187,"Metro"]
[null,null,2188,"Metro"]
[null,null,2189,"Metro"]
[null,null,2190,"Metro"]
[null,null,2191,"Metro"]
[null,null,2192,"Metro"]
[null,null,2193,"Metro"]
[null,null,2194,"Metro"]
[null,null,2195,"Metro"]
[null,null,2196,"Metro"]
[null,null,2197,"Metro"]
[null,null,2198,"Metro"]
[null,null,2199,"Metro"]
[null,null,2200,"Metro"]
[null,null,2201,"Metro"]
[null,null,2202,"Metro"]
[null,null,2203,"Metro"]
[null,null,2204,"Metro"]
[null,null,2205,"Metro"]
[null,null,2206,"Metro"]
[null,null,2207,"Metro"]
[null,null,2208,"Metro"]
[null,null,2209,"Metro"]
[null,null,2210,"Metro"]
[null,null,2211,"Metro"]
[null,null,2212,"Metro"]
[null,null,2213,"Metro"]
[null,null,2214,"Metro"]
[null,null,2215,"Metro"]
[null,null,2216,"Metro"]
[null,null,2217,"Metro"]
[null,null,2218,"Metro"]
[null,null,2219,"Metro"]
[null,null,2220,"Metro"]
[null,null,2221,"Metro"]
[null,null,2222,"Metro"]
[null,null,2223,"Metro"]
[null,null,2224,"Metro"]
[null,null,2225,"Metro"]
[null,null,2226,"Metro"]
[null,null,2227,"Metro"]
[null,null,2228,"Metro"]
[null,null,2229,"Metro"]
[null,null,2230,"Metro"]
[null,null,2231,"Metro"]
[null,null,2232,"Metro"]
[null,null,2233,"Metro"]
[null,null,2234,"Metro"]
[null,null,2235,"Metro"]
[null,null,2236,"Metro"]
[null,null,2237,"Metro"]
[null,null,2238,"Metro"]
[null,null,2239,"Metro"]
[null,null,2240,"Metro"]
[null,null,2241,"Metro"]
[null,null,2242,"Metro"]
[null,null,2243,"Metro"]
[null,null,2244,"Metro"]
[null,null,2245,"Metro"]
[null,null,2246,"Metro"]
[null,null,2247,"Metro"]
[null,null,2248,"Metro"]
[null,null,2249,"Metro"]
[null,null,2250,"Metro"]
[null,null,2251,"Metro"]
[null,null,2252,"Metro"]
[null,null,2253,"Metro"]
[null,null,2254,"Metro"]
[null,null,2255,"Metro"]
[null,null,2256,"Metro"]
[null,null,2257,"Metro"]
[null,null,2258,"Metro"]
[null,null,2259,"Metro"]
[null,null,2260,"Metro"]
[null,null,2261,"Metro"]
[null,null,2262,"Metro"]
[null,null,2263,"Metro"]
[null,null,2264,"Metro"]
[null,null,2265,"Metro"]
[null,null,2266,"Metro"]
[null,null,2267,"Metro"]
[null,null,2268,"Metro"]
[null,null,2269,"Metro"]
[null,null,2270,"Metro"]
[null,null,2271,"Metro"]
[null,null,2272,"Metro"]
[null,null,2273,"Metro"]
[null,null,2274,"Metro"]
[null,null,2275,"Metro"]
[null,null,2276,"Metro"]
[null,null,2277,"Metro"]
[null,null,2278,"Metro"]
[null,null,2279,"Metro"]
[null,null,2280,"Metro"]
[null,null,2281,"Metro"]
[null,null,2282,"Metro"]
[null,null,2283,"Metro"]
[null,null,2284,"Metro"]
[null,null,2285,"Metro"]
[null,null,2286,"Metro"]
[null,null,2287,"Metro"]
[null,null,2288,"Metro"]
[null,null,2289,"Metro"]
[null,null,2290,"Metro"]
[null,null,2291,"Metro"]
[null,null,2292,"Metro"]
[null,null,2293,"Metro"]
[null,null,2294,"Metro"]
[null,null,2295,"Metro"]
[null,null,2296,"Metro"]
[null,null,2297,"Metro"]
[null,null,2298,"Metro"]
[null,null,2299,"Metro"]
[null,null,2300,"Metro"]
[null,null,2301,"Metro"]
[null,null,2302,"Metro"]
[null,null,2303,"Metro"]
[null,null,2304,"Metro"]
[null,null,2305,"Metro"]
[null,null,2306,"Metro"]
[null,null,2307,"Metro"]
[null,null,2308,"Metro"]
[null,null,2309,"Non metro"]
[null,null,2310,"Non metro"]
[null,null,2311,"Non metro"]
[null,null,2312,"Non metro"]
[null,null,2313,"Non metro"]
[null,null,2314,"Non metro"]
[null,null,2315,"Non metro"]
[null,null,2316,"Non metro"]
[null,null,2317,"Non metro"]
[null,null,2318,"Non metro"]
[null,null,2319,"Non metro"]
[null,null,2320,"Non metro"]
[null,null,2321,"Non metro"]
[null,null,2322,"Non metro"]
[null,null,2323,"Non metro"]
[null,null,2324,"Non metro"]
[null,null,2325,"Non metro"]
[null,null,2326,"Non metro"]
[null,null,2327,"Non metro"]
[null,null,2328,"Non metro"]
[null,null,2329,"Non metro"]
[null,null,2330,"Non metro"]
[null,null,2331,"Non metro"]
[null,null,2332,"Non metro"]
[null,null,2333,"Non metro"]
[null,null,2334,"Non metro"]
[null,null,2335,"Non metro"]
[null,null,2336,"Non metro"]
[null,null,2337,"Non metro"]
[null,null,2338,"Non metro"]
[null,null,2339,"Non metro"]
[null,null,2340,"Non metro"]
[null,null,2341,"Non metro"]
[null,null,2342,"Non metro"]
[null,null,2343,"Non metro"]
[null,null,2344,"Non metro"]
[null,null,2345,"Non metro"]
[null,null,2346,"Non metro"]
[null,null,2347,"Non metro"]
[null,null,2348,"Non metro"]
[null,null,2349,"Non metro"]
[null,null,2350,"Non metro"]
[null,null,2351,"Non metro"]
[null,null,2352,"Non metro"]
[null,null,2353,"Non metro"]
[null,null,2354,"Non metro"]
[null,null,2355,"Non metro"]
[null,null,2356,"Non metro"]
[null,null,2357,"Non metro"]
[null,null,2358,"Non metro"]
[null,null,2359,"Non metro"]
[null,null,2360,"Non metro"]
[null,null,2361,"Non metro"]
[null,null,2362,"Non metro"]
[null,null,2363,"Non metro"]
[null,null,2364,"Non metro"]
[null,null,2365,"Non metro"]
[null,null,2366,"Non metro"]
[null,null,2367,"Non metro"]
[null,null,2368,"Non metro"]
[null,null,2369,"Non metro"]
[null,null,2370,"Non metro"]
[null,null,2371,"Non metro"]
[null,null,2372,"Non metro"]
[null,null,2373,"Non metro"]
[null,null,2374,"Non metro"]
[null,null,2375,"Non metro"]
[null,null,2376,"Non metro"]
[null,null,2377,"Non metro"]
[null,null,2378,"Non metro"]
[null,null,2379,"Non metro"]
[null,null,2380,"Non metro"]
[null,null,2381,"Non metro"]
[null,null,2382,"Non metro"]
[null,null,2383,"Non metro"]
[null,null,2384,"Non metro"]
[null,null,2385,"Non metro"]
[null,null,2386,"Non metro"]
[null,null,2387,"Non metro"]
[null,null,2388,"Non metro"]
[null,null,2389,"Non metro"]
[null,null,2390,"Non metro"]
[null,null,2391,"Non metro"]
[null,null,2392,"Non metro"]
[null,null,2393,"Non metro"]
[null,null,2394,"Non metro"]
[null,null,2395,"Non metro"]
[null,null,2396,"Non metro"]
[null,null,2397,"Non metro"]
[null,null,2398,"Non metro"]
[null,null,2399,"Non metro"]
[null,null,2400,"Non metro"]
[null,null,2401,"Non metro"]
[null,null,2402,"Non metro"]
[null,null,2403,"Non metro"]
[null,null,2404,"Non metro"]
[null,null,2405,"Non metro"]
[null,null,2406,"Non metro"]
[null,null,2407,"Non metro"]
[null,null,2408,"Non metro"]
[null,null,2409,"Non metro"]
[null,null,2410,"Non metro"]
[null,null,2411,"Non metro"]
[null,null,2412,"Non metro"]
[null,null,2413,"Non metro"]
[null,null,2414,"Non metro"]
[null,null,2415,"Non metro"]
[null,null,2416,"Non metro"]
[null,null,2417,"Non metro"]
[null,null,2418,"Non metro"]
[null,null,2419,"Non metro"]
[null,null,2420,"Non metro"]
[null,null,2421,"Non metro"]
[null,null,2422,"Non metro"]
[null,null,2423,"Non metro"]
[null,null,2424,"Non metro"]
[null,null,2425,"Non metro"]
[null,null,2426,"Non metro"]
[null,null,2427,"Non metro"]
[null,null,2428,"Non metro"]
[null,null,2429,"Non metro"]
[null,null,2430,"Non metro"]
[null,null,2431,"Non metro"]
[null,null,2432,"Non metro"]
[null,null,2433,"Non metro"]
[null,null,2434,"Non metro"]
[null,null,2435,"Non metro"]
[null,null,2436,"Non metro"]
[null,null,2437,"Non metro"]
[null,null,2438,"Non metro"]
[null,null,2439,"Non metro"]
[null,null,2440,"Non metro"]
[null,null,2441,"Non metro"]
[null,null,2442,"Non metro"]
[null,null,2443,"Non metro"]
[null,null,2444,"Non metro"]
[null,null,2445,"Non metro"]
[null,null,2446,"Non metro"]
[null,null,2447,"Non metro"]
[null,null,2448,"Non metro"]
[null,null,2449,"Non metro"]
[null,null,2450,"Non metro"]
[null,null,2451,"Non metro"]
[null,null,2452,"Non metro"]
[null,null,2453,"Non metro"]
[null,null,2454,"Non metro"]
[null,null,2455,"Non metro"]
[null,null,2456,"Non metro"]
[null,null,2457,"Non metro"]
[null,null,2458,"Non metro"]
[null,null,2459,"Non metro"]
[null,null,2460,"Non metro"]
[null,null,2461,"Non metro"]
[null,null,2462,"Non metro"]
[null,null,2463,"Non metro"]
[null,null,2464,"Non metro"]
[null,null,2465,"Non metro"]
[null,null,2466,"Non metro"]
[null,null,2467,"Non metro"]
[null,null,2468,"Non metro"]
[null,null,2469,"Non metro"]
[null,null,2470,"Non metro"]
[null,null,2471,"Non metro"]
[null,null,2472,"Non metro"]
[null,null,2473,"Non metro"]
[null,null,2474,"Non metro"]
[null,null,2475,"Non metro"]
[null,null,2476,"Non metro"]
[null,null,2477,"Non metro"]
[null,null,2478,"Non metro"]
[null,null,2479,"Non metro"]
[null,null,2480,"Non metro"]
[null,null,2481,"Non metro"]
[null,null,2482,"Non metro"]
[null,null,2483,"Non metro"]
[null,null,2484,"Non metro"]
[null,null,2485,"Non metro"]
[null,null,2486,"Non metro"]
[null,null,2487,"Non metro"]
[null,null,2488,"Non metro"]
[null,null,2489,"Non metro"]
[null,null,2490,"Non metro"]
[null,null,2491,"Non metro"]
[null,null,2492,"Non metro"]
[null,null,2493,"Non metro"]
[null,null,2494,"Non metro"]
[null,null,2495,"Non metro"]
[null,null,2496,"Non metro"]
[null,null,2497,"Non metro"]
[null,null,2498,"Non metro"]
[null,null,2499,"Non metro"]
[null,null,2500,"Metro"]
[null,null,2501,"Metro"]
[null,null,2502,"Metro"]
[null,null,2503,"Metro"]
[null,null,2504,"Metro"]
[null,null,2505,"Metro"]
[null,null,2506,"Metro"]
[null,null,2507,"Metro"]
[null,null,2508,"Metro"]
[null,null,2509,"Metro"]
[null,null,2510,"Metro"]
[null,null,2511,"Metro"]
[null,null,2512,"Metro"]
[null,null,2513,"Metro"]
[null,null,2514,"Metro"]
[null,null,2515,"Metro"]
[null,null,2516,"Metro"]
[null,null,2517,"Metro"]
[null,null,2518,"Metro"]
[null,null,2519,"Metro"]
[null,null,2520,"Metro"]
[null,null,2521,"Metro"]
[null,null,2522,"Metro"]
[null,null,2523,"Metro"]
[null,null,2524,"Metro"]
[null,null,2525,"Metro"]
[null,null,2526,"Metro"]
[null,null,2527,"Metro"]
[null,null,2528,"Metro"]
[null,null,2529,"Metro"]
[null,null,2530,"Metro"]
[null,null,2531,"Metro"]
[null,null,2532,"Metro"]
[null,null,2533,"Metro"]
[null,null,2534,"Metro"]
[null,null,2535,"Non metro"]
[null,null,2536,"Non metro"]
[null,null,2537,"Non metro"]
[null,null,2538,"Non metro"]
[null,null,2539,"Non metro"]
[null,null,2540,"Non metro"]
[null,null,2541,"Non metro"]
[null,null,2542,"Non metro"]
[null,null,2543,"Non metro"]
[null,null,2544,"Non metro"]
[null,null,2545,"Non metro"]
[null,null,2546,"Non metro"]
[null,null,2547,"Non metro"]
[null,null,2548,"Non metro"]
[null,null,2549,"Non metro"]
[null,null,2550,"Non metro"]
[null,null,2551,"Non metro"]
[null,null,2552,"Non metro"]
[null,null,2553,"Non metro"]
[null,null,2554,"Non metro"]
[null,null,2555,"Metro"]
[null,null,2556,"Metro"]
[null,null,2557,"Metro"]
[null,null,2558,"Metro"]
[null,null,2559,"Metro"]
[null,null,2560,"Metro"]
[null,null,2561,"Metro"]
[null,null,2562,"Metro"]
[null,null,2563,"Metro"]
[null,null,2564,"Metro"]
[null,null,2565,"Metro"]
[null,null,2566,"Metro"]
[null,null,2567,"Metro"]
[null,null,2568,"Metro"]
[null,null,2569,"Metro"]
[null,null,2570,"Metro"]
[null,null,2571,"Metro"]
[null,null,2572,"Metro"]
[null,null,2573,"Metro"]
[null,null,2574,"Metro"]
[null,null,2575,"Non metro"]
[null,null,2576,"Non metro"]
[null,null,2577,"Non metro"]
[null,null,2578,"Non metro"]
[null,null,2579,"Non metro"]
[null,null,2580,"Non metro"]
[null,null,2581,"Non metro"]
[null,null,2582,"Non metro"]
[null,null,2583,"Non metro"]
[null,null,2584,"Non metro"]
[null,null,2585,"Non metro"]
[null,null,2586,"Non metro"]
[null,null,2587,"Non metro"]
[null,null,2588,"Non metro"]
[null,null,2589,"Non metro"]
[null,null,2590,"Non metro"]
[null,null,2591,"Non metro"]
[null,null,2592,"Non metro"]
[null,null,2593,"Non metro"]
[null,null,2594,"Non metro"]
[null,null,2595,"Non metro"]
[null,null,2596,"Non metro"]
[null,null,2597,"Non metro"]
[null,null,2598,"Non metro"]
[null,null,2599,"Non metro"]
[null,null,2600,"Metro"]
[null,null,2601,"Metro"]
[null,null,2602,"Metro"]
[null,null,2603,"Metro"]
[null,null,2604,"Metro"]
[null,null,2605,"Metro"]
[null,null,2606,"Metro"]
[null,null,2607,"Metro"]
[null,null,2608,"Metro"]
[null,null,2609,"Metro"]
[null,null,2610,"Metro"]
[null,null,2611,"Metro"]
[null,null,2612,"Metro"]
[null,null,2613,"Metro"]
[null,null,2614,"Metro"]
[null,null,2615,"Metro"]
[null,null,2616,"Metro"]
[null,null,2617,"Metro"]
[null,null,2618,"Non metro"]
[null,null,2619,"Non metro"]
[null,null,2620,"Non metro"]
[null,null,2621,"Non metro"]
[null,null,2622,"Non metro"]
[null,null,2623,"Non metro"]
[null,null,2624,"Non metro"]
[null,null,2625,"Non metro"]
[null,null,2626,"Non metro"]
[null,null,2627,"Non metro"]
[null,null,2628,"Non metro"]
[null,null,2629,"Non metro"]
[null,null,2630,"Non metro"]
[null,null,2631,"Non metro"]
[null,null,2632,"Non metro"]
[null,null,2633,"Non metro"]
[null,null,2634,"Non metro"]
[null,null,2635,"Non metro"]
[null,null,2636,"Non metro"]
[null,null,2637,"Non metro"]
[null,null,2638,"Non metro"]
[null,null,2639,"Non metro"]
[null,null,2640,"Non metro"]
[null,null,2641,"Non metro"]
[null,null,2642,"Non metro"]
[null,null,2643,"Non metro"]
[null,null,2644,"Non metro"]
[null,null,2645,"Non metro"]
[null,null,2646,"Non metro"]
[null,null,2647,"Non metro"]
[null,null,2648,"Non metro"]
[null,null,2649,"Non metro"]
[null,null,2650,"Non metro"]
[null,null,2651,"Non metro"]
[null,null,2652,"Non metro"]
[null,null,2653,"Non metro"]
[null,null,2654,"Non metro"]
[null,null,2655,"Non metro"]
[null,null,2656,"Non metro"]
[null,null,2657,"Non metro"]
[null,null,2658,"Non metro"]
[null,null,2659,"Non metro"]
[null,null,2660,"Non metro"]
[null,null,2661,"Non metro"]
[null,null,2662,"Non metro"]
[null,null,2663,"Non metro"]
[null,null,2664,"Non metro"]
[null,null,2665,"Non metro"]
[null,null,2666,"Non metro"]
[null,null,2667,"Non metro"]
[null,null,2668,"Non metro"]
[null,null,2669,"Non metro"]
[null,null,2670,"Non metro"]
[null,null,2671,"Non metro"]
[null,null,2672,"Non metro"]
[null,null,2673,"Non metro"]
[null,null,2674,"Non metro"]
[null,null,2675,"Non metro"]
[null,null,2676,"Non metro"]
[null,null,2677,"Non metro"]
[null,null,2678,"Non metro"]
[null,null,2679,"Non metro"]
[null,null,2680,"Non metro"]
[null,null,2681,"Non metro"]
[null,null,2682,"Non metro"]
[null,null,2683,"Non metro"]
[null,null,2684,"Non metro"]
[null,null,2685,"Non metro"]
[null,null,2686,"Non metro"]
[null,null,2687,"Non metro"]
[null,null,2688,"Non metro"]
[null,null,2689,"Non metro"]
[null,null,2690,"Non metro"]
[null,null,2691,"Non metro"]
[null,null,2692,"Non metro"]
[null,null,2693,"Non metro"]
[null,null,2694,"Non metro"]
[null,null,2695,"Non metro"]
[null,null,2696,"Non metro"]
[null,null,2697,"Non metro"]
[null,null,2698,"Non metro"]
[null,null,2699,"Non metro"]
[null,null,2700,"Non metro"]
[null,null,2701,"Non metro"]
[null,null,2702,"Non metro"]
[null,null,2703,"Non metro"]
[null,null,2704,"Non metro"]
[null,null,2705,"Non metro"]
[null,null,2706,"Non metro"]
[null,null,2707,"Non metro"]
[null,null,2708,"Non metro"]
[null,null,2709,"Non metro"]
[null,null,2710,"Non metro"]
[null,null,2711,"Non metro"]
[null,null,2712,"Non metro"]
[null,null,2713,"Non metro"]
[null,null,2714,"Non metro"]
[null,null,2715,"Non metro"]
[null,null,2716,"Non metro"]
[null,null,2717,"Non metro"]
[null,null,2718,"Non metro"]
[null,null,2719,"Non metro"]
[null,null,2720,"Non metro"]
[null,null,2721,"Non metro"]
[null,null,2722,"Non metro"]
[null,null,2723,"Non metro"]
[null,null,2724,"Non metro"]
[null,null,2725,"Non metro"]
[null,null,2726,"Non metro"]
[null,null,2727,"Non metro"]
[null,null,2728,"Non metro"]
[null,null,2729,"Non metro"]
[null,null,2730,"Non metro"]
[null,null,2731,"Non metro"]
[null,null,2732,"Non metro"]
[null,null,2733,"Non metro"]
[null,null,2734,"Non metro"]
[null,null,2735,"Non metro"]
[null,null,2736,"Non metro"]
[null,null,2737,"Non metro"]
[null,null,2738,"Non metro"]
[null,null,2739,"Non metro"]
[null,null,2740,"Non metro"]
[null,null,2741,"Non metro"]
[null,null,2742,"Non metro"]
[null,null,2743,"Non metro"]
[null,null,2744,"Non metro"]
[null,null,2745,"Metro"]
[null,null,2746,"Metro"]
[null,null,2747,"Metro"]
[null,null,2748,"Metro"]
[null,null,2749,"Metro"]
[null,null,2750,"Metro"]
[null,null,2751,"Metro"]
[null,null,2752,"Metro"]
[null,null,2753,"Metro"]
[null,null,2754,"Metro"]
[null,null,2755,"Metro"]
[null,null,2756,"Metro"]
[null,null,2757,"Metro"]
[null,null,2758,"Metro"]
[null,null,2759,"Metro"]
[null,null,2760,"Metro"]
[null,null,2761,"Metro"]
[null,null,2762,"Metro"]
[null,null,2763,"Metro"]
[null,null,2764,"Metro"]
[null,null,2765,"Metro"]
[null,null,2766,"Metro"]
[null,null,2767,"Metro"]
[null,null,2768,"Metro"]
[null,null,2769,"Metro"]
[null,null,2770,"Metro"]
[null,null,2771,"Metro"]
[null,null,2772,"Metro"]
[null,null,2773,"Metro"]
[null,null,2774,"Metro"]
[null,null,2775,"Metro"]
[null,null,2776,"Metro"]
[null,null,2777,"Metro"]
[null,null,2778,"Metro"]
[null,null,2779,"Metro"]
[null,null,2780,"Metro"]
[null,null,2781,"Metro"]
[null,null,2782,"Metro"]
[null,null,2783,"Metro"]
[null,null,2784,"Metro"]
[null,null,2785,"Metro"]
[null,null,2786,"Metro"]
[null,null,2787,"Non metro"]
[null,null,2788,"Non metro"]
[null,null,2789,"Non metro"]
[null,null,2790,"Non metro"]
[null,null,2791,"Non metro"]
[null,null,2792,"Non metro"]
[null,null,2793,"Non metro"]
[null,null,2794,"Non metro"]
[null,null,2795,"Non metro"]
[null,null,2796,"Non metro"]
[null,null,2797,"Non metro"]
[null,null,2798,"Non metro"]
[null,null,2799,"Non metro"]
[null,null,2800,"Non metro"]
[null,null,2801,"Non metro"]
[null,null,2802,"Non metro"]
[null,null,2803,"Non metro"]
[null,null,2804,"Non metro"]
[null,null,2805,"Non metro"]
[null,null,2806,"Non metro"]
[null,null,2807,"Non metro"]
[null,null,2808,"Non metro"]
[null,null,2809,"Non metro"]
[null,null,2810,"Non metro"]
[null,null,2811,"Non metro"]
[null,null,2812,"Non metro"]
[null,null,2813,"Non metro"]
[null,null,2814,"Non metro"]
[null,null,2815,"Non metro"]
[null,null,2816,"Non metro"]
[null,null,2817,"Non metro"]
[null,null,2818,"Non metro"]
[null,null,2819,"Non metro"]
[null,null,2820,"Non metro"]
[null,null,2821,"Non metro"]
[null,null,2822,"Non metro"]
[null,null,2823,"Non metro"]
[null,null,2824,"Non metro"]
[null,null,2825,"Non metro"]
[null,null,2826,"Non metro"]
[null,null,2827,"Non metro"]
[null,null,2828,"Non metro"]
[null,null,2829,"Non metro"]
[null,null,2830,"Non metro"]
[null,null,2831,"Non metro"]
[null,null,2832,"Non metro"]
[null,null,2833,"Non metro"]
[null,null,2834,"Non metro"]
[null,null,2835,"Non metro"]
[null,null,2836,"Non metro"]
[null,null,2837,"Non metro"]
[null,null,2838,"Non metro"]
[null,null,2839,"Non metro"]
[null,null,2840,"Non metro"]
[null,null,2841,"Non metro"]
[null,null,2842,"Non metro"]
[null,null,2843,"Non metro"]
[null,null,2844,"Non metro"]
[null,null,2845,"Non metro"]
[null,null,2846,"Non metro"]
[null,null,2847,"Non metro"]
[null,null,2848,"Non metro"]
[null,null,2849,"Non metro"]
[null,null,2850,"Non metro"]
[null,null,2851,"Non metro"]
[null,null,2852,"Non metro"]
[null,null,2853,"Non metro"]
[null,null,2854,"Non metro"]
[null,null,2855,"Non metro"]
[null,null,2856,"Non metro"]
[null,null,2857,"Non metro"]
[null,null,2858,"Non metro"]
[null,null,2859,"Non metro"]
[null,null,2860,"Non metro"]
[null,null,2861,"Non metro"]
[null,null,2862,"Non metro"]
[null,null,2863,"Non metro"]
[null,null,2864,"Non metro"]
[null,null,2865,"Non metro"]
[null,null,2866,"Non metro"]
[null,null,2867,"Non metro"]
[null,null,2868,"Non metro"]
[null,null,2869,"Non metro"]
[null,null,2870,"Non metro"]
[null,null,2871,"Non metro"]
[null,null,2872,"Non metro"]
[null,null,2873,"Non metro"]
[null,null,2874,"Non metro"]
[null,null,2875,"Non metro"]
[null,null,2876,"Non metro"]
[null,null,2877,"Non metro"]
[null,null,2878,"Non metro"]
[null,null,2879,"Non metro"]
[null,null,2880,"Non metro"]
[null,null,2881,"Non metro"]
[null,null,2882,"Non metro"]
[null,null,2883,"Non metro"]
[null,null,2884,"Non metro"]
[null,null,2885,"Non metro"]
[null,null,2886,"Non metro"]
[null,null,2887,"Non metro"]
[null,null,2888,"Non metro"]
[null,null,2889,"Non metro"]
[null,null,2890,"Non metro"]
[null,null,2891,"Non metro"]
[null,null,2892,"Non metro"]
[null,null,2893,"Non metro"]
[null,null,2894,"Non metro"]
[null,null,2895,"Non metro"]
[null,null,2896,"Non metro"]
[null,null,2897,"Non metro"]
[null,null,2898,"Non metro"]
[null,null,2899,"Non metro"]
[null,null,2900,"Metro"]
[null,null,2901,"Metro"]
[null,null,2902,"Metro"]
[null,null,2903,"Metro"]
[null,null,2904,"Metro"]
[null,null,2905,"Metro"]
[null,null,2906,"Metro"]
[null,null,2907,"Metro"]
[null,null,2908,"Metro"]
[null,null,2909,"Metro"]
[null,null,2910,"Metro"]
[null,null,2911,"Metro"]
[null,null,2912,"Metro"]
[null,null,2913,"Metro"]
[null,null,2914,"Metro"]
[null,null,2915,"Metro"]
[null,null,2916,"Metro"]
[null,null,2917,"Metro"]
[null,null,2918,"Metro"]
[null,null,2919,"Metro"]
[null,null,2920,"Metro"]
[null,null,2921,"Non metro"]
[null,null,2922,"Non metro"]
[null,null,2923,"Non metro"]
[null,null,2924,"Non metro"]
[null,null,2925,"Non metro"]
[null,null,2926,"Non metro"]
[null,null,2927,"Non metro"]
[null,null,2928,"Non metro"]
[null,null,2929,"Non metro"]
[null,null,2930,"Non metro"]
[null,null,2931,"Non metro"]
[null,null,2932,"Non metro"]
[null,null,2933,"Non metro"]
[null,null,2934,"Non metro"]
[null,null,2935,"Non metro"]
[null,null,2936,"Non metro"]
[null,null,2937,"Non metro"]
[null,null,2938,"Non metro"]
[null,null,2939,"Non metro"]
[null,null,2940,"Non metro"]
[null,null,2941,"Non metro"]
[null,null,2942,"Non metro"]
[null,null,2943,"Non metro"]
[null,null,2944,"Non metro"]
[null,null,2945,"Non metro"]
[null,null,2946,"Non metro"]
[null,null,2947,"Non metro"]
[null,null,2948,"Non metro"]
[null,null,2949,"Non metro"]
[null,null,2950,"Non metro"]
[null,null,2951,"Non metro"]
[null,null,2952,"Non metro"]
[null,null,2953,"Non metro"]
[null,null,2954,"Non metro"]
[null,null,2955,"Non metro"]
[null,null,2956,"Non metro"]
[null,null,2957,"Non metro"]
[null,null,2958,"Non metro"]
[null,null,2959,"Non metro"]
[null,null,2960,"Non metro"]
[null,null,2961,"Non metro"]
[null,null,2962,"Non metro"]
[null,null,2963,"Non metro"]
[null,null,2964,"Non metro"]
[null,null,2965,"Non metro"]
[null,null,2966,"Non metro"]
[null,null,2967,"Non metro"]
[null,null,2968,"Non metro"]
[null,null,2969,"Non metro"]
[null,null,2970,"Non metro"]
[null,null,2971,"Non metro"]
[null,null,2972,"Non metro"]
[null,null,2973,"Non metro"]
[null,null,2974,"Non metro"]
[null,null,2975,"Non metro"]
[null,null,2976,"Non metro"]
[null,null,2977,"Non metro"]
[null,null,2978,"Non metro"]
[null,null,2979,"Non metro"]
[null,null,2980,"Non metro"]
[null,null,2981,"Non metro"]
[null,null,2982,"Non metro"]
[null,null,2983,"Non metro"]
[null,null,2984,"Non metro"]
[null,null,2985,"Non metro"]
[null,null,2986,"Non metro"]
[null,null,2987,"Non metro"]
[null,null,2988,"Non metro"]
[null,null,2989,"Non metro"]
[null,null,2990,"Non metro"]
[null,null,2991,"Non metro"]
[null,null,2992,"Non metro"]
[null,null,2993,"Non metro"]
[null,null,2994,"Non metro"]
[null,null,2995,"Non metro"]
[null,null,2996,"Non metro"]
[null,null,2997,"Non metro"]
[null,null,2998,"Non metro"]
[null,null,2999,"Non metro"]
[null,null,3000,"Inner city"]
[null,null,3001,"Inner city"]
[null,null,3002,"Inner city"]
[null,null,3003,"Inner city"]
[null,null,3004,"Inner city"]
[null,null,3005,"Inner city"]
[null,null,3006,"Inner city"]
[null,null,3007,"Inner city"]
[null,null,3008,"Inner city"]
[null,null,3009,"Inner city"]
[null,null,3010,"Inner city"]
[null,null,3011,"Metro"]
[null,null,3012,"Metro"]
[null,null,3013,"Metro"]
[null,null,3014,"Metro"]
[null,null,3015,"Metro"]
[null,null,3016,"Metro"]
[null,null,3017,"Metro"]
[null,null,3018,"Metro"]
[null,null,3019,"Metro"]
[null,null,3020,"Metro"]
[null,null,3021,"Metro"]
[null,null,3022,"Metro"]
[null,null,3023,"Metro"]
[null,null,3024,"Metro"]
[null,null,3025,"Metro"]
[null,null,3026,"Metro"]
[null,null,3027,"Metro"]
[null,null,3028,"Metro"]
[null,null,3029,"Metro"]
[null,null,3030,"Metro"]
[null,null,3031,"Metro"]
[null,null,3032,"Metro"]
[null,null,3033,"Metro"]
[null,null,3034,"Metro"]
[null,null,3035,"Metro"]
[null,null,3036,"Metro"]
[null,null,3037,"Metro"]
[null,null,3038,"Metro"]
[null,null,3039,"Metro"]
[null,null,3040,"Metro"]
[null,null,3041,"Metro"]
[null,null,3042,"Metro"]
[null,null,3043,"Metro"]
[null,null,3044,"Metro"]
[null,null,3045,"Metro"]
[null,null,3046,"Metro"]
[null,null,3047,"Metro"]
[null,null,3048,"Metro"]
[null,null,3049,"Metro"]
[null,null,3050,"Metro"]
[null,null,3051,"Metro"]
[null,null,3052,"Metro"]
[null,null,3053,"Metro"]
[null,null,3054,"Metro"]
[null,null,3055,"Metro"]
[null,null,3056,"Metro"]
[null,null,3057,"Metro"]
[null,null,3058,"Metro"]
[null,null,3059,"Metro"]
[null,null,3060,"Metro"]
[null,null,3061,"Metro"]
[null,null,3062,"Metro"]
[null,null,3063,"Metro"]
[null,null,3064,"Metro"]
[null,null,3065,"Metro"]
[null,null,3066,"Metro"]
[null,null,3067,"Metro"]
[null,null,3068,"Metro"]
[null,null,3069,"Metro"]
[null,null,3070,"Metro"]
[null,null,3071,"Metro"]
[null,null,3072,"Metro"]
[null,null,3073,"Metro"]
[null,null,3074,"Metro"]
[null,null,3075,"Metro"]
[null,null,3076,"Metro"]
[null,null,3077,"Metro"]
[null,null,3078,"Metro"]
[null,null,3079,"Metro"]
[null,null,3080,"Metro"]
[null,null,3081,"Metro"]
[null,null,3082,"Metro"]
[null,null,3083,"Metro"]
[null,null,3084,"Metro"]
[null,null,3085,"Metro"]
[null,null,3086,"Metro"]
[null,null,3087,"Metro"]
[null,null,3088,"Metro"]
[null,null,3089,"Metro"]
[null,null,3090,"Metro"]
[null,null,3091,"Metro"]
[null,null,3092,"Metro"]
[null,null,3093,"Metro"]
[null,null,3094,"Metro"]
[null,null,3095,"Metro"]
[null,null,3096,"Metro"]
[null,null,3097,"Metro"]
[null,null,3098,"Metro"]
[null,null,3099,"Metro"]
[null,null,3100,"Metro"]
[null,null,3101,"Metro"]
[null,null,3102,"Metro"]
[null,null,3103,"Metro"]
[null,null,3104,"Metro"]
[null,null,3105,"Metro"]
[null,null,3106,"Metro"]
[null,null,3107,"Metro"]
[null,null,3108,"Metro"]
[null,null,3109,"Metro"]
[null,null,3110,"Metro"]
[null,null,3111,"Metro"]
[null,null,3112,"Metro"]
[null,null,3113,"Metro"]
[null,null,3114,"Metro"]
[null,null,3115,"Metro"]
[null,null,3116,"Metro"]
[null,null,3117,"Metro"]
[null,null,3118,"Metro"]
[null,null,3119,"Metro"]
[null,null,3120,"Metro"]
[null,null,3121,"Metro"]
[null,null,3122,"Metro"]
[null,null,3123,"Metro"]
[null,null,3124,"Metro"]
[null,null,3125,"Metro"]
[null,null,3126,"Metro"]
[null,null,3127,"Metro"]
[null,null,3128,"Metro"]
[null,null,3129,"Metro"]
[null,null,3130,"Metro"]
[null,null,3131,"Metro"]
[null,null,3132,"Metro"]
[null,null,3133,"Metro"]
[null,null,3134,"Metro"]
[null,null,3135,"Metro"]
[null,null,3136,"Metro"]
[null,null,3137,"Metro"]
[null,null,3138,"Metro"]
[null,null,3139,"Metro"]
[null,null,3140,"Metro"]
[null,null,3141,"Metro"]
[null,null,3142,"Metro"]
[null,null,3143,"Metro"]
[null,null,3144,"Metro"]
[null,null,3145,"Metro"]
[null,null,3146,"Metro"]
[null,null,3147,"Metro"]
[null,null,3148,"Metro"]
[null,null,3149,"Metro"]
[null,null,3150,"Metro"]
[null,null,3151,"Metro"]
[null,null,3152,"Metro"]
[null,null,3153,"Metro"]
[null,null,3154,"Metro"]
[null,null,3155,"Metro"]
[null,null,3156,"Metro"]
[null,null,3157,"Metro"]
[null,null,3158,"Metro"]
[null,null,3159,"Metro"]
[null,null,3160,"Metro"]
[null,null,3161,"Metro"]
[null,null,3162,"Metro"]
[null,null,3163,"Metro"]
[null,null,3164,"Metro"]
[null,null,3165,"Metro"]
[null,null,3166,"Metro"]
[null,null,3167,"Metro"]
[null,null,3168,"Metro"]
[null,null,3169,"Metro"]
[null,null,3170,"Metro"]
[null,null,3171,"Metro"]
[null,null,3172,"Metro"]
[null,null,3173,"Metro"]
[null,null,3174,"Metro"]
[null,null,3175,"Metro"]
[null,null,3176,"Metro"]
[null,null,3177,"Metro"]
[null,null,3178,"Metro"]
[null,null,3179,"Metro"]
[null,null,3180,"Metro"]
[null,null,3181,"Metro"]
[null,null,3182,"Metro"]
[null,null,3183,"Metro"]
[null,null,3184,"Metro"]
[null,null,3185,"Metro"]
[null,null,3186,"Metro"]
[null,null,3187,"Metro"]
[null,null,3188,"Metro"]
[null,null,3189,"Metro"]
[null,null,3190,"Metro"]
[null,null,3191,"Metro"]
[null,null,3192,"Metro"]
[null,null,3193,"Metro"]
[null,null,3194,"Metro"]
[null,null,3195,"Metro"]
[null,null,3196,"Metro"]
[null,null,3197,"Metro"]
[null,null,3198,"Metro"]
[null,null,3199,"Metro"]
[null,null,3200,"Metro"]
[null,null,3201,"Metro"]
[null,null,3202,"Metro"]
[null,null,3203,"Metro"]
[null,null,3204,"Metro"]
[null,null,3205,"Metro"]
[null,null,3206,"Metro"]
[null,null,3207,"Metro"]
[null,null,3208,"Metro"]
[null,null,3209,"Metro"]
[null,null,3210,"Metro"]
[null,null,3211,"Metro"]
[null,null,3212,"Metro"]
[null,null,3213,"Metro"]
[null,null,3214,"Metro"]
[null,null,3215,"Metro"]
[null,null,3216,"Metro"]
[null,null,3217,"Metro"]
[null,null,3218,"Metro"]
[null,null,3219,"Metro"]
[null,null,3220,"Metro"]
[null,null,3221,"Metro"]
[null,null,3222,"Metro"]
[null,null,3223,"Metro"]
[null,null,3224,"Metro"]
[null,null,3225,"Metro"]
[null,null,3226,"Metro"]
[null,null,3227,"Metro"]
[null,null,3228,"Metro"]
[null,null,3229,"Metro"]
[null,null,3230,"Metro"]
[null,null,3231,"Metro"]
[null,null,3232,"Metro"]
[null,null,3233,"Non metro"]
[null,null,3234,"Non metro"]
[null,null,3235,"Metro"]
[null,null,3236,"Non metro"]
[null,null,3237,"Non metro"]
[null,null,3238,"Non metro"]
[null,null,3239,"Non metro"]
[null,null,3240,"Metro"]
[null,null,3241,"Metro"]
[null,null,3242,"Non metro"]
[null,null,3243,"Non metro"]
[null,null,3244,"Non metro"]
[null,null,3245,"Non metro"]
[null,null,3246,"Non metro"]
[null,null,3247,"Non metro"]
[null,null,3248,"Non metro"]
[null,null,3249,"Non metro"]
[null,null,3250,"Non metro"]
[null,null,3251,"Non metro"]
[null,null,3252,"Non metro"]
[null,null,3253,"Non metro"]
[null,null,3254,"Non metro"]
[null,null,3255,"Non metro"]
[null,null,3256,"Non metro"]
[null,null,3257,"Non metro"]
[null,null,3258,"Non metro"]
[null,null,3259,"Non metro"]
[null,null,3260,"Non metro"]
[null,null,3261,"Non metro"]
[null,null,3262,"Non metro"]
[null,null,3263,"Non metro"]
[null,null,3264,"Non metro"]
[null,null,3265,"Non metro"]
[null,null,3266,"Non metro"]
[null,null,3267,"Non metro"]
[null,null,3268,"Non metro"]
[null,null,3269,"Non metro"]
[null,null,3270,"Non metro"]
[null,null,3271,"Non metro"]
[null,null,3272,"Non metro"]
[null,null,3273,"Non metro"]
[null,null,3274,"Non metro"]
[null,null,3275,"Non metro"]
[null,null,3276,"Non metro"]
[null,null,3277,"Non metro"]
[null,null,3278,"Non metro"]
[null,null,3279,"Non metro"]
[null,null,3280,"Non metro"]
[null,null,3281,"Non metro"]
[null,null,3282,"Non metro"]
[null,null,3283,"Non metro"]
[null,null,3284,"Non metro"]
[null,null,3285,"Non metro"]
[null,null,3286,"Non metro"]
[null,null,3287,"Non metro"]
[null,null,3288,"Non metro"]
[null,null,3289,"Non metro"]
[null,null,3290,"Non metro"]
[null,null,3291,"Non metro"]
[null,null,3292,"Non metro"]
[null,null,3293,"Non metro"]
[null,null,3294,"Non metro"]
[null,null,3295,"Non metro"]
[null,null,3296,"Non metro"]
[null,null,3297,"Non metro"]
[null,null,3298,"Non metro"]
[null,null,3299,"Non metro"]
[null,null,3300,"Non metro"]
[null,null,3301,"Non metro"]
[null,null,3302,"Non metro"]
[null,null,3303,"Non metro"]
[null,null,3304,"Non metro"]
[null,null,3305,"Non metro"]
[null,null,3306,"Non metro"]
[null,null,3307,"Non metro"]
[null,null,3308,"Non metro"]
[null,null,3309,"Non metro"]
[null,null,3310,"Non metro"]
[null,null,3311,"Non metro"]
[null,null,3312,"Non metro"]
[null,null,3313,"Non metro"]
[null,null,3314,"Non metro"]
[null,null,3315,"Non metro"]
[null,null,3316,"Non metro"]
[null,null,3317,"Non metro"]
[null,null,3318,"Non metro"]
[null,null,3319,"Non metro"]
[null,null,3320,"Non metro"]
[null,null,3321,"Metro"]
[null,null,3322,"Non metro"]
[null,null,3323,"Non metro"]
[null,null,3324,"Non metro"]
[null,null,3325,"Non metro"]
[null,null,3326,"Non metro"]
[null,null,3327,"Non metro"]
[null,null,3328,"Metro"]
[null,null,3329,"Metro"]
[null,null,3330,"Metro"]
[null,null,3331,"Metro"]
[null,null,3332,"Metro"]
[null,null,3333,"Metro"]
[null,null,3334,"Metro"]
[null,null,3335,"Metro"]
[null,null,3336,"Metro"]
[null,null,3337,"Metro"]
[null,null,3338,"Metro"]
[null,null,3339,"Metro"]
[null,null,3340,"Metro"]
[null,null,3341,"Non metro"]
[null,null,3342,"Non metro"]
[null,null,3343,"Non metro"]
[null,null,3344,"Non metro"]
[null,null,3345,"Non metro"]
[null,null,3346,"Non metro"]
[null,null,3347,"Non metro"]
[null,null,3348,"Non metro"]
[null,null,3349,"Non metro"]
[null,null,3350,"Non metro"]
[null,null,3351,"Non metro"]
[null,null,3352,"Non metro"]
[null,null,3353,"Non metro"]
[null,null,3354,"Non metro"]
[null,null,3355,"Non metro"]
[null,null,3356,"Non metro"]
[null,null,3357,"Non metro"]
[null,null,3358,"Non metro"]
[null,null,3359,"Non metro"]
[null,null,3360,"Non metro"]
[null,null,3361,"Non metro"]
[null,null,3362,"Non metro"]
[null,null,3363,"Non metro"]
[null,null,3364,"Non metro"]
[null,null,3365,"Non metro"]
[null,null,3366,"Non metro"]
[null,null,3367,"Non metro"]
[null,null,3368,"Non metro"]
[null,null,3369,"Non metro"]
[null,null,3370,"Non metro"]
[null,null,3371,"Non metro"]
[null,null,3372,"Non metro"]
[null,null,3373,"Non metro"]
[null,null,3374,"Non metro"]
[null,null,3375,"Non metro"]
[null,null,3376,"Non metro"]
[null,null,3377,"Non metro"]
[null,null,3378,"Non metro"]
[null,null,3379,"Non metro"]
[null,null,3380,"Non metro"]
[null,null,3381,"Non metro"]
[null,null,3382,"Non metro"]
[null,null,3383,"Non metro"]
[null,null,3384,"Non metro"]
[null,null,3385,"Non metro"]
[null,null,3386,"Non metro"]
[null,null,3387,"Non metro"]
[null,null,3388,"Non metro"]
[null,null,3389,"Non metro"]
[null,null,3390,"Non metro"]
[null,null,3391,"Non metro"]
[null,null,3392,"Non metro"]
[null,null,3393,"Non metro"]
[null,null,3394,"Non metro"]
[null,null,3395,"Non metro"]
[null,null,3396,"Non metro"]
[null,null,3397,"Non metro"]
[null,null,3398,"Non metro"]
[null,null,3399,"Non metro"]
[null,null,3400,"Non metro"]
[null,null,3401,"Non metro"]
[null,null,3402,"Non metro"]
[null,null,3403,"Non metro"]
[null,null,3404,"Non metro"]
[null,null,3405,"Non metro"]
[null,null,3406,"Non metro"]
[null,null,3407,"Non metro"]
[null,null,3408,"Non metro"]
[null,null,3409,"Non metro"]
[null,null,3410,"Non metro"]
[null,null,3411,"Non metro"]
[null,null,3412,"Non metro"]
[null,null,3413,"Non metro"]
[null,null,3414,"Non metro"]
[null,null,3415,"Non metro"]
[null,null,3416,"Non metro"]
[null,null,3417,"Non metro"]
[null,null,3418,"Non metro"]
[null,null,3419,"Non metro"]
[null,null,3420,"Non metro"]
[null,null,3421,"Non metro"]
[null,null,3422,"Non metro"]
[null,null,3423,"Non metro"]
[null,null,3424,"Non metro"]
[null,null,3425,"Non metro"]
[null,null,3426,"Non metro"]
[null,null,3427,"Metro"]
[null,null,3428,"Metro"]
[null,null,3429,"Metro"]
[null,null,3430,"Metro"]
[null,null,3431,"Metro"]
[null,null,3432,"Metro"]
[null,null,3433,"Metro"]
[null,null,3434,"Metro"]
[null,null,3435,"Metro"]
[null,null,3436,"Metro"]
[null,null,3437,"Metro"]
[null,null,3438,"Metro"]
[null,null,3439,"Metro"]
[null,null,3440,"Metro"]
[null,null,3441,"Metro"]
[null,null,3442,"Non metro"]
[null,null,3443,"Non metro"]
[null,null,3444,"Non metro"]
[null,null,3445,"Non metro"]
[null,null,3446,"Non metro"]
[null,null,3447,"Non metro"]
[null,null,3448,"Non metro"]
[null,null,3449,"Non metro"]
[null,null,3450,"Non metro"]
[null,null,3451,"Non metro"]
[null,null,3452,"Non metro"]
[null,null,3453,"Non metro"]
[null,null,3454,"Non metro"]
[null,null,3455,"Non metro"]
[null,null,3456,"Non metro"]
[null,null,3457,"Non metro"]
[null,null,3458,"Non metro"]
[null,null,3459,"Non metro"]
[null,null,3460,"Non metro"]
[null,null,3461,"Non metro"]
[null,null,3462,"Non metro"]
[null,null,3463,"Non metro"]
[null,null,3464,"Non metro"]
[null,null,3465,"Non metro"]
[null,null,3466,"Non metro"]
[null,null,3467,"Non metro"]
[null,null,3468,"Non metro"]
[null,null,3469,"Non metro"]
[null,null,3470,"Non metro"]
[null,null,3471,"Non metro"]
[null,null,3472,"Non metro"]
[null,null,3473,"Non metro"]
[null,null,3474,"Non metro"]
[null,null,3475,"Non metro"]
[null,null,3476,"Non metro"]
[null,null,3477,"Non metro"]
[null,null,3478,"Non metro"]
[null,null,3479,"Non metro"]
[null,null,3480,"Non metro"]
[null,null,3481,"Non metro"]
[null,null,3482,"Non metro"]
[null,null,3483,"Non metro"]
[null,null,3484,"Non metro"]
[null,null,3485,"Non metro"]
[null,null,3486,"Non metro"]
[null,null,3487,"Non metro"]
[null,null,3488,"Non metro"]
[null,null,3489,"Non metro"]
[null,null,3490,"Non metro"]
[null,null,3491,"Non metro"]
[null,null,3492,"Non metro"]
[null,null,3493,"Non metro"]
[null,null,3494,"Non metro"]
[null,null,3495,"Non metro"]
[null,null,3496,"Non metro"]
[null,null,3497,"Non metro"]
[null,null,3498,"Non metro"]
[null,null,3499,"Non metro"]
[null,null,3500,"Non metro"]
[null,null,3501,"Non metro"]
[null,null,3502,"Non metro"]
[null,null,3503,"Non metro"]
[null,null,3504,"Non metro"]
[null,null,3505,"Non metro"]
[null,null,3506,"Non metro"]
[null,null,3507,"Non metro"]
[null,null,3508,"Non metro"]
[null,null,3509,"Non metro"]
[null,null,3510,"Non metro"]
[null,null,3511,"Non metro"]
[null,null,3512,"Non metro"]
[null,null,3513,"Non metro"]
[null,null,3514,"Non metro"]
[null,null,3515,"Non metro"]
[null,null,3516,"Non metro"]
[null,null,3517,"Non metro"]
[null,null,3518,"Non metro"]
[null,null,3519,"Non metro"]
[null,null,3520,"Non metro"]
[null,null,3521,"Non metro"]
[null,null,3522,"Non metro"]
[null,null,3523,"Non metro"]
[null,null,3524,"Non metro"]
[null,null,3525,"Non metro"]
[null,null,3526,"Non metro"]
[null,null,3527,"Non metro"]
[null,null,3528,"Non metro"]
[null,null,3529,"Non metro"]
[null,null,3530,"Non metro"]
[null,null,3531,"Non metro"]
[null,null,3532,"Non metro"]
[null,null,3533,"Non metro"]
[null,null,3534,"Non metro"]
[null,null,3535,"Non metro"]
[null,null,3536,"Non metro"]
[null,null,3537,"Non metro"]
[null,null,3538,"Non metro"]
[null,null,3539,"Non metro"]
[null,null,3540,"Non metro"]
[null,null,3541,"Non metro"]
[null,null,3542,"Non metro"]
[null,null,3543,"Non metro"]
[null,null,3544,"Non metro"]
[null,null,3545,"Non metro"]
[null,null,3546,"Non metro"]
[null,null,3547,"Non metro"]
[null,null,3548,"Non metro"]
[null,null,3549,"Non metro"]
[null,null,3550,"Non metro"]
[null,null,3551,"Non metro"]
[null,null,3552,"Non metro"]
[null,null,3553,"Non metro"]
[null,null,3554,"Non metro"]
[null,null,3555,"Non metro"]
[null,null,3556,"Non metro"]
[null,null,3557,"Non metro"]
[null,null,3558,"Non metro"]
[null,null,3559,"Non metro"]
[null,null,3560,"Non metro"]
[null,null,3561,"Non metro"]
[null,null,3562,"Non metro"]
[null,null,3563,"Non metro"]
[null,null,3564,"Non metro"]
[null,null,3565,"Non metro"]
[null,null,3566,"Non metro"]
[null,null,3567,"Non metro"]
[null,null,3568,"Non metro"]
[null,null,3569,"Non metro"]
[null,null,3570,"Non metro"]
[null,null,3571,"Non metro"]
[null,null,3572,"Non metro"]
[null,null,3573,"Non metro"]
[null,null,3574,"Non metro"]
[null,null,3575,"Non metro"]
[null,null,3576,"Non metro"]
[null,null,3577,"Non metro"]
[null,null,3578,"Non metro"]
[null,null,3579,"Non metro"]
[null,null,3580,"Non metro"]
[null,null,3581,"Non metro"]
[null,null,3582,"Non metro"]
[null,null,3583,"Non metro"]
[null,null,3584,"Non metro"]
[null,null,3585,"Non metro"]
[null,null,3586,"Non metro"]
[null,null,3587,"Non metro"]
[null,null,3588,"Non metro"]
[null,null,3589,"Non metro"]
[null,null,3590,"Non metro"]
[null,null,3591,"Non metro"]
[null,null,3592,"Non metro"]
[null,null,3593,"Non metro"]
[null,null,3594,"Non metro"]
[null,null,3595,"Non metro"]
[null,null,3596,"Non metro"]
[null,null,3597,"Non metro"]
[null,null,3598,"Non metro"]
[null,null,3599,"Non metro"]
[null,null,3600,"Non metro"]
[null,null,3601,"Non metro"]
[null,null,3602,"Non metro"]
[null,null,3603,"Non metro"]
[null,null,3604,"Non metro"]
[null,null,3605,"Non metro"]
[null,null,3606,"Non metro"]
[null,null,3607,"Non metro"]
[null,null,3608,"Non metro"]
[null,null,3609,"Non metro"]
[null,null,3610,"Non metro"]
[null,null,3611,"Non metro"]
[null,null,3612,"Non metro"]
[null,null,3613,"Non metro"]
[null,null,3614,"Non metro"]
[null,null,3615,"Non metro"]
[null,null,3616,"Non metro"]
[null,null,3617,"Non metro"]
[null,null,3618,"Non metro"]
[null,null,3619,"Non metro"]
[null,null,3620,"Non metro"]
[null,null,3621,"Non metro"]
[null,null,3622,"Non metro"]
[null,null,3623,"Non metro"]
[null,null,3624,"Non metro"]
[null,null,3625,"Non metro"]
[null,null,3626,"Non metro"]
[null,null,3627,"Non metro"]
[null,null,3628,"Non metro"]
[null,null,3629,"Non metro"]
[null,null,3630,"Non metro"]
[null,null,3631,"Non metro"]
[null,null,3632,"Non metro"]
[null,null,3633,"Non metro"]
[null,null,3634,"Non metro"]
[null,null,3635,"Non metro"]
[null,null,3636,"Non metro"]
[null,null,3637,"Non metro"]
[null,null,3638,"Non metro"]
[null,null,3639,"Non metro"]
[null,null,3640,"Non metro"]
[null,null,3641,"Non metro"]
[null,null,3642,"Non metro"]
[null,null,3643,"Non metro"]
[null,null,3644,"Non metro"]
[null,null,3645,"Non metro"]
[null,null,3646,"Non metro"]
[null,null,3647,"Non metro"]
[null,null,3648,"Non metro"]
[null,null,3649,"Non metro"]
[null,null,3650,"Non metro"]
[null,null,3651,"Non metro"]
[null,null,3652,"Non metro"]
[null,null,3653,"Non metro"]
[null,null,3654,"Non metro"]
[null,null,3655,"Non metro"]
[null,null,3656,"Non metro"]
[null,null,3657,"Non metro"]
[null,null,3658,"Non metro"]
[null,null,3659,"Non metro"]
[null,null,3660,"Non metro"]
[null,null,3661,"Non metro"]
[null,null,3662,"Non metro"]
[null,null,3663,"Non metro"]
[null,null,3664,"Non metro"]
[null,null,3665,"Non metro"]
[null,null,3666,"Non metro"]
[null,null,3667,"Non metro"]
[null,null,3668,"Non metro"]
[null,null,3669,"Non metro"]
[null,null,3670,"Non metro"]
[null,null,3671,"Non metro"]
[null,null,3672,"Non metro"]
[null,null,3673,"Non metro"]
[null,null,3674,"Non metro"]
[null,null,3675,"Non metro"]
[null,null,3676,"Non metro"]
[null,null,3677,"Non metro"]
[null,null,3678,"Non metro"]
[null,null,3679,"Non metro"]
[null,null,3680,"Non metro"]
[null,null,3681,"Non metro"]
[null,null,3682,"Non metro"]
[null,null,3683,"Non metro"]
[null,null,3684,"Non metro"]
[null,null,3685,"Non metro"]
[null,null,3686,"Non metro"]
[null,null,3687,"Non metro"]
[null,null,3688,"Non metro"]
[null,null,3689,"Non metro"]
[null,null,3690,"Non metro"]
[null,null,3691,"Non metro"]
[null,null,3692,"Non metro"]
[null,null,3693,"Non metro"]
[null,null,3694,"Non metro"]
[null,null,3695,"Non metro"]
[null,null,3696,"Non metro"]
[null,null,3697,"Non metro"]
[null,null,3698,"Non metro"]
[null,null,3699,"Non metro"]
[null,null,3700,"Non metro"]
[null,null,3701,"Non metro"]
[null,null,3702,"Non metro"]
[null,null,3703,"Non metro"]
[null,null,3704,"Non metro"]
[null,null,3705,"Non metro"]
[null,null,3706,"Non metro"]
[null,null,3707,"Non metro"]
[null,null,3708,"Non metro"]
[null,null,3709,"Non metro"]
[null,null,3710,"Non metro"]
[null,null,3711,"Non metro"]
[null,null,3712,"Non metro"]
[null,null,3713,"Non metro"]
[null,null,3714,"Non metro"]
[null,null,3715,"Non metro"]
[null,null,3716,"Non metro"]
[null,null,3717,"Non metro"]
[null,null,3718,"Non metro"]
[null,null,3719,"Non metro"]
[null,null,3720,"Non metro"]
[null,null,3721,"Non metro"]
[null,null,3722,"Non metro"]
[null,null,3723,"Non metro"]
[null,null,3724,"Non metro"]
[null,null,3725,"Non metro"]
[null,null,3726,"Non metro"]
[null,null,3727,"Non metro"]
[null,null,3728,"Non metro"]
[null,null,3729,"Non metro"]
[null,null,3730,"Non metro"]
[null,null,3731,"Non metro"]
[null,null,3732,"Non metro"]
[null,null,3733,"Non metro"]
[null,null,3734,"Non metro"]
[null,null,3735,"Non metro"]
[null,null,3736,"Non metro"]
[null,null,3737,"Non metro"]
[null,null,3738,"Non metro"]
[null,null,3739,"Non metro"]
[null,null,3740,"Non metro"]
[null,null,3741,"Non metro"]
[null,null,3742,"Non metro"]
[null,null,3743,"Non metro"]
[null,null,3744,"Non metro"]
[null,null,3745,"Non metro"]
[null,null,3746,"Non metro"]
[null,null,3747,"Non metro"]
[null,null,3748,"Non metro"]
[null,null,3749,"Non metro"]
[null,null,3750,"Metro"]
[null,null,3751,"Metro"]
[null,null,3752,"Metro"]
[null,null,3753,"Metro"]
[null,null,3754,"Metro"]
[null,null,3755,"Metro"]
[null,null,3756,"Metro"]
[null,null,3757,"Metro"]
[null,null,3758,"Metro"]
[null,null,3759,"Metro"]
[null,null,3760,"Metro"]
[null,null,3761,"Metro"]
[null,null,3762,"Metro"]
[null,null,3763,"Metro"]
[null,null,3764,"Metro"]
[null,null,3765,"Metro"]
[null,null,3766,"Metro"]
[null,null,3767,"Metro"]
[null,null,3768,"Metro"]
[null,null,3769,"Metro"]
[null,null,3770,"Metro"]
[null,null,3771,"Metro"]
[null,null,3772,"Metro"]
[null,null,3773,"Metro"]
[null,null,3774,"Metro"]
[null,null,3775,"Metro"]
[null,null,3776,"Metro"]
[null,null,3777,"Metro"]
[null,null,3778,"Metro"]
[null,null,3779,"Metro"]
[null,null,3780,"Metro"]
[null,null,3781,"Metro"]
[null,null,3782,"Metro"]
[null,null,3783,"Metro"]
[null,null,3784,"Metro"]
[null,null,3785,"Metro"]
[null,null,3786,"Metro"]
[null,null,3787,"Metro"]
[null,null,3788,"Metro"]
[null,null,3789,"Metro"]
[null,null,3790,"Metro"]
[null,null,3791,"Metro"]
[null,null,3792,"Metro"]
[null,null,3793,"Metro"]
[null,null,3794,"Metro"]
[null,null,3795,"Metro"]
[null,null,3796,"Metro"]
[null,null,3797,"Metro"]
[null,null,3798,"Metro"]
[null,null,3799,"Metro"]
[null,null,3800,"Metro"]
[null,null,3801,"Metro"]
[null,null,3802,"Metro"]
[null,null,3803,"Metro"]
[null,null,3804,"Metro"]
[null,null,3805,"Metro"]
[null,null,3806,"Metro"]
[null,null,3807,"Metro"]
[null,null,3808,"Metro"]
[null,null,3809,"Metro"]
[null,null,3810,"Metro"]
[null,null,3811,"Metro"]
[null,null,3812,"Metro"]
[null,null,3813,"Metro"]
[null,null,3814,"Metro"]
[null,null,3815,"Metro"]
[null,null,3816,"Non metro"]
[null,null,3817,"Non metro"]
[null,null,3818,"Non metro"]
[null,null,3819,"Non metro"]
[null,null,3820,"Non metro"]
[null,null,3821,"Non metro"]
[null,null,3822,"Non metro"]
[null,null,3823,"Non metro"]
[null,null,3824,"Non metro"]
[null,null,3825,"Non metro"]
[null,null,3826,"Non metro"]
[null,null,3827,"Non metro"]
[null,null,3828,"Non metro"]
[null,null,3829,"Non metro"]
[null,null,3830,"Non metro"]
[null,null,3831,"Non metro"]
[null,null,3832,"Non metro"]
[null,null,3833,"Non metro"]
[null,null,3834,"Non metro"]
[null,null,3835,"Non metro"]
[null,null,3836,"Non metro"]
[null,null,3837,"Non metro"]
[null,null,3838,"Non metro"]
[null,null,3839,"Non metro"]
[null,null,3840,"Non metro"]
[null,null,3841,"Non metro"]
[null,null,3842,"Non metro"]
[null,null,3843,"Non metro"]
[null,null,3844,"Non metro"]
[null,null,3845,"Non metro"]
[null,null,3846,"Non metro"]
[null,null,3847,"Non metro"]
[null,null,3848,"Non metro"]
[null,null,3849,"Non metro"]
[null,null,3850,"Non metro"]
[null,null,3851,"Non metro"]
[null,null,3852,"Non metro"]
[null,null,3853,"Non metro"]
[null,null,3854,"Non metro"]
[null,null,3855,"Non metro"]
[null,null,3856,"Non metro"]
[null,null,3857,"Non metro"]
[null,null,3858,"Non metro"]
[null,null,3859,"Non metro"]
[null,null,3860,"Non metro"]
[null,null,3861,"Non metro"]
[null,null,3862,"Non metro"]
[null,null,3863,"Non metro"]
[null,null,3864,"Non metro"]
[null,null,3865,"Non metro"]
[null,null,3866,"Non metro"]
[null,null,3867,"Non metro"]
[null,null,3868,"Non metro"]
[null,null,3869,"Non metro"]
[null,null,3870,"Non metro"]
[null,null,3871,"Non metro"]
[null,null,3872,"Non metro"]
[null,null,3873,"Non metro"]
[null,null,3874,"Non metro"]
[null,null,3875,"Non metro"]
[null,null,3876,"Non metro"]
[null,null,3877,"Non metro"]
[null,null,3878,"Non metro"]
[null,null,3879,"Non metro"]
[null,null,3880,"Non metro"]
[null,null,3881,"Non metro"]
[null,null,3882,"Non metro"]
[null,null,3883,"Non metro"]
[null,null,3884,"Non metro"]
[null,null,3885,"Non metro"]
[null,null,3886,"Non metro"]
[null,null,3887,"Non metro"]
[null,null,3888,"Non metro"]
[null,null,3889,"Non metro"]
[null,null,3890,"Non metro"]
[null,null,3891,"Non metro"]
[null,null,3892,"Non metro"]
[null,null,3893,"Non metro"]
[null,null,3894,"Non metro"]
[null,null,3895,"Non metro"]
[null,null,3896,"Non metro"]
[null,null,3897,"Non metro"]
[null,null,3898,"Non metro"]
[null,null,3899,"Non metro"]
[null,null,3900,"Non metro"]
[null,null,3901,"Non metro"]
[null,null,3902,"Non metro"]
[null,null,3903,"Non metro"]
[null,null,3904,"Non metro"]
[null,null,3905,"Non metro"]
[null,null,3906,"Non metro"]
[null,null,3907,"Non metro"]
[null,null,3908,"Non metro"]
[null,null,3909,"Non metro"]
[null,null,3910,"Metro"]
[null,null,3911,"Metro"]
[null,null,3912,"Metro"]
[null,null,3913,"Metro"]
[null,null,3914,"Metro"]
[null,null,3915,"Metro"]
[null,null,3916,"Metro"]
[null,null,3917,"Metro"]
[null,null,3918,"Metro"]
[null,null,3919,"Metro"]
[null,null,3920,"Metro"]
[null,null,3921,"Non metro"]
[null,null,3922,"Non metro"]
[null,null,3923,"Non metro"]
[null,null,3924,"Non metro"]
[null,null,3925,"Non metro"]
[null,null,3926,"Metro"]
[null,null,3927,"Metro"]
[null,null,3928,"Metro"]
[null,null,3929,"Metro"]
[null,null,3930,"Metro"]
[null,null,3931,"Metro"]
[null,null,3932,"Metro"]
[null,null,3933,"Metro"]
[null,null,3934,"Metro"]
[null,null,3935,"Metro"]
[null,null,3936,"Metro"]
[null,null,3937,"Metro"]
[null,null,3938,"Metro"]
[null,null,3939,"Metro"]
[null,null,3940,"Metro"]
[null,null,3941,"Metro"]
[null,null,3942,"Metro"]
[null,null,3943,"Metro"]
[null,null,3944,"Metro"]
[null,null,3945,"Non metro"]
[null,null,3946,"Non metro"]
[null,null,3947,"Non metro"]
[null,null,3948,"Non metro"]
[null,null,3949,"Non metro"]
[null,null,3950,"Non metro"]
[null,null,3951,"Non metro"]
[null,null,3952,"Non metro"]
[null,null,3953,"Non metro"]
[null,null,3954,"Non metro"]
[null,null,3955,"Non metro"]
[null,null,3956,"Non metro"]
[null,null,3957,"Non metro"]
[null,null,3958,"Non metro"]
[null,null,3959,"Non metro"]
[null,null,3960,"Non metro"]
[null,null,3961,"Non metro"]
[null,null,3962,"Non metro"]
[null,null,3963,"Non metro"]
[null,null,3964,"Non metro"]
[null,null,3965,"Non metro"]
[null,null,3966,"Non metro"]
[null,null,3967,"Non metro"]
[null,null,3968,"Non metro"]
[null,null,3969,"Non metro"]
[null,null,3970,"Non metro"]
[null,null,3971,"Non metro"]
[null,null,3972,"Metro"]
[null,null,3973,"Metro"]
[null,null,3974,"Metro"]
[null,null,3975,"Metro"]
[null,null,3976,"Metro"]
[null,null,3977,"Metro"]
[null,null,3978,"Metro"]
[null,null,3979,"Non metro"]
[null,null,3980,"Metro"]
[null,null,3981,"Metro"]
[null,null,3982,"Metro"]
[null,null,3983,"Metro"]
[null,null,3984,"Non metro"]
[null,null,3985,"Non metro"]
[null,null,3986,"Non metro"]
[null,null,3987,"Non metro"]
[null,null,3988,"Non metro"]
[null,null,3989,"Non metro"]
[null,null,3990,"Non metro"]
[null,null,3991,"Non metro"]
[null,null,3992,"Non metro"]
[null,null,3993,"Non metro"]
[null,null,3994,"Non metro"]
[null,null,3995,"Non metro"]
[null,null,3996,"Non metro"]
[null,null,3997,"Non metro"]
[null,null,3998,"Non metro"]
[null,null,3999,"Non metro"]
[null,null,4000,"Inner city"]
[null,null,4001,"Inner city"]
[null,null,4002,"Inner city"]
[null,null,4003,"Inner city"]
[null,null,4004,"Inner city"]
[null,null,4005,"Metro"]
[null,null,4006,"Metro"]
[null,null,4007,"Metro"]
[null,null,4008,"Metro"]
[null,null,4009,"Metro"]
[null,null,4010,"Metro"]
[null,null,4011,"Metro"]
[null,null,4012,"Metro"]
[null,null,4013,"Metro"]
[null,null,4014,"Metro"]
[null,null,4015,"Metro"]
[null,null,4016,"Metro"]
[null,null,4017,"Metro"]
[null,null,4018,"Metro"]
[null,null,4019,"Metro"]
[null,null,4020,"Metro"]
[null,null,4021,"Metro"]
[null,null,4022,"Metro"]
[null,null,4023,"Metro"]
[null,null,4024,"Metro"]
[null,null,4025,"Metro"]
[null,null,4026,"Metro"]
[null,null,4027,"Metro"]
[null,null,4028,"Metro"]
[null,null,4029,"Metro"]
[null,null,4030,"Metro"]
[null,null,4031,"Metro"]
[null,null,4032,"Metro"]
[null,null,4033,"Metro"]
[null,null,4034,"Metro"]
[null,null,4035,"Metro"]
[null,null,4036,"Metro"]
[null,null,4037,"Metro"]
[null,null,4038,"Metro"]
[null,null,4039,"Metro"]
[null,null,4040,"Metro"]
[null,null,4041,"Metro"]
[null,null,4042,"Metro"]
[null,null,4043,"Metro"]
[null,null,4044,"Metro"]
[null,null,4045,"Metro"]
[null,null,4046,"Metro"]
[null,null,4047,"Metro"]
[null,null,4048,"Metro"]
[null,null,4049,"Metro"]
[null,null,4050,"Metro"]
[null,null,4051,"Metro"]
[null,null,4052,"Metro"]
[null,null,4053,"Metro"]
[null,null,4054,"Metro"]
[null,null,4055,"Metro"]
[null,null,4056,"Metro"]
[null,null,4057,"Metro"]
[null,null,4058,"Metro"]
[null,null,4059,"Metro"]
[null,null,4060,"Metro"]
[null,null,4061,"Metro"]
[null,null,4062,"Metro"]
[null,null,4063,"Metro"]
[null,null,4064,"Metro"]
[null,null,4065,"Metro"]
[null,null,4066,"Metro"]
[null,null,4067,"Metro"]
[null,null,4068,"Metro"]
[null,null,4069,"Metro"]
[null,null,4070,"Metro"]
[null,null,4071,"Metro"]
[null,null,4072,"Metro"]
[null,null,4073,"Metro"]
[null,null,4074,"Metro"]
[null,null,4075,"Metro"]
[null,null,4076,"Metro"]
[null,null,4077,"Metro"]
[null,null,4078,"Metro"]
[null,null,4079,"Metro"]
[null,null,4080,"Metro"]
[null,null,4081,"Metro"]
[null,null,4082,"Metro"]
[null,null,4083,"Metro"]
[null,null,4084,"Metro"]
[null,null,4085,"Metro"]
[null,null,4086,"Metro"]
[null,null,4087,"Metro"]
[null,null,4088,"Metro"]
[null,null,4089,"Metro"]
[null,null,4090,"Metro"]
[null,null,4091,"Metro"]
[null,null,4092,"Metro"]
[null,null,4093,"Metro"]
[null,null,4094,"Metro"]
[null,null,4095,"Metro"]
[null,null,4096,"Metro"]
[null,null,4097,"Metro"]
[null,null,4098,"Metro"]
[null,null,4099,"Metro"]
[null,null,4100,"Metro"]
[null,null,4101,"Metro"]
[null,null,4102,"Metro"]
[null,null,4103,"Metro"]
[null,null,4104,"Metro"]
[null,null,4105,"Metro"]
[null,null,4106,"Metro"]
[null,null,4107,"Metro"]
[null,null,4108,"Metro"]
[null,null,4109,"Metro"]
[null,null,4110,"Metro"]
[null,null,4111,"Metro"]
[null,null,4112,"Metro"]
[null,null,4113,"Metro"]
[null,null,4114,"Metro"]
[null,null,4115,"Metro"]
[null,null,4116,"Metro"]
[null,null,4117,"Metro"]
[null,null,4118,"Metro"]
[null,null,4119,"Metro"]
[null,null,4120,"Metro"]
[null,null,4121,"Metro"]
[null,null,4122,"Metro"]
[null,null,4123,"Metro"]
[null,null,4124,"Metro"]
[null,null,4125,"Metro"]
[null,null,4126,"Metro"]
[null,null,4127,"Metro"]
[null,null,4128,"Metro"]
[null,null,4129,"Metro"]
[null,null,4130,"Metro"]
[null,null,4131,"Metro"]
[null,null,4132,"Metro"]
[null,null,4133,"Metro"]
[null,null,4134,"Metro"]
[null,null,4135,"Metro"]
[null,null,4136,"Metro"]
[null,null,4137,"Metro"]
[null,null,4138,"Metro"]
[null,null,4139,"Metro"]
[null,null,4140,"Metro"]
[null,null,4141,"Metro"]
[null,null,4142,"Metro"]
[null,null,4143,"Metro"]
[null,null,4144,"Metro"]
[null,null,4145,"Metro"]
[null,null,4146,"Metro"]
[null,null,4147,"Metro"]
[null,null,4148,"Metro"]
[null,null,4149,"Metro"]
[null,null,4150,"Metro"]
[null,null,4151,"Metro"]
[null,null,4152,"Metro"]
[null,null,4153,"Metro"]
[null,null,4154,"Metro"]
[null,null,4155,"Metro"]
[null,null,4156,"Metro"]
[null,null,4157,"Metro"]
[null,null,4158,"Metro"]
[null,null,4159,"Metro"]
[null,null,4160,"Metro"]
[null,null,4161,"Metro"]
[null,null,4162,"Metro"]
[null,null,4163,"Metro"]
[null,null,4164,"Metro"]
[null,null,4165,"Metro"]
[null,null,4166,"Metro"]
[null,null,4167,"Metro"]
[null,null,4168,"Metro"]
[null,null,4169,"Metro"]
[null,null,4170,"Metro"]
[null,null,4171,"Metro"]
[null,null,4172,"Metro"]
[null,null,4173,"Metro"]
[null,null,4174,"Metro"]
[null,null,4175,"Metro"]
[null,null,4176,"Metro"]
[null,null,4177,"Metro"]
[null,null,4178,"Metro"]
[null,null,4179,"Metro"]
[null,null,4180,"Metro"]
[null,null,4181,"Metro"]
[null,null,4182,"Metro"]
[null,null,4183,"Metro"]
[null,null,4184,"Metro"]
[null,null,4185,"Metro"]
[null,null,4186,"Metro"]
[null,null,4187,"Metro"]
[null,null,4188,"Metro"]
[null,null,4189,"Metro"]
[null,null,4190,"Metro"]
[null,null,4191,"Metro"]
[null,null,4192,"Metro"]
[null,null,4193,"Metro"]
[null,null,4194,"Metro"]
[null,null,4195,"Metro"]
[null,null,4196,"Metro"]
[null,null,4197,"Metro"]
[null,null,4198,"Metro"]
[null,null,4199,"Metro"]
[null,null,4200,"Metro"]
[null,null,4201,"Metro"]
[null,null,4202,"Metro"]
[null,null,4203,"Metro"]
[null,null,4204,"Metro"]
[null,null,4205,"Metro"]
[null,null,4206,"Metro"]
[null,null,4207,"Metro"]
[null,null,4208,"Metro"]
[null,null,4209,"Metro"]
[null,null,4210,"Metro"]
[null,null,4211,"Metro"]
[null,null,4212,"Metro"]
[null,null,4213,"Metro"]
[null,null,4214,"Metro"]
[null,null,4215,"Metro"]
[null,null,4216,"Metro"]
[null,null,4217,"Metro"]
[null,null,4218,"Metro"]
[null,null,4219,"Metro"]
[null,null,4220,"Metro"]
[null,null,4221,"Metro"]
[null,null,4222,"Metro"]
[null,null,4223,"Metro"]
[null,null,4224,"Metro"]
[null,null,4225,"Metro"]
[null,null,4226,"Metro"]
[null,null,4227,"Metro"]
[null,null,4228,"Metro"]
[null,null,4229,"Non metro"]
[null,null,4230,"Non metro"]
[null,null,4231,"Non metro"]
[null,null,4232,"Non metro"]
[null,null,4233,"Non metro"]
[null,null,4234,"Non metro"]
[null,null,4235,"Non metro"]
[null,null,4236,"Non metro"]
[null,null,4237,"Non metro"]
[null,null,4238,"Non metro"]
[null,null,4239,"Non metro"]
[null,null,4240,"Non metro"]
[null,null,4241,"Non metro"]
[null,null,4242,"Non metro"]
[null,null,4243,"Non metro"]
[null,null,4244,"Non metro"]
[null,null,4245,"Non metro"]
[null,null,4246,"Non metro"]
[null,null,4247,"Non metro"]
[null,null,4248,"Non metro"]
[null,null,4249,"Non metro"]
[null,null,4250,"Non metro"]
[null,null,4251,"Non metro"]
[null,null,4252,"Non metro"]
[null,null,4253,"Non metro"]
[null,null,4254,"Non metro"]
[null,null,4255,"Non metro"]
[null,null,4256,"Non metro"]
[null,null,4257,"Non metro"]
[null,null,4258,"Non metro"]
[null,null,4259,"Non metro"]
[null,null,4260,"Non metro"]
[null,null,4261,"Non metro"]
[null,null,4262,"Non metro"]
[null,null,4263,"Non metro"]
[null,null,4264,"Non metro"]
[null,null,4265,"Non metro"]
[null,null,4266,"Non metro"]
[null,null,4267,"Non metro"]
[null,null,4268,"Non metro"]
[null,null,4269,"Non metro"]
[null,null,4270,"Metro"]
[null,null,4271,"Metro"]
[null,null,4272,"Metro"]
[null,null,4273,"Metro"]
[null,null,4274,"Metro"]
[null,null,4275,"Metro"]
[null,null,4276,"Metro"]
[null,null,4277,"Metro"]
[null,null,4278,"Metro"]
[null,null,4279,"Metro"]
[null,null,4280,"Metro"]
[null,null,4281,"Metro"]
[null,null,4282,"Metro"]
[null,null,4283,"Metro"]
[null,null,4284,"Metro"]
[null,null,4285,"Metro"]
[null,null,4286,"Metro"]
[null,null,4287,"Metro"]
[null,null,4288,"Metro"]
[null,null,4289,"Metro"]
[null,null,4290,"Metro"]
[null,null,4291,"Metro"]
[null,null,4292,"Metro"]
[null,null,4293,"Metro"]
[null,null,4294,"Metro"]
[null,null,4295,"Metro"]
[null,null,4296,"Metro"]
[null,null,4297,"Metro"]
[null,null,4298,"Metro"]
[null,null,4299,"Metro"]
[null,null,4300,"Metro"]
[null,null,4301,"Metro"]
[null,null,4302,"Metro"]
[null,null,4303,"Metro"]
[null,null,4304,"Metro"]
[null,null,4305,"Metro"]
[null,null,4306,"Metro"]
[null,null,4307,"Metro"]
[null,null,4308,"Metro"]
[null,null,4309,"Metro"]
[null,null,4310,"Metro"]
[null,null,4311,"Metro"]
[null,null,4312,"Metro"]
[null,null,4313,"Metro"]
[null,null,4314,"Non metro"]
[null,null,4315,"Non metro"]
[null,null,4316,"Non metro"]
[null,null,4317,"Non metro"]
[null,null,4318,"Non metro"]
[null,null,4319,"Non metro"]
[null,null,4320,"Non metro"]
[null,null,4321,"Non metro"]
[null,null,4322,"Non metro"]
[null,null,4323,"Non metro"]
[null,null,4324,"Non metro"]
[null,null,4325,"Non metro"]
[null,null,4326,"Non metro"]
[null,null,4327,"Non metro"]
[null,null,4328,"Non metro"]
[null,null,4329,"Non metro"]
[null,null,4330,"Non metro"]
[null,null,4331,"Non metro"]
[null,null,4332,"Non metro"]
[null,null,4333,"Non metro"]
[null,null,4334,"Non metro"]
[null,null,4335,"Non metro"]
[null,null,4336,"Non metro"]
[null,null,4337,"Non metro"]
[null,null,4338,"Non metro"]
[null,null,4339,"Non metro"]
[null,null,4340,"Metro"]
[null,null,4341,"Metro"]
[null,null,4342,"Metro"]
[null,null,4343,"Non metro"]
[null,null,4344,"Non metro"]
[null,null,4345,"Non metro"]
[null,null,4346,"Metro"]
[null,null,4347,"Non metro"]
[null,null,4348,"Non metro"]
[null,null,4349,"Non metro"]
[null,null,4350,"Non metro"]
[null,null,4351,"Non metro"]
[null,null,4352,"Non metro"]
[null,null,4353,"Non metro"]
[null,null,4354,"Non metro"]
[null,null,4355,"Non metro"]
[null,null,4356,"Non metro"]
[null,null,4357,"Non metro"]
[null,null,4358,"Non metro"]
[null,null,4359,"Non metro"]
[null,null,4360,"Non metro"]
[null,null,4361,"Non metro"]
[null,null,4362,"Non metro"]
[null,null,4363,"Non metro"]
[null,null,4364,"Non metro"]
[null,null,4365,"Non metro"]
[null,null,4366,"Non metro"]
[null,null,4367,"Non metro"]
[null,null,4368,"Non metro"]
[null,null,4369,"Non metro"]
[null,null,4370,"Non metro"]
[null,null,4371,"Non metro"]
[null,null,4372,"Non metro"]
[null,null,4373,"Non metro"]
[null,null,4374,"Non metro"]
[null,null,4375,"Non metro"]
[null,null,4376,"Non metro"]
[null,null,4377,"Non metro"]
[null,null,4378,"Non metro"]
[null,null,4379,"Non metro"]
[null,null,4380,"Non metro"]
[null,null,4381,"Non metro"]
[null,null,4382,"Non metro"]
[null,null,4383,"Non metro"]
[null,null,4384,"Non metro"]
[null,null,4385,"Non metro"]
[null,null,4386,"Non metro"]
[null,null,4387,"Non metro"]
[null,null,4388,"Non metro"]
[null,null,4389,"Non metro"]
[null,null,4390,"Non metro"]
[null,null,4391,"Non metro"]
[null,null,4392,"Non metro"]
[null,null,4393,"Non metro"]
[null,null,4394,"Non metro"]
[null,null,4395,"Non metro"]
[null,null,4396,"Non metro"]
[null,null,4397,"Non metro"]
[null,null,4398,"Non metro"]
[null,null,4399,"Non metro"]
[null,null,4400,"Non metro"]
[null,null,4401,"Non metro"]
[null,null,4402,"Non metro"]
[null,null,4403,"Non metro"]
[null,null,4404,"Non metro"]
[null,null,4405,"Non metro"]
[null,null,4406,"Non metro"]
[null,null,4407,"Non metro"]
[null,null,4408,"Non metro"]
[null,null,4409,"Non metro"]
[null,null,4410,"Non metro"]
[null,null,4411,"Non metro"]
[null,null,4412,"Non metro"]
[null,null,4413,"Non metro"]
[null,null,4414,"Non metro"]
[null,null,4415,"Non metro"]
[null,null,4416,"Non metro"]
[null,null,4417,"Non metro"]
[null,null,4418,"Non metro"]
[null,null,4419,"Non metro"]
[null,null,4420,"Non metro"]
[null,null,4421,"Non metro"]
[null,null,4422,"Non metro"]
[null,null,4423,"Non metro"]
[null,null,4424,"Non metro"]
[null,null,4425,"Non metro"]
[null,null,4426,"Non metro"]
[null,null,4427,"Non metro"]
[null,null,4428,"Non metro"]
[null,null,4429,"Non metro"]
[null,null,4430,"Non metro"]
[null,null,4431,"Non metro"]
[null,null,4432,"Non metro"]
[null,null,4433,"Non metro"]
[null,null,4434,"Non metro"]
[null,null,4435,"Non metro"]
[null,null,4436,"Non metro"]
[null,null,4437,"Non metro"]
[null,null,4438,"Non metro"]
[null,null,4439,"Non metro"]
[null,null,4440,"Non metro"]
[null,null,4441,"Non metro"]
[null,null,4442,"Non metro"]
[null,null,4443,"Non metro"]
[null,null,4444,"Non metro"]
[null,null,4445,"Non metro"]
[null,null,4446,"Non metro"]
[null,null,4447,"Non metro"]
[null,null,4448,"Non metro"]
[null,null,4449,"Non metro"]
[null,null,4450,"Non metro"]
[null,null,4451,"Non metro"]
[null,null,4452,"Non metro"]
[null,null,4453,"Non metro"]
[null,null,4454,"Non metro"]
[null,null,4455,"Non metro"]
[null,null,4456,"Non metro"]
[null,null,4457,"Non metro"]
[null,null,4458,"Non metro"]
[null,null,4459,"Non metro"]
[null,null,4460,"Non metro"]
[null,null,4461,"Non metro"]
[null,null,4462,"Non metro"]
[null,null,4463,"Non metro"]
[null,null,4464,"Non metro"]
[null,null,4465,"Non metro"]
[null,null,4466,"Non metro"]
[null,null,4467,"Non metro"]
[null,null,4468,"Non metro"]
[null,null,4469,"Non metro"]
[null,null,4470,"Non metro"]
[null,null,4471,"Non metro"]
[null,null,4472,"Non metro"]
[null,null,4473,"Non metro"]
[null,null,4474,"Non metro"]
[null,null,4475,"Non metro"]
[null,null,4476,"Non metro"]
[null,null,4477,"Non metro"]
[null,null,4478,"Non metro"]
[null,null,4479,"Non metro"]
[null,null,4480,"Non metro"]
[null,null,4481,"Non metro"]
[null,null,4482,"Non metro"]
[null,null,4483,"Non metro"]
[null,null,4484,"Non metro"]
[null,null,4485,"Non metro"]
[null,null,4486,"Non metro"]
[null,null,4487,"Non metro"]
[null,null,4488,"Non metro"]
[null,null,4489,"Non metro"]
[null,null,4490,"Non metro"]
[null,null,4491,"Non metro"]
[null,null,4492,"Non metro"]
[null,null,4493,"Non metro"]
[null,null,4494,"Non metro"]
[null,null,4495,"Non metro"]
[null,null,4496,"Non metro"]
[null,null,4497,"Non metro"]
[null,null,4498,"Non metro"]
[null,null,4499,"Non metro"]
[null,null,4500,"Metro"]
[null,null,4501,"Metro"]
[null,null,4502,"Metro"]
[null,null,4503,"Metro"]
[null,null,4504,"Metro"]
[null,null,4505,"Metro"]
[null,null,4506,"Metro"]
[null,null,4507,"Metro"]
[null,null,4508,"Metro"]
[null,null,4509,"Metro"]
[null,null,4510,"Metro"]
[null,null,4511,"Metro"]
[null,null,4512,"Metro"]
[null,null,4513,"Metro"]
[null,null,4514,"Metro"]
[null,null,4515,"Metro"]
[null,null,4516,"Metro"]
[null,null,4517,"Metro"]
[null,null,4518,"Metro"]
[null,null,4519,"Metro"]
[null,null,4520,"Metro"]
[null,null,4521,"Metro"]
[null,null,4522,"Metro"]
[null,null,4523,"Metro"]
[null,null,4524,"Metro"]
[null,null,4525,"Metro"]
[null,null,4526,"Metro"]
[null,null,4527,"Metro"]
[null,null,4528,"Metro"]
[null,null,4529,"Metro"]
[null,null,4530,"Metro"]
[null,null,4531,"Metro"]
[null,null,4532,"Metro"]
[null,null,4533,"Metro"]
[null,null,4534,"Metro"]
[null,null,4535,"Metro"]
[null,null,4536,"Metro"]
[null,null,4537,"Metro"]
[null,null,4538,"Metro"]
[null,null,4539,"Metro"]
[null,null,4540,"Metro"]
[null,null,4541,"Metro"]
[null,null,4542,"Metro"]
[null,null,4543,"Metro"]
[null,null,4544,"Metro"]
[null,null,4545,"Metro"]
[null,null,4546,"Metro"]
[null,null,4547,"Metro"]
[null,null,4548,"Metro"]
[null,null,4549,"Metro"]
[null,null,4550,"Metro"]
[null,null,4551,"Metro"]
[null,null,4552,"Metro"]
[null,null,4553,"Metro"]
[null,null,4554,"Metro"]
[null,null,4555,"Metro"]
[null,null,4556,"Metro"]
[null,null,4557,"Metro"]
[null,null,4558,"Metro"]
[null,null,4559,"Metro"]
[null,null,4560,"Metro"]
[null,null,4561,"Metro"]
[null,null,4562,"Metro"]
[null,null,4563,"Metro"]
[null,null,4564,"Metro"]
[null,null,4565,"Metro"]
[null,null,4566,"Metro"]
[null,null,4567,"Metro"]
[null,null,4568,"Metro"]
[null,null,4569,"Metro"]
[null,null,4570,"Metro"]
[null,null,4571,"Metro"]
[null,null,4572,"Metro"]
[null,null,4573,"Metro"]
[null,null,4574,"Metro"]
[null,null,4575,"Metro"]
[null,null,4576,"Non metro"]
[null,null,4577,"Non metro"]
[null,null,4578,"Non metro"]
[null,null,4579,"Non metro"]
[null,null,4580,"Non metro"]
[null,null,4581,"Non metro"]
[null,null,4582,"Non metro"]
[null,null,4583,"Non metro"]
[null,null,4584,"Non metro"]
[null,null,4585,"Non metro"]
[null,null,4586,"Non metro"]
[null,null,4587,"Non metro"]
[null,null,4588,"Non metro"]
[null,null,4589,"Non metro"]
[null,null,4590,"Non metro"]
[null,null,4591,"Non metro"]
[null,null,4592,"Non metro"]
[null,null,4593,"Non metro"]
[null,null,4594,"Non metro"]
[null,null,4595,"Non metro"]
[null,null,4596,"Non metro"]
[null,null,4597,"Non metro"]
[null,null,4598,"Non metro"]
[null,null,4599,"Non metro"]
[null,null,4600,"Non metro"]
[null,null,4601,"Non metro"]
[null,null,4602,"Non metro"]
[null,null,4603,"Non metro"]
[null,null,4604,"Non metro"]
[null,null,4605,"Non metro"]
[null,null,4606,"Non metro"]
[null,null,4607,"Non metro"]
[null,null,4608,"Non metro"]
[null,null,4609,"Non metro"]
[null,null,4610,"Non metro"]
[null,null,4611,"Non metro"]
[null,null,4612,"Non metro"]
[null,null,4613,"Non metro"]
[null,null,4614,"Non metro"]
[null,null,4615,"Non metro"]
[null,null,4616,"Non metro"]
[null,null,4617,"Non metro"]
[null,null,4618,"Non metro"]
[null,null,4619,"Non metro"]
[null,null,4620,"Non metro"]
[null,null,4621,"Non metro"]
[null,null,4622,"Non metro"]
[null,null,4623,"Non metro"]
[null,null,4624,"Non metro"]
[null,null,4625,"Non metro"]
[null,null,4626,"Non metro"]
[null,null,4627,"Non metro"]
[null,null,4628,"Non metro"]
[null,null,4629,"Non metro"]
[null,null,4630,"Non metro"]
[null,null,4631,"Non metro"]
[null,null,4632,"Non metro"]
[null,null,4633,"Non metro"]
[null,null,4634,"Non metro"]
[null,null,4635,"Non metro"]
[null,null,4636,"Non metro"]
[null,null,4637,"Non metro"]
[null,null,4638,"Non metro"]
[null,null,4639,"Non metro"]
[null,null,4640,"Non metro"]
[null,null,4641,"Non metro"]
[null,null,4642,"Non metro"]
[null,null,4643,"Non metro"]
[null,null,4644,"Non metro"]
[null,null,4645,"Non metro"]
[null,null,4646,"Non metro"]
[null,null,4647,"Non metro"]
[null,null,4648,"Non metro"]
[null,null,4649,"Non metro"]
[null,null,4650,"Non metro"]
[null,null,4651,"Non metro"]
[null,null,4652,"Non metro"]
[null,null,4653,"Non metro"]
[null,null,4654,"Non metro"]
[null,null,4655,"Non metro"]
[null,null,4656,"Non metro"]
[null,null,4657,"Non metro"]
[null,null,4658,"Non metro"]
[null,null,4659,"Non metro"]
[null,null,4660,"Non metro"]
[null,null,4661,"Non metro"]
[null,null,4662,"Non metro"]
[null,null,4663,"Non metro"]
[null,null,4664,"Non metro"]
[null,null,4665,"Non metro"]
[null,null,4666,"Non metro"]
[null,null,4667,"Non metro"]
[null,null,4668,"Non metro"]
[null,null,4669,"Non metro"]
[null,null,4670,"Non metro"]
[null,null,4671,"Non metro"]
[null,null,4672,"Non metro"]
[null,null,4673,"Non metro"]
[null,null,4674,"Non metro"]
[null,null,4675,"Non metro"]
[null,null,4676,"Non metro"]
[null,null,4677,"Non metro"]
[null,null,4678,"Non metro"]
[null,null,4679,"Non metro"]
[null,null,4680,"Non metro"]
[null,null,4681,"Non metro"]
[null,null,4682,"Non metro"]
[null,null,4683,"Non metro"]
[null,null,4684,"Non metro"]
[null,null,4685,"Non metro"]
[null,null,4686,"Non metro"]
[null,null,4687,"Non metro"]
[null,null,4688,"Non metro"]
[null,null,4689,"Non metro"]
[null,null,4690,"Non metro"]
[null,null,4691,"Non metro"]
[null,null,4692,"Non metro"]
[null,null,4693,"Non metro"]
[null,null,4694,"Non metro"]
[null,null,4695,"Non metro"]
[null,null,4696,"Non metro"]
[null,null,4697,"Non metro"]
[null,null,4698,"Non metro"]
[null,null,4699,"Non metro"]
[null,null,4700,"Non metro"]
[null,null,4701,"Non metro"]
[null,null,4702,"Non metro"]
[null,null,4703,"Non metro"]
[null,null,4704,"Non metro"]
[null,null,4705,"Non metro"]
[null,null,4706,"Non metro"]
[null,null,4707,"Non metro"]
[null,null,4708,"Non metro"]
[null,null,4709,"Non metro"]
[null,null,4710,"Non metro"]
[null,null,4711,"Non metro"]
[null,null,4712,"Non metro"]
[null,null,4713,"Non metro"]
[null,null,4714,"Non metro"]
[null,null,4715,"Non metro"]
[null,null,4716,"Non metro"]
[null,null,4717,"Non metro"]
[null,null,4718,"Non metro"]
[null,null,4719,"Non metro"]
[null,null,4720,"Non metro"]
[null,null,4721,"Non metro"]
[null,null,4722,"Non metro"]
[null,null,4723,"Non metro"]
[null,null,4724,"Non metro"]
[null,null,4725,"Non metro"]
[null,null,4726,"Non metro"]
[null,null,4727,"Non metro"]
[null,null,4728,"Non metro"]
[null,null,4729,"Non metro"]
[null,null,4730,"Non metro"]
[null,null,4731,"Non metro"]
[null,null,4732,"Non metro"]
[null,null,4733,"Non metro"]
[null,null,4734,"Non metro"]
[null,null,4735,"Non metro"]
[null,null,4736,"Non metro"]
[null,null,4737,"Non metro"]
[null,null,4738,"Non metro"]
[null,null,4739,"Non metro"]
[null,null,4740,"Non metro"]
[null,null,4741,"Non metro"]
[null,null,4742,"Non metro"]
[null,null,4743,"Non metro"]
[null,null,4744,"Non metro"]
[null,null,4745,"Non metro"]
[null,null,4746,"Non metro"]
[null,null,4747,"Non metro"]
[null,null,4748,"Non metro"]
[null,null,4749,"Non metro"]
[null,null,4750,"Non metro"]
[null,null,4751,"Non metro"]
[null,null,4752,"Non metro"]
[null,null,4753,"Non metro"]
[null,null,4754,"Non metro"]
[null,null,4755,"Non metro"]
[null,null,4756,"Non metro"]
[null,null,4757,"Non metro"]
[null,null,4758,"Non metro"]
[null,null,4759,"Non metro"]
[null,null,4760,"Non metro"]
[null,null,4761,"Non metro"]
[null,null,4762,"Non metro"]
[null,null,4763,"Non metro"]
[null,null,4764,"Non metro"]
[null,null,4765,"Non metro"]
[null,null,4766,"Non metro"]
[null,null,4767,"Non metro"]
[null,null,4768,"Non metro"]
[null,null,4769,"Non metro"]
[null,null,4770,"Non metro"]
[null,null,4771,"Non metro"]
[null,null,4772,"Non metro"]
[null,null,4773,"Non metro"]
[null,null,4774,"Non metro"]
[null,null,4775,"Non metro"]
[null,null,4776,"Non metro"]
[null,null,4777,"Non metro"]
[null,null,4778,"Non metro"]
[null,null,4779,"Non metro"]
[null,null,4780,"Non metro"]
[null,null,4781,"Non metro"]
[null,null,4782,"Non metro"]
[null,null,4783,"Non metro"]
[null,null,4784,"Non metro"]
[null,null,4785,"Non metro"]
[null,null,4786,"Non metro"]
[null,null,4787,"Non metro"]
[null,null,4788,"Non metro"]
[null,null,4789,"Non metro"]
[null,null,4790,"Non metro"]
[null,null,4791,"Non metro"]
[null,null,4792,"Non metro"]
[null,null,4793,"Non metro"]
[null,null,4794,"Non metro"]
[null,null,4795,"Non metro"]
[null,null,4796,"Non metro"]
[null,null,4797,"Non metro"]
[null,null,4798,"Non metro"]
[null,null,4799,"Non metro"]
[null,null,4800,"Non metro"]
[null,null,4801,"Non metro"]
[null,null,4802,"Non metro"]
[null,null,4803,"Non metro"]
[null,null,4804,"Non metro"]
[null,null,4805,"Non metro"]
[null,null,4806,"Non metro"]
[null,null,4807,"Non metro"]
[null,null,4808,"Non metro"]
[null,null,4809,"Non metro"]
[null,null,4810,"Non metro"]
[null,null,4811,"Non metro"]
[null,null,4812,"Non metro"]
[null,null,4813,"Non metro"]
[null,null,4814,"Non metro"]
[null,null,4815,"Non metro"]
[null,null,4816,"Non metro"]
[null,null,4817,"Non metro"]
[null,null,4818,"Non metro"]
[null,null,4819,"Non metro"]
[null,null,4820,"Non metro"]
[null,null,4821,"Non metro"]
[null,null,4822,"Non metro"]
[null,null,4823,"Non metro"]
[null,null,4824,"Non metro"]
[null,null,4825,"Non metro"]
[null,null,4826,"Non metro"]
[null,null,4827,"Non metro"]
[null,null,4828,"Non metro"]
[null,null,4829,"Non metro"]
[null,null,4830,"Non metro"]
[null,null,4831,"Non metro"]
[null,null,4832,"Non metro"]
[null,null,4833,"Non metro"]
[null,null,4834,"Non metro"]
[null,null,4835,"Non metro"]
[null,null,4836,"Non metro"]
[null,null,4837,"Non metro"]
[null,null,4838,"Non metro"]
[null,null,4839,"Non metro"]
[null,null,4840,"Non metro"]
[null,null,4841,"Non metro"]
[null,null,4842,"Non metro"]
[null,null,4843,"Non metro"]
[null,null,4844,"Non metro"]
[null,null,4845,"Non metro"]
[null,null,4846,"Non metro"]
[null,null,4847,"Non metro"]
[null,null,4848,"Non metro"]
[null,null,4849,"Non metro"]
[null,null,4850,"Non metro"]
[null,null,4851,"Non metro"]
[null,null,4852,"Non metro"]
[null,null,4853,"Non metro"]
[null,null,4854,"Non metro"]
[null,null,4855,"Non metro"]
[null,null,4856,"Non metro"]
[null,null,4857,"Non metro"]
[null,null,4858,"Non metro"]
[null,null,4859,"Non metro"]
[null,null,4860,"Non metro"]
[null,null,4861,"Non metro"]
[null,null,4862,"Non metro"]
[null,null,4863,"Non metro"]
[null,null,4864,"Non metro"]
[null,null,4865,"Non metro"]
[null,null,4866,"Non metro"]
[null,null,4867,"Non metro"]
[null,null,4868,"Non metro"]
[null,null,4869,"Non metro"]
[null,null,4870,"Non metro"]
[null,null,4871,"Non metro"]
[null,null,4872,"Non metro"]
[null,null,4873,"Non metro"]
[null,null,4874,"Non metro"]
[null,null,4875,"Non metro"]
[null,null,4876,"Non metro"]
[null,null,4877,"Non metro"]
[null,null,4878,"Non metro"]
[null,null,4879,"Non metro"]
[null,null,4880,"Non metro"]
[null,null,4881,"Non metro"]
[null,null,4882,"Non metro"]
[null,null,4883,"Non metro"]
[null,null,4884,"Non metro"]
[null,null,4885,"Non metro"]
[null,null,4886,"Non metro"]
[null,null,4887,"Non metro"]
[null,null,4888,"Non metro"]
[null,null,4889,"Non metro"]
[null,null,4890,"Non metro"]
[null,null,4891,"Non metro"]
[null,null,4892,"Non metro"]
[null,null,4893,"Non metro"]
[null,null,4894,"Non metro"]
[null,null,4895,"Non metro"]
[null,null,4896,"Non metro"]
[null,null,4897,"Non metro"]
[null,null,4898,"Non metro"]
[null,null,4899,"Non metro"]
[null,null,4900,"Non metro"]
[null,null,4901,"Non metro"]
[null,null,4902,"Non metro"]
[null,null,4903,"Non metro"]
[null,null,4904,"Non metro"]
[null,null,4905,"Non metro"]
[null,null,4906,"Non metro"]
[null,null,4907,"Non metro"]
[null,null,4908,"Non metro"]
[null,null,4909,"Non metro"]
[null,null,4910,"Non metro"]
[null,null,4911,"Non metro"]
[null,null,4912,"Non metro"]
[null,null,4913,"Non metro"]
[null,null,4914,"Non metro"]
[null,null,4915,"Non metro"]
[null,null,4916,"Non metro"]
[null,null,4917,"Non metro"]
[null,null,4918,"Non metro"]
[null,null,4919,"Non metro"]
[null,null,4920,"Non metro"]
[null,null,4921,"Non metro"]
[null,null,4922,"Non metro"]
[null,null,4923,"Non metro"]
[null,null,4924,"Non metro"]
[null,null,4925,"Non metro"]
[null,null,4926,"Non metro"]
[null,null,4927,"Non metro"]
[null,null,4928,"Non metro"]
[null,null,4929,"Non metro"]
[null,null,4930,"Non metro"]
[null,null,4931,"Non metro"]
[null,null,4932,"Non metro"]
[null,null,4933,"Non metro"]
[null,null,4934,"Non metro"]
[null,null,4935,"Non metro"]
[null,null,4936,"Non metro"]
[null,null,4937,"Non metro"]
[null,null,4938,"Non metro"]
[null,null,4939,"Non metro"]
[null,null,4940,"Non metro"]
[null,null,4941,"Non metro"]
[null,null,4942,"Non metro"]
[null,null,4943,"Non metro"]
[null,null,4944,"Non metro"]
[null,null,4945,"Non metro"]
[null,null,4946,"Non metro"]
[null,null,4947,"Non metro"]
[null,null,4948,"Non metro"]
[null,null,4949,"Non metro"]
[null,null,4950,"Non metro"]
[null,null,4951,"Non metro"]
[null,null,4952,"Non metro"]
[null,null,4953,"Non metro"]
[null,null,4954,"Non metro"]
[null,null,4955,"Non metro"]
[null,null,4956,"Non metro"]
[null,null,4957,"Non metro"]
[null,null,4958,"Non metro"]
[null,null,4959,"Non metro"]
[null,null,4960,"Non metro"]
[null,null,4961,"Non metro"]
[null,null,4962,"Non metro"]
[null,null,4963,"Non metro"]
[null,null,4964,"Non metro"]
[null,null,4965,"Non metro"]
[null,null,4966,"Non metro"]
[null,null,4967,"Non metro"]
[null,null,4968,"Non metro"]
[null,null,4969,"Non metro"]
[null,null,4970,"Non metro"]
[null,null,4971,"Non metro"]
[null,null,4972,"Non metro"]
[null,null,4973,"Non metro"]
[null,null,4974,"Non metro"]
[null,null,4975,"Non metro"]
[null,null,4976,"Non metro"]
[null,null,4977,"Non metro"]
[null,null,4978,"Non metro"]
[null,null,4979,"Non metro"]
[null,null,4980,"Non metro"]
[null,null,4981,"Non metro"]
[null,null,4982,"Non metro"]
[null,null,4983,"Non metro"]
[null,null,4984,"Non metro"]
[null,null,4985,"Non metro"]
[null,null,4986,"Non metro"]
[null,null,4987,"Non metro"]
[null,null,4988,"Non metro"]
[null,null,4989,"Non metro"]
[null,null,4990,"Non metro"]
[null,null,4991,"Non metro"]
[null,null,4992,"Non metro"]
[null,null,4993,"Non metro"]
[null,null,4994,"Non metro"]
[null,null,4995,"Non metro"]
[null,null,4996,"Non metro"]
[null,null,4997,"Non metro"]
[null,null,4998,"Non metro"]
[null,null,4999,"Non metro"]
[null,null,5000,"Inner city"]
[null,null,5001,"Inner city"]
[null,null,5002,"Inner city"]
[null,null,5003,"Inner city"]
[null,null,5004,"Inner city"]
[null,null,5005,"Inner city"]
[null,null,5006,"Metro"]
[null,null,5007,"Metro"]
[null,null,5008,"Metro"]
[null,null,5009,"Metro"]
[null,null,5010,"Metro"]
[null,null,5011,"Metro"]
[null,null,5012,"Metro"]
[null,null,5013,"Metro"]
[null,null,5014,"Metro"]
[null,null,5015,"Metro"]
[null,null,5016,"Metro"]
[null,null,5017,"Metro"]
[null,null,5018,"Metro"]
[null,null,5019,"Metro"]
[null,null,5020,"Metro"]
[null,null,5021,"Metro"]
[null,null,5022,"Metro"]
[null,null,5023,"Metro"]
[null,null,5024,"Metro"]
[null,null,5025,"Metro"]
[null,null,5026,"Metro"]
[null,null,5027,"Metro"]
[null,null,5028,"Metro"]
[null,null,5029,"Metro"]
[null,null,5030,"Metro"]
[null,null,5031,"Metro"]
[null,null,5032,"Metro"]
[null,null,5033,"Metro"]
[null,null,5034,"Metro"]
[null,null,5035,"Metro"]
[null,null,5036,"Metro"]
[null,null,5037,"Metro"]
[null,null,5038,"Metro"]
[null,null,5039,"Metro"]
[null,null,5040,"Metro"]
[null,null,5041,"Metro"]
[null,null,5042,"Metro"]
[null,null,5043,"Metro"]
[null,null,5044,"Metro"]
[null,null,5045,"Metro"]
[null,null,5046,"Metro"]
[null,null,5047,"Metro"]
[null,null,5048,"Metro"]
[null,null,5049,"Metro"]
[null,null,5050,"Metro"]
[null,null,5051,"Metro"]
[null,null,5052,"Metro"]
[null,null,5053,"Metro"]
[null,null,5054,"Metro"]
[null,null,5055,"Metro"]
[null,null,5056,"Metro"]
[null,null,5057,"Metro"]
[null,null,5058,"Metro"]
[null,null,5059,"Metro"]
[null,null,5060,"Metro"]
[null,null,5061,"Metro"]
[null,null,5062,"Metro"]
[null,null,5063,"Metro"]
[null,null,5064,"Metro"]
[null,null,5065,"Metro"]
[null,null,5066,"Metro"]
[null,null,5067,"Metro"]
[null,null,5068,"Metro"]
[null,null,5069,"Metro"]
[null,null,5070,"Metro"]
[null,null,5071,"Metro"]
[null,null,5072,"Metro"]
[null,null,5073,"Metro"]
[null,null,5074,"Metro"]
[null,null,5075,"Metro"]
[null,null,5076,"Metro"]
[null,null,5077,"Metro"]
[null,null,5078,"Metro"]
[null,null,5079,"Metro"]
[null,null,5080,"Metro"]
[null,null,5081,"Metro"]
[null,null,5082,"Metro"]
[null,null,5083,"Metro"]
[null,null,5084,"Metro"]
[null,null,5085,"Metro"]
[null,null,5086,"Metro"]
[null,null,5087,"Metro"]
[null,null,5088,"Metro"]
[null,null,5089,"Metro"]
[null,null,5090,"Metro"]
[null,null,5091,"Metro"]
[null,null,5092,"Metro"]
[null,null,5093,"Metro"]
[null,null,5094,"Metro"]
[null,null,5095,"Metro"]
[null,null,5096,"Metro"]
[null,null,5097,"Metro"]
[null,null,5098,"Metro"]
[null,null,5099,"Metro"]
[null,null,5100,"Metro"]
[null,null,5101,"Metro"]
[null,null,5102,"Metro"]
[null,null,5103,"Metro"]
[null,null,5104,"Metro"]
[null,null,5105,"Metro"]
[null,null,5106,"Metro"]
[null,null,5107,"Metro"]
[null,null,5108,"Metro"]
[null,null,5109,"Metro"]
[null,null,5110,"Metro"]
[null,null,5111,"Metro"]
[null,null,5112,"Metro"]
[null,null,5113,"Metro"]
[null,null,5114,"Metro"]
[null,null,5115,"Metro"]
[null,null,5116,"Metro"]
[null,null,5117,"Metro"]
[null,null,5118,"Metro"]
[null,null,5119,"Metro"]
[null,null,5120,"Metro"]
[null,null,5121,"Metro"]
[null,null,5122,"Metro"]
[null,null,5123,"Metro"]
[null,null,5124,"Metro"]
[null,null,5125,"Metro"]
[null,null,5126,"Metro"]
[null,null,5127,"Metro"]
[null,null,5128,"Metro"]
[null,null,5129,"Metro"]
[null,null,5130,"Metro"]
[null,null,5131,"Metro"]
[null,null,5132,"Metro"]
[null,null,5133,"Metro"]
[null,null,5134,"Metro"]
[null,null,5135,"Metro"]
[null,null,5136,"Metro"]
[null,null,5137,"Metro"]
[null,null,5138,"Metro"]
[null,null,5139,"Metro"]
[null,null,5140,"Metro"]
[null,null,5141,"Metro"]
[null,null,5142,"Metro"]
[null,null,5143,"Metro"]
[null,null,5144,"Metro"]
[null,null,5145,"Metro"]
[null,null,5146,"Metro"]
[null,null,5147,"Metro"]
[null,null,5148,"Metro"]
[null,null,5149,"Metro"]
[null,null,5150,"Metro"]
[null,null,5151,"Metro"]
[null,null,5152,"Metro"]
[null,null,5153,"Metro"]
[null,null,5154,"Metro"]
[null,null,5155,"Metro"]
[null,null,5156,"Metro"]
[null,null,5157,"Metro"]
[null,null,5158,"Metro"]
[null,null,5159,"Metro"]
[null,null,5160,"Metro"]
[null,null,5161,"Metro"]
[null,null,5162,"Metro"]
[null,null,5163,"Metro"]
[null,null,5164,"Metro"]
[null,null,5165,"Metro"]
[null,null,5166,"Metro"]
[null,null,5167,"Metro"]
[null,null,5168,"Metro"]
[null,null,5169,"Metro"]
[null,null,5170,"Metro"]
[null,null,5171,"Metro"]
[null,null,5172,"Metro"]
[null,null,5173,"Metro"]
[null,null,5174,"Metro"]
[null,null,5175,"Metro"]
[null,null,5176,"Metro"]
[null,null,5177,"Metro"]
[null,null,5178,"Metro"]
[null,null,5179,"Metro"]
[null,null,5180,"Metro"]
[null,null,5181,"Metro"]
[null,null,5182,"Metro"]
[null,null,5183,"Metro"]
[null,null,5184,"Metro"]
[null,null,5185,"Metro"]
[null,null,5186,"Metro"]
[null,null,5187,"Metro"]
[null,null,5188,"Metro"]
[null,null,5189,"Metro"]
[null,null,5190,"Metro"]
[null,null,5191,"Metro"]
[null,null,5192,"Metro"]
[null,null,5193,"Metro"]
[null,null,5194,"Metro"]
[null,null,5195,"Metro"]
[null,null,5196,"Metro"]
[null,null,5197,"Metro"]
[null,null,5198,"Metro"]
[null,null,5199,"Metro"]
[null,null,5200,"Non metro"]
[null,null,5201,"Non metro"]
[null,null,5202,"Non metro"]
[null,null,5203,"Non metro"]
[null,null,5204,"Non metro"]
[null,null,5205,"Non metro"]
[null,null,5206,"Non metro"]
[null,null,5207,"Non metro"]
[null,null,5208,"Non metro"]
[null,null,5209,"Non metro"]
[null,null,5210,"Non metro"]
[null,null,5211,"Non metro"]
[null,null,5212,"Non metro"]
[null,null,5213,"Non metro"]
[null,null,5214,"Non metro"]
[null,null,5215,"Non metro"]
[null,null,5216,"Non metro"]
[null,null,5217,"Non metro"]
[null,null,5218,"Non metro"]
[null,null,5219,"Non metro"]
[null,null,5220,"Non metro"]
[null,null,5221,"Non metro"]
[null,null,5222,"Non metro"]
[null,null,5223,"Non metro"]
[null,null,5224,"Non metro"]
[null,null,5225,"Non metro"]
[null,null,5226,"Non metro"]
[null,null,5227,"Non metro"]
[null,null,5228,"Non metro"]
[null,null,5229,"Non metro"]
[null,null,5230,"Non metro"]
[null,null,5231,"Non metro"]
[null,null,5232,"Non metro"]
[null,null,5233,"Non metro"]
[null,null,5234,"Non metro"]
[null,null,5235,"Non metro"]
[null,null,5236,"Non metro"]
[null,null,5237,"Non metro"]
[null,null,5238,"Non metro"]
[null,null,5239,"Non metro"]
[null,null,5240,"Non metro"]
[null,null,5241,"Non metro"]
[null,null,5242,"Non metro"]
[null,null,5243,"Non metro"]
[null,null,5244,"Non metro"]
[null,null,5245,"Non metro"]
[null,null,5246,"Non metro"]
[null,null,5247,"Non metro"]
[null,null,5248,"Non metro"]
[null,null,5249,"Non metro"]
[null,null,5250,"Non metro"]
[null,null,5251,"Non metro"]
[null,null,5252,"Non metro"]
[null,null,5253,"Non metro"]
[null,null,5254,"Non metro"]
[null,null,5255,"Non metro"]
[null,null,5256,"Non metro"]
[null,null,5257,"Non metro"]
[null,null,5258,"Non metro"]
[null,null,5259,"Non metro"]
[null,null,5260,"Non metro"]
[null,null,5261,"Non metro"]
[null,null,5262,"Non metro"]
[null,null,5263,"Non metro"]
[null,null,5264,"Non metro"]
[null,null,5265,"Non metro"]
[null,null,5266,"Non metro"]
[null,null,5267,"Non metro"]
[null,null,5268,"Non metro"]
[null,null,5269,"Non metro"]
[null,null,5270,"Non metro"]
[null,null,5271,"Non metro"]
[null,null,5272,"Non metro"]
[null,null,5273,"Non metro"]
[null,null,5274,"Non metro"]
[null,null,5275,"Non metro"]
[null,null,5276,"Non metro"]
[null,null,5277,"Non metro"]
[null,null,5278,"Non metro"]
[null,null,5279,"Non metro"]
[null,null,5280,"Non metro"]
[null,null,5281,"Non metro"]
[null,null,5282,"Non metro"]
[null,null,5283,"Non metro"]
[null,null,5284,"Non metro"]
[null,null,5285,"Non metro"]
[null,null,5286,"Non metro"]
[null,null,5287,"Non metro"]
[null,null,5288,"Non metro"]
[null,null,5289,"Non metro"]
[null,null,5290,"Non metro"]
[null,null,5291,"Non metro"]
[null,null,5292,"Non metro"]
[null,null,5293,"Non metro"]
[null,null,5294,"Non metro"]
[null,null,5295,"Non metro"]
[null,null,5296,"Non metro"]
[null,null,5297,"Non metro"]
[null,null,5298,"Non metro"]
[null,null,5299,"Non metro"]
[null,null,5300,"Non metro"]
[null,null,5301,"Non metro"]
[null,null,5302,"Non metro"]
[null,null,5303,"Non metro"]
[null,null,5304,"Non metro"]
[null,null,5305,"Non metro"]
[null,null,5306,"Non metro"]
[null,null,5307,"Non metro"]
[null,null,5308,"Non metro"]
[null,null,5309,"Non metro"]
[null,null,5310,"Non metro"]
[null,null,5311,"Non metro"]
[null,null,5312,"Non metro"]
[null,null,5313,"Non metro"]
[null,null,5314,"Non metro"]
[null,null,5315,"Non metro"]
[null,null,5316,"Non metro"]
[null,null,5317,"Non metro"]
[null,null,5318,"Non metro"]
[null,null,5319,"Non metro"]
[null,null,5320,"Non metro"]
[null,null,5321,"Non metro"]
[null,null,5322,"Non metro"]
[null,null,5323,"Non metro"]
[null,null,5324,"Non metro"]
[null,null,5325,"Non metro"]
[null,null,5326,"Non metro"]
[null,null,5327,"Non metro"]
[null,null,5328,"Non metro"]
[null,null,5329,"Non metro"]
[null,null,5330,"Non metro"]
[null,null,5331,"Non metro"]
[null,null,5332,"Non metro"]
[null,null,5333,"Non metro"]
[null,null,5334,"Non metro"]
[null,null,5335,"Non metro"]
[null,null,5336,"Non metro"]
[null,null,5337,"Non metro"]
[null,null,5338,"Non metro"]
[null,null,5339,"Non metro"]
[null,null,5340,"Non metro"]
[null,null,5341,"Non metro"]
[null,null,5342,"Non metro"]
[null,null,5343,"Non metro"]
[null,null,5344,"Non metro"]
[null,null,5345,"Non metro"]
[null,null,5346,"Non metro"]
[null,null,5347,"Non metro"]
[null,null,5348,"Non metro"]
[null,null,5349,"Non metro"]
[null,null,5350,"Non metro"]
[null,null,5351,"Non metro"]
[null,null,5352,"Non metro"]
[null,null,5353,"Non metro"]
[null,null,5354,"Non metro"]
[null,null,5355,"Non metro"]
[null,null,5356,"Non metro"]
[null,null,5357,"Non metro"]
[null,null,5358,"Non metro"]
[null,null,5359,"Non metro"]
[null,null,5360,"Non metro"]
[null,null,5361,"Non metro"]
[null,null,5362,"Non metro"]
[null,null,5363,"Non metro"]
[null,null,5364,"Non metro"]
[null,null,5365,"Non metro"]
[null,null,5366,"Non metro"]
[null,null,5367,"Non metro"]
[null,null,5368,"Non metro"]
[null,null,5369,"Non metro"]
[null,null,5370,"Non metro"]
[null,null,5371,"Non metro"]
[null,null,5372,"Non metro"]
[null,null,5373,"Non metro"]
[null,null,5374,"Non metro"]
[null,null,5375,"Non metro"]
[null,null,5376,"Non metro"]
[null,null,5377,"Non metro"]
[null,null,5378,"Non metro"]
[null,null,5379,"Non metro"]
[null,null,5380,"Non metro"]
[null,null,5381,"Non metro"]
[null,null,5382,"Non metro"]
[null,null,5383,"Non metro"]
[null,null,5384,"Non metro"]
[null,null,5385,"Non metro"]
[null,null,5386,"Non metro"]
[null,null,5387,"Non metro"]
[null,null,5388,"Non metro"]
[null,null,5389,"Non metro"]
[null,null,5390,"Non metro"]
[null,null,5391,"Non metro"]
[null,null,5392,"Non metro"]
[null,null,5393,"Non metro"]
[null,null,5394,"Non metro"]
[null,null,5395,"Non metro"]
[null,null,5396,"Non metro"]
[null,null,5397,"Non metro"]
[null,null,5398,"Non metro"]
[null,null,5399,"Non metro"]
[null,null,5400,"Non metro"]
[null,null,5401,"Non metro"]
[null,null,5402,"Non metro"]
[null,null,5403,"Non metro"]
[null,null,5404,"Non metro"]
[null,null,5405,"Non metro"]
[null,null,5406,"Non metro"]
[null,null,5407,"Non metro"]
[null,null,5408,"Non metro"]
[null,null,5409,"Non metro"]
[null,null,5410,"Non metro"]
[null,null,5411,"Non metro"]
[null,null,5412,"Non metro"]
[null,null,5413,"Non metro"]
[null,null,5414,"Non metro"]
[null,null,5415,"Non metro"]
[null,null,5416,"Non metro"]
[null,null,5417,"Non metro"]
[null,null,5418,"Non metro"]
[null,null,5419,"Non metro"]
[null,null,5420,"Non metro"]
[null,null,5421,"Non metro"]
[null,null,5422,"Non metro"]
[null,null,5423,"Non metro"]
[null,null,5424,"Non metro"]
[null,null,5425,"Non metro"]
[null,null,5426,"Non metro"]
[null,null,5427,"Non metro"]
[null,null,5428,"Non metro"]
[null,null,5429,"Non metro"]
[null,null,5430,"Non metro"]
[null,null,5431,"Non metro"]
[null,null,5432,"Non metro"]
[null,null,5433,"Non metro"]
[null,null,5434,"Non metro"]
[null,null,5435,"Non metro"]
[null,null,5436,"Non metro"]
[null,null,5437,"Non metro"]
[null,null,5438,"Non metro"]
[null,null,5439,"Non metro"]
[null,null,5440,"Non metro"]
[null,null,5441,"Non metro"]
[null,null,5442,"Non metro"]
[null,null,5443,"Non metro"]
[null,null,5444,"Non metro"]
[null,null,5445,"Non metro"]
[null,null,5446,"Non metro"]
[null,null,5447,"Non metro"]
[null,null,5448,"Non metro"]
[null,null,5449,"Non metro"]
[null,null,5450,"Non metro"]
[null,null,5451,"Non metro"]
[null,null,5452,"Non metro"]
[null,null,5453,"Non metro"]
[null,null,5454,"Non metro"]
[null,null,5455,"Non metro"]
[null,null,5456,"Non metro"]
[null,null,5457,"Non metro"]
[null,null,5458,"Non metro"]
[null,null,5459,"Non metro"]
[null,null,5460,"Non metro"]
[null,null,5461,"Non metro"]
[null,null,5462,"Non metro"]
[null,null,5463,"Non metro"]
[null,null,5464,"Non metro"]
[null,null,5465,"Non metro"]
[null,null,5466,"Non metro"]
[null,null,5467,"Non metro"]
[null,null,5468,"Non metro"]
[null,null,5469,"Non metro"]
[null,null,5470,"Non metro"]
[null,null,5471,"Non metro"]
[null,null,5472,"Non metro"]
[null,null,5473,"Non metro"]
[null,null,5474,"Non metro"]
[null,null,5475,"Non metro"]
[null,null,5476,"Non metro"]
[null,null,5477,"Non metro"]
[null,null,5478,"Non metro"]
[null,null,5479,"Non metro"]
[null,null,5480,"Non metro"]
[null,null,5481,"Non metro"]
[null,null,5482,"Non metro"]
[null,null,5483,"Non metro"]
[null,null,5484,"Non metro"]
[null,null,5485,"Non metro"]
[null,null,5486,"Non metro"]
[null,null,5487,"Non metro"]
[null,null,5488,"Non metro"]
[null,null,5489,"Non metro"]
[null,null,5490,"Non metro"]
[null,null,5491,"Non metro"]
[null,null,5492,"Non metro"]
[null,null,5493,"Non metro"]
[null,null,5494,"Non metro"]
[null,null,5495,"Non metro"]
[null,null,5496,"Non metro"]
[null,null,5497,"Non metro"]
[null,null,5498,"Non metro"]
[null,null,5499,"Non metro"]
[null,null,5500,"Non metro"]
[null,null,5501,"Non metro"]
[null,null,5502,"Non metro"]
[null,null,5503,"Non metro"]
[null,null,5504,"Non metro"]
[null,null,5505,"Non metro"]
[null,null,5506,"Non metro"]
[null,null,5507,"Non metro"]
[null,null,5508,"Non metro"]
[null,null,5509,"Non metro"]
[null,null,5510,"Non metro"]
[null,null,5511,"Non metro"]
[null,null,5512,"Non metro"]
[null,null,5513,"Non metro"]
[null,null,5514,"Non metro"]
[null,null,5515,"Non metro"]
[null,null,5516,"Non metro"]
[null,null,5517,"Non metro"]
[null,null,5518,"Non metro"]
[null,null,5519,"Non metro"]
[null,null,5520,"Non metro"]
[null,null,5521,"Non metro"]
[null,null,5522,"Non metro"]
[null,null,5523,"Non metro"]
[null,null,5524,"Non metro"]
[null,null,5525,"Non metro"]
[null,null,5526,"Non metro"]
[null,null,5527,"Non metro"]
[null,null,5528,"Non metro"]
[null,null,5529,"Non metro"]
[null,null,5530,"Non metro"]
[null,null,5531,"Non metro"]
[null,null,5532,"Non metro"]
[null,null,5533,"Non metro"]
[null,null,5534,"Non metro"]
[null,null,5535,"Non metro"]
[null,null,5536,"Non metro"]
[null,null,5537,"Non metro"]
[null,null,5538,"Non metro"]
[null,null,5539,"Non metro"]
[null,null,5540,"Non metro"]
[null,null,5541,"Non metro"]
[null,null,5542,"Non metro"]
[null,null,5543,"Non metro"]
[null,null,5544,"Non metro"]
[null,null,5545,"Non metro"]
[null,null,5546,"Non metro"]
[null,null,5547,"Non metro"]
[null,null,5548,"Non metro"]
[null,null,5549,"Non metro"]
[null,null,5550,"Non metro"]
[null,null,5551,"Non metro"]
[null,null,5552,"Non metro"]
[null,null,5553,"Non metro"]
[null,null,5554,"Non metro"]
[null,null,5555,"Non metro"]
[null,null,5556,"Non metro"]
[null,null,5557,"Non metro"]
[null,null,5558,"Non metro"]
[null,null,5559,"Non metro"]
[null,null,5560,"Non metro"]
[null,null,5561,"Non metro"]
[null,null,5562,"Non metro"]
[null,null,5563,"Non metro"]
[null,null,5564,"Non metro"]
[null,null,5565,"Non metro"]
[null,null,5566,"Non metro"]
[null,null,5567,"Non metro"]
[null,null,5568,"Non metro"]
[null,null,5569,"Non metro"]
[null,null,5570,"Non metro"]
[null,null,5571,"Non metro"]
[null,null,5572,"Non metro"]
[null,null,5573,"Non metro"]
[null,null,5574,"Non metro"]
[null,null,5575,"Non metro"]
[null,null,5576,"Non metro"]
[null,null,5577,"Non metro"]
[null,null,5578,"Non metro"]
[null,null,5579,"Non metro"]
[null,null,5580,"Non metro"]
[null,null,5581,"Non metro"]
[null,null,5582,"Non metro"]
[null,null,5583,"Non metro"]
[null,null,5584,"Non metro"]
[null,null,5585,"Non metro"]
[null,null,5586,"Non metro"]
[null,null,5587,"Non metro"]
[null,null,5588,"Non metro"]
[null,null,5589,"Non metro"]
[null,null,5590,"Non metro"]
[null,null,5591,"Non metro"]
[null,null,5592,"Non metro"]
[null,null,5593,"Non metro"]
[null,null,5594,"Non metro"]
[null,null,5595,"Non metro"]
[null,null,5596,"Non metro"]
[null,null,5597,"Non metro"]
[null,null,5598,"Non metro"]
[null,null,5599,"Non metro"]
[null,null,5600,"Non metro"]
[null,null,5601,"Non metro"]
[null,null,5602,"Non metro"]
[null,null,5603,"Non metro"]
[null,null,5604,"Non metro"]
[null,null,5605,"Non metro"]
[null,null,5606,"Non metro"]
[null,null,5607,"Non metro"]
[null,null,5608,"Non metro"]
[null,null,5609,"Non metro"]
[null,null,5610,"Non metro"]
[null,null,5611,"Non metro"]
[null,null,5612,"Non metro"]
[null,null,5613,"Non metro"]
[null,null,5614,"Non metro"]
[null,null,5615,"Non metro"]
[null,null,5616,"Non metro"]
[null,null,5617,"Non metro"]
[null,null,5618,"Non metro"]
[null,null,5619,"Non metro"]
[null,null,5620,"Non metro"]
[null,null,5621,"Non metro"]
[null,null,5622,"Non metro"]
[null,null,5623,"Non metro"]
[null,null,5624,"Non metro"]
[null,null,5625,"Non metro"]
[null,null,5626,"Non metro"]
[null,null,5627,"Non metro"]
[null,null,5628,"Non metro"]
[null,null,5629,"Non metro"]
[null,null,5630,"Non metro"]
[null,null,5631,"Non metro"]
[null,null,5632,"Non metro"]
[null,null,5633,"Non metro"]
[null,null,5634,"Non metro"]
[null,null,5635,"Non metro"]
[null,null,5636,"Non metro"]
[null,null,5637,"Non metro"]
[null,null,5638,"Non metro"]
[null,null,5639,"Non metro"]
[null,null,5640,"Non metro"]
[null,null,5641,"Non metro"]
[null,null,5642,"Non metro"]
[null,null,5643,"Non metro"]
[null,null,5644,"Non metro"]
[null,null,5645,"Non metro"]
[null,null,5646,"Non metro"]
[null,null,5647,"Non metro"]
[null,null,5648,"Non metro"]
[null,null,5649,"Non metro"]
[null,null,5650,"Non metro"]
[null,null,5651,"Non metro"]
[null,null,5652,"Non metro"]
[null,null,5653,"Non metro"]
[null,null,5654,"Non metro"]
[null,null,5655,"Non metro"]
[null,null,5656,"Non metro"]
[null,null,5657,"Non metro"]
[null,null,5658,"Non metro"]
[null,null,5659,"Non metro"]
[null,null,5660,"Non metro"]
[null,null,5661,"Non metro"]
[null,null,5662,"Non metro"]
[null,null,5663,"Non metro"]
[null,null,5664,"Non metro"]
[null,null,5665,"Non metro"]
[null,null,5666,"Non metro"]
[null,null,5667,"Non metro"]
[null,null,5668,"Non metro"]
[null,null,5669,"Non metro"]
[null,null,5670,"Non metro"]
[null,null,5671,"Non metro"]
[null,null,5672,"Non metro"]
[null,null,5673,"Non metro"]
[null,null,5674,"Non metro"]
[null,null,5675,"Non metro"]
[null,null,5676,"Non metro"]
[null,null,5677,"Non metro"]
[null,null,5678,"Non metro"]
[null,null,5679,"Non metro"]
[null,null,5680,"Non metro"]
[null,null,5681,"Non metro"]
[null,null,5682,"Non metro"]
[null,null,5683,"Non metro"]
[null,null,5684,"Non metro"]
[null,null,5685,"Non metro"]
[null,null,5686,"Non metro"]
[null,null,5687,"Non metro"]
[null,null,5688,"Non metro"]
[null,null,5689,"Non metro"]
[null,null,5690,"Non metro"]
[null,null,5691,"Non metro"]
[null,null,5692,"Non metro"]
[null,null,5693,"Non metro"]
[null,null,5694,"Non metro"]
[null,null,5695,"Non metro"]
[null,null,5696,"Non metro"]
[null,null,5697,"Non metro"]
[null,null,5698,"Non metro"]
[null,null,5699,"Non metro"]
[null,null,5700,"Non metro"]
[null,null,5701,"Non metro"]
[null,null,5702,"Non metro"]
[null,null,5703,"Non metro"]
[null,null,5704,"Non metro"]
[null,null,5705,"Non metro"]
[null,null,5706,"Non metro"]
[null,null,5707,"Non metro"]
[null,null,5708,"Non metro"]
[null,null,5709,"Non metro"]
[null,null,5710,"Non metro"]
[null,null,5711,"Non metro"]
[null,null,5712,"Non metro"]
[null,null,5713,"Non metro"]
[null,null,5714,"Non metro"]
[null,null,5715,"Non metro"]
[null,null,5716,"Non metro"]
[null,null,5717,"Non metro"]
[null,null,5718,"Non metro"]
[null,null,5719,"Non metro"]
[null,null,5720,"Non metro"]
[null,null,5721,"Non metro"]
[null,null,5722,"Non metro"]
[null,null,5723,"Non metro"]
[null,null,5724,"Non metro"]
[null,null,5725,"Non metro"]
[null,null,5726,"Non metro"]
[null,null,5727,"Non metro"]
[null,null,5728,"Non metro"]
[null,null,5729,"Non metro"]
[null,null,5730,"Non metro"]
[null,null,5731,"Non metro"]
[null,null,5732,"Non metro"]
[null,null,5733,"Non metro"]
[null,null,5734,"Non metro"]
[null,null,5735,"Non metro"]
[null,null,5736,"Non metro"]
[null,null,5737,"Non metro"]
[null,null,5738,"Non metro"]
[null,null,5739,"Non metro"]
[null,null,5740,"Non metro"]
[null,null,5741,"Non metro"]
[null,null,5742,"Non metro"]
[null,null,5743,"Non metro"]
[null,null,5744,"Non metro"]
[null,null,5745,"Non metro"]
[null,null,5746,"Non metro"]
[null,null,5747,"Non metro"]
[null,null,5748,"Non metro"]
[null,null,5749,"Non metro"]
[null,null,5750,"Non metro"]
[null,null,5751,"Non metro"]
[null,null,5752,"Non metro"]
[null,null,5753,"Non metro"]
[null,null,5754,"Non metro"]
[null,null,5755,"Non metro"]
[null,null,5756,"Non metro"]
[null,null,5757,"Non metro"]
[null,null,5758,"Non metro"]
[null,null,5759,"Non metro"]
[null,null,5760,"Non metro"]
[null,null,5761,"Non metro"]
[null,null,5762,"Non metro"]
[null,null,5763,"Non metro"]
[null,null,5764,"Non metro"]
[null,null,5765,"Non metro"]
[null,null,5766,"Non metro"]
[null,null,5767,"Non metro"]
[null,null,5768,"Non metro"]
[null,null,5769,"Non metro"]
[null,null,5770,"Non metro"]
[null,null,5771,"Non metro"]
[null,null,5772,"Non metro"]
[null,null,5773,"Non metro"]
[null,null,5774,"Non metro"]
[null,null,5775,"Non metro"]
[null,null,5776,"Non metro"]
[null,null,5777,"Non metro"]
[null,null,5778,"Non metro"]
[null,null,5779,"Non metro"]
[null,null,5780,"Non metro"]
[null,null,5781,"Non metro"]
[null,null,5782,"Non metro"]
[null,null,5783,"Non metro"]
[null,null,5784,"Non metro"]
[null,null,5785,"Non metro"]
[null,null,5786,"Non metro"]
[null,null,5787,"Non metro"]
[null,null,5788,"Non metro"]
[null,null,5789,"Non metro"]
[null,null,5790,"Non metro"]
[null,null,5791,"Non metro"]
[null,null,5792,"Non metro"]
[null,null,5793,"Non metro"]
[null,null,5794,"Non metro"]
[null,null,5795,"Non metro"]
[null,null,5796,"Non metro"]
[null,null,5797,"Non metro"]
[null,null,5798,"Non metro"]
[null,null,5799,"Non metro"]
[null,null,5800,"Metro"]
[null,null,5801,"Metro"]
[null,null,5802,"Metro"]
[null,null,5803,"Metro"]
[null,null,5804,"Metro"]
[null,null,5805,"Metro"]
[null,null,5806,"Metro"]
[null,null,5807,"Metro"]
[null,null,5808,"Metro"]
[null,null,5809,"Metro"]
[null,null,5810,"Metro"]
[null,null,5811,"Metro"]
[null,null,5812,"Metro"]
[null,null,5813,"Metro"]
[null,null,5814,"Metro"]
[null,null,5815,"Metro"]
[null,null,5816,"Metro"]
[null,null,5817,"Metro"]
[null,null,5818,"Metro"]
[null,null,5819,"Metro"]
[null,null,5820,"Metro"]
[null,null,5821,"Metro"]
[null,null,5822,"Metro"]
[null,null,5823,"Metro"]
[null,null,5824,"Metro"]
[null,null,5825,"Metro"]
[null,null,5826,"Metro"]
[null,null,5827,"Metro"]
[null,null,5828,"Metro"]
[null,null,5829,"Metro"]
[null,null,5830,"Metro"]
[null,null,5831,"Metro"]
[null,null,5832,"Metro"]
[null,null,5833,"Metro"]
[null,null,5834,"Metro"]
[null,null,5835,"Metro"]
[null,null,5836,"Metro"]
[null,null,5837,"Metro"]
[null,null,5838,"Metro"]
[null,null,5839,"Metro"]
[null,null,5840,"Metro"]
[null,null,5841,"Metro"]
[null,null,5842,"Metro"]
[null,null,5843,"Metro"]
[null,null,5844,"Metro"]
[null,null,5845,"Metro"]
[null,null,5846,"Metro"]
[null,null,5847,"Metro"]
[null,null,5848,"Metro"]
[null,null,5849,"Metro"]
[null,null,5850,"Metro"]
[null,null,5851,"Metro"]
[null,null,5852,"Metro"]
[null,null,5853,"Metro"]
[null,null,5854,"Metro"]
[null,null,5855,"Metro"]
[null,null,5856,"Metro"]
[null,null,5857,"Metro"]
[null,null,5858,"Metro"]
[null,null,5859,"Metro"]
[null,null,5860,"Metro"]
[null,null,5861,"Metro"]
[null,null,5862,"Metro"]
[null,null,5863,"Metro"]
[null,null,5864,"Metro"]
[null,null,5865,"Metro"]
[null,null,5866,"Metro"]
[null,null,5867,"Metro"]
[null,null,5868,"Metro"]
[null,null,5869,"Metro"]
[null,null,5870,"Metro"]
[null,null,5871,"Metro"]
[null,null,5872,"Metro"]
[null,null,5873,"Metro"]
[null,null,5874,"Metro"]
[null,null,5875,"Metro"]
[null,null,5876,"Metro"]
[null,null,5877,"Metro"]
[null,null,5878,"Metro"]
[null,null,5879,"Metro"]
[null,null,5880,"Metro"]
[null,null,5881,"Metro"]
[null,null,5882,"Metro"]
[null,null,5883,"Metro"]
[null,null,5884,"Metro"]
[null,null,5885,"Metro"]
[null,null,5886,"Metro"]
[null,null,5887,"Metro"]
[null,null,5888,"Metro"]
[null,null,5889,"Metro"]
[null,null,5890,"Metro"]
[null,null,5891,"Metro"]
[null,null,5892,"Metro"]
[null,null,5893,"Metro"]
[null,null,5894,"Metro"]
[null,null,5895,"Metro"]
[null,null,5896,"Metro"]
[null,null,5897,"Metro"]
[null,null,5898,"Metro"]
[null,null,5899,"Metro"]
[null,null,5900,"Metro"]
[null,null,5901,"Metro"]
[null,null,5902,"Metro"]
[null,null,5903,"Metro"]
[null,null,5904,"Metro"]
[null,null,5905,"Metro"]
[null,null,5906,"Metro"]
[null,null,5907,"Metro"]
[null,null,5908,"Metro"]
[null,null,5909,"Metro"]
[null,null,5910,"Metro"]
[null,null,5911,"Metro"]
[null,null,5912,"Metro"]
[null,null,5913,"Metro"]
[null,null,5914,"Metro"]
[null,null,5915,"Metro"]
[null,null,5916,"Metro"]
[null,null,5917,"Metro"]
[null,null,5918,"Metro"]
[null,null,5919,"Metro"]
[null,null,5920,"Metro"]
[null,null,5921,"Metro"]
[null,null,5922,"Metro"]
[null,null,5923,"Metro"]
[null,null,5924,"Metro"]
[null,null,5925,"Metro"]
[null,null,5926,"Metro"]
[null,null,5927,"Metro"]
[null,null,5928,"Metro"]
[null,null,5929,"Metro"]
[null,null,5930,"Metro"]
[null,null,5931,"Metro"]
[null,null,5932,"Metro"]
[null,null,5933,"Metro"]
[null,null,5934,"Metro"]
[null,null,5935,"Metro"]
[null,null,5936,"Metro"]
[null,null,5937,"Metro"]
[null,null,5938,"Metro"]
[null,null,5939,"Metro"]
[null,null,5940,"Metro"]
[null,null,5941,"Metro"]
[null,null,5942,"Metro"]
[null,null,5943,"Metro"]
[null,null,5944,"Metro"]
[null,null,5945,"Metro"]
[null,null,5946,"Metro"]
[null,null,5947,"Metro"]
[null,null,5948,"Metro"]
[null,null,5949,"Metro"]
[null,null,5950,"Metro"]
[null,null,5951,"Metro"]
[null,null,5952,"Metro"]
[null,null,5953,"Metro"]
[null,null,5954,"Metro"]
[null,null,5955,"Metro"]
[null,null,5956,"Metro"]
[null,null,5957,"Metro"]
[null,null,5958,"Metro"]
[null,null,5959,"Metro"]
[null,null,5960,"Metro"]
[null,null,5961,"Metro"]
[null,null,5962,"Metro"]
[null,null,5963,"Metro"]
[null,null,5964,"Metro"]
[null,null,5965,"Metro"]
[null,null,5966,"Metro"]
[null,null,5967,"Metro"]
[null,null,5968,"Metro"]
[null,null,5969,"Metro"]
[null,null,5970,"Metro"]
[null,null,5971,"Metro"]
[null,null,5972,"Metro"]
[null,null,5973,"Metro"]
[null,null,5974,"Metro"]
[null,null,5975,"Metro"]
[null,null,5976,"Metro"]
[null,null,5977,"Metro"]
[null,null,5978,"Metro"]
[null,null,5979,"Metro"]
[null,null,5980,"Metro"]
[null,null,5981,"Metro"]
[null,null,5982,"Metro"]
[null,null,5983,"Metro"]
[null,null,5984,"Metro"]
[null,null,5985,"Metro"]
[null,null,5986,"Metro"]
[null,null,5987,"Metro"]
[null,null,5988,"Metro"]
[null,null,5989,"Metro"]
[null,null,5990,"Metro"]
[null,null,5991,"Metro"]
[null,null,5992,"Metro"]
[null,null,5993,"Metro"]
[null,null,5994,"Metro"]
[null,null,5995,"Metro"]
[null,null,5996,"Metro"]
[null,null,5997,"Metro"]
[null,null,5998,"Metro"]
[null,null,5999,"Metro"]
[null,null,6000,"Inner city"]
[null,null,6001,"Inner city"]
[null,null,6002,"Inner city"]
[null,null,6003,"Inner city"]
[null,null,6004,"Inner city"]
[null,null,6005,"Metro"]
[null,null,6006,"Metro"]
[null,null,6007,"Metro"]
[null,null,6008,"Metro"]
[null,null,6009,"Metro"]
[null,null,6010,"Metro"]
[null,null,6011,"Metro"]
[null,null,6012,"Metro"]
[null,null,6013,"Metro"]
[null,null,6014,"Metro"]
[null,null,6015,"Metro"]
[null,null,6016,"Metro"]
[null,null,6017,"Metro"]
[null,null,6018,"Metro"]
[null,null,6019,"Metro"]
[null,null,6020,"Metro"]
[null,null,6021,"Metro"]
[null,null,6022,"Metro"]
[null,null,6023,"Metro"]
[null,null,6024,"Metro"]
[null,null,6025,"Metro"]
[null,null,6026,"Metro"]
[null,null,6027,"Metro"]
[null,null,6028,"Metro"]
[null,null,6029,"Metro"]
[null,null,6030,"Metro"]
[null,null,6031,"Metro"]
[null,null,6032,"Metro"]
[null,null,6033,"Metro"]
[null,null,6034,"Metro"]
[null,null,6035,"Metro"]
[null,null,6036,"Metro"]
[null,null,6037,"Metro"]
[null,null,6038,"Metro"]
[null,null,6039,"Metro"]
[null,null,6040,"Metro"]
[null,null,6041,"Metro"]
[null,null,6042,"Metro"]
[null,null,6043,"Metro"]
[null,null,6044,"Metro"]
[null,null,6045,"Metro"]
[null,null,6046,"Metro"]
[null,null,6047,"Metro"]
[null,null,6048,"Metro"]
[null,null,6049,"Metro"]
[null,null,6050,"Metro"]
[null,null,6051,"Metro"]
[null,null,6052,"Metro"]
[null,null,6053,"Metro"]
[null,null,6054,"Metro"]
[null,null,6055,"Metro"]
[null,null,6056,"Metro"]
[null,null,6057,"Metro"]
[null,null,6058,"Metro"]
[null,null,6059,"Metro"]
[null,null,6060,"Metro"]
[null,null,6061,"Metro"]
[null,null,6062,"Metro"]
[null,null,6063,"Metro"]
[null,null,6064,"Metro"]
[null,null,6065,"Metro"]
[null,null,6066,"Metro"]
[null,null,6067,"Metro"]
[null,null,6068,"Metro"]
[null,null,6069,"Metro"]
[null,null,6070,"Metro"]
[null,null,6071,"Metro"]
[null,null,6072,"Metro"]
[null,null,6073,"Metro"]
[null,null,6074,"Metro"]
[null,null,6075,"Metro"]
[null,null,6076,"Metro"]
[null,null,6077,"Metro"]
[null,null,6078,"Metro"]
[null,null,6079,"Metro"]
[null,null,6080,"Metro"]
[null,null,6081,"Metro"]
[null,null,6082,"Metro"]
[null,null,6083,"Metro"]
[null,null,6084,"Metro"]
[null,null,6085,"Metro"]
[null,null,6086,"Metro"]
[null,null,6087,"Metro"]
[null,null,6088,"Metro"]
[null,null,6089,"Metro"]
[null,null,6090,"Metro"]
[null,null,6091,"Metro"]
[null,null,6092,"Metro"]
[null,null,6093,"Metro"]
[null,null,6094,"Metro"]
[null,null,6095,"Metro"]
[null,null,6096,"Metro"]
[null,null,6097,"Metro"]
[null,null,6098,"Metro"]
[null,null,6099,"Metro"]
[null,null,6100,"Metro"]
[null,null,6101,"Metro"]
[null,null,6102,"Metro"]
[null,null,6103,"Metro"]
[null,null,6104,"Metro"]
[null,null,6105,"Metro"]
[null,null,6106,"Metro"]
[null,null,6107,"Metro"]
[null,null,6108,"Metro"]
[null,null,6109,"Metro"]
[null,null,6110,"Metro"]
[null,null,6111,"Metro"]
[null,null,6112,"Metro"]
[null,null,6113,"Metro"]
[null,null,6114,"Metro"]
[null,null,6115,"Metro"]
[null,null,6116,"Metro"]
[null,null,6117,"Metro"]
[null,null,6118,"Metro"]
[null,null,6119,"Metro"]
[null,null,6120,"Metro"]
[null,null,6121,"Metro"]
[null,null,6122,"Metro"]
[null,null,6123,"Metro"]
[null,null,6124,"Metro"]
[null,null,6125,"Metro"]
[null,null,6126,"Metro"]
[null,null,6127,"Metro"]
[null,null,6128,"Metro"]
[null,null,6129,"Metro"]
[null,null,6130,"Metro"]
[null,null,6131,"Metro"]
[null,null,6132,"Metro"]
[null,null,6133,"Metro"]
[null,null,6134,"Metro"]
[null,null,6135,"Metro"]
[null,null,6136,"Metro"]
[null,null,6137,"Metro"]
[null,null,6138,"Metro"]
[null,null,6139,"Metro"]
[null,null,6140,"Metro"]
[null,null,6141,"Metro"]
[null,null,6142,"Metro"]
[null,null,6143,"Metro"]
[null,null,6144,"Metro"]
[null,null,6145,"Metro"]
[null,null,6146,"Metro"]
[null,null,6147,"Metro"]
[null,null,6148,"Metro"]
[null,null,6149,"Metro"]
[null,null,6150,"Metro"]
[null,null,6151,"Metro"]
[null,null,6152,"Metro"]
[null,null,6153,"Metro"]
[null,null,6154,"Metro"]
[null,null,6155,"Metro"]
[null,null,6156,"Metro"]
[null,null,6157,"Metro"]
[null,null,6158,"Metro"]
[null,null,6159,"Metro"]
[null,null,6160,"Metro"]
[null,null,6161,"Metro"]
[null,null,6162,"Metro"]
[null,null,6163,"Metro"]
[null,null,6164,"Metro"]
[null,null,6165,"Metro"]
[null,null,6166,"Metro"]
[null,null,6167,"Metro"]
[null,null,6168,"Metro"]
[null,null,6169,"Metro"]
[null,null,6170,"Metro"]
[null,null,6171,"Metro"]
[null,null,6172,"Metro"]
[null,null,6173,"Metro"]
[null,null,6174,"Metro"]
[null,null,6175,"Metro"]
[null,null,6176,"Metro"]
[null,null,6177,"Metro"]
[null,null,6178,"Metro"]
[null,null,6179,"Metro"]
[null,null,6180,"Metro"]
[null,null,6181,"Metro"]
[null,null,6182,"Metro"]
[null,null,6183,"Metro"]
[null,null,6184,"Metro"]
[null,null,6185,"Metro"]
[null,null,6186,"Metro"]
[null,null,6187,"Metro"]
[null,null,6188,"Metro"]
[null,null,6189,"Metro"]
[null,null,6190,"Metro"]
[null,null,6191,"Metro"]
[null,null,6192,"Metro"]
[null,null,6193,"Metro"]
[null,null,6194,"Metro"]
[null,null,6195,"Metro"]
[null,null,6196,"Metro"]
[null,null,6197,"Metro"]
[null,null,6198,"Metro"]
[null,null,6199,"Metro"]
[null,null,6200,"Metro"]
[null,null,6201,"Metro"]
[null,null,6202,"Metro"]
[null,null,6203,"Metro"]
[null,null,6204,"Metro"]
[null,null,6205,"Metro"]
[null,null,6206,"Metro"]
[null,null,6207,"Metro"]
[null,null,6208,"Metro"]
[null,null,6209,"Metro"]
[null,null,6210,"Metro"]
[null,null,6211,"Metro"]
[null,null,6212,"Metro"]
[null,null,6213,"Metro"]
[null,null,6214,"Metro"]
[null,null,6215,"Non metro"]
[null,null,6216,"Non metro"]
[null,null,6217,"Non metro"]
[null,null,6218,"Non metro"]
[null,null,6219,"Non metro"]
[null,null,6220,"Non metro"]
[null,null,6221,"Non metro"]
[null,null,6222,"Non metro"]
[null,null,6223,"Non metro"]
[null,null,6224,"Non metro"]
[null,null,6225,"Non metro"]
[null,null,6226,"Non metro"]
[null,null,6227,"Non metro"]
[null,null,6228,"Non metro"]
[null,null,6229,"Non metro"]
[null,null,6230,"Non metro"]
[null,null,6231,"Non metro"]
[null,null,6232,"Non metro"]
[null,null,6233,"Non metro"]
[null,null,6234,"Non metro"]
[null,null,6235,"Non metro"]
[null,null,6236,"Non metro"]
[null,null,6237,"Non metro"]
[null,null,6238,"Non metro"]
[null,null,6239,"Non metro"]
[null,null,6240,"Non metro"]
[null,null,6241,"Non metro"]
[null,null,6242,"Non metro"]
[null,null,6243,"Non metro"]
[null,null,6244,"Non metro"]
[null,null,6245,"Non metro"]
[null,null,6246,"Non metro"]
[null,null,6247,"Non metro"]
[null,null,6248,"Non metro"]
[null,null,6249,"Non metro"]
[null,null,6250,"Non metro"]
[null,null,6251,"Non metro"]
[null,null,6252,"Non metro"]
[null,null,6253,"Non metro"]
[null,null,6254,"Non metro"]
[null,null,6255,"Non metro"]
[null,null,6256,"Non metro"]
[null,null,6257,"Non metro"]
[null,null,6258,"Non metro"]
[null,null,6259,"Non metro"]
[null,null,6260,"Non metro"]
[null,null,6261,"Non metro"]
[null,null,6262,"Non metro"]
[null,null,6263,"Non metro"]
[null,null,6264,"Non metro"]
[null,null,6265,"Non metro"]
[null,null,6266,"Non metro"]
[null,null,6267,"Non metro"]
[null,null,6268,"Non metro"]
[null,null,6269,"Non metro"]
[null,null,6270,"Non metro"]
[null,null,6271,"Non metro"]
[null,null,6272,"Non metro"]
[null,null,6273,"Non metro"]
[null,null,6274,"Non metro"]
[null,null,6275,"Non metro"]
[null,null,6276,"Non metro"]
[null,null,6277,"Non metro"]
[null,null,6278,"Non metro"]
[null,null,6279,"Non metro"]
[null,null,6280,"Non metro"]
[null,null,6281,"Non metro"]
[null,null,6282,"Non metro"]
[null,null,6283,"Non metro"]
[null,null,6284,"Non metro"]
[null,null,6285,"Non metro"]
[null,null,6286,"Non metro"]
[null,null,6287,"Non metro"]
[null,null,6288,"Non metro"]
[null,null,6289,"Non metro"]
[null,null,6290,"Non metro"]
[null,null,6291,"Non metro"]
[null,null,6292,"Non metro"]
[null,null,6293,"Non metro"]
[null,null,6294,"Non metro"]
[null,null,6295,"Non metro"]
[null,null,6296,"Non metro"]
[null,null,6297,"Non metro"]
[null,null,6298,"Non metro"]
[null,null,6299,"Non metro"]
[null,null,6300,"Non metro"]
[null,null,6301,"Non metro"]
[null,null,6302,"Non metro"]
[null,null,6303,"Non metro"]
[null,null,6304,"Non metro"]
[null,null,6305,"Non metro"]
[null,null,6306,"Non metro"]
[null,null,6307,"Non metro"]
[null,null,6308,"Non metro"]
[null,null,6309,"Non metro"]
[null,null,6310,"Non metro"]
[null,null,6311,"Non metro"]
[null,null,6312,"Non metro"]
[null,null,6313,"Non metro"]
[null,null,6314,"Non metro"]
[null,null,6315,"Non metro"]
[null,null,6316,"Non metro"]
[null,null,6317,"Non metro"]
[null,null,6318,"Non metro"]
[null,null,6319,"Non metro"]
[null,null,6320,"Non metro"]
[null,null,6321,"Non metro"]
[null,null,6322,"Non metro"]
[null,null,6323,"Non metro"]
[null,null,6324,"Non metro"]
[null,null,6325,"Non metro"]
[null,null,6326,"Non metro"]
[null,null,6327,"Non metro"]
[null,null,6328,"Non metro"]
[null,null,6329,"Non metro"]
[null,null,6330,"Non metro"]
[null,null,6331,"Non metro"]
[null,null,6332,"Non metro"]
[null,null,6333,"Non metro"]
[null,null,6334,"Non metro"]
[null,null,6335,"Non metro"]
[null,null,6336,"Non metro"]
[null,null,6337,"Non metro"]
[null,null,6338,"Non metro"]
[null,null,6339,"Non metro"]
[null,null,6340,"Non metro"]
[null,null,6341,"Non metro"]
[null,null,6342,"Non metro"]
[null,null,6343,"Non metro"]
[null,null,6344,"Non metro"]
[null,null,6345,"Non metro"]
[null,null,6346,"Non metro"]
[null,null,6347,"Non metro"]
[null,null,6348,"Non metro"]
[null,null,6349,"Non metro"]
[null,null,6350,"Non metro"]
[null,null,6351,"Non metro"]
[null,null,6352,"Non metro"]
[null,null,6353,"Non metro"]
[null,null,6354,"Non metro"]
[null,null,6355,"Non metro"]
[null,null,6356,"Non metro"]
[null,null,6357,"Non metro"]
[null,null,6358,"Non metro"]
[null,null,6359,"Non metro"]
[null,null,6360,"Non metro"]
[null,null,6361,"Non metro"]
[null,null,6362,"Non metro"]
[null,null,6363,"Non metro"]
[null,null,6364,"Non metro"]
[null,null,6365,"Non metro"]
[null,null,6366,"Non metro"]
[null,null,6367,"Non metro"]
[null,null,6368,"Non metro"]
[null,null,6369,"Non metro"]
[null,null,6370,"Non metro"]
[null,null,6371,"Non metro"]
[null,null,6372,"Non metro"]
[null,null,6373,"Non metro"]
[null,null,6374,"Non metro"]
[null,null,6375,"Non metro"]
[null,null,6376,"Non metro"]
[null,null,6377,"Non metro"]
[null,null,6378,"Non metro"]
[null,null,6379,"Non metro"]
[null,null,6380,"Non metro"]
[null,null,6381,"Non metro"]
[null,null,6382,"Non metro"]
[null,null,6383,"Non metro"]
[null,null,6384,"Non metro"]
[null,null,6385,"Non metro"]
[null,null,6386,"Non metro"]
[null,null,6387,"Non metro"]
[null,null,6388,"Non metro"]
[null,null,6389,"Non metro"]
[null,null,6390,"Non metro"]
[null,null,6391,"Non metro"]
[null,null,6392,"Non metro"]
[null,null,6393,"Non metro"]
[null,null,6394,"Non metro"]
[null,null,6395,"Non metro"]
[null,null,6396,"Non metro"]
[null,null,6397,"Non metro"]
[null,null,6398,"Non metro"]
[null,null,6399,"Non metro"]
[null,null,6400,"Non metro"]
[null,null,6401,"Non metro"]
[null,null,6402,"Non metro"]
[null,null,6403,"Non metro"]
[null,null,6404,"Non metro"]
[null,null,6405,"Non metro"]
[null,null,6406,"Non metro"]
[null,null,6407,"Non metro"]
[null,null,6408,"Non metro"]
[null,null,6409,"Non metro"]
[null,null,6410,"Non metro"]
[null,null,6411,"Non metro"]
[null,null,6412,"Non metro"]
[null,null,6413,"Non metro"]
[null,null,6414,"Non metro"]
[null,null,6415,"Non metro"]
[null,null,6416,"Non metro"]
[null,null,6417,"Non metro"]
[null,null,6418,"Non metro"]
[null,null,6419,"Non metro"]
[null,null,6420,"Non metro"]
[null,null,6421,"Non metro"]
[null,null,6422,"Non metro"]
[null,null,6423,"Non metro"]
[null,null,6424,"Non metro"]
[null,null,6425,"Non metro"]
[null,null,6426,"Non metro"]
[null,null,6427,"Non metro"]
[null,null,6428,"Non metro"]
[null,null,6429,"Non metro"]
[null,null,6430,"Non metro"]
[null,null,6431,"Non metro"]
[null,null,6432,"Non metro"]
[null,null,6433,"Non metro"]
[null,null,6434,"Non metro"]
[null,null,6435,"Non metro"]
[null,null,6436,"Non metro"]
[null,null,6437,"Non metro"]
[null,null,6438,"Non metro"]
[null,null,6439,"Non metro"]
[null,null,6440,"Non metro"]
[null,null,6441,"Non metro"]
[null,null,6442,"Non metro"]
[null,null,6443,"Non metro"]
[null,null,6444,"Non metro"]
[null,null,6445,"Non metro"]
[null,null,6446,"Non metro"]
[null,null,6447,"Non metro"]
[null,null,6448,"Non metro"]
[null,null,6449,"Non metro"]
[null,null,6450,"Non metro"]
[null,null,6451,"Non metro"]
[null,null,6452,"Non metro"]
[null,null,6453,"Non metro"]
[null,null,6454,"Non metro"]
[null,null,6455,"Non metro"]
[null,null,6456,"Non metro"]
[null,null,6457,"Non metro"]
[null,null,6458,"Non metro"]
[null,null,6459,"Non metro"]
[null,null,6460,"Non metro"]
[null,null,6461,"Non metro"]
[null,null,6462,"Non metro"]
[null,null,6463,"Non metro"]
[null,null,6464,"Non metro"]
[null,null,6465,"Non metro"]
[null,null,6466,"Non metro"]
[null,null,6467,"Non metro"]
[null,null,6468,"Non metro"]
[null,null,6469,"Non metro"]
[null,null,6470,"Non metro"]
[null,null,6471,"Non metro"]
[null,null,6472,"Non metro"]
[null,null,6473,"Non metro"]
[null,null,6474,"Non metro"]
[null,null,6475,"Non metro"]
[null,null,6476,"Non metro"]
[null,null,6477,"Non metro"]
[null,null,6478,"Non metro"]
[null,null,6479,"Non metro"]
[null,null,6480,"Non metro"]
[null,null,6481,"Non metro"]
[null,null,6482,"Non metro"]
[null,null,6483,"Non metro"]
[null,null,6484,"Non metro"]
[null,null,6485,"Non metro"]
[null,null,6486,"Non metro"]
[null,null,6487,"Non metro"]
[null,null,6488,"Non metro"]
[null,null,6489,"Non metro"]
[null,null,6490,"Non metro"]
[null,null,6491,"Non metro"]
[null,null,6492,"Non metro"]
[null,null,6493,"Non metro"]
[null,null,6494,"Non metro"]
[null,null,6495,"Non metro"]
[null,null,6496,"Non metro"]
[null,null,6497,"Non metro"]
[null,null,6498,"Non metro"]
[null,null,6499,"Non metro"]
[null,null,6500,"Non metro"]
[null,null,6501,"Non metro"]
[null,null,6502,"Non metro"]
[null,null,6503,"Non metro"]
[null,null,6504,"Non metro"]
[null,null,6505,"Non metro"]
[null,null,6506,"Non metro"]
[null,null,6507,"Non metro"]
[null,null,6508,"Non metro"]
[null,null,6509,"Non metro"]
[null,null,6510,"Non metro"]
[null,null,6511,"Non metro"]
[null,null,6512,"Non metro"]
[null,null,6513,"Non metro"]
[null,null,6514,"Non metro"]
[null,null,6515,"Non metro"]
[null,null,6516,"Non metro"]
[null,null,6517,"Non metro"]
[null,null,6518,"Non metro"]
[null,null,6519,"Non metro"]
[null,null,6520,"Non metro"]
[null,null,6521,"Non metro"]
[null,null,6522,"Non metro"]
[null,null,6523,"Non metro"]
[null,null,6524,"Non metro"]
[null,null,6525,"Non metro"]
[null,null,6526,"Non metro"]
[null,null,6527,"Non metro"]
[null,null,6528,"Non metro"]
[null,null,6529,"Non metro"]
[null,null,6530,"Non metro"]
[null,null,6531,"Non metro"]
[null,null,6532,"Non metro"]
[null,null,6533,"Non metro"]
[null,null,6534,"Non metro"]
[null,null,6535,"Non metro"]
[null,null,6536,"Non metro"]
[null,null,6537,"Non metro"]
[null,null,6538,"Non metro"]
[null,null,6539,"Non metro"]
[null,null,6540,"Non metro"]
[null,null,6541,"Non metro"]
[null,null,6542,"Non metro"]
[null,null,6543,"Non metro"]
[null,null,6544,"Non metro"]
[null,null,6545,"Non metro"]
[null,null,6546,"Non metro"]
[null,null,6547,"Non metro"]
[null,null,6548,"Non metro"]
[null,null,6549,"Non metro"]
[null,null,6550,"Non metro"]
[null,null,6551,"Non metro"]
[null,null,6552,"Non metro"]
[null,null,6553,"Non metro"]
[null,null,6554,"Non metro"]
[null,null,6555,"Non metro"]
[null,null,6556,"Non metro"]
[null,null,6557,"Non metro"]
[null,null,6558,"Non metro"]
[null,null,6559,"Non metro"]
[null,null,6560,"Non metro"]
[null,null,6561,"Non metro"]
[null,null,6562,"Non metro"]
[null,null,6563,"Non metro"]
[null,null,6564,"Non metro"]
[null,null,6565,"Non metro"]
[null,null,6566,"Non metro"]
[null,null,6567,"Non metro"]
[null,null,6568,"Non metro"]
[null,null,6569,"Non metro"]
[null,null,6570,"Non metro"]
[null,null,6571,"Non metro"]
[null,null,6572,"Non metro"]
[null,null,6573,"Non metro"]
[null,null,6574,"Non metro"]
[null,null,6575,"Non metro"]
[null,null,6576,"Non metro"]
[null,null,6577,"Non metro"]
[null,null,6578,"Non metro"]
[null,null,6579,"Non metro"]
[null,null,6580,"Non metro"]
[null,null,6581,"Non metro"]
[null,null,6582,"Non metro"]
[null,null,6583,"Non metro"]
[null,null,6584,"Non metro"]
[null,null,6585,"Non metro"]
[null,null,6586,"Non metro"]
[null,null,6587,"Non metro"]
[null,null,6588,"Non metro"]
[null,null,6589,"Non metro"]
[null,null,6590,"Non metro"]
[null,null,6591,"Non metro"]
[null,null,6592,"Non metro"]
[null,null,6593,"Non metro"]
[null,null,6594,"Non metro"]
[null,null,6595,"Non metro"]
[null,null,6596,"Non metro"]
[null,null,6597,"Non metro"]
[null,null,6598,"Non metro"]
[null,null,6599,"Non metro"]
[null,null,6600,"Non metro"]
[null,null,6601,"Non metro"]
[null,null,6602,"Non metro"]
[null,null,6603,"Non metro"]
[null,null,6604,"Non metro"]
[null,null,6605,"Non metro"]
[null,null,6606,"Non metro"]
[null,null,6607,"Non metro"]
[null,null,6608,"Non metro"]
[null,null,6609,"Non metro"]
[null,null,6610,"Non metro"]
[null,null,6611,"Non metro"]
[null,null,6612,"Non metro"]
[null,null,6613,"Non metro"]
[null,null,6614,"Non metro"]
[null,null,6615,"Non metro"]
[null,null,6616,"Non metro"]
[null,null,6617,"Non metro"]
[null,null,6618,"Non metro"]
[null,null,6619,"Non metro"]
[null,null,6620,"Non metro"]
[null,null,6621,"Non metro"]
[null,null,6622,"Non metro"]
[null,null,6623,"Non metro"]
[null,null,6624,"Non metro"]
[null,null,6625,"Non metro"]
[null,null,6626,"Non metro"]
[null,null,6627,"Non metro"]
[null,null,6628,"Non metro"]
[null,null,6629,"Non metro"]
[null,null,6630,"Non metro"]
[null,null,6631,"Non metro"]
[null,null,6632,"Non metro"]
[null,null,6633,"Non metro"]
[null,null,6634,"Non metro"]
[null,null,6635,"Non metro"]
[null,null,6636,"Non metro"]
[null,null,6637,"Non metro"]
[null,null,6638,"Non metro"]
[null,null,6639,"Non metro"]
[null,null,6640,"Non metro"]
[null,null,6641,"Non metro"]
[null,null,6642,"Non metro"]
[null,null,6643,"Non metro"]
[null,null,6644,"Non metro"]
[null,null,6645,"Non metro"]
[null,null,6646,"Non metro"]
[null,null,6647,"Non metro"]
[null,null,6648,"Non metro"]
[null,null,6649,"Non metro"]
[null,null,6650,"Non metro"]
[null,null,6651,"Non metro"]
[null,null,6652,"Non metro"]
[null,null,6653,"Non metro"]
[null,null,6654,"Non metro"]
[null,null,6655,"Non metro"]
[null,null,6656,"Non metro"]
[null,null,6657,"Non metro"]
[null,null,6658,"Non metro"]
[null,null,6659,"Non metro"]
[null,null,6660,"Non metro"]
[null,null,6661,"Non metro"]
[null,null,6662,"Non metro"]
[null,null,6663,"Non metro"]
[null,null,6664,"Non metro"]
[null,null,6665,"Non metro"]
[null,null,6666,"Non metro"]
[null,null,6667,"Non metro"]
[null,null,6668,"Non metro"]
[null,null,6669,"Non metro"]
[null,null,6670,"Non metro"]
[null,null,6671,"Non metro"]
[null,null,6672,"Non metro"]
[null,null,6673,"Non metro"]
[null,null,6674,"Non metro"]
[null,null,6675,"Non metro"]
[null,null,6676,"Non metro"]
[null,null,6677,"Non metro"]
[null,null,6678,"Non metro"]
[null,null,6679,"Non metro"]
[null,null,6680,"Non metro"]
[null,null,6681,"Non metro"]
[null,null,6682,"Non metro"]
[null,null,6683,"Non metro"]
[null,null,6684,"Non metro"]
[null,null,6685,"Non metro"]
[null,null,6686,"Non metro"]
[null,null,6687,"Non metro"]
[null,null,6688,"Non metro"]
[null,null,6689,"Non metro"]
[null,null,6690,"Non metro"]
[null,null,6691,"Non metro"]
[null,null,6692,"Non metro"]
[null,null,6693,"Non metro"]
[null,null,6694,"Non metro"]
[null,null,6695,"Non metro"]
[null,null,6696,"Non metro"]
[null,null,6697,"Non metro"]
[null,null,6698,"Non metro"]
[null,null,6699,"Non metro"]
[null,null,6700,"Non metro"]
[null,null,6701,"Non metro"]
[null,null,6702,"Non metro"]
[null,null,6703,"Non metro"]
[null,null,6704,"Non metro"]
[null,null,6705,"Non metro"]
[null,null,6706,"Non metro"]
[null,null,6707,"Non metro"]
[null,null,6708,"Non metro"]
[null,null,6709,"Non metro"]
[null,null,6710,"Non metro"]
[null,null,6711,"Non metro"]
[null,null,6712,"Non metro"]
[null,null,6713,"Non metro"]
[null,null,6714,"Non metro"]
[null,null,6715,"Non metro"]
[null,null,6716,"Non metro"]
[null,null,6717,"Non metro"]
[null,null,6718,"Non metro"]
[null,null,6719,"Non metro"]
[null,null,6720,"Non metro"]
[null,null,6721,"Non metro"]
[null,null,6722,"Non metro"]
[null,null,6723,"Non metro"]
[null,null,6724,"Non metro"]
[null,null,6725,"Non metro"]
[null,null,6726,"Non metro"]
[null,null,6727,"Non metro"]
[null,null,6728,"Non metro"]
[null,null,6729,"Non metro"]
[null,null,6730,"Non metro"]
[null,null,6731,"Non metro"]
[null,null,6732,"Non metro"]
[null,null,6733,"Non metro"]
[null,null,6734,"Non metro"]
[null,null,6735,"Non metro"]
[null,null,6736,"Non metro"]
[null,null,6737,"Non metro"]
[null,null,6738,"Non metro"]
[null,null,6739,"Non metro"]
[null,null,6740,"Non metro"]
[null,null,6741,"Non metro"]
[null,null,6742,"Non metro"]
[null,null,6743,"Non metro"]
[null,null,6744,"Non metro"]
[null,null,6745,"Non metro"]
[null,null,6746,"Non metro"]
[null,null,6747,"Non metro"]
[null,null,6748,"Non metro"]
[null,null,6749,"Non metro"]
[null,null,6750,"Non metro"]
[null,null,6751,"Non metro"]
[null,null,6752,"Non metro"]
[null,null,6753,"Non metro"]
[null,null,6754,"Non metro"]
[null,null,6755,"Non metro"]
[null,null,6756,"Non metro"]
[null,null,6757,"Non metro"]
[null,null,6758,"Non metro"]
[null,null,6759,"Non metro"]
[null,null,6760,"Non metro"]
[null,null,6761,"Non metro"]
[null,null,6762,"Non metro"]
[null,null,6763,"Non metro"]
[null,null,6764,"Non metro"]
[null,null,6765,"Non metro"]
[null,null,6766,"Non metro"]
[null,null,6767,"Non metro"]
[null,null,6768,"Non metro"]
[null,null,6769,"Non metro"]
[null,null,6770,"Non metro"]
[null,null,6771,"Non metro"]
[null,null,6772,"Non metro"]
[null,null,6773,"Non metro"]
[null,null,6774,"Non metro"]
[null,null,6775,"Non metro"]
[null,null,6776,"Non metro"]
[null,null,6777,"Non metro"]
[null,null,6778,"Non metro"]
[null,null,6779,"Non metro"]
[null,null,6780,"Non metro"]
[null,null,6781,"Non metro"]
[null,null,6782,"Non metro"]
[null,null,6783,"Non metro"]
[null,null,6784,"Non metro"]
[null,null,6785,"Non metro"]
[null,null,6786,"Non metro"]
[null,null,6787,"Non metro"]
[null,null,6788,"Non metro"]
[null,null,6789,"Non metro"]
[null,null,6790,"Non metro"]
[null,null,6791,"Non metro"]
[null,null,6792,"Non metro"]
[null,null,6793,"Non metro"]
[null,null,6794,"Non metro"]
[null,null,6795,"Non metro"]
[null,null,6796,"Non metro"]
[null,null,6797,"Non metro"]
[null,null,6798,"Non metro"]
[null,null,6799,"Non metro"]
[null,null,6800,"Metro"]
[null,null,6801,"Metro"]
[null,null,6802,"Metro"]
[null,null,6803,"Metro"]
[null,null,6804,"Metro"]
[null,null,6805,"Metro"]
[null,null,6806,"Metro"]
[null,null,6807,"Metro"]
[null,null,6808,"Metro"]
[null,null,6809,"Metro"]
[null,null,6810,"Metro"]
[null,null,6811,"Metro"]
[null,null,6812,"Metro"]
[null,null,6813,"Metro"]
[null,null,6814,"Metro"]
[null,null,6815,"Metro"]
[null,null,6816,"Metro"]
[null,null,6817,"Metro"]
[null,null,6818,"Metro"]
[null,null,6819,"Metro"]
[null,null,6820,"Metro"]
[null,null,6821,"Metro"]
[null,null,6822,"Metro"]
[null,null,6823,"Metro"]
[null,null,6824,"Metro"]
[null,null,6825,"Metro"]
[null,null,6826,"Metro"]
[null,null,6827,"Metro"]
[null,null,6828,"Metro"]
[null,null,6829,"Metro"]
[null,null,6830,"Metro"]
[null,null,6831,"Metro"]
[null,null,6832,"Metro"]
[null,null,6833,"Metro"]
[null,null,6834,"Metro"]
[null,null,6835,"Metro"]
[null,null,6836,"Metro"]
[null,null,6837,"Metro"]
[null,null,6838,"Metro"]
[null,null,6839,"Metro"]
[null,null,6840,"Metro"]
[null,null,6841,"Metro"]
[null,null,6842,"Metro"]
[null,null,6843,"Metro"]
[null,null,6844,"Metro"]
[null,null,6845,"Metro"]
[null,null,6846,"Metro"]
[null,null,6847,"Metro"]
[null,null,6848,"Metro"]
[null,null,6849,"Metro"]
[null,null,6850,"Metro"]
[null,null,6851,"Metro"]
[null,null,6852,"Metro"]
[null,null,6853,"Metro"]
[null,null,6854,"Metro"]
[null,null,6855,"Metro"]
[null,null,6856,"Metro"]
[null,null,6857,"Metro"]
[null,null,6858,"Metro"]
[null,null,6859,"Metro"]
[null,null,6860,"Metro"]
[null,null,6861,"Metro"]
[null,null,6862,"Metro"]
[null,null,6863,"Metro"]
[null,null,6864,"Metro"]
[null,null,6865,"Metro"]
[null,null,6866,"Metro"]
[null,null,6867,"Metro"]
[null,null,6868,"Metro"]
[null,null,6869,"Metro"]
[null,null,6870,"Metro"]
[null,null,6871,"Metro"]
[null,null,6872,"Metro"]
[null,null,6873,"Metro"]
[null,null,6874,"Metro"]
[null,null,6875,"Metro"]
[null,null,6876,"Metro"]
[null,null,6877,"Metro"]
[null,null,6878,"Metro"]
[null,null,6879,"Metro"]
[null,null,6880,"Metro"]
[null,null,6881,"Metro"]
[null,null,6882,"Metro"]
[null,null,6883,"Metro"]
[null,null,6884,"Metro"]
[null,null,6885,"Metro"]
[null,null,6886,"Metro"]
[null,null,6887,"Metro"]
[null,null,6888,"Metro"]
[null,null,6889,"Metro"]
[null,null,6890,"Metro"]
[null,null,6891,"Metro"]
[null,null,6892,"Metro"]
[null,null,6893,"Metro"]
[null,null,6894,"Metro"]
[null,null,6895,"Metro"]
[null,null,6896,"Metro"]
[null,null,6897,"Metro"]
[null,null,6898,"Metro"]
[null,null,6899,"Metro"]
[null,null,6900,"Metro"]
[null,null,6901,"Metro"]
[null,null,6902,"Metro"]
[null,null,6903,"Metro"]
[null,null,6904,"Metro"]
[null,null,6905,"Metro"]
[null,null,6906,"Metro"]
[null,null,6907,"Metro"]
[null,null,6908,"Metro"]
[null,null,6909,"Metro"]
[null,null,6910,"Metro"]
[null,null,6911,"Metro"]
[null,null,6912,"Metro"]
[null,null,6913,"Metro"]
[null,null,6914,"Metro"]
[null,null,6915,"Metro"]
[null,null,6916,"Metro"]
[null,null,6917,"Metro"]
[null,null,6918,"Metro"]
[null,null,6919,"Metro"]
[null,null,6920,"Metro"]
[null,null,6921,"Metro"]
[null,null,6922,"Metro"]
[null,null,6923,"Metro"]
[null,null,6924,"Metro"]
[null,null,6925,"Metro"]
[null,null,6926,"Metro"]
[null,null,6927,"Metro"]
[null,null,6928,"Metro"]
[null,null,6929,"Metro"]
[null,null,6930,"Metro"]
[null,null,6931,"Metro"]
[null,null,6932,"Metro"]
[null,null,6933,"Metro"]
[null,null,6934,"Metro"]
[null,null,6935,"Metro"]
[null,null,6936,"Metro"]
[null,null,6937,"Metro"]
[null,null,6938,"Metro"]
[null,null,6939,"Metro"]
[null,null,6940,"Metro"]
[null,null,6941,"Metro"]
[null,null,6942,"Metro"]
[null,null,6943,"Metro"]
[null,null,6944,"Metro"]
[null,null,6945,"Metro"]
[null,null,6946,"Metro"]
[null,null,6947,"Metro"]
[null,null,6948,"Metro"]
[null,null,6949,"Metro"]
[null,null,6950,"Metro"]
[null,null,6951,"Metro"]
[null,null,6952,"Metro"]
[null,null,6953,"Metro"]
[null,null,6954,"Metro"]
[null,null,6955,"Metro"]
[null,null,6956,"Metro"]
[null,null,6957,"Metro"]
[null,null,6958,"Metro"]
[null,null,6959,"Metro"]
[null,null,6960,"Metro"]
[null,null,6961,"Metro"]
[null,null,6962,"Metro"]
[null,null,6963,"Metro"]
[null,null,6964,"Metro"]
[null,null,6965,"Metro"]
[null,null,6966,"Metro"]
[null,null,6967,"Metro"]
[null,null,6968,"Metro"]
[null,null,6969,"Metro"]
[null,null,6970,"Metro"]
[null,null,6971,"Metro"]
[null,null,6972,"Metro"]
[null,null,6973,"Metro"]
[null,null,6974,"Metro"]
[null,null,6975,"Metro"]
[null,null,6976,"Metro"]
[null,null,6977,"Metro"]
[null,null,6978,"Metro"]
[null,null,6979,"Metro"]
[null,null,6980,"Metro"]
[null,null,6981,"Metro"]
[null,null,6982,"Metro"]
[null,null,6983,"Metro"]
[null,null,6984,"Metro"]
[null,null,6985,"Metro"]
[null,null,6986,"Metro"]
[null,null,6987,"Metro"]
[null,null,6988,"Metro"]
[null,null,6989,"Metro"]
[null,null,6990,"Metro"]
[null,null,6991,"Metro"]
[null,null,6992,"Metro"]
[null,null,6993,"Metro"]
[null,null,6994,"Metro"]
[null,null,6995,"Metro"]
[null,null,6996,"Metro"]
[null,null,6997,"Metro"]
[null,null,6998,"Metro"]
[null,null,6999,"Metro"]
[null,null,7000,"Inner city"]
[null,null,7001,"Inner city"]
[null,null,7002,"Inner city"]
[null,null,7003,"Inner city"]
[null,null,7004,"Metro"]
[null,null,7005,"Metro"]
[null,null,7006,"Metro"]
[null,null,7007,"Metro"]
[null,null,7008,"Metro"]
[null,null,7009,"Metro"]
[null,null,7010,"Metro"]
[null,null,7011,"Metro"]
[null,null,7012,"Metro"]
[null,null,7013,"Metro"]
[null,null,7014,"Metro"]
[null,null,7015,"Metro"]
[null,null,7016,"Metro"]
[null,null,7017,"Metro"]
[null,null,7018,"Metro"]
[null,null,7019,"Metro"]
[null,null,7020,"Metro"]
[null,null,7021,"Metro"]
[null,null,7022,"Metro"]
[null,null,7023,"Metro"]
[null,null,7024,"Metro"]
[null,null,7025,"Metro"]
[null,null,7026,"Metro"]
[null,null,7027,"Metro"]
[null,null,7028,"Metro"]
[null,null,7029,"Metro"]
[null,null,7030,"Metro"]
[null,null,7031,"Metro"]
[null,null,7032,"Metro"]
[null,null,7033,"Metro"]
[null,null,7034,"Metro"]
[null,null,7035,"Metro"]
[null,null,7036,"Metro"]
[null,null,7037,"Metro"]
[null,null,7038,"Metro"]
[null,null,7039,"Metro"]
[null,null,7040,"Metro"]
[null,null,7041,"Metro"]
[null,null,7042,"Metro"]
[null,null,7043,"Metro"]
[null,null,7044,"Metro"]
[null,null,7045,"Metro"]
[null,null,7046,"Metro"]
[null,null,7047,"Metro"]
[null,null,7048,"Metro"]
[null,null,7049,"Metro"]
[null,null,7050,"Metro"]
[null,null,7051,"Metro"]
[null,null,7052,"Metro"]
[null,null,7053,"Metro"]
[null,null,7054,"Metro"]
[null,null,7055,"Metro"]
[null,null,7056,"Metro"]
[null,null,7057,"Metro"]
[null,null,7058,"Metro"]
[null,null,7059,"Metro"]
[null,null,7060,"Metro"]
[null,null,7061,"Metro"]
[null,null,7062,"Metro"]
[null,null,7063,"Metro"]
[null,null,7064,"Metro"]
[null,null,7065,"Metro"]
[null,null,7066,"Metro"]
[null,null,7067,"Metro"]
[null,null,7068,"Metro"]
[null,null,7069,"Metro"]
[null,null,7070,"Metro"]
[null,null,7071,"Metro"]
[null,null,7072,"Metro"]
[null,null,7073,"Metro"]
[null,null,7074,"Metro"]
[null,null,7075,"Metro"]
[null,null,7076,"Metro"]
[null,null,7077,"Metro"]
[null,null,7078,"Metro"]
[null,null,7079,"Metro"]
[null,null,7080,"Metro"]
[null,null,7081,"Metro"]
[null,null,7082,"Metro"]
[null,null,7083,"Metro"]
[null,null,7084,"Metro"]
[null,null,7085,"Metro"]
[null,null,7086,"Metro"]
[null,null,7087,"Metro"]
[null,null,7088,"Metro"]
[null,null,7089,"Metro"]
[null,null,7090,"Metro"]
[null,null,7091,"Metro"]
[null,null,7092,"Metro"]
[null,null,7093,"Metro"]
[null,null,7094,"Metro"]
[null,null,7095,"Metro"]
[null,null,7096,"Metro"]
[null,null,7097,"Metro"]
[null,null,7098,"Metro"]
[null,null,7099,"Metro"]
[null,null,7100,"Metro"]
[null,null,7101,"Metro"]
[null,null,7102,"Metro"]
[null,null,7103,"Metro"]
[null,null,7104,"Metro"]
[null,null,7105,"Metro"]
[null,null,7106,"Metro"]
[null,null,7107,"Metro"]
[null,null,7108,"Metro"]
[null,null,7109,"Metro"]
[null,null,7110,"Metro"]
[null,null,7111,"Metro"]
[null,null,7112,"Metro"]
[null,null,7113,"Metro"]
[null,null,7114,"Metro"]
[null,null,7115,"Metro"]
[null,null,7116,"Metro"]
[null,null,7117,"Metro"]
[null,null,7118,"Metro"]
[null,null,7119,"Metro"]
[null,null,7120,"Metro"]
[null,null,7121,"Metro"]
[null,null,7122,"Metro"]
[null,null,7123,"Metro"]
[null,null,7124,"Metro"]
[null,null,7125,"Metro"]
[null,null,7126,"Metro"]
[null,null,7127,"Metro"]
[null,null,7128,"Metro"]
[null,null,7129,"Metro"]
[null,null,7130,"Metro"]
[null,null,7131,"Metro"]
[null,null,7132,"Metro"]
[null,null,7133,"Metro"]
[null,null,7134,"Metro"]
[null,null,7135,"Metro"]
[null,null,7136,"Metro"]
[null,null,7137,"Metro"]
[null,null,7138,"Metro"]
[null,null,7139,"Metro"]
[null,null,7140,"Metro"]
[null,null,7141,"Metro"]
[null,null,7142,"Metro"]
[null,null,7143,"Metro"]
[null,null,7144,"Metro"]
[null,null,7145,"Metro"]
[null,null,7146,"Metro"]
[null,null,7147,"Metro"]
[null,null,7148,"Metro"]
[null,null,7149,"Metro"]
[null,null,7150,"Metro"]
[null,null,7151,"Metro"]
[null,null,7152,"Metro"]
[null,null,7153,"Metro"]
[null,null,7154,"Metro"]
[null,null,7155,"Metro"]
[null,null,7156,"Metro"]
[null,null,7157,"Metro"]
[null,null,7158,"Metro"]
[null,null,7159,"Metro"]
[null,null,7160,"Metro"]
[null,null,7161,"Metro"]
[null,null,7162,"Metro"]
[null,null,7163,"Metro"]
[null,null,7164,"Metro"]
[null,null,7165,"Metro"]
[null,null,7166,"Metro"]
[null,null,7167,"Metro"]
[null,null,7168,"Metro"]
[null,null,7169,"Metro"]
[null,null,7170,"Metro"]
[null,null,7171,"Metro"]
[null,null,7172,"Metro"]
[null,null,7173,"Metro"]
[null,null,7174,"Metro"]
[null,null,7175,"Metro"]
[null,null,7176,"Metro"]
[null,null,7177,"Metro"]
[null,null,7178,"Metro"]
[null,null,7179,"Metro"]
[null,null,7180,"Metro"]
[null,null,7181,"Metro"]
[null,null,7182,"Metro"]
[null,null,7183,"Metro"]
[null,null,7184,"Metro"]
[null,null,7185,"Metro"]
[null,null,7186,"Metro"]
[null,null,7187,"Metro"]
[null,null,7188,"Metro"]
[null,null,7189,"Metro"]
[null,null,7190,"Metro"]
[null,null,7191,"Metro"]
[null,null,7192,"Metro"]
[null,null,7193,"Metro"]
[null,null,7194,"Metro"]
[null,null,7195,"Metro"]
[null,null,7196,"Metro"]
[null,null,7197,"Metro"]
[null,null,7198,"Metro"]
[null,null,7199,"Metro"]
[null,null,7200,"Non metro"]
[null,null,7201,"Non metro"]
[null,null,7202,"Non metro"]
[null,null,7203,"Non metro"]
[null,null,7204,"Non metro"]
[null,null,7205,"Non metro"]
[null,null,7206,"Non metro"]
[null,null,7207,"Non metro"]
[null,null,7208,"Non metro"]
[null,null,7209,"Non metro"]
[null,null,7210,"Non metro"]
[null,null,7211,"Non metro"]
[null,null,7212,"Non metro"]
[null,null,7213,"Non metro"]
[null,null,7214,"Non metro"]
[null,null,7215,"Non metro"]
[null,null,7216,"Non metro"]
[null,null,7217,"Non metro"]
[null,null,7218,"Non metro"]
[null,null,7219,"Non metro"]
[null,null,7220,"Non metro"]
[null,null,7221,"Non metro"]
[null,null,7222,"Non metro"]
[null,null,7223,"Non metro"]
[null,null,7224,"Non metro"]
[null,null,7225,"Non metro"]
[null,null,7226,"Non metro"]
[null,null,7227,"Non metro"]
[null,null,7228,"Non metro"]
[null,null,7229,"Non metro"]
[null,null,7230,"Non metro"]
[null,null,7231,"Non metro"]
[null,null,7232,"Non metro"]
[null,null,7233,"Non metro"]
[null,null,7234,"Non metro"]
[null,null,7235,"Non metro"]
[null,null,7236,"Non metro"]
[null,null,7237,"Non metro"]
[null,null,7238,"Non metro"]
[null,null,7239,"Non metro"]
[null,null,7240,"Non metro"]
[null,null,7241,"Non metro"]
[null,null,7242,"Non metro"]
[null,null,7243,"Non metro"]
[null,null,7244,"Non metro"]
[null,null,7245,"Non metro"]
[null,null,7246,"Non metro"]
[null,null,7247,"Non metro"]
[null,null,7248,"Non metro"]
[null,null,7249,"Non metro"]
[null,null,7250,"Non metro"]
[null,null,7251,"Non metro"]
[null,null,7252,"Non metro"]
[null,null,7253,"Non metro"]
[null,null,7254,"Non metro"]
[null,null,7255,"Non metro"]
[null,null,7256,"Non metro"]
[null,null,7257,"Non metro"]
[null,null,7258,"Non metro"]
[null,null,7259,"Non metro"]
[null,null,7260,"Non metro"]
[null,null,7261,"Non metro"]
[null,null,7262,"Non metro"]
[null,null,7263,"Non metro"]
[null,null,7264,"Non metro"]
[null,null,7265,"Non metro"]
[null,null,7266,"Non metro"]
[null,null,7267,"Non metro"]
[null,null,7268,"Non metro"]
[null,null,7269,"Non metro"]
[null,null,7270,"Non metro"]
[null,null,7271,"Non metro"]
[null,null,7272,"Non metro"]
[null,null,7273,"Non metro"]
[null,null,7274,"Non metro"]
[null,null,7275,"Non metro"]
[null,null,7276,"Non metro"]
[null,null,7277,"Non metro"]
[null,null,7278,"Non metro"]
[null,null,7279,"Non metro"]
[null,null,7280,"Non metro"]
[null,null,7281,"Non metro"]
[null,null,7282,"Non metro"]
[null,null,7283,"Non metro"]
[null,null,7284,"Non metro"]
[null,null,7285,"Non metro"]
[null,null,7286,"Non metro"]
[null,null,7287,"Non metro"]
[null,null,7288,"Non metro"]
[null,null,7289,"Non metro"]
[null,null,7290,"Non metro"]
[null,null,7291,"Non metro"]
[null,null,7292,"Non metro"]
[null,null,7293,"Non metro"]
[null,null,7294,"Non metro"]
[null,null,7295,"Non metro"]
[null,null,7296,"Non metro"]
[null,null,7297,"Non metro"]
[null,null,7298,"Non metro"]
[null,null,7299,"Non metro"]
[null,null,7300,"Non metro"]
[null,null,7301,"Non metro"]
[null,null,7302,"Non metro"]
[null,null,7303,"Non metro"]
[null,null,7304,"Non metro"]
[null,null,7305,"Non metro"]
[null,null,7306,"Non metro"]
[null,null,7307,"Non metro"]
[null,null,7308,"Non metro"]
[null,null,7309,"Non metro"]
[null,null,7310,"Non metro"]
[null,null,7311,"Non metro"]
[null,null,7312,"Non metro"]
[null,null,7313,"Non metro"]
[null,null,7314,"Non metro"]
[null,null,7315,"Non metro"]
[null,null,7316,"Non metro"]
[null,null,7317,"Non metro"]
[null,null,7318,"Non metro"]
[null,null,7319,"Non metro"]
[null,null,7320,"Non metro"]
[null,null,7321,"Non metro"]
[null,null,7322,"Non metro"]
[null,null,7323,"Non metro"]
[null,null,7324,"Non metro"]
[null,null,7325,"Non metro"]
[null,null,7326,"Non metro"]
[null,null,7327,"Non metro"]
[null,null,7328,"Non metro"]
[null,null,7329,"Non metro"]
[null,null,7330,"Non metro"]
[null,null,7331,"Non metro"]
[null,null,7332,"Non metro"]
[null,null,7333,"Non metro"]
[null,null,7334,"Non metro"]
[null,null,7335,"Non metro"]
[null,null,7336,"Non metro"]
[null,null,7337,"Non metro"]
[null,null,7338,"Non metro"]
[null,null,7339,"Non metro"]
[null,null,7340,"Non metro"]
[null,null,7341,"Non metro"]
[null,null,7342,"Non metro"]
[null,null,7343,"Non metro"]
[null,null,7344,"Non metro"]
[null,null,7345,"Non metro"]
[null,null,7346,"Non metro"]
[null,null,7347,"Non metro"]
[null,null,7348,"Non metro"]
[null,null,7349,"Non metro"]
[null,null,7350,"Non metro"]
[null,null,7351,"Non metro"]
[null,null,7352,"Non metro"]
[null,null,7353,"Non metro"]
[null,null,7354,"Non metro"]
[null,null,7355,"Non metro"]
[null,null,7356,"Non metro"]
[null,null,7357,"Non metro"]
[null,null,7358,"Non metro"]
[null,null,7359,"Non metro"]
[null,null,7360,"Non metro"]
[null,null,7361,"Non metro"]
[null,null,7362,"Non metro"]
[null,null,7363,"Non metro"]
[null,null,7364,"Non metro"]
[null,null,7365,"Non metro"]
[null,null,7366,"Non metro"]
[null,null,7367,"Non metro"]
[null,null,7368,"Non metro"]
[null,null,7369,"Non metro"]
[null,null,7370,"Non metro"]
[null,null,7371,"Non metro"]
[null,null,7372,"Non metro"]
[null,null,7373,"Non metro"]
[null,null,7374,"Non metro"]
[null,null,7375,"Non metro"]
[null,null,7376,"Non metro"]
[null,null,7377,"Non metro"]
[null,null,7378,"Non metro"]
[null,null,7379,"Non metro"]
[null,null,7380,"Non metro"]
[null,null,7381,"Non metro"]
[null,null,7382,"Non metro"]
[null,null,7383,"Non metro"]
[null,null,7384,"Non metro"]
[null,null,7385,"Non metro"]
[null,null,7386,"Non metro"]
[null,null,7387,"Non metro"]
[null,null,7388,"Non metro"]
[null,null,7389,"Non metro"]
[null,null,7390,"Non metro"]
[null,null,7391,"Non metro"]
[null,null,7392,"Non metro"]
[null,null,7393,"Non metro"]
[null,null,7394,"Non metro"]
[null,null,7395,"Non metro"]
[null,null,7396,"Non metro"]
[null,null,7397,"Non metro"]
[null,null,7398,"Non metro"]
[null,null,7399,"Non metro"]
[null,null,7400,"Non metro"]
[null,null,7401,"Non metro"]
[null,null,7402,"Non metro"]
[null,null,7403,"Non metro"]
[null,null,7404,"Non metro"]
[null,null,7405,"Non metro"]
[null,null,7406,"Non metro"]
[null,null,7407,"Non metro"]
[null,null,7408,"Non metro"]
[null,null,7409,"Non metro"]
[null,null,7410,"Non metro"]
[null,null,7411,"Non metro"]
[null,null,7412,"Non metro"]
[null,null,7413,"Non metro"]
[null,null,7414,"Non metro"]
[null,null,7415,"Non metro"]
[null,null,7416,"Non metro"]
[null,null,7417,"Non metro"]
[null,null,7418,"Non metro"]
[null,null,7419,"Non metro"]
[null,null,7420,"Non metro"]
[null,null,7421,"Non metro"]
[null,null,7422,"Non metro"]
[null,null,7423,"Non metro"]
[null,null,7424,"Non metro"]
[null,null,7425,"Non metro"]
[null,null,7426,"Non metro"]
[null,null,7427,"Non metro"]
[null,null,7428,"Non metro"]
[null,null,7429,"Non metro"]
[null,null,7430,"Non metro"]
[null,null,7431,"Non metro"]
[null,null,7432,"Non metro"]
[null,null,7433,"Non metro"]
[null,null,7434,"Non metro"]
[null,null,7435,"Non metro"]
[null,null,7436,"Non metro"]
[null,null,7437,"Non metro"]
[null,null,7438,"Non metro"]
[null,null,7439,"Non metro"]
[null,null,7440,"Non metro"]
[null,null,7441,"Non metro"]
[null,null,7442,"Non metro"]
[null,null,7443,"Non metro"]
[null,null,7444,"Non metro"]
[null,null,7445,"Non metro"]
[null,null,7446,"Non metro"]
[null,null,7447,"Non metro"]
[null,null,7448,"Non metro"]
[null,null,7449,"Non metro"]
[null,null,7450,"Non metro"]
[null,null,7451,"Non metro"]
[null,null,7452,"Non metro"]
[null,null,7453,"Non metro"]
[null,null,7454,"Non metro"]
[null,null,7455,"Non metro"]
[null,null,7456,"Non metro"]
[null,null,7457,"Non metro"]
[null,null,7458,"Non metro"]
[null,null,7459,"Non metro"]
[null,null,7460,"Non metro"]
[null,null,7461,"Non metro"]
[null,null,7462,"Non metro"]
[null,null,7463,"Non metro"]
[null,null,7464,"Non metro"]
[null,null,7465,"Non metro"]
[null,null,7466,"Non metro"]
[null,null,7467,"Non metro"]
[null,null,7468,"Non metro"]
[null,null,7469,"Non metro"]
[null,null,7470,"Non metro"]
[null,null,7471,"Non metro"]
[null,null,7472,"Non metro"]
[null,null,7473,"Non metro"]
[null,null,7474,"Non metro"]
[null,null,7475,"Non metro"]
[null,null,7476,"Non metro"]
[null,null,7477,"Non metro"]
[null,null,7478,"Non metro"]
[null,null,7479,"Non metro"]
[null,null,7480,"Non metro"]
[null,null,7481,"Non metro"]
[null,null,7482,"Non metro"]
[null,null,7483,"Non metro"]
[null,null,7484,"Non metro"]
[null,null,7485,"Non metro"]
[null,null,7486,"Non metro"]
[null,null,7487,"Non metro"]
[null,null,7488,"Non metro"]
[null,null,7489,"Non metro"]
[null,null,7490,"Non metro"]
[null,null,7491,"Non metro"]
[null,null,7492,"Non metro"]
[null,null,7493,"Non metro"]
[null,null,7494,"Non metro"]
[null,null,7495,"Non metro"]
[null,null,7496,"Non metro"]
[null,null,7497,"Non metro"]
[null,null,7498,"Non metro"]
[null,null,7499,"Non metro"]
[null,null,7500,"Non metro"]
[null,null,7501,"Non metro"]
[null,null,7502,"Non metro"]
[null,null,7503,"Non metro"]
[null,null,7504,"Non metro"]
[null,null,7505,"Non metro"]
[null,null,7506,"Non metro"]
[null,null,7507,"Non metro"]
[null,null,7508,"Non metro"]
[null,null,7509,"Non metro"]
[null,null,7510,"Non metro"]
[null,null,7511,"Non metro"]
[null,null,7512,"Non metro"]
[null,null,7513,"Non metro"]
[null,null,7514,"Non metro"]
[null,null,7515,"Non metro"]
[null,null,7516,"Non metro"]
[null,null,7517,"Non metro"]
[null,null,7518,"Non metro"]
[null,null,7519,"Non metro"]
[null,null,7520,"Non metro"]
[null,null,7521,"Non metro"]
[null,null,7522,"Non metro"]
[null,null,7523,"Non metro"]
[null,null,7524,"Non metro"]
[null,null,7525,"Non metro"]
[null,null,7526,"Non metro"]
[null,null,7527,"Non metro"]
[null,null,7528,"Non metro"]
[null,null,7529,"Non metro"]
[null,null,7530,"Non metro"]
[null,null,7531,"Non metro"]
[null,null,7532,"Non metro"]
[null,null,7533,"Non metro"]
[null,null,7534,"Non metro"]
[null,null,7535,"Non metro"]
[null,null,7536,"Non metro"]
[null,null,7537,"Non metro"]
[null,null,7538,"Non metro"]
[null,null,7539,"Non metro"]
[null,null,7540,"Non metro"]
[null,null,7541,"Non metro"]
[null,null,7542,"Non metro"]
[null,null,7543,"Non metro"]
[null,null,7544,"Non metro"]
[null,null,7545,"Non metro"]
[null,null,7546,"Non metro"]
[null,null,7547,"Non metro"]
[null,null,7548,"Non metro"]
[null,null,7549,"Non metro"]
[null,null,7550,"Non metro"]
[null,null,7551,"Non metro"]
[null,null,7552,"Non metro"]
[null,null,7553,"Non metro"]
[null,null,7554,"Non metro"]
[null,null,7555,"Non metro"]
[null,null,7556,"Non metro"]
[null,null,7557,"Non metro"]
[null,null,7558,"Non metro"]
[null,null,7559,"Non metro"]
[null,null,7560,"Non metro"]
[null,null,7561,"Non metro"]
[null,null,7562,"Non metro"]
[null,null,7563,"Non metro"]
[null,null,7564,"Non metro"]
[null,null,7565,"Non metro"]
[null,null,7566,"Non metro"]
[null,null,7567,"Non metro"]
[null,null,7568,"Non metro"]
[null,null,7569,"Non metro"]
[null,null,7570,"Non metro"]
[null,null,7571,"Non metro"]
[null,null,7572,"Non metro"]
[null,null,7573,"Non metro"]
[null,null,7574,"Non metro"]
[null,null,7575,"Non metro"]
[null,null,7576,"Non metro"]
[null,null,7577,"Non metro"]
[null,null,7578,"Non metro"]
[null,null,7579,"Non metro"]
[null,null,7580,"Non metro"]
[null,null,7581,"Non metro"]
[null,null,7582,"Non metro"]
[null,null,7583,"Non metro"]
[null,null,7584,"Non metro"]
[null,null,7585,"Non metro"]
[null,null,7586,"Non metro"]
[null,null,7587,"Non metro"]
[null,null,7588,"Non metro"]
[null,null,7589,"Non metro"]
[null,null,7590,"Non metro"]
[null,null,7591,"Non metro"]
[null,null,7592,"Non metro"]
[null,null,7593,"Non metro"]
[null,null,7594,"Non metro"]
[null,null,7595,"Non metro"]
[null,null,7596,"Non metro"]
[null,null,7597,"Non metro"]
[null,null,7598,"Non metro"]
[null,null,7599,"Non metro"]
[null,null,7600,"Non metro"]
[null,null,7601,"Non metro"]
[null,null,7602,"Non metro"]
[null,null,7603,"Non metro"]
[null,null,7604,"Non metro"]
[null,null,7605,"Non metro"]
[null,null,7606,"Non metro"]
[null,null,7607,"Non metro"]
[null,null,7608,"Non metro"]
[null,null,7609,"Non metro"]
[null,null,7610,"Non metro"]
[null,null,7611,"Non metro"]
[null,null,7612,"Non metro"]
[null,null,7613,"Non metro"]
[null,null,7614,"Non metro"]
[null,null,7615,"Non metro"]
[null,null,7616,"Non metro"]
[null,null,7617,"Non metro"]
[null,null,7618,"Non metro"]
[null,null,7619,"Non metro"]
[null,null,7620,"Non metro"]
[null,null,7621,"Non metro"]
[null,null,7622,"Non metro"]
[null,null,7623,"Non metro"]
[null,null,7624,"Non metro"]
[null,null,7625,"Non metro"]
[null,null,7626,"Non metro"]
[null,null,7627,"Non metro"]
[null,null,7628,"Non metro"]
[null,null,7629,"Non metro"]
[null,null,7630,"Non metro"]
[null,null,7631,"Non metro"]
[null,null,7632,"Non metro"]
[null,null,7633,"Non metro"]
[null,null,7634,"Non metro"]
[null,null,7635,"Non metro"]
[null,null,7636,"Non metro"]
[null,null,7637,"Non metro"]
[null,null,7638,"Non metro"]
[null,null,7639,"Non metro"]
[null,null,7640,"Non metro"]
[null,null,7641,"Non metro"]
[null,null,7642,"Non metro"]
[null,null,7643,"Non metro"]
[null,null,7644,"Non metro"]
[null,null,7645,"Non metro"]
[null,null,7646,"Non metro"]
[null,null,7647,"Non metro"]
[null,null,7648,"Non metro"]
[null,null,7649,"Non metro"]
[null,null,7650,"Non metro"]
[null,null,7651,"Non metro"]
[null,null,7652,"Non metro"]
[null,null,7653,"Non metro"]
[null,null,7654,"Non metro"]
[null,null,7655,"Non metro"]
[null,null,7656,"Non metro"]
[null,null,7657,"Non metro"]
[null,null,7658,"Non metro"]
[null,null,7659,"Non metro"]
[null,null,7660,"Non metro"]
[null,null,7661,"Non metro"]
[null,null,7662,"Non metro"]
[null,null,7663,"Non metro"]
[null,null,7664,"Non metro"]
[null,null,7665,"Non metro"]
[null,null,7666,"Non metro"]
[null,null,7667,"Non metro"]
[null,null,7668,"Non metro"]
[null,null,7669,"Non metro"]
[null,null,7670,"Non metro"]
[null,null,7671,"Non metro"]
[null,null,7672,"Non metro"]
[null,null,7673,"Non metro"]
[null,null,7674,"Non metro"]
[null,null,7675,"Non metro"]
[null,null,7676,"Non metro"]
[null,null,7677,"Non metro"]
[null,null,7678,"Non metro"]
[null,null,7679,"Non metro"]
[null,null,7680,"Non metro"]
[null,null,7681,"Non metro"]
[null,null,7682,"Non metro"]
[null,null,7683,"Non metro"]
[null,null,7684,"Non metro"]
[null,null,7685,"Non metro"]
[null,null,7686,"Non metro"]
[null,null,7687,"Non metro"]
[null,null,7688,"Non metro"]
[null,null,7689,"Non metro"]
[null,null,7690,"Non metro"]
[null,null,7691,"Non metro"]
[null,null,7692,"Non metro"]
[null,null,7693,"Non metro"]
[null,null,7694,"Non metro"]
[null,null,7695,"Non metro"]
[null,null,7696,"Non metro"]
[null,null,7697,"Non metro"]
[null,null,7698,"Non metro"]
[null,null,7699,"Non metro"]
[null,null,7700,"Non metro"]
[null,null,7701,"Non metro"]
[null,null,7702,"Non metro"]
[null,null,7703,"Non metro"]
[null,null,7704,"Non metro"]
[null,null,7705,"Non metro"]
[null,null,7706,"Non metro"]
[null,null,7707,"Non metro"]
[null,null,7708,"Non metro"]
[null,null,7709,"Non metro"]
[null,null,7710,"Non metro"]
[null,null,7711,"Non metro"]
[null,null,7712,"Non metro"]
[null,null,7713,"Non metro"]
[null,null,7714,"Non metro"]
[null,null,7715,"Non metro"]
[null,null,7716,"Non metro"]
[null,null,7717,"Non metro"]
[null,null,7718,"Non metro"]
[null,null,7719,"Non metro"]
[null,null,7720,"Non metro"]
[null,null,7721,"Non metro"]
[null,null,7722,"Non metro"]
[null,null,7723,"Non metro"]
[null,null,7724,"Non metro"]
[null,null,7725,"Non metro"]
[null,null,7726,"Non metro"]
[null,null,7727,"Non metro"]
[null,null,7728,"Non metro"]
[null,null,7729,"Non metro"]
[null,null,7730,"Non metro"]
[null,null,7731,"Non metro"]
[null,null,7732,"Non metro"]
[null,null,7733,"Non metro"]
[null,null,7734,"Non metro"]
[null,null,7735,"Non metro"]
[null,null,7736,"Non metro"]
[null,null,7737,"Non metro"]
[null,null,7738,"Non metro"]
[null,null,7739,"Non metro"]
[null,null,7740,"Non metro"]
[null,null,7741,"Non metro"]
[null,null,7742,"Non metro"]
[null,null,7743,"Non metro"]
[null,null,7744,"Non metro"]
[null,null,7745,"Non metro"]
[null,null,7746,"Non metro"]
[null,null,7747,"Non metro"]
[null,null,7748,"Non metro"]
[null,null,7749,"Non metro"]
[null,null,7750,"Non metro"]
[null,null,7751,"Non metro"]
[null,null,7752,"Non metro"]
[null,null,7753,"Non metro"]
[null,null,7754,"Non metro"]
[null,null,7755,"Non metro"]
[null,null,7756,"Non metro"]
[null,null,7757,"Non metro"]
[null,null,7758,"Non metro"]
[null,null,7759,"Non metro"]
[null,null,7760,"Non metro"]
[null,null,7761,"Non metro"]
[null,null,7762,"Non metro"]
[null,null,7763,"Non metro"]
[null,null,7764,"Non metro"]
[null,null,7765,"Non metro"]
[null,null,7766,"Non metro"]
[null,null,7767,"Non metro"]
[null,null,7768,"Non metro"]
[null,null,7769,"Non metro"]
[null,null,7770,"Non metro"]
[null,null,7771,"Non metro"]
[null,null,7772,"Non metro"]
[null,null,7773,"Non metro"]
[null,null,7774,"Non metro"]
[null,null,7775,"Non metro"]
[null,null,7776,"Non metro"]
[null,null,7777,"Non metro"]
[null,null,7778,"Non metro"]
[null,null,7779,"Non metro"]
[null,null,7780,"Non metro"]
[null,null,7781,"Non metro"]
[null,null,7782,"Non metro"]
[null,null,7783,"Non metro"]
[null,null,7784,"Non metro"]
[null,null,7785,"Non metro"]
[null,null,7786,"Non metro"]
[null,null,7787,"Non metro"]
[null,null,7788,"Non metro"]
[null,null,7789,"Non metro"]
[null,null,7790,"Non metro"]
[null,null,7791,"Non metro"]
[null,null,7792,"Non metro"]
[null,null,7793,"Non metro"]
[null,null,7794,"Non metro"]
[null,null,7795,"Non metro"]
[null,null,7796,"Non metro"]
[null,null,7797,"Non metro"]
[null,null,7798,"Non metro"]
[null,null,7799,"Non metro"]
[null,null,7800,"Metro"]
[null,null,7801,"Metro"]
[null,null,7802,"Metro"]
[null,null,7803,"Metro"]
[null,null,7804,"Metro"]
[null,null,7805,"Metro"]
[null,null,7806,"Metro"]
[null,null,7807,"Metro"]
[null,null,7808,"Metro"]
[null,null,7809,"Metro"]
[null,null,7810,"Metro"]
[null,null,7811,"Metro"]
[null,null,7812,"Metro"]
[null,null,7813,"Metro"]
[null,null,7814,"Metro"]
[null,null,7815,"Metro"]
[null,null,7816,"Metro"]
[null,null,7817,"Metro"]
[null,null,7818,"Metro"]
[null,null,7819,"Metro"]
[null,null,7820,"Metro"]
[null,null,7821,"Metro"]
[null,null,7822,"Metro"]
[null,null,7823,"Metro"]
[null,null,7824,"Metro"]
[null,null,7825,"Metro"]
[null,null,7826,"Metro"]
[null,null,7827,"Metro"]
[null,null,7828,"Metro"]
[null,null,7829,"Metro"]
[null,null,7830,"Metro"]
[null,null,7831,"Metro"]
[null,null,7832,"Metro"]
[null,null,7833,"Metro"]
[null,null,7834,"Metro"]
[null,null,7835,"Metro"]
[null,null,7836,"Metro"]
[null,null,7837,"Metro"]
[null,null,7838,"Metro"]
[null,null,7839,"Metro"]
[null,null,7840,"Metro"]
[null,null,7841,"Metro"]
[null,null,7842,"Metro"]
[null,null,7843,"Metro"]
[null,null,7844,"Metro"]
[null,null,7845,"Metro"]
[null,null,7846,"Metro"]
[null,null,7847,"Metro"]
[null,null,7848,"Metro"]
[null,null,7849,"Metro"]
[null,null,7850,"Metro"]
[null,null,7851,"Metro"]
[null,null,7852,"Metro"]
[null,null,7853,"Metro"]
[null,null,7854,"Metro"]
[null,null,7855,"Metro"]
[null,null,7856,"Metro"]
[null,null,7857,"Metro"]
[null,null,7858,"Metro"]
[null,null,7859,"Metro"]
[null,null,7860,"Metro"]
[null,null,7861,"Metro"]
[null,null,7862,"Metro"]
[null,null,7863,"Metro"]
[null,null,7864,"Metro"]
[null,null,7865,"Metro"]
[null,null,7866,"Metro"]
[null,null,7867,"Metro"]
[null,null,7868,"Metro"]
[null,null,7869,"Metro"]
[null,null,7870,"Metro"]
[null,null,7871,"Metro"]
[null,null,7872,"Metro"]
[null,null,7873,"Metro"]
[null,null,7874,"Metro"]
[null,null,7875,"Metro"]
[null,null,7876,"Metro"]
[null,null,7877,"Metro"]
[null,null,7878,"Metro"]
[null,null,7879,"Metro"]
[null,null,7880,"Metro"]
[null,null,7881,"Metro"]
[null,null,7882,"Metro"]
[null,null,7883,"Metro"]
[null,null,7884,"Metro"]
[null,null,7885,"Metro"]
[null,null,7886,"Metro"]
[null,null,7887,"Metro"]
[null,null,7888,"Metro"]
[null,null,7889,"Metro"]
[null,null,7890,"Metro"]
[null,null,7891,"Metro"]
[null,null,7892,"Metro"]
[null,null,7893,"Metro"]
[null,null,7894,"Metro"]
[null,null,7895,"Metro"]
[null,null,7896,"Metro"]
[null,null,7897,"Metro"]
[null,null,7898,"Metro"]
[null,null,7899,"Metro"]
[null,null,7900,"Non metro"]
[null,null,7901,"Non metro"]
[null,null,7902,"Non metro"]
[null,null,7903,"Non metro"]
[null,null,7904,"Non metro"]
[null,null,7905,"Non metro"]
[null,null,7906,"Non metro"]
[null,null,7907,"Non metro"]
[null,null,7908,"Non metro"]
[null,null,7909,"Non metro"]
[null,null,7910,"Non metro"]
[null,null,7911,"Non metro"]
[null,null,7912,"Non metro"]
[null,null,7913,"Non metro"]
[null,null,7914,"Non metro"]
[null,null,7915,"Non metro"]
[null,null,7916,"Non metro"]
[null,null,7917,"Non metro"]
[null,null,7918,"Non metro"]
[null,null,7919,"Non metro"]
[null,null,7920,"Non metro"]
[null,null,7921,"Non metro"]
[null,null,7922,"Non metro"]
[null,null,7923,"Non metro"]
[null,null,7924,"Non metro"]
[null,null,7925,"Non metro"]
[null,null,7926,"Non metro"]
[null,null,7927,"Non metro"]
[null,null,7928,"Non metro"]
[null,null,7929,"Non metro"]
[null,null,7930,"Non metro"]
[null,null,7931,"Non metro"]
[null,null,7932,"Non metro"]
[null,null,7933,"Non metro"]
[null,null,7934,"Non metro"]
[null,null,7935,"Non metro"]
[null,null,7936,"Non metro"]
[null,null,7937,"Non metro"]
[null,null,7938,"Non metro"]
[null,null,7939,"Non metro"]
[null,null,7940,"Non metro"]
[null,null,7941,"Non metro"]
[null,null,7942,"Non metro"]
[null,null,7943,"Non metro"]
[null,null,7944,"Non metro"]
[null,null,7945,"Non metro"]
[null,null,7946,"Non metro"]
[null,null,7947,"Non metro"]
[null,null,7948,"Non metro"]
[null,null,7949,"Non metro"]
[null,null,7950,"Non metro"]
[null,null,7951,"Non metro"]
[null,null,7952,"Non metro"]
[null,null,7953,"Non metro"]
[null,null,7954,"Non metro"]
[null,null,7955,"Non metro"]
[null,null,7956,"Non metro"]
[null,null,7957,"Non metro"]
[null,null,7958,"Non metro"]
[null,null,7959,"Non metro"]
[null,null,7960,"Non metro"]
[null,null,7961,"Non metro"]
[null,null,7962,"Non metro"]
[null,null,7963,"Non metro"]
[null,null,7964,"Non metro"]
[null,null,7965,"Non metro"]
[null,null,7966,"Non metro"]
[null,null,7967,"Non metro"]
[null,null,7968,"Non metro"]
[null,null,7969,"Non metro"]
[null,null,7970,"Non metro"]
[null,null,7971,"Non metro"]
[null,null,7972,"Non metro"]
[null,null,7973,"Non metro"]
[null,null,7974,"Non metro"]
[null,null,7975,"Non metro"]
[null,null,7976,"Non metro"]
[null,null,7977,"Non metro"]
[null,null,7978,"Non metro"]
[null,null,7979,"Non metro"]
[null,null,7980,"Non metro"]
[null,null,7981,"Non metro"]
[null,null,7982,"Non metro"]
[null,null,7983,"Non metro"]
[null,null,7984,"Non metro"]
[null,null,7985,"Non metro"]
[null,null,7986,"Non metro"]
[null,null,7987,"Non metro"]
[null,null,7988,"Non metro"]
[null,null,7989,"Non metro"]
[null,null,7990,"Non metro"]
[null,null,7991,"Non metro"]
[null,null,7992,"Non metro"]
[null,null,7993,"Non metro"]
[null,null,7994,"Non metro"]
[null,null,7995,"Non metro"]
[null,null,7996,"Non metro"]
[null,null,7997,"Non metro"]
[null,null,7998,"Non metro"]
[null,null,7999,"Non metro"]
[null,null,8000,"Inner city"]
[null,null,8001,"Inner city"]
[null,null,8002,"Inner city"]
[null,null,8003,"Inner city"]
[null,null,8004,"Inner city"]
[null,null,8005,"Inner city"]
[null,null,8006,"Inner city"]
[null,null,8007,"Inner city"]
[null,null,8008,"Inner city"]
[null,null,8009,"Inner city"]
[null,null,8010,"Inner city"]
[null,null,8011,"Inner city"]
[null,null,8012,"Inner city"]
[null,null,8013,"Inner city"]
[null,null,8014,"Inner city"]
[null,null,8015,"Inner city"]
[null,null,8016,"Inner city"]
[null,null,8017,"Inner city"]
[null,null,8018,"Inner city"]
[null,null,8019,"Inner city"]
[null,null,8020,"Inner city"]
[null,null,8021,"Inner city"]
[null,null,8022,"Inner city"]
[null,null,8023,"Inner city"]
[null,null,8024,"Inner city"]
[null,null,8025,"Inner city"]
[null,null,8026,"Inner city"]
[null,null,8027,"Inner city"]
[null,null,8028,"Inner city"]
[null,null,8029,"Inner city"]
[null,null,8030,"Inner city"]
[null,null,8031,"Inner city"]
[null,null,8032,"Inner city"]
[null,null,8033,"Inner city"]
[null,null,8034,"Inner city"]
[null,null,8035,"Inner city"]
[null,null,8036,"Inner city"]
[null,null,8037,"Inner city"]
[null,null,8038,"Inner city"]
[null,null,8039,"Inner city"]
[null,null,8040,"Inner city"]
[null,null,8041,"Inner city"]
[null,null,8042,"Inner city"]
[null,null,8043,"Inner city"]
[null,null,8044,"Inner city"]
[null,null,8045,"Inner city"]
[null,null,8046,"Inner city"]
[null,null,8047,"Inner city"]
[null,null,8048,"Inner city"]
[null,null,8049,"Inner city"]
[null,null,8050,"Inner city"]
[null,null,8051,"Inner city"]
[null,null,8052,"Inner city"]
[null,null,8053,"Inner city"]
[null,null,8054,"Inner city"]
[null,null,8055,"Inner city"]
[null,null,8056,"Inner city"]
[null,null,8057,"Inner city"]
[null,null,8058,"Inner city"]
[null,null,8059,"Inner city"]
[null,null,8060,"Inner city"]
[null,null,8061,"Inner city"]
[null,null,8062,"Inner city"]
[null,null,8063,"Inner city"]
[null,null,8064,"Inner city"]
[null,null,8065,"Inner city"]
[null,null,8066,"Inner city"]
[null,null,8067,"Inner city"]
[null,null,8068,"Inner city"]
[null,null,8069,"Inner city"]
[null,null,8070,"Inner city"]
[null,null,8071,"Inner city"]
[null,null,8072,"Inner city"]
[null,null,8073,"Inner city"]
[null,null,8074,"Inner city"]
[null,null,8075,"Inner city"]
[null,null,8076,"Inner city"]
[null,null,8077,"Inner city"]
[null,null,8078,"Inner city"]
[null,null,8079,"Inner city"]
[null,null,8080,"Inner city"]
[null,null,8081,"Inner city"]
[null,null,8082,"Inner city"]
[null,null,8083,"Inner city"]
[null,null,8084,"Inner city"]
[null,null,8085,"Inner city"]
[null,null,8086,"Inner city"]
[null,null,8087,"Inner city"]
[null,null,8088,"Inner city"]
[null,null,8089,"Inner city"]
[null,null,8090,"Inner city"]
[null,null,8091,"Inner city"]
[null,null,8092,"Inner city"]
[null,null,8093,"Inner city"]
[null,null,8094,"Inner city"]
[null,null,8095,"Inner city"]
[null,null,8096,"Inner city"]
[null,null,8097,"Inner city"]
[null,null,8098,"Inner city"]
[null,null,8099,"Inner city"]
[null,null,8100,"Inner city"]
[null,null,8101,"Inner city"]
[null,null,8102,"Inner city"]
[null,null,8103,"Inner city"]
[null,null,8104,"Inner city"]
[null,null,8105,"Inner city"]
[null,null,8106,"Inner city"]
[null,null,8107,"Inner city"]
[null,null,8108,"Inner city"]
[null,null,8109,"Inner city"]
[null,null,8110,"Inner city"]
[null,null,8111,"Inner city"]
[null,null,8112,"Inner city"]
[null,null,8113,"Inner city"]
[null,null,8114,"Inner city"]
[null,null,8115,"Inner city"]
[null,null,8116,"Inner city"]
[null,null,8117,"Inner city"]
[null,null,8118,"Inner city"]
[null,null,8119,"Inner city"]
[null,null,8120,"Inner city"]
[null,null,8121,"Inner city"]
[null,null,8122,"Inner city"]
[null,null,8123,"Inner city"]
[null,null,8124,"Inner city"]
[null,null,8125,"Inner city"]
[null,null,8126,"Inner city"]
[null,null,8127,"Inner city"]
[null,null,8128,"Inner city"]
[null,null,8129,"Inner city"]
[null,null,8130,"Inner city"]
[null,null,8131,"Inner city"]
[null,null,8132,"Inner city"]
[null,null,8133,"Inner city"]
[null,null,8134,"Inner city"]
[null,null,8135,"Inner city"]
[null,null,8136,"Inner city"]
[null,null,8137,"Inner city"]
[null,null,8138,"Inner city"]
[null,null,8139,"Inner city"]
[null,null,8140,"Inner city"]
[null,null,8141,"Inner city"]
[null,null,8142,"Inner city"]
[null,null,8143,"Inner city"]
[null,null,8144,"Inner city"]
[null,null,8145,"Inner city"]
[null,null,8146,"Inner city"]
[null,null,8147,"Inner city"]
[null,null,8148,"Inner city"]
[null,null,8149,"Inner city"]
[null,null,8150,"Inner city"]
[null,null,8151,"Inner city"]
[null,null,8152,"Inner city"]
[null,null,8153,"Inner city"]
[null,null,8154,"Inner city"]
[null,null,8155,"Inner city"]
[null,null,8156,"Inner city"]
[null,null,8157,"Inner city"]
[null,null,8158,"Inner city"]
[null,null,8159,"Inner city"]
[null,null,8160,"Inner city"]
[null,null,8161,"Inner city"]
[null,null,8162,"Inner city"]
[null,null,8163,"Inner city"]
[null,null,8164,"Inner city"]
[null,null,8165,"Inner city"]
[null,null,8166,"Inner city"]
[null,null,8167,"Inner city"]
[null,null,8168,"Inner city"]
[null,null,8169,"Inner city"]
[null,null,8170,"Inner city"]
[null,null,8171,"Inner city"]
[null,null,8172,"Inner city"]
[null,null,8173,"Inner city"]
[null,null,8174,"Inner city"]
[null,null,8175,"Inner city"]
[null,null,8176,"Inner city"]
[null,null,8177,"Inner city"]
[null,null,8178,"Inner city"]
[null,null,8179,"Inner city"]
[null,null,8180,"Inner city"]
[null,null,8181,"Inner city"]
[null,null,8182,"Inner city"]
[null,null,8183,"Inner city"]
[null,null,8184,"Inner city"]
[null,null,8185,"Inner city"]
[null,null,8186,"Inner city"]
[null,null,8187,"Inner city"]
[null,null,8188,"Inner city"]
[null,null,8189,"Inner city"]
[null,null,8190,"Inner city"]
[null,null,8191,"Inner city"]
[null,null,8192,"Inner city"]
[null,null,8193,"Inner city"]
[null,null,8194,"Inner city"]
[null,null,8195,"Inner city"]
[null,null,8196,"Inner city"]
[null,null,8197,"Inner city"]
[null,null,8198,"Inner city"]
[null,null,8199,"Inner city"]
[null,null,8200,"Inner city"]
[null,null,8201,"Inner city"]
[null,null,8202,"Inner city"]
[null,null,8203,"Inner city"]
[null,null,8204,"Inner city"]
[null,null,8205,"Inner city"]
[null,null,8206,"Inner city"]
[null,null,8207,"Inner city"]
[null,null,8208,"Inner city"]
[null,null,8209,"Inner city"]
[null,null,8210,"Inner city"]
[null,null,8211,"Inner city"]
[null,null,8212,"Inner city"]
[null,null,8213,"Inner city"]
[null,null,8214,"Inner city"]
[null,null,8215,"Inner city"]
[null,null,8216,"Inner city"]
[null,null,8217,"Inner city"]
[null,null,8218,"Inner city"]
[null,null,8219,"Inner city"]
[null,null,8220,"Inner city"]
[null,null,8221,"Inner city"]
[null,null,8222,"Inner city"]
[null,null,8223,"Inner city"]
[null,null,8224,"Inner city"]
[null,null,8225,"Inner city"]
[null,null,8226,"Inner city"]
[null,null,8227,"Inner city"]
[null,null,8228,"Inner city"]
[null,null,8229,"Inner city"]
[null,null,8230,"Inner city"]
[null,null,8231,"Inner city"]
[null,null,8232,"Inner city"]
[null,null,8233,"Inner city"]
[null,null,8234,"Inner city"]
[null,null,8235,"Inner city"]
[null,null,8236,"Inner city"]
[null,null,8237,"Inner city"]
[null,null,8238,"Inner city"]
[null,null,8239,"Inner city"]
[null,null,8240,"Inner city"]
[null,null,8241,"Inner city"]
[null,null,8242,"Inner city"]
[null,null,8243,"Inner city"]
[null,null,8244,"Inner city"]
[null,null,8245,"Inner city"]
[null,null,8246,"Inner city"]
[null,null,8247,"Inner city"]
[null,null,8248,"Inner city"]
[null,null,8249,"Inner city"]
[null,null,8250,"Inner city"]
[null,null,8251,"Inner city"]
[null,null,8252,"Inner city"]
[null,null,8253,"Inner city"]
[null,null,8254,"Inner city"]
[null,null,8255,"Inner city"]
[null,null,8256,"Inner city"]
[null,null,8257,"Inner city"]
[null,null,8258,"Inner city"]
[null,null,8259,"Inner city"]
[null,null,8260,"Inner city"]
[null,null,8261,"Inner city"]
[null,null,8262,"Inner city"]
[null,null,8263,"Inner city"]
[null,null,8264,"Inner city"]
[null,null,8265,"Inner city"]
[null,null,8266,"Inner city"]
[null,null,8267,"Inner city"]
[null,null,8268,"Inner city"]
[null,null,8269,"Inner city"]
[null,null,8270,"Inner city"]
[null,null,8271,"Inner city"]
[null,null,8272,"Inner city"]
[null,null,8273,"Inner city"]
[null,null,8274,"Inner city"]
[null,null,8275,"Inner city"]
[null,null,8276,"Inner city"]
[null,null,8277,"Inner city"]
[null,null,8278,"Inner city"]
[null,null,8279,"Inner city"]
[null,null,8280,"Inner city"]
[null,null,8281,"Inner city"]
[null,null,8282,"Inner city"]
[null,null,8283,"Inner city"]
[null,null,8284,"Inner city"]
[null,null,8285,"Inner city"]
[null,null,8286,"Inner city"]
[null,null,8287,"Inner city"]
[null,null,8288,"Inner city"]
[null,null,8289,"Inner city"]
[null,null,8290,"Inner city"]
[null,null,8291,"Inner city"]
[null,null,8292,"Inner city"]
[null,null,8293,"Inner city"]
[null,null,8294,"Inner city"]
[null,null,8295,"Inner city"]
[null,null,8296,"Inner city"]
[null,null,8297,"Inner city"]
[null,null,8298,"Inner city"]
[null,null,8299,"Inner city"]
[null,null,8300,"Inner city"]
[null,null,8301,"Inner city"]
[null,null,8302,"Inner city"]
[null,null,8303,"Inner city"]
[null,null,8304,"Inner city"]
[null,null,8305,"Inner city"]
[null,null,8306,"Inner city"]
[null,null,8307,"Inner city"]
[null,null,8308,"Inner city"]
[null,null,8309,"Inner city"]
[null,null,8310,"Inner city"]
[null,null,8311,"Inner city"]
[null,null,8312,"Inner city"]
[null,null,8313,"Inner city"]
[null,null,8314,"Inner city"]
[null,null,8315,"Inner city"]
[null,null,8316,"Inner city"]
[null,null,8317,"Inner city"]
[null,null,8318,"Inner city"]
[null,null,8319,"Inner city"]
[null,null,8320,"Inner city"]
[null,null,8321,"Inner city"]
[null,null,8322,"Inner city"]
[null,null,8323,"Inner city"]
[null,null,8324,"Inner city"]
[null,null,8325,"Inner city"]
[null,null,8326,"Inner city"]
[null,null,8327,"Inner city"]
[null,null,8328,"Inner city"]
[null,null,8329,"Inner city"]
[null,null,8330,"Inner city"]
[null,null,8331,"Inner city"]
[null,null,8332,"Inner city"]
[null,null,8333,"Inner city"]
[null,null,8334,"Inner city"]
[null,null,8335,"Inner city"]
[null,null,8336,"Inner city"]
[null,null,8337,"Inner city"]
[null,null,8338,"Inner city"]
[null,null,8339,"Inner city"]
[null,null,8340,"Inner city"]
[null,null,8341,"Inner city"]
[null,null,8342,"Inner city"]
[null,null,8343,"Inner city"]
[null,null,8344,"Inner city"]
[null,null,8345,"Inner city"]
[null,null,8346,"Inner city"]
[null,null,8347,"Inner city"]
[null,null,8348,"Inner city"]
[null,null,8349,"Inner city"]
[null,null,8350,"Inner city"]
[null,null,8351,"Inner city"]
[null,null,8352,"Inner city"]
[null,null,8353,"Inner city"]
[null,null,8354,"Inner city"]
[null,null,8355,"Inner city"]
[null,null,8356,"Inner city"]
[null,null,8357,"Inner city"]
[null,null,8358,"Inner city"]
[null,null,8359,"Inner city"]
[null,null,8360,"Inner city"]
[null,null,8361,"Inner city"]
[null,null,8362,"Inner city"]
[null,null,8363,"Inner city"]
[null,null,8364,"Inner city"]
[null,null,8365,"Inner city"]
[null,null,8366,"Inner city"]
[null,null,8367,"Inner city"]
[null,null,8368,"Inner city"]
[null,null,8369,"Inner city"]
[null,null,8370,"Inner city"]
[null,null,8371,"Inner city"]
[null,null,8372,"Inner city"]
[null,null,8373,"Inner city"]
[null,null,8374,"Inner city"]
[null,null,8375,"Inner city"]
[null,null,8376,"Inner city"]
[null,null,8377,"Inner city"]
[null,null,8378,"Inner city"]
[null,null,8379,"Inner city"]
[null,null,8380,"Inner city"]
[null,null,8381,"Inner city"]
[null,null,8382,"Inner city"]
[null,null,8383,"Inner city"]
[null,null,8384,"Inner city"]
[null,null,8385,"Inner city"]
[null,null,8386,"Inner city"]
[null,null,8387,"Inner city"]
[null,null,8388,"Inner city"]
[null,null,8389,"Inner city"]
[null,null,8390,"Inner city"]
[null,null,8391,"Inner city"]
[null,null,8392,"Inner city"]
[null,null,8393,"Inner city"]
[null,null,8394,"Inner city"]
[null,null,8395,"Inner city"]
[null,null,8396,"Inner city"]
[null,null,8397,"Inner city"]
[null,null,8398,"Inner city"]
[null,null,8399,"Inner city"]
[null,null,8400,"Metro"]
[null,null,8401,"Metro"]
[null,null,8402,"Metro"]
[null,null,8403,"Metro"]
[null,null,8404,"Metro"]
[null,null,8405,"Metro"]
[null,null,8406,"Metro"]
[null,null,8407,"Metro"]
[null,null,8408,"Metro"]
[null,null,8409,"Metro"]
[null,null,8410,"Metro"]
[null,null,8411,"Metro"]
[null,null,8412,"Metro"]
[null,null,8413,"Metro"]
[null,null,8414,"Metro"]
[null,null,8415,"Metro"]
[null,null,8416,"Metro"]
[null,null,8417,"Metro"]
[null,null,8418,"Metro"]
[null,null,8419,"Metro"]
[null,null,8420,"Metro"]
[null,null,8421,"Metro"]
[null,null,8422,"Metro"]
[null,null,8423,"Metro"]
[null,null,8424,"Metro"]
[null,null,8425,"Metro"]
[null,null,8426,"Metro"]
[null,null,8427,"Metro"]
[null,null,8428,"Metro"]
[null,null,8429,"Metro"]
[null,null,8430,"Metro"]
[null,null,8431,"Metro"]
[null,null,8432,"Metro"]
[null,null,8433,"Metro"]
[null,null,8434,"Metro"]
[null,null,8435,"Metro"]
[null,null,8436,"Metro"]
[null,null,8437,"Metro"]
[null,null,8438,"Metro"]
[null,null,8439,"Metro"]
[null,null,8440,"Metro"]
[null,null,8441,"Metro"]
[null,null,8442,"Metro"]
[null,null,8443,"Metro"]
[null,null,8444,"Metro"]
[null,null,8445,"Metro"]
[null,null,8446,"Metro"]
[null,null,8447,"Metro"]
[null,null,8448,"Metro"]
[null,null,8449,"Metro"]
[null,null,8450,"Metro"]
[null,null,8451,"Metro"]
[null,null,8452,"Metro"]
[null,null,8453,"Metro"]
[null,null,8454,"Metro"]
[null,null,8455,"Metro"]
[null,null,8456,"Metro"]
[null,null,8457,"Metro"]
[null,null,8458,"Metro"]
[null,null,8459,"Metro"]
[null,null,8460,"Metro"]
[null,null,8461,"Metro"]
[null,null,8462,"Metro"]
[null,null,8463,"Metro"]
[null,null,8464,"Metro"]
[null,null,8465,"Metro"]
[null,null,8466,"Metro"]
[null,null,8467,"Metro"]
[null,null,8468,"Metro"]
[null,null,8469,"Metro"]
[null,null,8470,"Metro"]
[null,null,8471,"Metro"]
[null,null,8472,"Metro"]
[null,null,8473,"Metro"]
[null,null,8474,"Metro"]
[null,null,8475,"Metro"]
[null,null,8476,"Metro"]
[null,null,8477,"Metro"]
[null,null,8478,"Metro"]
[null,null,8479,"Metro"]
[null,null,8480,"Metro"]
[null,null,8481,"Metro"]
[null,null,8482,"Metro"]
[null,null,8483,"Metro"]
[null,null,8484,"Metro"]
[null,null,8485,"Metro"]
[null,null,8486,"Metro"]
[null,null,8487,"Metro"]
[null,null,8488,"Metro"]
[null,null,8489,"Metro"]
[null,null,8490,"Metro"]
[null,null,8491,"Metro"]
[null,null,8492,"Metro"]
[null,null,8493,"Metro"]
[null,null,8494,"Metro"]
[null,null,8495,"Metro"]
[null,null,8496,"Metro"]
[null,null,8497,"Metro"]
[null,null,8498,"Metro"]
[null,null,8499,"Metro"]
[null,null,8500,"Metro"]
[null,null,8501,"Metro"]
[null,null,8502,"Metro"]
[null,null,8503,"Metro"]
[null,null,8504,"Metro"]
[null,null,8505,"Metro"]
[null,null,8506,"Metro"]
[null,null,8507,"Metro"]
[null,null,8508,"Metro"]
[null,null,8509,"Metro"]
[null,null,8510,"Metro"]
[null,null,8511,"Metro"]
[null,null,8512,"Metro"]
[null,null,8513,"Metro"]
[null,null,8514,"Metro"]
[null,null,8515,"Metro"]
[null,null,8516,"Metro"]
[null,null,8517,"Metro"]
[null,null,8518,"Metro"]
[null,null,8519,"Metro"]
[null,null,8520,"Metro"]
[null,null,8521,"Metro"]
[null,null,8522,"Metro"]
[null,null,8523,"Metro"]
[null,null,8524,"Metro"]
[null,null,8525,"Metro"]
[null,null,8526,"Metro"]
[null,null,8527,"Metro"]
[null,null,8528,"Metro"]
[null,null,8529,"Metro"]
[null,null,8530,"Metro"]
[null,null,8531,"Metro"]
[null,null,8532,"Metro"]
[null,null,8533,"Metro"]
[null,null,8534,"Metro"]
[null,null,8535,"Metro"]
[null,null,8536,"Metro"]
[null,null,8537,"Metro"]
[null,null,8538,"Metro"]
[null,null,8539,"Metro"]
[null,null,8540,"Metro"]
[null,null,8541,"Metro"]
[null,null,8542,"Metro"]
[null,null,8543,"Metro"]
[null,null,8544,"Metro"]
[null,null,8545,"Metro"]
[null,null,8546,"Metro"]
[null,null,8547,"Metro"]
[null,null,8548,"Metro"]
[null,null,8549,"Metro"]
[null,null,8550,"Metro"]
[null,null,8551,"Metro"]
[null,null,8552,"Metro"]
[null,null,8553,"Metro"]
[null,null,8554,"Metro"]
[null,null,8555,"Metro"]
[null,null,8556,"Metro"]
[null,null,8557,"Metro"]
[null,null,8558,"Metro"]
[null,null,8559,"Metro"]
[null,null,8560,"Metro"]
[null,null,8561,"Metro"]
[null,null,8562,"Metro"]
[null,null,8563,"Metro"]
[null,null,8564,"Metro"]
[null,null,8565,"Metro"]
[null,null,8566,"Metro"]
[null,null,8567,"Metro"]
[null,null,8568,"Metro"]
[null,null,8569,"Metro"]
[null,null,8570,"Metro"]
[null,null,8571,"Metro"]
[null,null,8572,"Metro"]
[null,null,8573,"Metro"]
[null,null,8574,"Metro"]
[null,null,8575,"Metro"]
[null,null,8576,"Metro"]
[null,null,8577,"Metro"]
[null,null,8578,"Metro"]
[null,null,8579,"Metro"]
[null,null,8580,"Metro"]
[null,null,8581,"Metro"]
[null,null,8582,"Metro"]
[null,null,8583,"Metro"]
[null,null,8584,"Metro"]
[null,null,8585,"Metro"]
[null,null,8586,"Metro"]
[null,null,8587,"Metro"]
[null,null,8588,"Metro"]
[null,null,8589,"Metro"]
[null,null,8590,"Metro"]
[null,null,8591,"Metro"]
[null,null,8592,"Metro"]
[null,null,8593,"Metro"]
[null,null,8594,"Metro"]
[null,null,8595,"Metro"]
[null,null,8596,"Metro"]
[null,null,8597,"Metro"]
[null,null,8598,"Metro"]
[null,null,8599,"Metro"]
[null,null,8600,"Metro"]
[null,null,8601,"Metro"]
[null,null,8602,"Metro"]
[null,null,8603,"Metro"]
[null,null,8604,"Metro"]
[null,null,8605,"Metro"]
[null,null,8606,"Metro"]
[null,null,8607,"Metro"]
[null,null,8608,"Metro"]
[null,null,8609,"Metro"]
[null,null,8610,"Metro"]
[null,null,8611,"Metro"]
[null,null,8612,"Metro"]
[null,null,8613,"Metro"]
[null,null,8614,"Metro"]
[null,null,8615,"Metro"]
[null,null,8616,"Metro"]
[null,null,8617,"Metro"]
[null,null,8618,"Metro"]
[null,null,8619,"Metro"]
[null,null,8620,"Metro"]
[null,null,8621,"Metro"]
[null,null,8622,"Metro"]
[null,null,8623,"Metro"]
[null,null,8624,"Metro"]
[null,null,8625,"Metro"]
[null,null,8626,"Metro"]
[null,null,8627,"Metro"]
[null,null,8628,"Metro"]
[null,null,8629,"Metro"]
[null,null,8630,"Metro"]
[null,null,8631,"Metro"]
[null,null,8632,"Metro"]
[null,null,8633,"Metro"]
[null,null,8634,"Metro"]
[null,null,8635,"Metro"]
[null,null,8636,"Metro"]
[null,null,8637,"Metro"]
[null,null,8638,"Metro"]
[null,null,8639,"Metro"]
[null,null,8640,"Metro"]
[null,null,8641,"Metro"]
[null,null,8642,"Metro"]
[null,null,8643,"Metro"]
[null,null,8644,"Metro"]
[null,null,8645,"Metro"]
[null,null,8646,"Metro"]
[null,null,8647,"Metro"]
[null,null,8648,"Metro"]
[null,null,8649,"Metro"]
[null,null,8650,"Metro"]
[null,null,8651,"Metro"]
[null,null,8652,"Metro"]
[null,null,8653,"Metro"]
[null,null,8654,"Metro"]
[null,null,8655,"Metro"]
[null,null,8656,"Metro"]
[null,null,8657,"Metro"]
[null,null,8658,"Metro"]
[null,null,8659,"Metro"]
[null,null,8660,"Metro"]
[null,null,8661,"Metro"]
[null,null,8662,"Metro"]
[null,null,8663,"Metro"]
[null,null,8664,"Metro"]
[null,null,8665,"Metro"]
[null,null,8666,"Metro"]
[null,null,8667,"Metro"]
[null,null,8668,"Metro"]
[null,null,8669,"Metro"]
[null,null,8670,"Metro"]
[null,null,8671,"Metro"]
[null,null,8672,"Metro"]
[null,null,8673,"Metro"]
[null,null,8674,"Metro"]
[null,null,8675,"Metro"]
[null,null,8676,"Metro"]
[null,null,8677,"Metro"]
[null,null,8678,"Metro"]
[null,null,8679,"Metro"]
[null,null,8680,"Metro"]
[null,null,8681,"Metro"]
[null,null,8682,"Metro"]
[null,null,8683,"Metro"]
[null,null,8684,"Metro"]
[null,null,8685,"Metro"]
[null,null,8686,"Metro"]
[null,null,8687,"Metro"]
[null,null,8688,"Metro"]
[null,null,8689,"Metro"]
[null,null,8690,"Metro"]
[null,null,8691,"Metro"]
[null,null,8692,"Metro"]
[null,null,8693,"Metro"]
[null,null,8694,"Metro"]
[null,null,8695,"Metro"]
[null,null,8696,"Metro"]
[null,null,8697,"Metro"]
[null,null,8698,"Metro"]
[null,null,8699,"Metro"]
[null,null,8700,"Metro"]
[null,null,8701,"Metro"]
[null,null,8702,"Metro"]
[null,null,8703,"Metro"]
[null,null,8704,"Metro"]
[null,null,8705,"Metro"]
[null,null,8706,"Metro"]
[null,null,8707,"Metro"]
[null,null,8708,"Metro"]
[null,null,8709,"Metro"]
[null,null,8710,"Metro"]
[null,null,8711,"Metro"]
[null,null,8712,"Metro"]
[null,null,8713,"Metro"]
[null,null,8714,"Metro"]
[null,null,8715,"Metro"]
[null,null,8716,"Metro"]
[null,null,8717,"Metro"]
[null,null,8718,"Metro"]
[null,null,8719,"Metro"]
[null,null,8720,"Metro"]
[null,null,8721,"Metro"]
[null,null,8722,"Metro"]
[null,null,8723,"Metro"]
[null,null,8724,"Metro"]
[null,null,8725,"Metro"]
[null,null,8726,"Metro"]
[null,null,8727,"Metro"]
[null,null,8728,"Metro"]
[null,null,8729,"Metro"]
[null,null,8730,"Metro"]
[null,null,8731,"Metro"]
[null,null,8732,"Metro"]
[null,null,8733,"Metro"]
[null,null,8734,"Metro"]
[null,null,8735,"Metro"]
[null,null,8736,"Metro"]
[null,null,8737,"Metro"]
[null,null,8738,"Metro"]
[null,null,8739,"Metro"]
[null,null,8740,"Metro"]
[null,null,8741,"Metro"]
[null,null,8742,"Metro"]
[null,null,8743,"Metro"]
[null,null,8744,"Metro"]
[null,null,8745,"Metro"]
[null,null,8746,"Metro"]
[null,null,8747,"Metro"]
[null,null,8748,"Metro"]
[null,null,8749,"Metro"]
[null,null,8750,"Metro"]
[null,null,8751,"Metro"]
[null,null,8752,"Metro"]
[null,null,8753,"Metro"]
[null,null,8754,"Metro"]
[null,null,8755,"Metro"]
[null,null,8756,"Metro"]
[null,null,8757,"Metro"]
[null,null,8758,"Metro"]
[null,null,8759,"Metro"]
[null,null,8760,"Metro"]
[null,null,8761,"Metro"]
[null,null,8762,"Metro"]
[null,null,8763,"Metro"]
[null,null,8764,"Metro"]
[null,null,8765,"Metro"]
[null,null,8766,"Metro"]
[null,null,8767,"Metro"]
[null,null,8768,"Metro"]
[null,null,8769,"Metro"]
[null,null,8770,"Metro"]
[null,null,8771,"Metro"]
[null,null,8772,"Metro"]
[null,null,8773,"Metro"]
[null,null,8774,"Metro"]
[null,null,8775,"Metro"]
[null,null,8776,"Metro"]
[null,null,8777,"Metro"]
[null,null,8778,"Metro"]
[null,null,8779,"Metro"]
[null,null,8780,"Metro"]
[null,null,8781,"Metro"]
[null,null,8782,"Metro"]
[null,null,8783,"Metro"]
[null,null,8784,"Metro"]
[null,null,8785,"Metro"]
[null,null,8786,"Metro"]
[null,null,8787,"Metro"]
[null,null,8788,"Metro"]
[null,null,8789,"Metro"]
[null,null,8790,"Metro"]
[null,null,8791,"Metro"]
[null,null,8792,"Metro"]
[null,null,8793,"Metro"]
[null,null,8794,"Metro"]
[null,null,8795,"Metro"]
[null,null,8796,"Metro"]
[null,null,8797,"Metro"]
[null,null,8798,"Metro"]
[null,null,8799,"Metro"]
[null,null,8800,"Metro"]
[null,null,8801,"Metro"]
[null,null,8802,"Metro"]
[null,null,8803,"Metro"]
[null,null,8804,"Metro"]
[null,null,8805,"Metro"]
[null,null,8806,"Metro"]
[null,null,8807,"Metro"]
[null,null,8808,"Metro"]
[null,null,8809,"Metro"]
[null,null,8810,"Metro"]
[null,null,8811,"Metro"]
[null,null,8812,"Metro"]
[null,null,8813,"Metro"]
[null,null,8814,"Metro"]
[null,null,8815,"Metro"]
[null,null,8816,"Metro"]
[null,null,8817,"Metro"]
[null,null,8818,"Metro"]
[null,null,8819,"Metro"]
[null,null,8820,"Metro"]
[null,null,8821,"Metro"]
[null,null,8822,"Metro"]
[null,null,8823,"Metro"]
[null,null,8824,"Metro"]
[null,null,8825,"Metro"]
[null,null,8826,"Metro"]
[null,null,8827,"Metro"]
[null,null,8828,"Metro"]
[null,null,8829,"Metro"]
[null,null,8830,"Metro"]
[null,null,8831,"Metro"]
[null,null,8832,"Metro"]
[null,null,8833,"Metro"]
[null,null,8834,"Metro"]
[null,null,8835,"Metro"]
[null,null,8836,"Metro"]
[null,null,8837,"Metro"]
[null,null,8838,"Metro"]
[null,null,8839,"Metro"]
[null,null,8840,"Metro"]
[null,null,8841,"Metro"]
[null,null,8842,"Metro"]
[null,null,8843,"Metro"]
[null,null,8844,"Metro"]
[null,null,8845,"Metro"]
[null,null,8846,"Metro"]
[null,null,8847,"Metro"]
[null,null,8848,"Metro"]
[null,null,8849,"Metro"]
[null,null,8850,"Metro"]
[null,null,8851,"Metro"]
[null,null,8852,"Metro"]
[null,null,8853,"Metro"]
[null,null,8854,"Metro"]
[null,null,8855,"Metro"]
[null,null,8856,"Metro"]
[null,null,8857,"Metro"]
[null,null,8858,"Metro"]
[null,null,8859,"Metro"]
[null,null,8860,"Metro"]
[null,null,8861,"Metro"]
[null,null,8862,"Metro"]
[null,null,8863,"Metro"]
[null,null,8864,"Metro"]
[null,null,8865,"Metro"]
[null,null,8866,"Metro"]
[null,null,8867,"Metro"]
[null,null,8868,"Metro"]
[null,null,8869,"Metro"]
[null,null,8870,"Metro"]
[null,null,8871,"Metro"]
[null,null,8872,"Metro"]
[null,null,8873,"Metro"]
[null,null,8874,"Metro"]
[null,null,8875,"Metro"]
[null,null,8876,"Metro"]
[null,null,8877,"Metro"]
[null,null,8878,"Metro"]
[null,null,8879,"Metro"]
[null,null,8880,"Metro"]
[null,null,8881,"Metro"]
[null,null,8882,"Metro"]
[null,null,8883,"Metro"]
[null,null,8884,"Metro"]
[null,null,8885,"Metro"]
[null,null,8886,"Metro"]
[null,null,8887,"Metro"]
[null,null,8888,"Metro"]
[null,null,8889,"Metro"]
[null,null,8890,"Metro"]
[null,null,8891,"Metro"]
[null,null,8892,"Metro"]
[null,null,8893,"Metro"]
[null,null,8894,"Metro"]
[null,null,8895,"Metro"]
[null,null,8896,"Metro"]
[null,null,8897,"Metro"]
[null,null,8898,"Metro"]
[null,null,8899,"Metro"]
[null,null,8900,"Non metro"]
[null,null,8901,"Non metro"]
[null,null,8902,"Non metro"]
[null,null,8903,"Non metro"]
[null,null,8904,"Non metro"]
[null,null,8905,"Non metro"]
[null,null,8906,"Non metro"]
[null,null,8907,"Non metro"]
[null,null,8908,"Non metro"]
[null,null,8909,"Non metro"]
[null,null,8910,"Non metro"]
[null,null,8911,"Non metro"]
[null,null,8912,"Non metro"]
[null,null,8913,"Non metro"]
[null,null,8914,"Non metro"]
[null,null,8915,"Non metro"]
[null,null,8916,"Non metro"]
[null,null,8917,"Non metro"]
[null,null,8918,"Non metro"]
[null,null,8919,"Non metro"]
[null,null,8920,"Non metro"]
[null,null,8921,"Non metro"]
[null,null,8922,"Non metro"]
[null,null,8923,"Non metro"]
[null,null,8924,"Non metro"]
[null,null,8925,"Non metro"]
[null,null,8926,"Non metro"]
[null,null,8927,"Non metro"]
[null,null,8928,"Non metro"]
[null,null,8929,"Non metro"]
[null,null,8930,"Non metro"]
[null,null,8931,"Non metro"]
[null,null,8932,"Non metro"]
[null,null,8933,"Non metro"]
[null,null,8934,"Non metro"]
[null,null,8935,"Non metro"]
[null,null,8936,"Non metro"]
[null,null,8937,"Non metro"]
[null,null,8938,"Non metro"]
[null,null,8939,"Non metro"]
[null,null,8940,"Non metro"]
[null,null,8941,"Non metro"]
[null,null,8942,"Non metro"]
[null,null,8943,"Non metro"]
[null,null,8944,"Non metro"]
[null,null,8945,"Non metro"]
[null,null,8946,"Non metro"]
[null,null,8947,"Non metro"]
[null,null,8948,"Non metro"]
[null,null,8949,"Non metro"]
[null,null,8950,"Non metro"]
[null,null,8951,"Non metro"]
[null,null,8952,"Non metro"]
[null,null,8953,"Non metro"]
[null,null,8954,"Non metro"]
[null,null,8955,"Non metro"]
[null,null,8956,"Non metro"]
[null,null,8957,"Non metro"]
[null,null,8958,"Non metro"]
[null,null,8959,"Non metro"]
[null,null,8960,"Non metro"]
[null,null,8961,"Non metro"]
[null,null,8962,"Non metro"]
[null,null,8963,"Non metro"]
[null,null,8964,"Non metro"]
[null,null,8965,"Non metro"]
[null,null,8966,"Non metro"]
[null,null,8967,"Non metro"]
[null,null,8968,"Non metro"]
[null,null,8969,"Non metro"]
[null,null,8970,"Non metro"]
[null,null,8971,"Non metro"]
[null,null,8972,"Non metro"]
[null,null,8973,"Non metro"]
[null,null,8974,"Non metro"]
[null,null,8975,"Non metro"]
[null,null,8976,"Non metro"]
[null,null,8977,"Non metro"]
[null,null,8978,"Non metro"]
[null,null,8979,"Non metro"]
[null,null,8980,"Non metro"]
[null,null,8981,"Non metro"]
[null,null,8982,"Non metro"]
[null,null,8983,"Non metro"]
[null,null,8984,"Non metro"]
[null,null,8985,"Non metro"]
[null,null,8986,"Non metro"]
[null,null,8987,"Non metro"]
[null,null,8988,"Non metro"]
[null,null,8989,"Non metro"]
[null,null,8990,"Non metro"]
[null,null,8991,"Non metro"]
[null,null,8992,"Non metro"]
[null,null,8993,"Non metro"]
[null,null,8994,"Non metro"]
[null,null,8995,"Non metro"]
[null,null,8996,"Non metro"]
[null,null,8997,"Non metro"]
[null,null,8998,"Non metro"]
[null,null,8999,"Non metro"]
[null,null,9000,"Inner city"]
[null,null,9001,"Inner city"]
[null,null,9002,"Inner city"]
[null,null,9003,"Inner city"]
[null,null,9004,"Inner city"]
[null,null,9005,"Inner city"]
[null,null,9006,"Inner city"]
[null,null,9007,"Inner city"]
[null,null,9008,"Inner city"]
[null,null,9009,"Inner city"]
[null,null,9010,"Inner city"]
[null,null,9011,"Inner city"]
[null,null,9012,"Inner city"]
[null,null,9013,"Inner city"]
[null,null,9014,"Inner city"]
[null,null,9015,"Inner city"]
[null,null,9016,"Inner city"]
[null,null,9017,"Inner city"]
[null,null,9018,"Inner city"]
[null,null,9019,"Inner city"]
[null,null,9020,"Inner city"]
[null,null,9021,"Inner city"]
[null,null,9022,"Inner city"]
[null,null,9023,"Inner city"]
[null,null,9024,"Inner city"]
[null,null,9025,"Inner city"]
[null,null,9026,"Inner city"]
[null,null,9027,"Inner city"]
[null,null,9028,"Inner city"]
[null,null,9029,"Inner city"]
[null,null,9030,"Inner city"]
[null,null,9031,"Inner city"]
[null,null,9032,"Inner city"]
[null,null,9033,"Inner city"]
[null,null,9034,"Inner city"]
[null,null,9035,"Inner city"]
[null,null,9036,"Inner city"]
[null,null,9037,"Inner city"]
[null,null,9038,"Inner city"]
[null,null,9039,"Inner city"]
[null,null,9040,"Inner city"]
[null,null,9041,"Inner city"]
[null,null,9042,"Inner city"]
[null,null,9043,"Inner city"]
[null,null,9044,"Inner city"]
[null,null,9045,"Inner city"]
[null,null,9046,"Inner city"]
[null,null,9047,"Inner city"]
[null,null,9048,"Inner city"]
[null,null,9049,"Inner city"]
[null,null,9050,"Inner city"]
[null,null,9051,"Inner city"]
[null,null,9052,"Inner city"]
[null,null,9053,"Inner city"]
[null,null,9054,"Inner city"]
[null,null,9055,"Inner city"]
[null,null,9056,"Inner city"]
[null,null,9057,"Inner city"]
[null,null,9058,"Inner city"]
[null,null,9059,"Inner city"]
[null,null,9060,"Inner city"]
[null,null,9061,"Inner city"]
[null,null,9062,"Inner city"]
[null,null,9063,"Inner city"]
[null,null,9064,"Inner city"]
[null,null,9065,"Inner city"]
[null,null,9066,"Inner city"]
[null,null,9067,"Inner city"]
[null,null,9068,"Inner city"]
[null,null,9069,"Inner city"]
[null,null,9070,"Inner city"]
[null,null,9071,"Inner city"]
[null,null,9072,"Inner city"]
[null,null,9073,"Inner city"]
[null,null,9074,"Inner city"]
[null,null,9075,"Inner city"]
[null,null,9076,"Inner city"]
[null,null,9077,"Inner city"]
[null,null,9078,"Inner city"]
[null,null,9079,"Inner city"]
[null,null,9080,"Inner city"]
[null,null,9081,"Inner city"]
[null,null,9082,"Inner city"]
[null,null,9083,"Inner city"]
[null,null,9084,"Inner city"]
[null,null,9085,"Inner city"]
[null,null,9086,"Inner city"]
[null,null,9087,"Inner city"]
[null,null,9088,"Inner city"]
[null,null,9089,"Inner city"]
[null,null,9090,"Inner city"]
[null,null,9091,"Inner city"]
[null,null,9092,"Inner city"]
[null,null,9093,"Inner city"]
[null,null,9094,"Inner city"]
[null,null,9095,"Inner city"]
[null,null,9096,"Inner city"]
[null,null,9097,"Inner city"]
[null,null,9098,"Inner city"]
[null,null,9099,"Inner city"]
[null,null,9100,"Inner city"]
[null,null,9101,"Inner city"]
[null,null,9102,"Inner city"]
[null,null,9103,"Inner city"]
[null,null,9104,"Inner city"]
[null,null,9105,"Inner city"]
[null,null,9106,"Inner city"]
[null,null,9107,"Inner city"]
[null,null,9108,"Inner city"]
[null,null,9109,"Inner city"]
[null,null,9110,"Inner city"]
[null,null,9111,"Inner city"]
[null,null,9112,"Inner city"]
[null,null,9113,"Inner city"]
[null,null,9114,"Inner city"]
[null,null,9115,"Inner city"]
[null,null,9116,"Inner city"]
[null,null,9117,"Inner city"]
[null,null,9118,"Inner city"]
[null,null,9119,"Inner city"]
[null,null,9120,"Inner city"]
[null,null,9121,"Inner city"]
[null,null,9122,"Inner city"]
[null,null,9123,"Inner city"]
[null,null,9124,"Inner city"]
[null,null,9125,"Inner city"]
[null,null,9126,"Inner city"]
[null,null,9127,"Inner city"]
[null,null,9128,"Inner city"]
[null,null,9129,"Inner city"]
[null,null,9130,"Inner city"]
[null,null,9131,"Inner city"]
[null,null,9132,"Inner city"]
[null,null,9133,"Inner city"]
[null,null,9134,"Inner city"]
[null,null,9135,"Inner city"]
[null,null,9136,"Inner city"]
[null,null,9137,"Inner city"]
[null,null,9138,"Inner city"]
[null,null,9139,"Inner city"]
[null,null,9140,"Inner city"]
[null,null,9141,"Inner city"]
[null,null,9142,"Inner city"]
[null,null,9143,"Inner city"]
[null,null,9144,"Inner city"]
[null,null,9145,"Inner city"]
[null,null,9146,"Inner city"]
[null,null,9147,"Inner city"]
[null,null,9148,"Inner city"]
[null,null,9149,"Inner city"]
[null,null,9150,"Inner city"]
[null,null,9151,"Inner city"]
[null,null,9152,"Inner city"]
[null,null,9153,"Inner city"]
[null,null,9154,"Inner city"]
[null,null,9155,"Inner city"]
[null,null,9156,"Inner city"]
[null,null,9157,"Inner city"]
[null,null,9158,"Inner city"]
[null,null,9159,"Inner city"]
[null,null,9160,"Inner city"]
[null,null,9161,"Inner city"]
[null,null,9162,"Inner city"]
[null,null,9163,"Inner city"]
[null,null,9164,"Inner city"]
[null,null,9165,"Inner city"]
[null,null,9166,"Inner city"]
[null,null,9167,"Inner city"]
[null,null,9168,"Inner city"]
[null,null,9169,"Inner city"]
[null,null,9170,"Inner city"]
[null,null,9171,"Inner city"]
[null,null,9172,"Inner city"]
[null,null,9173,"Inner city"]
[null,null,9174,"Inner city"]
[null,null,9175,"Inner city"]
[null,null,9176,"Inner city"]
[null,null,9177,"Inner city"]
[null,null,9178,"Inner city"]
[null,null,9179,"Inner city"]
[null,null,9180,"Inner city"]
[null,null,9181,"Inner city"]
[null,null,9182,"Inner city"]
[null,null,9183,"Inner city"]
[null,null,9184,"Inner city"]
[null,null,9185,"Inner city"]
[null,null,9186,"Inner city"]
[null,null,9187,"Inner city"]
[null,null,9188,"Inner city"]
[null,null,9189,"Inner city"]
[null,null,9190,"Inner city"]
[null,null,9191,"Inner city"]
[null,null,9192,"Inner city"]
[null,null,9193,"Inner city"]
[null,null,9194,"Inner city"]
[null,null,9195,"Inner city"]
[null,null,9196,"Inner city"]
[null,null,9197,"Inner city"]
[null,null,9198,"Inner city"]
[null,null,9199,"Inner city"]
[null,null,9200,"Inner city"]
[null,null,9201,"Inner city"]
[null,null,9202,"Inner city"]
[null,null,9203,"Inner city"]
[null,null,9204,"Inner city"]
[null,null,9205,"Inner city"]
[null,null,9206,"Inner city"]
[null,null,9207,"Inner city"]
[null,null,9208,"Inner city"]
[null,null,9209,"Inner city"]
[null,null,9210,"Inner city"]
[null,null,9211,"Inner city"]
[null,null,9212,"Inner city"]
[null,null,9213,"Inner city"]
[null,null,9214,"Inner city"]
[null,null,9215,"Inner city"]
[null,null,9216,"Inner city"]
[null,null,9217,"Inner city"]
[null,null,9218,"Inner city"]
[null,null,9219,"Inner city"]
[null,null,9220,"Inner city"]
[null,null,9221,"Inner city"]
[null,null,9222,"Inner city"]
[null,null,9223,"Inner city"]
[null,null,9224,"Inner city"]
[null,null,9225,"Inner city"]
[null,null,9226,"Inner city"]
[null,null,9227,"Inner city"]
[null,null,9228,"Inner city"]
[null,null,9229,"Inner city"]
[null,null,9230,"Inner city"]
[null,null,9231,"Inner city"]
[null,null,9232,"Inner city"]
[null,null,9233,"Inner city"]
[null,null,9234,"Inner city"]
[null,null,9235,"Inner city"]
[null,null,9236,"Inner city"]
[null,null,9237,"Inner city"]
[null,null,9238,"Inner city"]
[null,null,9239,"Inner city"]
[null,null,9240,"Inner city"]
[null,null,9241,"Inner city"]
[null,null,9242,"Inner city"]
[null,null,9243,"Inner city"]
[null,null,9244,"Inner city"]
[null,null,9245,"Inner city"]
[null,null,9246,"Inner city"]
[null,null,9247,"Inner city"]
[null,null,9248,"Inner city"]
[null,null,9249,"Inner city"]
[null,null,9250,"Inner city"]
[null,null,9251,"Inner city"]
[null,null,9252,"Inner city"]
[null,null,9253,"Inner city"]
[null,null,9254,"Inner city"]
[null,null,9255,"Inner city"]
[null,null,9256,"Inner city"]
[null,null,9257,"Inner city"]
[null,null,9258,"Inner city"]
[null,null,9259,"Inner city"]
[null,null,9260,"Inner city"]
[null,null,9261,"Inner city"]
[null,null,9262,"Inner city"]
[null,null,9263,"Inner city"]
[null,null,9264,"Inner city"]
[null,null,9265,"Inner city"]
[null,null,9266,"Inner city"]
[null,null,9267,"Inner city"]
[null,null,9268,"Inner city"]
[null,null,9269,"Inner city"]
[null,null,9270,"Inner city"]
[null,null,9271,"Inner city"]
[null,null,9272,"Inner city"]
[null,null,9273,"Inner city"]
[null,null,9274,"Inner city"]
[null,null,9275,"Inner city"]
[null,null,9276,"Inner city"]
[null,null,9277,"Inner city"]
[null,null,9278,"Inner city"]
[null,null,9279,"Inner city"]
[null,null,9280,"Inner city"]
[null,null,9281,"Inner city"]
[null,null,9282,"Inner city"]
[null,null,9283,"Inner city"]
[null,null,9284,"Inner city"]
[null,null,9285,"Inner city"]
[null,null,9286,"Inner city"]
[null,null,9287,"Inner city"]
[null,null,9288,"Inner city"]
[null,null,9289,"Inner city"]
[null,null,9290,"Inner city"]
[null,null,9291,"Inner city"]
[null,null,9292,"Inner city"]
[null,null,9293,"Inner city"]
[null,null,9294,"Inner city"]
[null,null,9295,"Inner city"]
[null,null,9296,"Inner city"]
[null,null,9297,"Inner city"]
[null,null,9298,"Inner city"]
[null,null,9299,"Inner city"]
[null,null,9300,"Non metro"]
[null,null,9301,"Non metro"]
[null,null,9302,"Non metro"]
[null,null,9303,"Non metro"]
[null,null,9304,"Non metro"]
[null,null,9305,"Non metro"]
[null,null,9306,"Non metro"]
[null,null,9307,"Non metro"]
[null,null,9308,"Non metro"]
[null,null,9309,"Non metro"]
[null,null,9310,"Non metro"]
[null,null,9311,"Non metro"]
[null,null,9312,"Non metro"]
[null,null,9313,"Non metro"]
[null,null,9314,"Non metro"]
[null,null,9315,"Non metro"]
[null,null,9316,"Non metro"]
[null,null,9317,"Non metro"]
[null,null,9318,"Non metro"]
[null,null,9319,"Non metro"]
[null,null,9320,"Non metro"]
[null,null,9321,"Non metro"]
[null,null,9322,"Non metro"]
[null,null,9323,"Non metro"]
[null,null,9324,"Non metro"]
[null,null,9325,"Non metro"]
[null,null,9326,"Non metro"]
[null,null,9327,"Non metro"]
[null,null,9328,"Non metro"]
[null,null,9329,"Non metro"]
[null,null,9330,"Non metro"]
[null,null,9331,"Non metro"]
[null,null,9332,"Non metro"]
[null,null,9333,"Non metro"]
[null,null,9334,"Non metro"]
[null,null,9335,"Non metro"]
[null,null,9336,"Non metro"]
[null,null,9337,"Non metro"]
[null,null,9338,"Non metro"]
[null,null,9339,"Non metro"]
[null,null,9340,"Non metro"]
[null,null,9341,"Non metro"]
[null,null,9342,"Non metro"]
[null,null,9343,"Non metro"]
[null,null,9344,"Non metro"]
[null,null,9345,"Non metro"]
[null,null,9346,"Non metro"]
[null,null,9347,"Non metro"]
[null,null,9348,"Non metro"]
[null,null,9349,"Non metro"]
[null,null,9350,"Non metro"]
[null,null,9351,"Non metro"]
[null,null,9352,"Non metro"]
[null,null,9353,"Non metro"]
[null,null,9354,"Non metro"]
[null,null,9355,"Non metro"]
[null,null,9356,"Non metro"]
[null,null,9357,"Non metro"]
[null,null,9358,"Non metro"]
[null,null,9359,"Non metro"]
[null,null,9360,"Non metro"]
[null,null,9361,"Non metro"]
[null,null,9362,"Non metro"]
[null,null,9363,"Non metro"]
[null,null,9364,"Non metro"]
[null,null,9365,"Non metro"]
[null,null,9366,"Non metro"]
[null,null,9367,"Non metro"]
[null,null,9368,"Non metro"]
[null,null,9369,"Non metro"]
[null,null,9370,"Non metro"]
[null,null,9371,"Non metro"]
[null,null,9372,"Non metro"]
[null,null,9373,"Non metro"]
[null,null,9374,"Non metro"]
[null,null,9375,"Non metro"]
[null,null,9376,"Non metro"]
[null,null,9377,"Non metro"]
[null,null,9378,"Non metro"]
[null,null,9379,"Non metro"]
[null,null,9380,"Non metro"]
[null,null,9381,"Non metro"]
[null,null,9382,"Non metro"]
[null,null,9383,"Non metro"]
[null,null,9384,"Non metro"]
[null,null,9385,"Non metro"]
[null,null,9386,"Non metro"]
[null,null,9387,"Non metro"]
[null,null,9388,"Non metro"]
[null,null,9389,"Non metro"]
[null,null,9390,"Non metro"]
[null,null,9391,"Non metro"]
[null,null,9392,"Non metro"]
[null,null,9393,"Non metro"]
[null,null,9394,"Non metro"]
[null,null,9395,"Non metro"]
[null,null,9396,"Non metro"]
[null,null,9397,"Non metro"]
[null,null,9398,"Non metro"]
[null,null,9399,"Non metro"]
[null,null,9400,"Metro"]
[null,null,9401,"Metro"]
[null,null,9402,"Metro"]
[null,null,9403,"Metro"]
[null,null,9404,"Metro"]
[null,null,9405,"Metro"]
[null,null,9406,"Metro"]
[null,null,9407,"Metro"]
[null,null,9408,"Metro"]
[null,null,9409,"Metro"]
[null,null,9410,"Metro"]
[null,null,9411,"Metro"]
[null,null,9412,"Metro"]
[null,null,9413,"Metro"]
[null,null,9414,"Metro"]
[null,null,9415,"Metro"]
[null,null,9416,"Metro"]
[null,null,9417,"Metro"]
[null,null,9418,"Metro"]
[null,null,9419,"Metro"]
[null,null,9420,"Metro"]
[null,null,9421,"Metro"]
[null,null,9422,"Metro"]
[null,null,9423,"Metro"]
[null,null,9424,"Metro"]
[null,null,9425,"Metro"]
[null,null,9426,"Metro"]
[null,null,9427,"Metro"]
[null,null,9428,"Metro"]
[null,null,9429,"Metro"]
[null,null,9430,"Metro"]
[null,null,9431,"Metro"]
[null,null,9432,"Metro"]
[null,null,9433,"Metro"]
[null,null,9434,"Metro"]
[null,null,9435,"Metro"]
[null,null,9436,"Metro"]
[null,null,9437,"Metro"]
[null,null,9438,"Metro"]
[null,null,9439,"Metro"]
[null,null,9440,"Metro"]
[null,null,9441,"Metro"]
[null,null,9442,"Metro"]
[null,null,9443,"Metro"]
[null,null,9444,"Metro"]
[null,null,9445,"Metro"]
[null,null,9446,"Metro"]
[null,null,9447,"Metro"]
[null,null,9448,"Metro"]
[null,null,9449,"Metro"]
[null,null,9450,"Metro"]
[null,null,9451,"Metro"]
[null,null,9452,"Metro"]
[null,null,9453,"Metro"]
[null,null,9454,"Metro"]
[null,null,9455,"Metro"]
[null,null,9456,"Metro"]
[null,null,9457,"Metro"]
[null,null,9458,"Metro"]
[null,null,9459,"Metro"]
[null,null,9460,"Metro"]
[null,null,9461,"Metro"]
[null,null,9462,"Metro"]
[null,null,9463,"Metro"]
[null,null,9464,"Metro"]
[null,null,9465,"Metro"]
[null,null,9466,"Metro"]
[null,null,9467,"Metro"]
[null,null,9468,"Metro"]
[null,null,9469,"Metro"]
[null,null,9470,"Metro"]
[null,null,9471,"Metro"]
[null,null,9472,"Metro"]
[null,null,9473,"Metro"]
[null,null,9474,"Metro"]
[null,null,9475,"Metro"]
[null,null,9476,"Metro"]
[null,null,9477,"Metro"]
[null,null,9478,"Metro"]
[null,null,9479,"Metro"]
[null,null,9480,"Metro"]
[null,null,9481,"Metro"]
[null,null,9482,"Metro"]
[null,null,9483,"Metro"]
[null,null,9484,"Metro"]
[null,null,9485,"Metro"]
[null,null,9486,"Metro"]
[null,null,9487,"Metro"]
[null,null,9488,"Metro"]
[null,null,9489,"Metro"]
[null,null,9490,"Metro"]
[null,null,9491,"Metro"]
[null,null,9492,"Metro"]
[null,null,9493,"Metro"]
[null,null,9494,"Metro"]
[null,null,9495,"Metro"]
[null,null,9496,"Metro"]
[null,null,9497,"Metro"]
[null,null,9498,"Metro"]
[null,null,9499,"Metro"]
[null,null,9500,"Metro"]
[null,null,9501,"Metro"]
[null,null,9502,"Metro"]
[null,null,9503,"Metro"]
[null,null,9504,"Metro"]
[null,null,9505,"Metro"]
[null,null,9506,"Metro"]
[null,null,9507,"Metro"]
[null,null,9508,"Metro"]
[null,null,9509,"Metro"]
[null,null,9510,"Metro"]
[null,null,9511,"Metro"]
[null,null,9512,"Metro"]
[null,null,9513,"Metro"]
[null,null,9514,"Metro"]
[null,null,9515,"Metro"]
[null,null,9516,"Metro"]
[null,null,9517,"Metro"]
[null,null,9518,"Metro"]
[null,null,9519,"Metro"]
[null,null,9520,"Metro"]
[null,null,9521,"Metro"]
[null,null,9522,"Metro"]
[null,null,9523,"Metro"]
[null,null,9524,"Metro"]
[null,null,9525,"Metro"]
[null,null,9526,"Metro"]
[null,null,9527,"Metro"]
[null,null,9528,"Metro"]
[null,null,9529,"Metro"]
[null,null,9530,"Metro"]
[null,null,9531,"Metro"]
[null,null,9532,"Metro"]
[null,null,9533,"Metro"]
[null,null,9534,"Metro"]
[null,null,9535,"Metro"]
[null,null,9536,"Metro"]
[null,null,9537,"Metro"]
[null,null,9538,"Metro"]
[null,null,9539,"Metro"]
[null,null,9540,"Metro"]
[null,null,9541,"Metro"]
[null,null,9542,"Metro"]
[null,null,9543,"Metro"]
[null,null,9544,"Metro"]
[null,null,9545,"Metro"]
[null,null,9546,"Metro"]
[null,null,9547,"Metro"]
[null,null,9548,"Metro"]
[null,null,9549,"Metro"]
[null,null,9550,"Metro"]
[null,null,9551,"Metro"]
[null,null,9552,"Metro"]
[null,null,9553,"Metro"]
[null,null,9554,"Metro"]
[null,null,9555,"Metro"]
[null,null,9556,"Metro"]
[null,null,9557,"Metro"]
[null,null,9558,"Metro"]
[null,null,9559,"Metro"]
[null,null,9560,"Metro"]
[null,null,9561,"Metro"]
[null,null,9562,"Metro"]
[null,null,9563,"Metro"]
[null,null,9564,"Metro"]
[null,null,9565,"Metro"]
[null,null,9566,"Metro"]
[null,null,9567,"Metro"]
[null,null,9568,"Metro"]
[null,null,9569,"Metro"]
[null,null,9570,"Metro"]
[null,null,9571,"Metro"]
[null,null,9572,"Metro"]
[null,null,9573,"Metro"]
[null,null,9574,"Metro"]
[null,null,9575,"Metro"]
[null,null,9576,"Metro"]
[null,null,9577,"Metro"]
[null,null,9578,"Metro"]
[null,null,9579,"Metro"]
[null,null,9580,"Metro"]
[null,null,9581,"Metro"]
[null,null,9582,"Metro"]
[null,null,9583,"Metro"]
[null,null,9584,"Metro"]
[null,null,9585,"Metro"]
[null,null,9586,"Metro"]
[null,null,9587,"Metro"]
[null,null,9588,"Metro"]
[null,null,9589,"Metro"]
[null,null,9590,"Metro"]
[null,null,9591,"Metro"]
[null,null,9592,"Metro"]
[null,null,9593,"Metro"]
[null,null,9594,"Metro"]
[null,null,9595,"Metro"]
[null,null,9596,"Metro"]
[null,null,9597,"Non metro"]

{"sheet":"Version","index":6,"n_rows":46,"n_cols":6,"rows_kept":46,"cut":false,"hidden":true,"merged":[]}
[]
[null,{"$f":"Model.name","v":"MA Money - Arrears Calculator"}]
[null,null,{"$f":"MID(CELL(\"filename\",B2),FIND(\"]\",CELL(\"filename\",B2))+1,LEN(CELL(\"filename\",B2)))","v":"Version"}]
[]
[]
[]
[]
[]
[]
[]
[]
[]
[]
[]
[null,null,"Version No.","Change Author","Change Date","Change Summary"]
[null,null,1,"Alonso Contreras","2024-09-20","Bring in Genworth, S&P PostCodes"]
[]
[]
[]
[]
[]
[]
[]
[]
[]
[]
[]
[]
[]
[]
[]
[]
[]
[]
[]
[]
[]
[]
[]
[]
[]
[]
[]
[]
[]
[null,null,"Insert Rows Above ^"]